Workbook

Sheet Notes
A1: NHS England - CCG allocations 2019/20 to 2023/24
A2: Technical Guidance Documentation
A3: Aggregate place based allocations
A4: and disaggregation to the commissioning streams
A6: Q - Place based total and disaggregation
A7: Description of worksheets in this document
A9: This workbook shows the calculation for total place based pace of change, to produce
A10: aggregate place based allocations and disaggregation to the commissioning streams
A12: Please refer to the Technical Guide published alongside this spreadsheet for further information
A14: Pace of change parameters | H14: inputs
A15: A series of parameters and switches to tune pace of change policy
A17: Rows 8-13 provide basic information on national population growth and GDP deflators to
A18: inform setting growth limits.
A20: Rows 15-23 set the parameters for per capita growth rates. The minimum growth is set to the
A21: reference growth. The recommended earliest point for the end of transition ensures that
A22: pace of change preserves the order of the initial DfTs.
A24: Row 25 set the minimum programme growth.
A26: Rows 27 and 28 provide switches for turning on and off different parts of the pace of change
A27: policy.
A29: Rows 30-36 give a summary of the performance of the pace of change choices to support the
A30: process of choosing these parameters.
A32: Row 37 sets the minimum target closing DfT.
A34: VBA code | H34: calculations
A35: User defined Visual Basic functions used to set per capita growth
A36: Calculations are performed using this VBA code (comments describe process)
A38: Total 2019-20 | H38: processing
A39: Shows the calculation of the total place allocation for 2019-20
A40: Baselines, target values and populations are brought in from workbook M as a sum across
A41: the individual workstream values.
A43: Column N is the sum of the minimum allocations from the individual commissioning streams,
A44: imported from workbooks N, O and P
A46: Columns Q-W applies per capita growth based on opening DfT per capita, higher for CCGs
A47: that are furthest below target, and lower for CCGs that are furthest above target.
A49: Columns X-Z apply a minimum programme [total allocation] growth.
A51: The total (place-based) allocation is in column AA, and target allocation in column AF.
A52: The place-based allocation Closing DfT is in column AH.
A54: Total 2020-21 | H54: processing
A55: Shows the calculation of the total place allocation for 2020-21
A56: Baseline information is taken from the disaggregated total place allocation for 2019-20
A58: Total 2021-22 | H58: processing
A59: Shows the calculation of the total place allocation for 2021-22
A60: Baseline information is taken from the disaggregated total place allocation for 2020-21
A62: Total 2022-23 | H62: processing
A63: Shows the calculation of the total place allocation for 2022-23
A64: Baseline information is taken from the disaggregated total place allocation for 2021-22
A66: Total 2023-24 | H66: processing
A67: Shows the calculation of the total place allocation for 2023-24
A68: Baseline information is taken from the disaggregated total place allocation for 2022-23
A70: DAG 2019-20 | H70: outputs
A71: Shows the disaggregation of the total place allocation for 2019-20
A72: Column W calculates the growth available for distribution after subtracting the three minimum
A73: allocations. For specialised services the minimum allocation is also the actual allocation.
A75: Columns AA-AC put the CCG in to one of four groups reflecting where the minimum CCG
A76: and primary medical care allocations are above or below target (for example, group 2 is for
A77: those CCGs where both are above target.) The cash value of one point change in DfT is
A78: also calculated for each case.
A80: Columns AE-AG, for CCGs in group one puts growth in to the CCG stream, until all resources
A81: are used or DfT=0
A83: Columns AI-AK, for CCGs in group three puts growth in to the primary medical care stream,
A84: until all resources are used or DfT=0
A86: Columns AM-AO distributes any remaining resources across the CCG and primary medical
A87: care streams, such that their position improves by the same number of percentage points.
A89: DAG 2020-21 | H89: outputs
A90: Shows the disaggregation of the total place allocation for 2020-21
A92: DAG 2021-22 | H92: outputs
A93: Shows the disaggregation of the total place allocation for 2021-22
A95: DAG 2022-23 | H95: outputs
A96: Shows the disaggregation of the total place allocation for 2022-23
A98: DAG 2023-24 | H98: outputs
A99: Shows the disaggregation of the total place allocation for 2023-24
A101: Additional Notes: GP Contract Adjustments
A102: Further adjustments which affect CCG Primary medical care allocations due to decisions on
A103: the GP contract1 were not finalised in time for the CCG allocations to take these into account.
A105: The overall effect to CCGs of funding changes to the GP contract2, due to the introduction of
A106: the new centrally-funded Clinical Negligence Scheme for General Practice (CNSGP) which will
A107: start from April 2019, are outlined in spreadsheet K2.
A109: 1 www.england.nhs.uk/publication/gms-contract-settlement-and-allocation-changes-2019-20-to-2023-24-letter-from-ed-waller/
A110: 2 www.england.nhs.uk/publication/gp-contract-five-year-framework/
A114: See also Technical Guidance Documentation
A115: www.england.nhs.uk/allocations
A117: For queries please contact
A118: england.revenue-allocations@nhs.net

Sheet Pace of change parameters
A1: NHS England - 2019-20 to 2023-24 Allocations
A2: Minimum allocations for place based (total)
A3: Pace of change parameters
B5: Total
B7: GDP deflator and Population Growth | D7: 2018-19 | E7: 2019-20 | F7: 2020-21 | G7: 2021-22 | H7: 2022-23 | I7: 2023-24
B8: GDP deflator | C8: % | E8: 0.01789380137 | F8: 0.01942659196 | G8: 0.01925030241 | H8: 0.01940538178 | I8: 0.01895821993
B9: Population growth | C9: % | E9: 0.006220598103 | F9: 0.005977095412 | G9: 0.005599747363 | H9: 0.005346112538 | I9: 0.005056217038
B10: Reference growth | C10: % | E10: 0.01160103787 | F10: 0.01336958526 | G10: 0.01357454105 | H10: 0.01398450649 | I10: 0.01383206497
B11: Quanta
B12: Quanta | C12: £'000 | D12: 98144798.79 | E12: 104163643.4 | F12: 109030024.3 | G12: 114060445.2 | H12: 119129818.5 | I12: 124285022.2
B13: Quantum growth % | C13: % | E13: 0.06132616996 | F13: 0.04671861286 | G13: 0.04613794172 | H13: 0.04444462072 | I13: 0.0432738317
B14: Per Capita
B15: Maximum per capita growth | C15: % | E15: 0.1351 | F15: 0.0492 | G15: 0.0467 | H15: 0.0423 | I15: 0.0417
A16: per capita growth based on opening DfT per capita | B16: Start of first transition | C16: % | E16: -0.1078773772 | F16: -0.04485916495 | G16: -0.04281763864 | H16: -0.04162213348 | I16: -0.03795378915
B17: End of first transition | C17: % | E17: -0.025 | F17: 0 | G17: 0 | H17: 0 | I17: 0
B18: Start of second transition | C18: % | E18: 0.05 | F18: 0.05 | G18: 0.05 | H18: 0.05 | I18: 0.05
B19: End of second transition | C19: % | E19: 0.1 | F19: 0.1 | G19: 0.1 | H19: 0.1 | I19: 0.1
B20: Default per cap growth | C20: % | E20: 0.05405529 | F20: 0.03886484 | G20: 0.03908157 | H20: 0.03739169 | I20: 0.03618243
B21: Average per cap growth | C21: % | E21: 0.05476490141 | F21: 0.04049944838 | G21: 0.04031245479 | H21: 0.03889059469 | I21: 0.03802535024
B22: Gap from floor to avg per cap growth | C22: % | E22: 0.015 | F22: 0.015 | G22: 0.015 | H22: 0.015 | I22: 0.015
B23: Floor per cap growth | C23: % | E23: 0.03976490141 | F23: 0.02549944838 | G23: 0.02531245479 | H23: 0.02389059469 | I23: 0.02302535024
B24: Programme
B25: Minimum programme growth % | E25: 0.01789380137 | F25: 0.01942659196 | G25: 0.01925030241 | H25: 0.01940538178 | I25: 0.01895821993
B26: Switches
B27: Per capita switch | E27: 1 | F27: 1 | G27: 1 | H27: 1 | I27: 1
B28: PoC switch | E28: 1 | F28: 1 | G28: 1 | H28: 1 | I28: 1
B29: Performance
B30: Balance | C30: £'000 | E30: 0.06329806149 | F30: 0.08495828509 | G30: -0.3456614763 | H30: -0.05697368085 | I30: 0.05460727215
B31: Balance / Quanta | C31: % | E31: 6.076790272e-10 | F31: 7.792191702e-10 | G31: -3.030511371e-09 | H31: -4.782487003e-10 | I31: 4.393713031e-10
B32: Minimum opening DfT | C32: % | E32: -0.1078773772 | F32: -0.04485916495 | G32: -0.04281763864 | H32: -0.04162213348 | I32: -0.03795378915
B33: Minimum closing DfT | C33: % | E33: -0.0499 | F33: -0.04637882187 | G33: -0.04245 | H33: -0.038725 | I33: -0.035
B34: Maximum closing DfT | C34: % | E34: 0.14755726 | F34: 0.1358859687 | G34: 0.1240792093 | H34: 0.1151384897 | I34: 0.1078191383
B35: No. of CCGs < -5% closing DfT | E35: 0 | F35: 0 | G35: 0 | H35: 0 | I35: 0
B36: No. of CCGs < -2.5% closing DfT | E36: 29 | F36: 26 | G36: 24 | H36: 23 | I36: 22
B37: Target min DfT | C37: % | E37: -0.0499 | F37: -0.046175 | G37: -0.04245 | H37: -0.038725 | I37: -0.035

Sheet VBA Code
A1: NHS England - 2019-20 to 2023-24 Allocations
A2: Minimum allocations for place based (total)
A3: User defined Visual Basic functions used to set per capita growth
A5: # These functions are shown in the order they are used in the minimum allocation calculations
A7: # Function MinGrowthPerhead sets minimum per capita growth
A8: # Inputs are taken from the minimum allocation worksheet and the pace of change parameters
A9: # X is the opening DfT per capita, taken from the minimum allocation worksheet
A10: # minval is 0
A11: # maxval is 1
A12: # RampStart is start of the second transition ( 5% over opening target)
A13: # RampEnd is the end of the second transition (10% over opening target)
A14: # HigherRate is the default per cap growth taken from the pace of change parameters
A15: # LowerRate is the floor per cap growth taken from the pace of change parameters
B17: Function MinGrowthPerHead(X, minval, maxval, RampStart, RampEnd, HigherRate, LowerRate)
C18: Dim a, b As Double
A19: # a is the transition ranging from minval = 0 (where opening DfT per capita >= 10%) to maxval = 1 (where opening DfT per capita <= 5%)
C20: a = MinMaxRamp(X, minval, maxval, RampStart, RampEnd)
C21: b = 1 - a
A22: # minimum growth per head is weighted average of the growth rates
C23: MinGrowthPerHead = a * HigherRate + b * LowerRate
B24: End Function
A26: # Function MinMaxRamp sets transition
A27: # X is opening DfT per capita, from the minimum allocation worksheet
A28: # minval is 0
A29: # maxval is 1
A30: # RampStart is start of the second transition ( 5% over opening target)
A31: # RampEnd is the end of the second transition (10% over opening target)
B33: Function MinMaxRamp(X, minval, maxval, RampStart, RampEnd)
C34: If X < RampStart Then
C35: MinMaxRamp = maxval
C36: ElseIf X > RampEnd Then
C37: MinMaxRamp = minval
C38: Else
C39: MinMaxRamp = (X - RampEnd) / (RampStart - RampEnd)
C40: End If
B41: End Function
A43: # Function NewMinGrowthPerHead sets higher per capita growth to ensure CCGs are within target minimum closing DfT
A44: # Inputs are taken from the minimum allocation sheet and the pace of change parameters
A45: # X is opening DfT per capita, from the minimum allocation worksheet
A46: # minDfT is the Target minimum closing DfT (increasing from -4.99% in 2019-20 to -3.50% in 2023/24), taken from the pace of change parameters worksheet
A47: # QuantumGrowth is quantum growth taken from the pace of change parameters worksheet
A48: # DefaultGrowth is the default per cap growth taken from pace of change parameters worksheet
A49: # RampEnd is end of first transition (-2.5% in 2019-20 and 0% thereafter)
A50: # ClosingTargetPerHead is closing target per capita
A51: # BaselinePerHead is baseline allocation per capita
A52: # Transition (in range 0 to 1) relates to first transition
A53: # lowestOpenDfT is the minimum CCG opening DfT per capita
B55: Function NewMinGrowthPerHead(X As Double, minDfT As Double, QuantumGrowth As Double, DefaultGrowth As Double, RampEnd As Double, ClosingTargetPerHead As Double, BaselinePerHead As Double, Transition As Double, lowestOpenDfT As Double) As Double
C56: Dim GrowthDiff As Double
C57: Dim gmax As Double
C58: Dim adjlowestopenDfT As Double
C60: GrowthDiff = DefaultGrowth - QuantumGrowth
A61: # where opening DfT per capita is below minimum closing DfT, apply sufficient per capita growth to move closing DfT to minimum closing DfT
C62: If X < minDfT Then
C63: NewMinGrowthPerHead = (ClosingTargetPerHead * (1 + minDfT) / BaselinePerHead) - 1
A64: # where opening DfT per capita is between minimum closing DfT and end of first transition
A65: # apply per capita growth based on opening DfT per capita position on first transition
C66: ElseIf X < RampEnd Then
A67: # set adjusted lowest opening DfT as start of first transition
C68: If lowestOpenDfT < minDfT Then
C69: adjlowestopenDfT = minDfT
C70: Else
C71: adjlowestopenDfT = lowestOpenDfT
C72: End If
A73: # per capita growth rate to apply to start of first transition
A74: # default per cap growth applied to end of first transition
A75: # per capita growth rate weighted average of two rates based on transition position
C76: gmax = ((1 + minDfT) * (1 + QuantumGrowth) / (1 + adjlowestopenDfT)) - 1
C77: NewMinGrowthPerHead = (1 - Transition) * DefaultGrowth + Transition * gmax
C78: Else
C79: NewMinGrowthPerHead = 0
C80: End If
B82: End Function

Sheet Total 2019-20
B1: Year index | E1: 2018-19 | J1: 2019-20 | L1: 0.06132616996 | P1: -0.1078773772 | Q1: 0.05 | R1: 0.05405529 | T1: -0.1078773772 | U1: 0.05405529 | X1: 0.01789380137 | AI1: -0.0499
P2: -0.0499 | Q2: 0.1 | R2: 0.03976490141 | S2: 1 | T2: -0.025 | U2: 0.1351 | Z2: 1 | AI2: 0.14755726
U3: 0.08104471 | AI3: 0
L4: 1752.197973 | AA4: 0.06329806149 | AI4: 29
E5: 98144798.79 | F5: 59079904.56 | G5: 1661.22135 | J5: 98144798.79 | K5: 59447416.9 | L5: 1650.951444 | M5: 0.006220598103 | AA5: 104163643.3 | AF5: 104163643.4 | AH5: -6.076790182e-10
E6: Baseline | J6: Opening Target | O6: Distance from Target | Q6: Minimum per capita growth | T6: Per capita pace of change | X6: Minimum programme | AF6: Closing target | AL6: from Minimum Allocation worksheets
A7: CCG | B7: Clinical Commissioning Group (192) | E7: Baseline £000 | F7: Estimated Population | G7: Allocation per head £ | H7: Closing DfT | J7: Opening Target £000 | K7: Estimated Population | L7: Opening Target per head £ | M7: population growth rate % | N7: Sum of minimum allocations £000 | O7: DFT (total allocation) | P7: DFT (per capita) | Q7: Apply minimum per capita growth [programme] | R7: Apply minimum per capita growth [per capita] | S7: Allocation after min per capita growth £000 | T7: First Transition position | U7: Growth on per capita parameters [programme] | V7: Growth on per capita parameters [per capita] | W7: Allocation after per capita p-o-c | X7: Apply minimum programme growth [programme] | Y7: Apply minimum programme growth [per capita] | Z7: Allocation after minimum programme growth | AA7: Allocation £000 | AB7: Minimum allocation per head £ | AC7: Growth after rounding | AD7: Per capita growth after rounding | AF7: Target allocations from the fair shares formula £000 | AG7: Target per head | AH7: DFT (total allocation) | AI7: DFT (per capita) | AJ7: Does minimum apply? | AL7: Minimum Allocation CCG | AM7: Minimum Allocation PC Med | AN7: Minimum Allocation Spec Services
A9: 00C | B9: NHS Darlington CCG | E9: 192540.7998 | F9: 108354.6675 | G9: =E9/F9*1000 -> 1776.949754 | H9: 0.0139922516 | J9: 189956.5665 | K9: 108392.1875 | L9: =J9/K9*1000 -> 1752.493153 | M9: =K9/F9-1 -> 0.0003462704506 | N9: =SUM(AL9:AN9) -> 202751 | O9: =E9/J9-1 -> 0.01360433778 | P9: =G9/L9-1 -> 0.01395531901 | Q9: =(1+M9)*(1+R9)-1 -> 0.0544202782 | R9: =MinGrowthPerHead(P9,0,1,$Q$1,$Q$2,$R$1,$R$2) -> 0.05405529 | S9: =MAX((1+IF($S$2=1,Q9,0))*$E9,$N9) -> 203018.9237 | T9: =MinMaxRamp(P9,0,1,$P$2,$T$2) -> 0 | U9: =(1+M9)*(1+V9)-1 -> 0.0544202782 | V9: =MAX(R9,NewMinGrowthPerHead(P9,$P$2,$L$1,$U$1,$T$2,AG9,G9,T9, $P$1)) -> 0.05405529 | W9: =MAX((1+IF($S$2=1,U9,0))*$E9,$N9) -> 203018.9237 | X9: =MAX(U9,$X$1) -> 0.0544202782 | Y9: =(1+X9)/(1+M9) - 1 -> 0.05405529 | Z9: =MAX((1+IF($Z$2=1,X9,0))*$E9,$N9) -> 203018.9237 | AA9: =Z9 -> 203018.9237 | AB9: =AA9/K9*1000 -> 1873.003289 | AC9: =AA9/E9-1 -> 0.0544202782 | AD9: =AB9/G9-1 -> 0.05405529 | AF9: 201518.7806 | AG9: =AF9/K9*1000 -> 1859.163334 | AH9: =AA9/AF9-1 -> 0.007444184701 | AI9: =AB9/AG9-1 -> 0.007444184701 | AJ9: =IF(AF9=N9,1,0) -> 0 | AL9: 158018 | AM9: 15356 | AN9: 29377
A10: 00D | B10: NHS Durham Dales, Easington and Sedgefield CCG | E10: 571441.102 | F10: 292189.8361 | G10: =E10/F10*1000 -> 1955.718617 | H10: 0.02895878581 | J10: 555985.1397 | K10: 293122.5 | L10: =J10/K10*1000 -> 1896.767187 | M10: =K10/F10-1 -> 0.00319197941 | N10: =SUM(AL10:AN10) -> 602906 | O10: =E10/J10-1 -> 0.02779923638 | P10: =G10/L10-1 -> 0.03107995038 | Q10: =(1+M10)*(1+R10)-1 -> 0.05741981278 | R10: =MinGrowthPerHead(P10,0,1,$Q$1,$Q$2,$R$1,$R$2) -> 0.05405529 | S10: =MAX((1+IF($S$2=1,Q10,0))*$E10,$N10) -> 604253.1431 | T10: =MinMaxRamp(P10,0,1,$P$2,$T$2) -> 0 | U10: =(1+M10)*(1+V10)-1 -> 0.05741981278 | V10: 0.05405529 | W10: =MAX((1+IF($S$2=1,U10,0))*$E10,$N10) -> 604253.1431 | X10: =MAX(U10,$X$1) -> 0.05741981278 | Y10: =(1+X10)/(1+M10) - 1 -> 0.05405529 | Z10: =MAX((1+IF($Z$2=1,X10,0))*$E10,$N10) -> 604253.1431 | AA10: =Z10 -> 604253.1431 | AB10: 2061.435554 | AC10: 0.05741981278 | AD10: 0.05405529 | AF10: 589636.7442 | AG10: 2011.571081 | AH10: =AA10/AF10-1 -> 0.02478881958 | AI10: 0.02478881958 | AJ10: 0 | AL10: 481914 | AM10: 46345 | AN10: 74647
A11: 00J | B11: NHS North Durham CCG | E11: 448363.2779 | F11: 259367.9209 | G11: 1728.676686 | H11: 0.02964945048 | J11: 436078.9564 | K11: 260056.4375 | L11: 1676.862763 | M11: 0.002654594289 | N11: 473134 | O11: 0.02816994795 | P11: 0.03089932202 | Q11: 0.05685337915 | R11: 0.05405529 | S11: 473854.2453 | T11: 0 | U11: 0.05685337915 | V11: 0.05405529 | W11: 473854.2453 | X11: 0.05685337915 | Y11: 0.05405529 | Z11: 473854.2453 | AA11: 473854.2453 | AB11: 1822.120805 | AC11: 0.05685337915 | AD11: 0.05405529 | AF11: 462618.414 | AG11: 1778.915448 | AH11: 0.02428747087 | AI11: 0.02428747087 | AJ11: 0 | AL11: 372060 | AM11: 36431 | AN11: 64643
A12: 00K | B12: NHS Hartlepool and Stockton-on-Tees CCG | E12: 525872.7338 | F12: 297298.9188 | G12: 1768.835003 | H12: -0.02822660534 | J12: 540740.8734 | K12: 298132.2188 | L12: 1813.761947 | M12: 0.002802902699 | N12: 555079 | O12: -0.02749586783 | P12: -0.02477003337 | Q12: 0.05700970442 | R12: 0.05405529 | S12: 555852.583 | T12: 0 | U12: 0.05700970442 | V12: 0.05405529 | W12: 555852.583 | X12: 0.05700970442 | Y12: 0.05405529 | Z12: 555852.583 | AA12: 555852.583 | AB12: 1864.449892 | AC12: 0.05700970442 | AD12: 0.05405529 | AF12: 573621.4001 | AG12: 1924.050351 | AH12: -0.030976559 | AI12: -0.030976559 | AJ12: 0 | AL12: 433372 | AM12: 43059 | AN12: 78648
A13: 00L | B13: NHS Northumberland CCG | E13: 596409.6287 | F13: 325418 | G13: 1832.749352 | H13: 0.001643291286 | J13: 596031.8755 | K13: 325474.5938 | L13: 1831.27005 | M13: 0.0001739109392 | N13: 627910 | O13: 0.0006337802917 | P13: 0.0008078014522 | Q13: 0.05423860175 | R13: 0.05405529 | S13: 628758.0531 | T13: 0 | U13: 0.05423860175 | V13: 0.05405529 | W13: 628758.0531 | X13: 0.05423860175 | Y13: 0.05405529 | Z13: 628758.0531 | AA13: 628758.0531 | AB13: 1931.81915 | AC13: 0.05423860175 | AD13: 0.05405529 | AF13: 632296.109 | AG13: 1942.689602 | AH13: -0.005595568094 | AI13: -0.005595568094 | AJ13: 0 | AL13: 490392 | AM13: 46969 | AN13: 90549
A14: 00M | B14: NHS South Tees CCG | E14: 566013.2906 | F14: 296987.7526 | G14: 1905.847247 | H14: -0.01772537366 | J14: 574440.3589 | K14: 297279.8125 | L14: 1932.322125 | M14: 0.0009834071497 | N14: 596715 | O14: -0.01467004911 | P14: -0.01370106859 | Q14: 0.05509185551 | R14: 0.05405529 | S14: 597196.013 | T14: 0 | U14: 0.05509185551 | V14: 0.05405529 | W14: 597196.013 | X14: 0.05509185551 | Y14: 0.05405529 | Z14: 597196.013 | AA14: 597196.013 | AB14: 2008.868372 | AC14: 0.05509185551 | AD14: 0.05405529 | AF14: 609666.4241 | AG14: 2050.816768 | AH14: -0.02045448235 | AI14: -0.02045448235 | AJ14: 0 | AL14: 450936 | AM14: 46966 | AN14: 98813
A15: 00N | B15: NHS South Tyneside CCG | E15: 315454.827 | F15: 157204.2485 | G15: 2006.655863 | H15: 0.02551880118 | J15: 307023.8177 | K15: 157356.1406 | L15: 1951.13973 | M15: 0.0009662085552 | N15: 332328 | O15: 0.02746044051 | P15: 0.02845318157 | Q15: 0.05507372724 | R15: 0.05405529 | S15: 332828.1 | T15: 0 | U15: 0.05507372724 | V15: 0.05405529 | W15: 332828.1 | X15: 0.05507372724 | Y15: 0.05405529 | Z15: 332828.1 | AA15: 332828.1 | AB15: 2115.126227 | AC15: 0.05507372724 | AD15: 0.05405529 | AF15: 325701.6864 | AG15: 2069.83779 | AH15: 0.02188018646 | AI15: 0.02188018646 | AJ15: 0 | AL15: 263006 | AM15: 23134 | AN15: 46188
A16: 00P | B16: NHS Sunderland CCG | E16: 563023.115 | F16: 284072.0813 | G16: 1981.972718 | H16: 0.05423010849 | J16: 533019.6486 | K16: 284309.3125 | L16: 1874.787864 | M16: 0.0008351092479 | N16: 589840 | O16: 0.05628960677 | P16: 0.05717172399 | Q16: 0.05288409512 | R16: 0.05200555555 | S16: 592798.083 | T16: 0 | U16: 0.05288409512 | V16: 0.05200555555 | W16: 592798.083 | X16: 0.05288409512 | Y16: 0.05200555555 | Z16: 592798.083 | AA16: 592798.083 | AB16: 2085.04631 | AC16: 0.05288409512 | AD16: 0.05200555555 | AF16: 565415.6072 | AG16: 1988.734038 | AH16: 0.04842893511 | AI16: 0.04842893511 | AJ16: 0 | AL16: 466919 | AM16: 43047 | AN16: 79874
A17: 00Q | B17: NHS Blackburn with Darwen CCG | E17: 300434.9374 | F17: 175120.7517 | G17: 1715.587299 | H17: -0.04834500896 | J17: 314424.367 | K17: 175157.5156 | L17: 1795.094923 | M17: 0.0002099346631 | N17: 317629 | O17: -0.0444921928 | P17: -0.04429159859 | Q17: 0.05427657274 | R17: 0.05405529 | S17: 317629 | T17: 0.7747629956 | U17: 0.05991096409 | V17: 0.05968849874 | W17: 318434.2842 | X17: 0.05991096409 | Y17: 0.05968849874 | Z17: 318434.2842 | AA17: 318434.2842 | AB17: 1817.988129 | AC17: 0.05991096409 | AD17: 0.05968849874 | AF17: 333717.4156 | AG17: 1905.241773 | AH17: -0.0457966254 | AI17: -0.0457966254 | AJ17: 0 | AL17: 240719 | AM17: 25499 | AN17: 51411
A18: 00R | B18: NHS Blackpool CCG | E18: 351608.8674 | F18: 173468.5012 | G18: 2026.932066 | H18: -0.09693637382 | J18: 386376.23 | K18: 173096.5469 | L18: 2232.142911 | M18: -0.002144218094 | N18: 390811 | O18: -0.08998318186 | P18: -0.09193445639 | Q18: 0.05179516558 | R18: 0.05405529 | S18: 390811 | T18: 1 | U18: 0.1079482285 | V18: 0.110329016 | W18: 390811 | X18: 0.1079482285 | Y18: 0.110329016 | Z18: 390811 | AA18: 390811 | AB18: 2257.763122 | AC18: 0.1114935834 | AD18: 0.1138819893 | AF18: 410024.6519 | AG18: 2368.762747 | AH18: -0.04685974813 | AI18: -0.04685974813 | AJ18: 0 | AL18: 295684 | AM18: 29953 | AN18: 65174
A19: 00T | B19: NHS Bolton CCG | E19: 544283.4545 | F19: 309358.2469 | G19: 1759.395329 | H19: -0.002752479207 | J19: 544953.3441 | K19: 310601.6875 | L19: 1754.508639 | M19: 0.00401941944 | N19: 575595 | O19: -0.001229260517 | P19: 0.00278521801 | Q19: 0.05829198032 | R19: 0.05405529 | S19: 576010.8149 | T19: 0 | U19: 0.05829198032 | V19: 0.05405529 | W19: 576010.8149 | X19: 0.05829198032 | Y19: 0.05405529 | Z19: 576010.8149 | AA19: 576010.8149 | AB19: 1854.499953 | AC19: 0.05829198032 | AD19: 0.05405529 | AF19: 578315.1902 | AG19: 1861.919022 | AH19: -0.003984635579 | AI19: -0.003984635579 | AJ19: 0 | AL19: 434415 | AM19: 43459 | AN19: 97721
A20: 00V | B20: NHS Bury CCG | E20: 351774.1672 | F20: 204179.5007 | G20: 1722.867212 | H20: -0.004705091467 | J20: 352998.0451 | K20: 204868.2812 | L20: 1723.048795 | M20: 0.003373406807 | N20: 371873 | O20: -0.003467095494 | P20: -0.0001053846104 | Q20: 0.05761104729 | R20: 0.05405529 | S20: 372040.2453 | T20: 0 | U20: 0.05761104729 | V20: 0.05405529 | W20: 372040.2453 | X20: 0.05761104729 | Y20: 0.05405529 | Z20: 372040.2453 | AA20: 372040.2453 | AB20: 1815.997299 | AC20: 0.05761104729 | AD20: 0.05405529 | AF20: 374623.2117 | AG20: 1828.605236 | AH20: -0.00689483803 | AI20: -0.00689483803 | AJ20: 0 | AL20: 276586 | AM20: 28010 | AN20: 67277
A21: 00X | B21: NHS Chorley and South Ribble CCG | E21: 313325.427 | F21: 183604.5844 | G21: 1706.522896 | H21: 0.01132754999 | J21: 311183.2349 | K21: 184909.5625 | L21: 1682.894225 | M21: 0.007107546655 | N21: 332273 | O21: 0.006884021392 | P21: 0.01404049655 | Q21: 0.06154703715 | R21: 0.05405529 | S21: 332609.6786 | T21: 0 | U21: 0.06154703715 | V21: 0.05405529 | W21: 332609.6786 | X21: 0.06154703715 | Y21: 0.05405529 | Z21: 332609.6786 | AA21: 332609.6786 | AB21: 1798.769486 | AC21: 0.06154703715 | AD21: 0.05405529 | AF21: 330221.6839 | AG21: 1785.855093 | AH21: 0.007231489697 | AI21: 0.007231489697 | AJ21: 0 | AL21: 256031 | AM21: 23401 | AN21: 52841
A22: 00Y | B22: NHS Oldham CCG | E22: 452954.3504 | F22: 255302.415 | G22: 1774.187488 | H22: 0.02387605598 | J22: 442187.6649 | K22: 256758.2344 | L22: 1722.194678 | M22: 0.005702332803 | N22: 479593 | O22: 0.0243486791 | P22: 0.03018985618 | Q22: 0.06006586406 | R22: 0.05405529 | S22: 480161.4449 | T22: 0 | U22: 0.06006586406 | V22: 0.05405529 | W22: 480161.4449 | X22: 0.06006586406 | Y22: 0.05405529 | Z22: 480161.4449 | AA22: 480161.4449 | AB22: 1870.091707 | AC22: 0.06006586406 | AD22: 0.05405529 | AF22: 469228.4034 | AG22: 1827.510633 | AH22: 0.02330004187 | AI22: 0.02330004187 | AJ22: 0 | AL22: 360268 | AM22: 39561 | AN22: 79764
A23: 01A | B23: NHS East Lancashire CCG | E23: 706994.317 | F23: 382164.0862 | G23: 1849.975815 | H23: 0.01140377004 | J23: 697368.8609 | K23: 382499.5625 | L23: 1823.18865 | M23: 0.0008778330288 | N23: 745099 | O23: 0.01380253219 | P23: 0.01469248154 | Q23: 0.05498057455 | R23: 0.05405529 | S23: 745865.2708 | T23: 0 | U23: 0.05498057455 | V23: 0.05405529 | W23: 745865.2708 | X23: 0.05498057455 | Y23: 0.05405529 | Z23: 745865.2708 | AA23: 745865.2708 | AB23: 1949.976795 | AC23: 0.05498057455 | AD23: 0.05405529 | AF23: 740040.5345 | AG23: 1934.748708 | AH23: 0.007870834114 | AI23: 0.007870834114 | AJ23: 0 | AL23: 579151 | AM23: 53149 | AN23: 112799
A24: 01C | B24: NHS Eastern Cheshire CCG | E24: 339159.525 | F24: 208597.4119 | G24: 1625.90476 | H24: 0.01305488398 | J24: 335272.7075 | K24: 209256.7656 | L24: 1602.207252 | M24: 0.003160890982 | N24: 358357 | O24: 0.01159300314 | P24: 0.01479053834 | Q24: 0.05738704386 | R24: 0.05405529 | S24: 358622.8876 | T24: 0 | U24: 0.05738704386 | V24: 0.05405529 | W24: 358622.8876 | X24: 0.05738704386 | Y24: 0.05405529 | Z24: 358622.8876 | AA24: 358622.8876 | AB24: 1713.793513 | AC24: 0.05738704386 | AD24: 0.05405529 | AF24: 355764.557 | AG24: 1700.134072 | AH24: 0.008034332009 | AI24: 0.008034332009 | AJ24: 0 | AL24: 269888 | AM24: 28187 | AN24: 60282
A25: 01D | B25: NHS Heywood, Middleton and Rochdale CCG | E25: 432099.4721 | F25: 233537.334 | G25: 1850.237239 | H25: -0.008493064014 | J25: 435244.109 | K25: 234477.7031 | L25: 1856.228133 | M25: 0.004026633021 | N25: 457137 | O25: -0.007224995795 | P25: -0.003227455181 | Q25: 0.05829958384 | R25: 0.05405529 | S25: 457290.6915 | T25: 0 | U25: 0.05829958384 | V25: 0.05405529 | W25: 457290.6915 | X25: 0.05829958384 | Y25: 0.05405529 | Z25: 457290.6915 | AA25: 457290.6915 | AB25: 1950.25235 | AC25: 0.05829958384 | AD25: 0.05405529 | AF25: 461948.8139 | AG25: 1970.1183 | AH25: -0.01008363315 | AI25: -0.01008363315 | AJ25: 0 | AL25: 341530 | AM25: 32803 | AN25: 82804
A26: 01E | B26: NHS Greater Preston CCG | E26: 353063.874 | F26: 209211.5839 | G26: 1687.592376 | H26: -0.00510548017 | J26: 353583.643 | K26: 209249.0156 | L26: 1689.774463 | M26: 0.0001789179211 | N26: 372149 | O26: -0.00147000314 | P26: -0.001291348229 | Q26: 0.05424387938 | R26: 0.05405529 | S26: 372215.4282 | T26: 0 | U26: 0.05424387938 | V26: 0.05405529 | W26: 372215.4282 | X26: 0.05424387938 | Y26: 0.05405529 | Z26: 372215.4282 | AA26: 372215.4282 | AB26: 1778.815671 | AC26: 0.05424387938 | AD26: 0.05405529 | AF26: 375294.6737 | AG26: 1793.53137 | AH26: -0.008204873998 | AI26: -0.008204873998 | AJ26: 0 | AL26: 279226 | AM26: 28039 | AN26: 64884
A27: 01F | B27: NHS Halton CCG | E27: 257367.8108 | F27: 131379.166 | G27: 1958.969741 | H27: 0.03499678989 | J27: 248342.4426 | K27: 131605.6875 | L27: 1887.019075 | M27: 0.001724181172 | N27: 271398 | O27: 0.03634243129 | P27: 0.0381292734 | Q27: 0.05587267228 | R27: 0.05405529 | S27: 271747.6382 | T27: 0 | U27: 0.05587267228 | V27: 0.05405529 | W27: 271747.6382 | X27: 0.05587267228 | Y27: 0.05405529 | Z27: 271747.6382 | AA27: 271747.6382 | AB27: 2064.862418 | AC27: 0.05587267228 | AD27: 0.05405529 | AF27: 263447.8457 | AG27: 2001.796812 | AH27: 0.03150449919 | AI27: 0.03150449919 | AJ27: 0 | AL27: 212048 | AM27: 19319 | AN27: 40031
A28: 01G | B28: NHS Salford CCG | E28: 522132.301 | F28: 272953.1648 | G28: 1912.900704 | H28: 0.01804901161 | J28: 513134.1029 | K28: 275610.5 | L28: 1861.808977 | M28: 0.009735498788 | N28: 555333 | O28: 0.01753576312 | P28: 0.02744198131 | Q28: 0.064317044 | R28: 0.05405529 | S28: 555714.3072 | T28: 0 | U28: 0.064317044 | V28: 0.05405529 | W28: 555714.3072 | X28: 0.064317044 | Y28: 0.05405529 | Z28: 555714.3072 | AA28: 555714.3072 | AB28: 2016.303106 | AC28: 0.064317044 | AD28: 0.05405529 | AF28: 544641.0207 | AG28: 1976.125803 | AH28: 0.0203313486 | AI28: 0.0203313486 | AJ28: 0 | AL28: 418831 | AM28: 41276 | AN28: 95226
A29: 01H | B29: NHS Cumbria CCG | E29: 590365.6013 | F29: 324183.1635 | G29: 1821.086558 | H29: 0.01398228181 | J29: 581827.9189 | K29: 323764.0625 | L29: 1797.073815 | M29: -0.001292790618 | N29: 620710 | O29: 0.01467389594 | P29: 0.01336213504 | Q29: 0.05269261721 | R29: 0.05405529 | S29: 621473.5099 | T29: 0 | U29: 0.05269261721 | V29: 0.05405529 | W29: 621473.5099 | X29: 0.05269261721 | Y29: 0.05405529 | Z29: 621473.5099 | AA29: 621473.5099 | AB29: 1919.52592 | AC29: 0.05269261721 | AD29: 0.05405529 | AF29: 617238.9887 | AG29: 1906.446886 | AH29: 0.006860424123 | AI29: 0.006860424123 | AJ29: 0 | AL29: 479569 | AM29: 49233 | AN29: 91908
A30: 01J | B30: NHS Knowsley CCG | E30: 358444.081 | F30: 165151.5828 | G30: 2170.394464 | H30: 0.05726448022 | J30: 337998.4465 | K30: 165618.9688 | L30: 2040.819654 | M30: 0.002830042428 | N30: 377569 | O30: 0.060490321 | P30: 0.06349155361 | Q30: 0.0531714077 | R30: 0.05019929913 | S30: 377569 | T30: 0 | U30: 0.0531714077 | V30: 0.05019929913 | W30: 377569 | X30: 0.0531714077 | Y30: 0.05019929913 | Z30: 377569 | AA30: 377569 | AB30: 2279.744904 | AC30: 0.05335537683 | AD30: 0.05038274909 | AF30: 358640.7982 | AG30: 2165.45726 | AH30: 0.05277760336 | AI30: 0.05277760336 | AJ30: 0 | AL30: 288479 | AM30: 32241 | AN30: 56849
A31: 01K | B31: NHS Morecambe Bay CCG | E31: 619882.1507 | F31: 345955.6711 | G31: 1791.796471 | H31: -0.00988411929 | J31: 624660.3546 | K31: 346843 | L31: 1800.988789 | M31: 0.002564862875 | N31: 654164 | O31: -0.007649283148 | P31: -0.005104039635 | Q31: 0.05675879728 | R31: 0.05405529 | S31: 655065.916 | T31: 0 | U31: 0.05675879728 | V31: 0.05405529 | W31: 655065.916 | X31: 0.05675879728 | Y31: 0.05405529 | Z31: 655065.916 | AA31: 655065.916 | AB31: 1888.652549 | AC31: 0.05675879728 | AD31: 0.05405529 | AF31: 662622.6207 | AG31: 1910.439653 | AH31: -0.01140423595 | AI31: -0.01140423595 | AJ31: 0 | AL31: 512458 | AM31: 47887 | AN31: 93819
A32: 01R | B32: NHS South Cheshire CCG | E32: 301448.5126 | F32: 185925.4155 | G32: 1621.341073 | H32: -0.0186912356 | J32: 307127.4739 | K32: 186311.0625 | L32: 1648.466118 | M32: 0.002074202559 | N32: 318719 | O32: -0.0184905675 | P32: -0.01645471812 | Q32: 0.05624161418 | R32: 0.05405529 | S32: 318719 | T32: 0 | U32: 0.05624161418 | V32: 0.05405529 | W32: 318719 | X32: 0.05624161418 | Y32: 0.05405529 | Z32: 318719 | AA32: 318719 | AB32: 1710.682102 | AC32: 0.05729166551 | AD32: 0.05510316782 | AF32: 325798.5386 | AG32: 1748.680589 | AH32: -0.02172980452 | AI32: -0.02172980452 | AJ32: 0 | AL32: 242954 | AM32: 25128 | AN32: 50637
A33: 01T | B33: NHS South Sefton CCG | E33: 317256.7665 | F33: 155093.0837 | G33: 2045.589389 | H33: 0.03752714321 | J33: 304704.0406 | K33: 155182.25 | L33: 1963.523796 | M33: 0.0005749209289 | N33: 334117 | O33: 0.04119645361 | P33: 0.04179505925 | Q33: 0.05466128845 | R33: 0.05405529 | S33: 334598.4301 | T33: 0 | U33: 0.05466128845 | V33: 0.05405529 | W33: 334598.4301 | X33: 0.05466128845 | Y33: 0.05405529 | Z33: 334598.4301 | AA33: 334598.4301 | AB33: 2156.164317 | AC33: 0.05466128845 | AD33: 0.05405529 | AF33: 323388.3589 | AG33: 2083.926215 | AH33: 0.03466442396 | AI33: 0.03466442396 | AJ33: 0 | AL33: 255747 | AM33: 22605 | AN33: 55765
A34: 01V | B34: NHS Southport and Formby CCG | E34: 236811.732 | F34: 125038.3317 | G34: 1893.913081 | H34: 0.008970088585 | J34: 234331.1861 | K34: 125268.4766 | L34: 1870.631723 | M34: 0.001840594755 | N34: 249803 | O34: 0.01058564117 | P34: 0.0124457198 | Q34: 0.05599537864 | R34: 0.05405529 | S34: 250072.0946 | T34: 0 | U34: 0.05599537864 | V34: 0.05405529 | W34: 250072.0946 | X34: 0.05599537864 | Y34: 0.05405529 | Z34: 250072.0946 | AA34: 250072.0946 | AB34: 1996.289102 | AC34: 0.05599537864 | AD34: 0.05405529 | AF34: 248637.4069 | AG34: 1984.836199 | AH34: 0.005770200469 | AI34: 0.005770200469 | AJ34: 0 | AL34: 193215 | AM34: 17490 | AN34: 39098
A35: 01W | B35: NHS Stockport CCG | E35: 542639.7682 | F35: 312021.7475 | G35: 1739.108804 | H35: -0.0007658628847 | J35: 541847.6551 | K35: 313465.75 | L35: 1728.570522 | M35: 0.004627890507 | N35: 574200 | O35: 0.00146187431 | P35: 0.006096530211 | Q35: 0.05893334247 | R35: 0.05405529 | S35: 574619.3435 | T35: 0 | U35: 0.05893334247 | V35: 0.05405529 | W35: 574619.3435 | X35: 0.05893334247 | Y35: 0.05405529 | Z35: 574619.3435 | AA35: 574619.3435 | AB35: 1833.116835 | AC35: 0.05893334247 | AD35: 0.05405529 | AF35: 574855.2483 | AG35: 1833.869405 | AH35: -0.000410372454 | AI35: -0.000410372454 | AJ35: 0 | AL35: 434972 | AM35: 41482 | AN35: 97746
A36: 01X | B36: NHS St Helens CCG | E36: 384418.788 | F36: 197589.5005 | G36: 1945.542588 | H36: 0.01337381144 | J36: 378840.546 | K36: 198154.4375 | L36: 1911.844876 | M36: 0.002859144895 | N36: 405812 | O36: 0.01472451182 | P36: 0.01762575622 | Q36: 0.0570689868 | R36: 0.05405529 | S36: 406357.1788 | T36: 0 | U36: 0.0570689868 | V36: 0.05405529 | W36: 406357.1788 | X36: 0.0570689868 | Y36: 0.05405529 | Z36: 406357.1788 | AA36: 406357.1788 | AB36: 2050.709456 | AC36: 0.0570689868 | AD36: 0.05405529 | AF36: 401827.1541 | AG36: 2027.848375 | AH36: 0.01127356539 | AI36: 0.01127356539 | AJ36: 0 | AL36: 316985 | AM36: 30202 | AN36: 58625
A37: 01Y | B37: NHS Tameside and Glossop CCG | E37: 461588.5678 | F37: 247904.7488 | G37: 1861.959362 | H37: 0.01173119298 | J37: 455241.6606 | K37: 248556.2812 | L37: 1831.543578 | M37: 0.002628156475 | N37: 487363 | O37: 0.01394184173 | P37: 0.01660663955 | Q37: 0.05682551224 | R37: 0.05405529 | S37: 487818.5746 | T37: 0 | U37: 0.05682551224 | V37: 0.05405529 | W37: 487818.5746 | X37: 0.05682551224 | Y37: 0.05405529 | Z37: 487818.5746 | AA37: 487818.5746 | AB37: 1962.608115 | AC37: 0.05682551224 | AD37: 0.05405529 | AF37: 483002.5942 | AG37: 1943.2323 | AH37: 0.00997092035 | AI37: 0.00997092035 | AJ37: 0 | AL37: 373507 | AM37: 34933 | AN37: 78923
A38: 02A | B38: NHS Trafford CCG | E38: 412668.4908 | F38: 242027.0015 | G38: 1705.051454 | H38: 0.05196183417 | J38: 392201.1444 | K38: 243556.875 | L38: 1610.306194 | M38: 0.006321086184 | N38: 437485 | O38: 0.05218584049 | P38: 0.05883679787 | Q38: 0.05817647412 | R38: 0.05152966449 | S38: 437485 | T38: 0 | U38: 0.05817647412 | V38: 0.05152966449 | W38: 437485 | X38: 0.05817647412 | Y38: 0.05152966449 | Z38: 437485 | AA38: 437485 | AB38: 1796.233426 | AC38: 0.06013667085 | AD38: 0.05347754847 | AF38: 416228.1574 | AG38: 1708.956717 | AH38: 0.05107016962 | AI38: 0.05107016962 | AJ38: 0 | AL38: 325563 | AM38: 32611 | AN38: 79311
A39: 02D | B39: NHS Vale Royal CCG | E39: 170629.3556 | F39: 107018.25 | G39: 1594.394934 | H39: -0.0245161028 | J39: 174582.4654 | K39: 107292.4375 | L39: 1627.164687 | M39: 0.002562063013 | N39: 180050 | O39: -0.0226432237 | P39: -0.02013917405 | Q39: 0.05675584607 | R39: 0.05405529 | S39: 180313.5691 | T39: 0 | U39: 0.05675584607 | V39: 0.05405529 | W39: 180313.5691 | X39: 0.05675584607 | Y39: 0.05405529 | Z39: 180313.5691 | AA39: 180313.5691 | AB39: 1680.580414 | AC39: 0.05675584607 | AD39: 0.05405529 | AF39: 185146.4365 | AG39: 1725.624292 | AH39: -0.02610294577 | AI39: -0.02610294577 | AJ39: 0 | AL39: 141117 | AM39: 13917 | AN39: 25016
A40: 02E | B40: NHS Warrington CCG | E40: 365531.2248 | F40: 218209.0056 | G40: 1675.142709 | H40: -0.002011858549 | J40: 366925.0774 | K40: 219281.6562 | L40: 1673.304934 | M40: 0.004915702868 | N40: 386765 | O40: -0.003798738998 | P40: 0.001098290398 | Q40: 0.05923671261 | R40: 0.05405529 | S40: 387184.0929 | T40: 0 | U40: 0.05923671261 | V40: 0.05405529 | W40: 387184.0929 | X40: 0.05923671261 | Y40: 0.05405529 | Z40: 387184.0929 | AA40: 387184.0929 | AB40: 1765.693034 | AC40: 0.05923671261 | AD40: 0.05405529 | AF40: 389233.1253 | AG40: 1775.037329 | AH40: -0.005264280766 | AI40: -0.005264280766 | AJ40: 0 | AL40: 298016 | AM40: 28739 | AN40: 60010
A41: 02F | B41: NHS West Cheshire CCG | E41: 450610.0643 | F41: 263907.4162 | G41: 1707.455102 | H41: 0.01709924628 | J41: 443353.0381 | K41: 264776.8438 | L41: 1674.440377 | M41: 0.003294441527 | N41: 476034 | O41: 0.01636850437 | P41: 0.01971687097 | Q41: 0.05752781352 | R41: 0.05405529 | S41: 476532.676 | T41: 0 | U41: 0.05752781352 | V41: =MAX(R41,NewMinGrowthPerHead(P41,$P$2,$L$1,$U$1,$T$2,AG41,G41,T41, $P$1)) -> 0.05405529 | W41: 476532.676 | X41: 0.05752781352 | Y41: 0.05405529 | Z41: 476532.676 | AA41: 476532.676 | AB41: =AA41/K41*1000 -> 1799.752083 | AC41: =AA41/E41-1 -> 0.05752781352 | AD41: =AB41/G41-1 -> 0.05405529 | AF41: 470368.3903 | AG41: =AF41/K41*1000 -> 1776.471022 | AH41: 0.01310522955 | AI41: 0.01310522955 | AJ41: =IF(AF41=N41,1,0) -> 0 | AL41: 364474 | AM41: 37477 | AN41: 74083
A42: 02G | B42: NHS West Lancashire CCG | E42: 201121.3527 | F42: 113598.5002 | G42: 1770.457816 | H42: -0.0002047829603 | J42: 200981.4648 | K42: 113720.625 | L42: 1767.326418 | M42: 0.001075056058 | N42: 212104 | O42: 0.0006960235217 | P42: 0.001771827844 | Q42: 0.05518845852 | R42: 0.05405529 | S42: 212220.9301 | T42: 0 | U42: 0.05518845852 | V42: 0.05405529 | W42: 212220.9301 | X42: 0.05518845852 | Y42: 0.05405529 | Z42: 212220.9301 | AA42: 212220.9301 | AB42: 1866.160427 | AC42: 0.05518845852 | AD42: 0.05405529 | AF42: 213308.9265 | AG42: 1875.727701 | AH42: -0.005100566827 | AI42: -0.005100566827 | AJ42: 0 | AL42: 160053 | AM42: 14864 | AN42: 37187
A43: 02H | B43: NHS Wigan Borough CCG | E43: 606092.8253 | F43: 327903.6691 | G43: 1848.386836 | H43: 0.007078958758 | J43: 602127.6562 | K43: 328789.4375 | L43: 1831.347323 | M43: 0.002701306866 | N43: 639690 | O43: 0.006585263111 | P43: 0.009304358793 | Q43: 0.05690261679 | R43: 0.05405529 | S43: 640581.093 | T43: 0 | U43: 0.05690261679 | V43: 0.05405529 | W43: 640581.093 | X43: 0.05690261679 | Y43: 0.05405529 | Z43: 640581.093 | AA43: 640581.093 | AB43: 1948.301922 | AC43: 0.05690261679 | AD43: 0.05405529 | AF43: 638810.4313 | AG43: 1942.916525 | AH43: 0.002771810987 | AI43: 0.002771810987 | AJ43: 0 | AL43: 488991 | AM43: 49319 | AN43: 101380
A44: 02M | B44: NHS Fylde & Wyre CCG | E44: 333851.3177 | F44: 177596.6686 | G44: 1879.828717 | H44: 0.01718618331 | J44: 328296.1995 | K44: 178249.3125 | L44: 1841.781014 | M44: 0.003674865553 | N44: 352434 | O44: 0.01692105537 | P44: 0.02065810353 | Q44: 0.05792880148 | R44: 0.05405529 | S44: 353190.9244 | T44: 0 | U44: 0.05792880148 | V44: 0.05405529 | W44: 353190.9244 | X44: 0.05792880148 | Y44: 0.05405529 | Z44: 353190.9244 | AA44: 353190.9244 | AB44: 1981.443403 | AC44: 0.05792880148 | AD44: 0.05405529 | AF44: 348235.4434 | AG44: 1953.642561 | AH44: 0.01423026019 | AI44: 0.01423026019 | AJ44: 0 | AL44: 276156 | AM44: 27710 | AN44: 48568
A45: 02N | B45: NHS Airedale, Wharfedale and Craven CCG | E45: 267731.679 | F45: 159178.1672 | G45: 1681.962317 | H45: -0.001762062438 | J45: 267904.4618 | K45: 159702.5 | L45: 1677.522029 | M45: 0.003293999251 | N45: 282689 | O45: -0.0006449420353 | P45: 0.002646932777 | Q45: 0.05752734734 | R45: 0.05405529 | S45: 283133.5723 | T45: 0 | U45: 0.05752734734 | V45: 0.05405529 | W45: 283133.5723 | X45: 0.05752734734 | Y45: 0.05405529 | Z45: 283133.5723 | AA45: 283133.5723 | AB45: 1772.881278 | AC45: 0.05752734734 | AD45: 0.05405529 | AF45: 284143.7394 | AG45: 1779.206584 | AH45: -0.003555127323 | AI45: -0.003555127323 | AJ45: 0 | AL45: 221324 | AM45: 22850 | AN45: 38515
A46: 02P | B46: NHS Barnsley CCG | E46: 482784.4032 | F46: 260349.6661 | G46: 1854.369205 | H46: 0.02808227652 | J46: 470679.297 | K46: 262230.9375 | L46: 1794.903765 | M46: 0.007225941372 | N46: 511902 | O46: 0.02571837402 | P46: 0.03313015486 | Q46: 0.06167183173 | R46: 0.05405529 | S46: 512558.6017 | T46: 0 | U46: 0.06167183173 | V46: 0.05405529 | W46: 512558.6017 | X46: 0.06167183173 | Y46: 0.05405529 | Z46: 512558.6017 | AA46: 512558.6017 | AB46: 1954.60767 | AC46: 0.06167183173 | AD46: 0.05405529 | AF46: 499417.8475 | AG46: 1904.496289 | AH46: 0.0263121439 | AI46: 0.0263121439 | AJ46: 0 | AL46: 398563 | AM46: 38055 | AN46: 75284
A47: 02Q | B47: NHS Bassetlaw CCG | E47: 204434.6149 | F47: 117382.667 | G47: 1741.608196 | H47: -0.0009703563591 | J47: 205053.57 | K47: 117732.3672 | L47: 1741.692407 | M47: 0.002979146788 | N47: 215728 | O47: -0.003018504524 | P47: -4.835030393e-05 | Q47: 0.05719547543 | R47: 0.05405529 | S47: 216127.3498 | T47: 0 | U47: 0.05719547543 | V47: 0.05405529 | W47: 216127.3498 | X47: 0.05719547543 | Y47: 0.05405529 | Z47: 216127.3498 | AA47: 216127.3498 | AB47: 1835.751332 | AC47: 0.05719547543 | AD47: 0.05405529 | AF47: 217533.6547 | AG47: 1847.696261 | AH47: -0.00646476889 | AI47: -0.00646476889 | AJ47: 0 | AL47: 167980 | AM47: 17573 | AN47: 30175
A48: 02R | B48: NHS Bradford Districts CCG | E48: 560617.9659 | F48: 333179.2496 | G48: 1682.631696 | H48: -0.002102236847 | J48: 560276.2313 | K48: 334130.3125 | L48: 1676.819523 | M48: 0.002854508098 | N48: 591210 | O48: 0.0006099395872 | P48: 0.003466188763 | Q48: 0.05706409936 | R48: 0.05405529 | S48: 592609.1253 | T48: 0 | U48: 0.05706409936 | V48: 0.05405529 | W48: 592609.1253 | X48: 0.05706409936 | Y48: 0.05405529 | Z48: 592609.1253 | AA48: 592609.1253 | AB48: 1773.58684 | AC48: 0.05706409936 | AD48: 0.05405529 | AF48: 594270.8501 | AG48: 1778.560124 | AH48: -0.002796241559 | AI48: -0.002796241559 | AJ48: 0 | AL48: 462927 | AM48: 51566 | AN48: 76717
A49: 02T | B49: NHS Calderdale CCG | E49: 368972.3499 | F49: 220614.665 | G49: 1672.474265 | H49: 0.02120624735 | J49: 360984.2652 | K49: 221396.0625 | L49: 1630.4909 | M49: 0.003541910781 | N49: 389832 | O49: 0.02212862283 | P49: 0.02574891122 | Q49: 0.05778865979 | R49: 0.05405529 | S49: 390294.7675 | T49: 0 | U49: 0.05778865979 | V49: 0.05405529 | W49: 390294.7675 | X49: 0.05778865979 | Y49: 0.05405529 | Z49: 390294.7675 | AA49: 390294.7675 | AB49: 1762.880347 | AC49: 0.05778865979 | AD49: 0.05405529 | AF49: 383069.448 | AG49: 1730.245081 | AH49: 0.01886164364 | AI49: 0.01886164364 | AJ49: 0 | AL49: 300337 | AM49: 31164 | AN49: 58331
A50: 02W | B50: NHS Bradford City CCG | E50: 199147.5815 | F50: 140422.67 | G50: 1418.201074 | H50: -0.1127612 | J50: 223117.5087 | K50: 140352.5781 | L50: 1589.692984 | M50: -0.000499149514 | N50: 223081 | O50: -0.1074318522 | P50: -0.1078773772 | Q50: 0.05352915881 | R50: 0.05405529 | S50: 223081 | T50: 1 | U50: 0.1298215774 | V50: 0.1303858089 | W50: 225001.2347 | X50: 0.1298215774 | Y50: 0.1303858089 | Z50: 225001.2347 | AA50: 225001.2347 | AB50: 1603.114369 | AC50: 0.1298215774 | AD50: 0.1303858089 | AF50: 236818.4766 | AG50: 1687.311197 | AH50: -0.0499 | AI50: -0.0499 | AJ50: 0 | AL50: 167146 | AM50: 21183 | AN50: 34752
A51: 02X | B51: NHS Doncaster CCG | E51: 575933.708 | F51: 320731.4169 | G51: 1795.688472 | H51: 0.01166052599 | J51: 568648.0268 | K51: 321430.5625 | L51: 1769.116236 | M51: 0.002179847664 | N51: 607563 | O51: 0.01281228601 | P51: 0.0150200625 | Q51: 0.05635296996 | R51: 0.05405529 | S51: 608389.2829 | T51: 0 | U51: 0.05635296996 | V51: 0.05405529 | W51: 608389.2829 | X51: 0.05635296996 | Y51: 0.05405529 | Z51: 608389.2829 | AA51: 608389.2829 | AB51: 1892.754933 | AC51: 0.05635296996 | AD51: 0.05405529 | AF51: 603351.7792 | AG51: 1877.082797 | AH51: 0.008349198463 | AI51: 0.008349198463 | AJ51: 0 | AL51: 474501 | AM51: 45818 | AN51: 87244
A52: 02Y | B52: NHS East Riding of Yorkshire CCG | E52: 512460.6145 | F52: 304284.9979 | G52: 1684.14683 | H52: -0.01949168459 | J52: 523399.8163 | K52: 304863.6562 | L52: 1716.832445 | M52: 0.001901698504 | N52: 540644 | O52: -0.02090027815 | P52: -0.01903832568 | Q52: 0.05605978537 | R52: 0.05405529 | S52: 541189.0466 | T52: 0 | U52: 0.05605978537 | V52: 0.05405529 | W52: 541189.0466 | X52: 0.05605978537 | Y52: 0.05405529 | Z52: 541189.0466 | AA52: 541189.0466 | AB52: 1775.183875 | AC52: 0.05605978537 | AD52: 0.05405529 | AF52: 555373.0986 | AG52: 1821.709762 | AH52: -0.02553968145 | AI52: -0.02553968145 | AJ52: 0 | AL52: 411614 | AM52: 44439 | AN52: 84591
A53: 03A | B53: NHS Greater Huddersfield CCG | E53: 384172.2973 | F53: 248802.7496 | G53: 1544.083809 | H53: 0.0105294934 | J53: 379929.9232 | K53: 249965.9375 | L53: 1519.926783 | M53: 0.004675140721 | N53: 406077 | O53: 0.0111662015 | P53: 0.01589354579 | Q53: 0.05898314681 | R53: 0.05405529 | S53: 406831.9883 | T53: 0 | U53: 0.05898314681 | V53: 0.05405529 | W53: 406831.9883 | X53: 0.05898314681 | Y53: 0.05405529 | Z53: 406831.9883 | AA53: 406831.9883 | AB53: 1627.549707 | AC53: 0.05898314681 | AD53: 0.05405529 | AF53: 402993.2261 | AG53: 1612.192565 | AH53: 0.009525624622 | AI53: 0.009525624622 | AJ53: 0 | AL53: 318738 | AM53: 34737 | AN53: 52602
A54: 03D | B54: NHS Hambleton, Richmondshire and Whitby CCG | E54: 249819.0335 | F54: 144071.9993 | G54: 1733.987414 | H54: 0.04633478317 | J54: 238938.546 | K54: 144023.375 | L54: 1659.026154 | M54: -0.0003374997767 | N54: 263011 | O54: 0.04553676136 | P54: 0.04518389293 | Q54: 0.05369954658 | R54: 0.05405529 | S54: 263234.2023 | T54: 0 | U54: 0.05369954658 | V54: 0.05405529 | W54: 263234.2023 | X54: 0.05369954658 | Y54: 0.05405529 | Z54: 263234.2023 | AA54: 263234.2023 | AB54: 1827.718607 | AC54: 0.05369954658 | AD54: 0.05405529 | AF54: 253554.7757 | AG54: 1760.511276 | AH54: 0.03817489366 | AI54: 0.03817489366 | AJ54: 0 | AL54: 197638 | AM54: 22780 | AN54: 42593
A55: 03E | B55: NHS Harrogate and Rural District CCG | E55: 255854.3282 | F55: 163132.0811 | G55: 1568.38757 | H55: 0.02296341046 | J55: 250438.5326 | K55: 163245.0625 | L55: 1534.126232 | M55: 0.0006925764974 | N55: 269550 | O55: 0.02162524922 | P55: 0.02233280285 | Q55: 0.05478530392 | R55: 0.05405529 | S55: 269871.3854 | T55: 0 | U55: 0.05478530392 | V55: 0.05405529 | W55: 269871.3854 | X55: 0.05478530392 | Y55: 0.05405529 | Z55: 269871.3854 | AA55: 269871.3854 | AB55: 1653.167215 | AC55: 0.05478530392 | AD55: 0.05405529 | AF55: 265715.4368 | AG55: 1627.708873 | AH55: 0.01564059897 | AI55: 0.01564059897 | AJ55: 0 | AL55: 206951 | AM55: 22544 | AN55: 40055
A56: 03F | B56: NHS Hull CCG | E56: 535824.2465 | F56: 299081.3347 | G56: 1791.56699 | H56: -0.0112692397 | J56: 540001.8104 | K56: 299668.0312 | L56: 1802.00006 | M56: 0.001961662249 | N56: 565371 | O56: -0.007736203514 | P56: -0.005789717083 | Q56: 0.05612299047 | R56: 0.05405529 | S56: 565896.3055 | T56: 0 | U56: 0.05612299047 | V56: 0.05405529 | W56: 565896.3055 | X56: 0.05612299047 | Y56: 0.05405529 | Z56: 565896.3055 | AA56: 565896.3055 | AB56: 1888.410663 | AC56: 0.05612299047 | AD56: 0.05405529 | AF56: 573242.0858 | AG56: 1912.923722 | AH56: -0.01281444695 | AI56: -0.01281444695 | AJ56: 0 | AL56: 421285 | AM56: 47439 | AN56: 96647
A57: 03H | B57: NHS North East Lincolnshire CCG | E57: 303407.9573 | F57: 169648.7517 | G57: 1788.447921 | H57: 0.006387009575 | J57: 300657.5378 | K57: 169562.0781 | L57: 1773.141384 | M57: -0.0005109002165 | N57: 319058 | O57: 0.009148014179 | P57: 0.00863244024 | Q57: 0.05351677292 | R57: 0.05405529 | S57: 319645.372 | T57: 0 | U57: 0.05351677292 | V57: 0.05405529 | W57: 319645.372 | X57: 0.05351677292 | Y57: 0.05405529 | Z57: 319645.372 | AA57: 319645.372 | AB57: 1885.122992 | AC57: 0.05351677292 | AD57: 0.05405529 | AF57: 319064.1874 | AG57: 1881.69543 | AH57: 0.001821528656 | AI57: 0.001821528656 | AJ57: 0 | AL57: 241021 | AM57: 29568 | AN57: 48469
A58: 03J | B58: NHS North Kirklees CCG | E58: 316504.0546 | F58: 193733.751 | G58: 1633.706326 | H58: 0.01612664856 | J58: 311386.6576 | K58: 194611.9688 | L58: 1600.038577 | M58: 0.004533116838 | N58: 334656 | O58: 0.01643422058 | P58: 0.02104183566 | Q58: 0.05883344578 | R58: 0.05405529 | S58: 335125.0788 | T58: 0 | U58: 0.05883344578 | V58: 0.05405529 | W58: 335125.0788 | X58: 0.05883344578 | Y58: 0.05405529 | Z58: 335125.0788 | AA58: 335125.0788 | AB58: 1722.016795 | AC58: 0.05883344578 | AD58: 0.05405529 | AF58: 330357.4781 | AG58: 1697.518812 | AH58: 0.01443164155 | AI58: 0.01443164155 | AJ58: 0 | AL58: 260752 | AM58: 26780 | AN58: 47124
A59: 03K | B59: NHS North Lincolnshire CCG | E59: 295553.4557 | F59: 177178.165 | G59: 1668.114441 | H59: -0.02277677065 | J59: 302761.5234 | K59: 177652.9844 | L59: 1704.229875 | M59: 0.002679897581 | N59: 313782 | O59: -0.02380774004 | P59: -0.02119164476 | Q59: 0.05688005022 | R59: 0.05405529 | S59: 313782 | T59: 0 | U59: 0.05688005022 | V59: 0.05405529 | W59: 313782 | X59: 0.05688005022 | Y59: 0.05405529 | Z59: 313782 | AA59: 313782 | AB59: 1766.263602 | AC59: 0.06167596393 | AD59: 0.0588383855 | AF59: 321282.7084 | AG59: 1808.484724 | AH59: -0.02334613155 | AI59: -0.02334613155 | AJ59: 0 | AL59: 242651 | AM59: 25659 | AN59: 45472
A60: 03L | B60: NHS Rotherham CCG | E60: 469067.4916 | F60: 263162.8309 | G60: 1782.423034 | H60: 0.01922558146 | J60: 460035.4783 | K60: 263993.0938 | L60: 1742.604216 | M60: 0.003154939527 | N60: 495321 | O60: 0.01963329727 | P60: 0.02285017866 | Q60: 0.0573807707 | R60: 0.05405529 | S60: 495982.9458 | T60: 0 | U60: 0.0573807707 | V60: 0.05405529 | W60: 495982.9458 | X60: 0.0573807707 | Y60: 0.05405529 | Z60: 495982.9458 | AA60: 495982.9458 | AB60: 1878.772428 | AC60: 0.0573807707 | AD60: 0.05405529 | AF60: 488168.0972 | AG60: 1849.169955 | AH60: 0.01600851962 | AI60: 0.01600851962 | AJ60: 0 | AL60: 382596 | AM60: 39196 | AN60: 73529
A61: 03M | B61: NHS Scarborough and Ryedale CCG | E61: 210794.616 | F61: 120479.5811 | G61: 1749.629391 | H61: -0.01129108907 | J61: 212778.1856 | K61: 120626.7188 | L61: 1763.939099 | M61: 0.001221266658 | N61: 222165 | O61: -0.009322241351 | P61: -0.008112359636 | Q61: 0.05534257258 | R61: 0.05405529 | S61: 222460.5323 | T61: 0 | U61: 0.05534257258 | V61: 0.05405529 | W61: 222460.5323 | X61: 0.05534257258 | Y61: 0.05405529 | Z61: 222460.5323 | AA61: 222460.5323 | AB61: 1844.206115 | AC61: 0.05534257258 | AD61: 0.05405529 | AF61: 225684.4031 | AG61: 1870.932124 | AH61: -0.01428486291 | AI61: -0.01428486291 | AJ61: 0 | AL61: 172059 | AM61: 18275 | AN61: 31831
A62: 03N | B62: NHS Sheffield CCG | E62: 1040553.077 | F62: 601173.1586 | G62: 1730.870819 | H62: 0.04947439876 | J62: 991492.3782 | K62: 604647.125 | L62: 1639.786807 | M62: 0.005778645272 | N62: 1101102 | O62: 0.04948167021 | P62: 0.0555462525 | Q62: 0.05855197946 | R62: 0.05247012793 | S62: 1101479.519 | T62: 0 | U62: 0.05855197946 | V62: 0.05247012793 | W62: 1101479.519 | X62: 0.05855197946 | Y62: 0.05247012793 | Z62: 1101479.519 | AA62: 1101479.519 | AB62: 1821.689832 | AC62: 0.05855197946 | AD62: 0.05247012793 | AF62: 1052876.112 | AG62: 1741.306737 | AH62: 0.04616251321 | AI62: 0.04616251321 | AJ62: 0 | AL62: 805392 | AM62: 82437 | AN62: 213273
A63: 03Q | B63: NHS Vale of York CCG | E63: 535049.4595 | F63: 357151.7429 | G63: 1498.101214 | H63: 0.01347766471 | J63: 528090.5122 | K63: 358916.4375 | L63: 1471.34669 | M63: 0.004941021891 | N63: 566104 | O63: 0.01317756544 | P63: 0.01818369797 | Q63: 0.05926340026 | R63: 0.05405529 | S63: 566758.3098 | T63: 0 | U63: 0.05926340026 | V63: 0.05405529 | W63: 566758.3098 | X63: 0.05926340026 | Y63: 0.05405529 | Z63: 566758.3098 | AA63: 566758.3098 | AB63: 1579.081509 | AC63: 0.05926340026 | AD63: 0.05405529 | AF63: 560348.5714 | AG63: 1561.222928 | AH63: 0.01143884141 | AI63: 0.01143884141 | AJ63: 0 | AL63: 434439 | AM63: 46510 | AN63: 85155
A64: 03R | B64: NHS Wakefield CCG | E64: 658628.8095 | F64: 373747.3367 | G64: 1762.230108 | H64: 0.006785384264 | J64: 654748.9058 | K64: 375745.5312 | L64: 1742.532782 | M64: 0.005346378112 | N64: 696481 | O64: 0.005925788733 | P64: 0.01130384835 | Q64: 0.05969066813 | R64: 0.05405529 | S64: 697942.8031 | T64: 0 | U64: 0.05969066813 | V64: 0.05405529 | W64: 697942.8031 | X64: 0.05969066813 | Y64: 0.05405529 | Z64: 697942.8031 | AA64: 697942.8031 | AB64: 1857.487967 | AC64: 0.05969066813 | AD64: 0.05405529 | AF64: 694533.5143 | AG64: 1848.414569 | AH64: 0.004908746256 | AI64: 0.004908746256 | AJ64: 0 | AL64: 538785 | AM64: 59800 | AN64: 97896
A65: 03T | B65: NHS Lincolnshire East CCG | E65: 446535.326 | F65: 250451.3348 | G65: 1782.922524 | H65: -0.03739763016 | J65: 464387.4784 | K65: 251486.8125 | L65: 1846.567913 | M65: 0.004134446565 | N65: 472094 | O65: -0.03844236395 | P65: -0.03446685528 | Q65: 0.05841322527 | R65: 0.05405529 | S65: 472618.8946 | T65: 0.3801949912 | U65: 0.06118900648 | V65: 0.05681964214 | W65: 473858.3789 | X65: 0.06118900648 | Y65: 0.05681964214 | Z65: 473858.3789 | AA65: 473858.3789 | AB65: 1884.227543 | AC65: 0.06118900648 | AD65: 0.05681964214 | AF65: 492621.4283 | AG65: 1958.836026 | AH65: -0.03808817133 | AI65: -0.03808817133 | AJ65: 0 | AL65: 368014 | AM65: 39983 | AN65: 64097
A66: 03V | B66: NHS Corby CCG | E66: 127046.9148 | F66: 78638.08618 | G66: 1615.590116 | H66: -0.007835675025 | J66: 129226.0918 | K66: 79913.375 | L66: 1617.077139 | M66: 0.01621719043 | N66: 135881 | O66: -0.01686328973 | P66: -0.0009195744813 | Q66: 0.07114910536 | R66: 0.05405529 | S66: 136086.1891 | T66: 0 | U66: 0.07114910536 | V66: 0.05405529 | W66: 136086.1891 | X66: 0.07114910536 | Y66: 0.05405529 | Z66: 136086.1891 | AA66: 136086.1891 | AB66: 1702.921308 | AC66: 0.07114910536 | AD66: 0.05405529 | AF66: 137074.8982 | AG66: 1715.293569 | AH66: -0.007212911641 | AI66: -0.007212911641 | AJ66: 0 | AL66: 106278 | AM66: 11152 | AN66: 18451
A67: 03W | B67: NHS East Leicestershire and Rutland CCG | E67: 496846.2366 | F67: 331537.5828 | G67: 1498.61211 | H67: -0.00932568033 | J67: 502974.3227 | K67: 333199 | L67: 1509.531309 | M67: 0.005011248335 | N67: 525937 | O67: -0.01218369561 | P67: -0.007233502803 | Q67: 0.05933742282 | R67: 0.05405529 | S67: 526327.8118 | T67: 0 | U67: 0.05933742282 | V67: 0.05405529 | W67: 526327.8118 | X67: 0.05933742282 | Y67: 0.05405529 | Z67: 526327.8118 | AA67: 526327.8118 | AB67: 1579.620022 | AC67: 0.05933742282 | AD67: 0.05405529 | AF67: 533822.1909 | AG67: 1602.112224 | AH67: -0.01403909234 | AI67: -0.01403909234 | AJ67: 0 | AL67: 393572 | AM67: 44691 | AN67: 87674
A68: 04C | B68: NHS Leicester City CCG | E68: 604569.3221 | F68: 406178.9177 | G68: 1488.431072 | H68: -0.02038899711 | J68: 617764.2388 | K68: 409607.5625 | L68: 1508.185628 | M68: 0.008441217998 | N68: 642271 | O68: -0.02135914618 | P68: -0.01309822539 | Q68: 0.06295280049 | R68: 0.05405529 | S68: 642628.654 | T68: 0 | U68: 0.06295280049 | V68: 0.05405529 | W68: 642628.654 | X68: 0.06295280049 | Y68: 0.05405529 | Z68: 642628.654 | AA68: 642628.654 | AB68: 1568.888646 | AC68: 0.06295280049 | AD68: 0.05405529 | AF68: 655919.554 | AG68: 1601.336533 | AH68: -0.02026300315 | AI68: -0.02026300315 | AJ68: 0 | AL68: 474522 | AM68: 56168 | AN68: 111581
A69: 04D | B69: NHS Lincolnshire West CCG | E69: 379201.9811 | F69: 237516.3375 | G69: 1596.530096 | H69: -0.01584828264 | J69: 386222.6857 | K69: 238697.6562 | L69: 1618.041382 | M69: 0.004973631447 | N69: 401758 | O69: -0.01817786709 | P69: -0.01329464565 | Q69: 0.05929777254 | R69: 0.05405529 | S69: 401758 | T69: 0 | U69: 0.05929777254 | V69: 0.05405529 | W69: 401758 | X69: 0.05929777254 | Y69: 0.05405529 | Z69: 401758 | AA69: 401758 | AB69: 1683.125031 | AC69: 0.05948286155 | AD69: 0.054239463 | AF69: 409996.8392 | AG69: 1717.640825 | AH69: -0.02009488458 | AI69: -0.02009488458 | AJ69: 0 | AL69: 299877 | AM69: 32805 | AN69: 69076
A70: 04E | B70: NHS Mansfield and Ashfield CCG | E70: 343420.1436 | F70: 193960.417 | G70: 1770.568185 | H70: -0.008642187425 | J70: 347200.0779 | K70: 195172.625 | L70: 1778.938403 | M70: 0.006249770064 | N70: 363788 | O70: -0.01088690516 | P70: -0.004705175745 | Q70: 0.0606428932 | R70: 0.05405529 | S70: 364246.1346 | T70: 0 | U70: 0.0606428932 | V70: 0.05405529 | W70: 364246.1346 | X70: 0.0606428932 | Y70: 0.05405529 | Z70: 364246.1346 | AA70: 364246.1346 | AB70: 1866.276762 | AC70: 0.0606428932 | AD70: 0.05405529 | AF70: 368371.6787 | AG70: 1887.414686 | AH70: -0.01119940628 | AI70: -0.01119940628 | AJ70: 0 | AL70: 281565 | AM70: 28359 | AN70: 53864
A71: 04F | B71: NHS Milton Keynes CCG | E71: 422625.3137 | F71: 294316.6709 | G71: 1435.954383 | H71: -0.03319075869 | J71: 439366.2894 | K71: 297252.1875 | L71: 1478.092703 | M71: 0.009974007224 | N71: 450156 | O71: -0.03810254938 | P71: -0.02850857726 | Q71: 0.06456844508 | R71: 0.05405529 | S71: 450156 | T71: 0.1409067172 | U71: 0.06560317943 | V71: 0.05507980583 | W71: 450350.8779 | X71: 0.06560317943 | Y71: 0.05507980583 | Z71: 450350.8779 | AA71: 450350.8779 | AB71: 1515.046472 | AC71: 0.06560317943 | AD71: 0.05507980583 | AF71: 466324.3136 | AG71: 1568.783455 | AH71: -0.03425391993 | AI71: -0.03425391993 | AJ71: 0 | AL71: 337315 | AM71: 36288 | AN71: 76553
A72: 04G | B72: NHS Nene CCG | E72: 1058240.866 | F72: 685994.9172 | G72: 1542.636599 | H72: -0.01133888374 | J72: 1074671.87 | K72: 691032.875 | L72: 1555.167502 | M72: 0.007344016168 | N72: 1123117 | O72: -0.01528932193 | P72: -0.008057590794 | Q72: 0.06179628909 | R72: 0.05405529 | S72: 1123636.225 | T72: 0 | U72: 0.06179628909 | V72: 0.05405529 | W72: 1123636.225 | X72: 0.06179628909 | Y72: 0.05405529 | Z72: 1123636.225 | AA72: 1123636.225 | AB72: 1626.024268 | AC72: 0.06179628909 | AD72: 0.05405529 | AF72: 1140617.25 | AG72: 1650.597665 | AH72: -0.01488757547 | AI72: -0.01488757547 | AJ72: 0 | AL72: 845781 | AM72: 90827 | AN72: 186509
A73: 04H | B73: NHS Newark & Sherwood CCG | E73: 222432.6627 | F73: 135028.0862 | G73: 1647.306638 | H73: -0.005572520996 | J73: 224657.9312 | K73: 136000.9688 | L73: 1651.884786 | M73: 0.007205038565 | N73: 235805 | O73: -0.009905141282 | P73: -0.002771469642 | Q73: 0.06164979901 | R73: 0.05405529 | S73: 236145.5916 | T73: 0 | U73: 0.06164979901 | V73: =MAX(R73,NewMinGrowthPerHead(P73,$P$2,$L$1,$U$1,$T$2,AG73,G73,T73, $P$1)) -> 0.05405529 | W73: 236145.5916 | X73: 0.06164979901 | Y73: 0.05405529 | Z73: 236145.5916 | AA73: 236145.5916 | AB73: =AA73/K73*1000 -> 1736.352276 | AC73: =AA73/E73-1 -> 0.06164979901 | AD73: =AB73/G73-1 -> 0.05405529 | AF73: 238297.2224 | AG73: =AF73/K73*1000 -> 1752.172978 | AH73: -0.00902918971 | AI73: -0.00902918971 | AJ73: =IF(AF73=N73,1,0) -> 0 | AL73: 183816 | AM73: 19101 | AN73: 32888
A74: 04K | B74: NHS Nottingham City CCG | E74: 610238.2905 | F74: 379334.0833 | G74: =E74/F74*1000 -> 1608.70936 | H74: -0.02795552 | J74: 627238.8942 | K74: 381504.375 | L74: =J74/K74*1000 -> 1644.119793 | M74: =K74/F74-1 -> 0.005721319974 | N74: =SUM(AL74:AN74) -> 648020 | O74: =E74/J74-1 -> -0.02710387361 | P74: =G74/L74-1 -> -0.02153762357 | Q74: =(1+M74)*(1+R74)-1 -> 0.06008587758 | R74: =MinGrowthPerHead(P74,0,1,$Q$1,$Q$2,$R$1,$R$2) -> 0.05405529 | S74: =MAX((1+IF($S$2=1,Q74,0))*$E74,$N74) -> 648020 | T74: =MinMaxRamp(P74,0,1,$P$2,$T$2) -> 0 | U74: =(1+M74)*(1+V74)-1 -> 0.06008587758 | V74: 0.05405529 | W74: =MAX((1+IF($S$2=1,U74,0))*$E74,$N74) -> 648020 | X74: =MAX(U74,$X$1) -> 0.06008587758 | Y74: =(1+X74)/(1+M74) - 1 -> 0.05405529 | Z74: =MAX((1+IF($Z$2=1,X74,0))*$E74,$N74) -> 648020 | AA74: =Z74 -> 648020 | AB74: 1698.591268 | AC74: 0.06191304304 | AD74: 0.05587206113 | AF74: 666144.7823 | AG74: 1746.099982 | AH74: =AA74/AF74-1 -> -0.02720847296 | AI74: -0.02720847296 | AJ74: 0 | AL74: 464461 | AM74: 52218 | AN74: 131341
A75: 04L | B75: NHS Nottingham North and East CCG | E75: 250773.9328 | F75: 152471.7529 | G75: 1644.723878 | H75: -0.00994545689 | J75: 253919.5267 | K75: 153479.5469 | L75: 1654.419315 | M75: 0.006609709182 | N75: 265904 | O75: -0.01238815288 | P75: -0.005860325788 | Q75: 0.06102228893 | R75: 0.05405529 | S75: 266076.7322 | T75: 0 | U75: 0.06102228893 | V75: 0.05405529 | W75: 266076.7322 | X75: 0.06102228893 | Y75: 0.05405529 | Z75: 266076.7322 | AA75: 266076.7322 | AB75: 1733.629905 | AC75: 0.06102228893 | AD75: 0.05405529 | AF75: 269443.0716 | AG75: 1755.563377 | AH75: -0.01249369431 | AI75: -0.01249369431 | AJ75: 0 | AL75: 199383 | AM75: 20753 | AN75: 45768
A76: 04M | B76: NHS Nottingham West CCG | E76: 158741.6987 | F76: 94123.33276 | G76: 1686.528665 | H76: 0.02528765653 | J76: 154943.5887 | K76: 94623.32812 | L76: 1637.47769 | M76: 0.005312129805 | N76: 168041 | O76: 0.02451285681 | P76: 0.0299552021 | Q76: 0.05965456852 | R76: 0.05405529 | S76: 168211.3663 | T76: 0 | U76: 0.05965456852 | V76: 0.05405529 | W76: 168211.3663 | X76: 0.05965456852 | Y76: 0.05405529 | Z76: 168211.3663 | AA76: 168211.3663 | AB76: 1777.694461 | AC76: 0.05965456852 | AD76: 0.05405529 | AF76: 164454.4165 | AG76: 1737.990195 | AH76: 0.02284493075 | AI76: 0.02284493075 | AJ76: 0 | AL76: 126115 | AM76: 13360 | AN76: 28566
A77: 04N | B77: NHS Rushcliffe CCG | E77: 194523.9451 | F77: 127118.4194 | G77: 1530.257739 | H77: 0.02925810591 | J77: 189826.6332 | K77: 128001.9531 | L77: 1482.997943 | M77: 0.006950477321 | N77: 206325 | O77: 0.0247452734 | P77: 0.03186774219 | Q77: 0.06138147739 | R77: 0.05405529 | S77: 206464.1122 | T77: 0 | U77: 0.06138147739 | V77: 0.05405529 | W77: 206464.1122 | X77: 0.06138147739 | Y77: 0.05405529 | Z77: 206464.1122 | AA77: 206464.1122 | AB77: 1612.976265 | AC77: 0.06138147739 | AD77: 0.05405529 | AF77: 201478.9681 | AG77: 1574.03042 | AH77: 0.02474275201 | AI77: 0.02474275201 | AJ77: 0 | AL77: 154152 | AM77: 16962 | AN77: 35211
A78: 04Q | B78: NHS South West Lincolnshire CCG | E78: 212466.4526 | F78: 133650.3335 | G78: 1589.718836 | H78: -0.004766084959 | J78: 214784.391 | K78: 134597.2812 | L78: 1595.755791 | M78: 0.007085262933 | N78: 225271 | O78: -0.01079193096 | P78: -0.003783131699 | Q78: 0.06152354888 | R78: 0.05405529 | S78: 225538.1428 | T78: 0 | U78: 0.06152354888 | V78: 0.05405529 | W78: 225538.1428 | X78: 0.06152354888 | Y78: 0.05405529 | Z78: 225538.1428 | AA78: 225538.1428 | AB78: 1675.651549 | AC78: 0.06152354888 | AD78: 0.05405529 | AF78: 227898.2754 | AG78: 1693.186321 | AH78: -0.01035607926 | AI78: -0.01035607926 | AJ78: 0 | AL78: 171838 | AM78: 20249 | AN78: 33184
A79: 04V | B79: NHS West Leicestershire CCG | E79: 570995.0278 | F79: 392938.0018 | G79: 1453.142799 | H79: -0.02117968686 | J79: 585942.0433 | K79: 396364.25 | L79: 1478.291857 | M79: 0.00871956429 | N79: 606610 | O79: -0.02550937548 | P79: -0.01701224183 | Q79: 0.06324619287 | R79: 0.05405529 | S79: 607108.2894 | T79: 0 | U79: 0.06324619287 | V79: 0.05405529 | W79: 607108.2894 | X79: 0.06324619287 | Y79: 0.05405529 | Z79: 607108.2894 | AA79: 607108.2894 | AB79: 1531.692854 | AC79: 0.06324619287 | AD79: 0.05405529 | AF79: 621875.0238 | AG79: 1568.948319 | AH79: -0.0237455016 | AI79: -0.0237455016 | AJ79: 0 | AL79: 456988 | AM79: 50086 | AN79: 99536
A80: 04Y | B80: NHS Cannock Chase CCG | E80: 224332.9365 | F80: 133195.4146 | G80: 1684.239185 | H80: -0.005116736594 | J80: 225694.0288 | K80: 133391.125 | L80: 1691.971852 | M80: 0.00146934825 | N80: 236457 | O80: -0.006030696979 | P80: -0.004570209924 | Q80: 0.0556040643 | R80: 0.05405529 | S80: 236806.7595 | T80: 0 | U80: 0.0556040643 | V80: 0.05405529 | W80: 236806.7595 | X80: 0.0556040643 | Y80: 0.05405529 | Z80: 236806.7595 | AA80: 236806.7595 | AB80: 1775.281223 | AC80: 0.0556040643 | AD80: 0.05405529 | AF80: 239449.2708 | AG80: 1795.091471 | AH80: -0.0110357877 | AI80: -0.0110357877 | AJ80: 0 | AL80: 179905 | AM80: 18919 | AN80: 37633
A81: 05A | B81: NHS Coventry and Rugby CCG | E81: 815030.2237 | F81: 514597.9202 | G81: 1583.819506 | H81: -0.009161302833 | J81: 825486.2671 | K81: 521674.4062 | L81: 1582.378313 | M81: 0.01375148586 | N81: 870508 | O81: -0.01266652612 | P81: 0.0009107761872 | Q81: 0.06855011641 | R81: 0.05405529 | S81: 870900.6405 | T81: 0 | U81: 0.06855011641 | V81: 0.05405529 | W81: 870900.6405 | X81: 0.06855011641 | Y81: 0.05405529 | Z81: 870900.6405 | AA81: 870900.6405 | AB81: 1669.433329 | AC81: 0.06855011641 | AD81: 0.05405529 | AF81: 876237.9077 | AG81: 1679.66436 | AH81: -0.006091116561 | AI81: -0.006091116561 | AJ81: 0 | AL81: 641617 | AM81: 73233 | AN81: 155658
A82: 05C | B82: NHS Dudley CCG | E82: 548975.7202 | F82: 319480.2455 | G82: 1718.34011 | H82: -0.01536378472 | J82: 556046.3045 | K82: 320331.8125 | L82: 1735.84478 | M82: 0.002665476377 | N82: 579486 | O82: -0.01271581922 | P82: -0.01008423656 | Q82: 0.05686484948 | R82: 0.05405529 | S82: 580193.1419 | T82: 0 | U82: 0.05686484948 | V82: 0.05405529 | W82: 580193.1419 | X82: 0.05686484948 | Y82: 0.05405529 | Z82: 580193.1419 | AA82: 580193.1419 | AB82: 1811.225483 | AC82: 0.05686484948 | AD82: 0.05405529 | AF82: 589926.0927 | AG82: 1841.609449 | AH82: -0.01649859339 | AI82: -0.01649859339 | AJ82: 0 | AL82: 448804 | AM82: 44240 | AN82: 86442
A83: 05D | B83: NHS East Staffordshire CCG | E83: 211512.3271 | F83: 142069.916 | G83: 1488.7904 | H83: -0.04495741284 | J83: 221963.6366 | K83: 142623.875 | L83: 1556.286678 | M83: 0.003899199774 | N83: 224592 | O83: -0.04708568354 | P83: -0.04337008025 | Q83: 0.05816526215 | R83: 0.05405529 | S83: 224592 | T83: 0.7377542268 | U83: 0.06355030036 | V83: 0.05941941242 | W83: 224953.999 | X83: 0.06355030036 | Y83: 0.05941941242 | Z83: 224953.999 | AA83: 224953.999 | AB83: 1577.25345 | AC83: 0.06355030036 | AD83: 0.05941941242 | AF83: 235465.593 | AG83: 1650.954954 | AH83: -0.04464174116 | AI83: -0.04464174116 | AJ83: 0 | AL83: 172788 | AM83: 19723 | AN83: 32081
A84: 05F | B84: NHS Herefordshire CCG | E84: 312431.9939 | F84: 187473.5002 | G84: 1666.539503 | H84: 0.005786372714 | J84: 311022.7198 | K84: 188340.4375 | L84: 1651.385777 | M84: 0.004624318929 | N84: 330436 | O84: 0.004531096959 | P84: 0.009176369125 | Q84: 0.05892957783 | R84: 0.05405529 | S84: 330843.4794 | T84: 0 | U84: 0.05892957783 | V84: 0.05405529 | W84: 330843.4794 | X84: 0.05892957783 | Y84: 0.05405529 | Z84: 330843.4794 | AA84: 330843.4794 | AB84: 1756.624779 | AC84: 0.05892957783 | AD84: 0.05405529 | AF84: 329990.7191 | AG84: 1752.097019 | AH84: 0.00258419458 | AI84: 0.00258419458 | AJ84: 0 | AL84: 252215 | AM84: 29331 | AN84: 48890
A85: 05G | B85: NHS North Staffordshire CCG | E85: 387330.3038 | F85: 218066.2522 | G85: 1776.204708 | H85: 0.03620467217 | J85: 373906.7392 | K85: 218799.0938 | L85: 1708.904423 | M85: 0.00336063717 | N85: 409465 | O85: 0.03590083635 | P85: 0.0393821232 | Q85: 0.05759758739 | R85: 0.05405529 | S85: 409639.5948 | T85: 0 | U85: 0.05759758739 | V85: 0.05405529 | W85: 409639.5948 | X85: 0.05759758739 | Y85: 0.05405529 | Z85: 409639.5948 | AA85: 409639.5948 | AB85: 1872.217969 | AC85: 0.05759758739 | AD85: 0.05405529 | AF85: 396921.3484 | AG85: 1814.090459 | AH85: 0.03204223334 | AI85: 0.03204223334 | AJ85: 0 | AL85: 304330 | AM85: 30582 | AN85: 74553
A86: 05H | B86: NHS Warwickshire North CCG | E86: 317147.4663 | F86: 191658.7515 | G86: 1654.750769 | H86: -0.01280504327 | J86: 321441.4968 | K86: 192349.4375 | L86: 1671.133022 | M86: 0.003603728136 | N86: 335263 | O86: -0.01335866881 | P86: -0.009803081681 | Q86: 0.05785381871 | R86: 0.05405529 | S86: 335495.6584 | T86: 0 | U86: 0.05785381871 | V86: 0.05405529 | W86: 335495.6584 | X86: 0.05785381871 | Y86: 0.05405529 | Z86: 335495.6584 | AA86: 335495.6584 | AB86: 1744.198801 | AC86: 0.05785381871 | AD86: 0.05405529 | AF86: 341163.2595 | AG86: 1773.663932 | AH86: -0.01661257782 | AI86: -0.01661257782 | AJ86: 0 | AL86: 251270 | AM86: 27132 | AN86: 56861
A87: 05J | B87: NHS Redditch and Bromsgrove CCG | E87: 275861.7581 | F87: 177842.7515 | G87: 1551.155478 | H87: -0.02396086426 | J87: 283271.3325 | K87: 178487.7656 | L87: 1587.063021 | M87: 0.00362687911 | N87: 292559 | O87: -0.02615716275 | P87: -0.0226251525 | Q87: 0.05787822111 | R87: 0.05405529 | S87: 292559 | T87: 0 | U87: 0.05787822111 | V87: 0.05405529 | W87: 292559 | X87: 0.05787822111 | Y87: 0.05405529 | Z87: 292559 | AA87: 292559 | AB87: 1639.098338 | AC87: 0.06052756995 | AD87: 0.0566950647 | AF87: 300616.4078 | AG87: 1684.240972 | AH87: -0.02680295421 | AI87: -0.02680295421 | AJ87: 0 | AL87: 217945 | AM87: 24413 | AN87: 50201
A88: 05L | B88: NHS Sandwell and West Birmingham CCG | E88: 928189.9867 | F88: 571256.6579 | G88: 1624.821302 | H88: -0.04876280089 | J88: 976778.1108 | K88: 575628.9375 | L88: 1696.888477 | M88: 0.007653791937 | N88: 994915 | O88: -0.04974325653 | P88: -0.04247018913 | Q88: 0.06212280988 | R88: 0.05405529 | S88: 994915 | T88: 0.7016140214 | U88: 0.06726320589 | V88: 0.05915664133 | W88: 994915 | X88: 0.06726320589 | Y88: 0.05915664133 | Z88: 994915 | AA88: 994915 | AB88: 1728.396429 | AC88: 0.07188723673 | AD88: 0.06374554962 | AF88: 1036847.456 | AG88: 1801.242759 | AH88: -0.04044226133 | AI88: -0.04044226133 | AJ88: 0 | AL88: 734420 | AM88: 84388 | AN88: 176107
A89: 05N | B89: NHS Shropshire CCG | E89: 512143.2065 | F89: 310001.5817 | G89: 1652.066431 | H89: -0.01794858546 | J89: 523826.0388 | K89: 311223.875 | L89: 1683.116499 | M89: 0.003942861609 | N89: 541332 | O89: -0.02230288574 | P89: -0.01844796133 | Q89: 0.05821128414 | R89: 0.05405529 | S89: 541955.7202 | T89: 0 | U89: 0.05821128414 | V89: 0.05405529 | W89: 541955.7202 | X89: 0.05821128414 | Y89: 0.05405529 | Z89: 541955.7202 | AA89: 541955.7202 | AB89: 1741.369361 | AC89: 0.05821128414 | AD89: 0.05405529 | AF89: 555706.8124 | AG89: 1785.553285 | AH89: -0.02474522865 | AI89: -0.02474522865 | AJ89: 0 | AL89: 414261 | AM89: 45891 | AN89: 81180
A90: 05Q | B90: NHS South East Staffordshire and Seisdon Peninsula CCG | E90: 340413.6484 | F90: 217891.4995 | G90: 1562.308072 | H90: -0.03382365187 | J90: 353068.7649 | K90: 218123.3281 | L90: 1618.66577 | M90: 0.00106396376 | N90: 361816 | O90: -0.03584320614 | P90: -0.03481737825 | Q90: 0.05517676663 | R90: 0.05405529 | S90: 361816 | T90: 0.394272219 | U90: 0.05804652268 | V90: 0.05692199598 | W90: 361816 | X90: 0.05804652268 | Y90: 0.05692199598 | Z90: 361816 | AA90: 361816 | AB90: 1658.768015 | AC90: 0.0628716025 | AD90: 0.06174194754 | AF90: 374578.4424 | AG90: 1717.278228 | AH90: -0.03407148126 | AI90: -0.03407148126 | AJ90: 0 | AL90: 274711 | AM90: 29091 | AN90: 58014
A91: 05R | B91: NHS South Warwickshire CCG | E91: 447001.949 | F91: 287548.6646 | G91: 1554.526256 | H91: -0.002379108791 | J91: 448570.1514 | K91: 288329.125 | L91: 1555.757336 | M91: 0.002714185403 | N91: 472111 | O91: -0.003496002745 | P91: -0.000791306142 | Q91: 0.05691619148 | R91: 0.05405529 | S91: 472443.5975 | T91: 0 | U91: 0.05691619148 | V91: 0.05405529 | W91: 472443.5975 | X91: 0.05691619148 | Y91: 0.05405529 | Z91: 472443.5975 | AA91: 472443.5975 | AB91: 1638.556623 | AC91: 0.05691619148 | AD91: 0.05405529 | AF91: 475968.8783 | AG91: 1650.783209 | AH91: -0.007406536355 | AI91: -0.007406536355 | AJ91: 0 | AL91: 353060 | AM91: 39487 | AN91: 79564
A92: 05T | B92: NHS South Worcestershire CCG | E92: 479566.1757 | F92: 311742.3354 | G92: 1538.341512 | H92: -0.04573275178 | J92: 504742.5893 | K92: 313593.1875 | L92: 1609.545773 | M92: 0.005937121271 | N92: 517405 | O92: -0.04987970935 | P92: -0.04423872996 | Q92: 0.06031334408 | R92: 0.05405529 | S92: 517405 | T92: 0.7726397574 | U92: 0.0659644684 | V92: 0.05967306093 | W92: 517405 | X92: 0.0659644684 | Y92: 0.05967306093 | Z92: 517405 | AA92: 517405 | AB92: 1649.924235 | AC92: 0.07890219582 | AD92: 0.07253442885 | AF92: 535631.1398 | AG92: 1708.044566 | AH92: -0.03402740894 | AI92: -0.03402740894 | AJ92: 0 | AL92: 383568 | AM92: 48994 | AN92: 84843
A93: 05V | B93: NHS Stafford and Surrounds CCG | E93: 240994.1227 | F93: 149033.4121 | G93: 1617.047609 | H93: -0.0115578648 | J93: 244147.1978 | K93: 149500.5 | L93: 1633.086163 | M93: 0.003134115257 | N93: 255478 | O93: -0.01291464824 | P93: -0.009821008977 | Q93: 0.05735882077 | R93: 0.05405529 | S93: 255478 | T93: 0 | U93: 0.05735882077 | V93: 0.05405529 | W93: 255478 | X93: 0.05735882077 | Y93: 0.05405529 | Z93: 255478 | AA93: 255478 | AB93: 1708.877228 | AC93: 0.06010054174 | AD93: 0.05678844496 | AF93: 259128.1845 | AG93: 1733.293096 | AH93: -0.01408640463 | AI93: -0.01408640463 | AJ93: 0 | AL93: 186558 | AM93: 21548 | AN93: 47372
A94: 05W | B94: NHS Stoke on Trent CCG | E94: 531305.2172 | F94: 291168.8324 | G94: 1824.732451 | H94: -0.001046859145 | J94: 530827.9088 | K94: 292240 | L94: 1816.410857 | M94: 0.003678853927 | N94: 561823 | O94: 0.0008991772747 | P94: 0.004581339144 | Q94: 0.05793300544 | R94: 0.05405529 | S94: 562085.3252 | T94: 0 | U94: 0.05793300544 | V94: 0.05405529 | W94: 562085.3252 | X94: 0.05793300544 | Y94: 0.05405529 | Z94: 562085.3252 | AA94: 562085.3252 | AB94: 1923.368893 | AC94: 0.05793300544 | AD94: 0.05405529 | AF94: 563494.9083 | AG94: 1928.192268 | AH94: -0.002501501057 | AI94: -0.002501501057 | AJ94: 0 | AL94: 418513 | AM94: 41940 | AN94: 101370
A95: 05X | B95: NHS Telford and Wrekin CCG | E95: 288558.1011 | F95: 186593.4155 | G95: 1546.453825 | H95: -0.0325544486 | J95: 299732.3848 | K95: 187726.6094 | L95: 1596.643043 | M95: 0.006073064499 | N95: 307114 | O95: -0.03728086849 | P95: -0.03143421311 | Q95: 0.06045663576 | R95: 0.05405529 | S95: 307114 | T95: 0.258402133 | U95: 0.06234685679 | V95: 0.05593410089 | W95: 307114 | X95: 0.06234685679 | Y95: 0.05593410089 | Z95: 307114 | AA95: 307114 | AB95: 1635.964134 | AC95: 0.06430558974 | AD95: 0.05788101013 | AF95: 318081.542 | AG95: 1694.387083 | AH95: -0.03448028432 | AI95: -0.03448028432 | AJ95: 0 | AL95: 229538 | AM95: 24862 | AN95: 52714
A96: 05Y | B96: NHS Walsall CCG | E96: 502931.9775 | F96: 285891.3344 | G96: 1759.171815 | H96: 0.01159688385 | J96: 496943.6403 | K96: 287643.6875 | L96: 1727.636176 | M96: 0.006129437793 | N96: 532733 | O96: 0.01205033462 | P96: 0.01825363419 | Q96: 0.06051605633 | R96: 0.05405529 | S96: 533367.4374 | T96: 0 | U96: 0.06051605633 | V96: 0.05405529 | W96: 533367.4374 | X96: 0.06051605633 | Y96: 0.05405529 | Z96: 533367.4374 | AA96: 533367.4374 | AB96: 1854.264357 | AC96: 0.06051605633 | AD96: 0.05405529 | AF96: 527293.2737 | AG96: 1833.147385 | AH96: 0.01151951679 | AI96: 0.01151951679 | AJ96: 0 | AL96: 410527 | AM96: 42584 | AN96: 79622
A97: 06A | B97: NHS Wolverhampton CCG | E97: 483304.0003 | F97: 280643.164 | G97: 1722.129958 | H97: -0.03681908328 | J97: 501077.607 | K97: 282238.0625 | L97: 1775.37219 | M97: 0.005683012106 | N97: 514867 | O97: -0.03547076638 | P97: -0.02998933507 | Q97: 0.06004549897 | R97: 0.05405529 | S97: 514867 | T97: 0.2003749024 | U97: 0.06151068043 | V97: 0.05551219186 | W97: 514867 | X97: 0.06151068043 | Y97: 0.05551219186 | Z97: 514867 | AA97: 514867 | AB97: 1824.229501 | AC97: 0.0653067214 | AD97: 0.05928678179 | AF97: 531816.5433 | AG97: 1884.283567 | AH97: -0.03187103423 | AI97: -0.03187103423 | AJ97: 0 | AL97: 381997 | AM97: 39275 | AN97: 93595
A98: 06D | B98: NHS Wyre Forest CCG | E98: 187603.2155 | F98: 116333.3347 | G98: 1612.635071 | H98: -0.05599364687 | J98: 199261.7941 | K98: 116725.7969 | L98: 1707.093028 | M98: 0.003373600174 | N98: 202185 | O98: -0.05850885104 | P98: -0.05533263634 | Q98: 0.05761125111 | R98: 0.05405529 | S98: 202185 | T98: 1 | U98: 0.0705904813 | V98: 0.06699088068 | W98: 202185 | X98: 0.0705904813 | Y98: 0.06699088068 | Z98: 202185 | AA98: 202185 | AB98: 1732.136386 | AC98: 0.07772673035 | AD98: 0.07410313583 | AF98: 211394.8182 | AG98: 1811.037695 | AH98: -0.04356690593 | AI98: -0.04356690593 | AJ98: 0 | AL98: 154701 | AM98: 17875 | AN98: 29609
A99: 06F | B99: NHS Bedfordshire CCG | E99: 748312.9026 | F99: 480292.0828 | G99: 1558.037139 | H99: -0.001773399015 | J99: 752740.22 | K99: 486320.9688 | L99: 1547.825959 | M99: 0.01255254084 | N99: 797964 | O99: -0.005881600718 | P99: 0.006597111093 | Q99: 0.06728636208 | R99: 0.05405529 | S99: 798664.1555 | T99: 0 | U99: 0.06728636208 | V99: 0.05405529 | W99: 798664.1555 | X99: 0.06728636208 | Y99: 0.05405529 | Z99: 798664.1555 | AA99: 798664.1555 | AB99: 1642.257289 | AC99: 0.06728636208 | AD99: 0.05405529 | AF99: 798796.4771 | AG99: 1642.529376 | AH99: -0.0001656511794 | AI99: -0.0001656511794 | AJ99: 0 | AL99: 603994 | AM99: 64585 | AN99: 129385
A100: 06H | B100: NHS Cambridgeshire and Peterborough CCG | E100: 1390856.255 | F100: 967901.8398 | G100: 1436.980691 | H100: -0.0266195706 | J100: 1430792.695 | K100: 973472.4375 | L100: 1469.78244 | M100: 0.005755333329 | N100: 1475777 | O100: -0.0279121076 | P100: -0.02231741776 | Q100: 0.06012172954 | R100: 0.05405529 | S100: 1475777 | T100: 0 | U100: 0.06012172954 | V100: 0.05405529 | W100: 1475777 | X100: 0.06012172954 | Y100: 0.05405529 | Z100: 1475777 | AA100: 1475777 | AB100: 1515.992588 | AC100: 0.0610564498 | AD100: 0.05498466141 | AF100: 1518570.871 | AG100: 1559.952611 | AH100: -0.02818035799 | AI100: -0.02818035799 | AJ100: 0 | AL100: 1092562 | AM100: 133062 | AN100: 250153
A101: 06K | B101: NHS East and North Hertfordshire CCG | E101: 957176.7378 | F101: 598378.249 | G101: 1599.6182 | H101: 0.01964017863 | J101: 936874.1657 | K101: 603318.875 | L101: 1552.867322 | M101: 0.008256693758 | N101: 1016302 | O101: 0.0216705433 | P101: 0.0301061641 | Q101: 0.06275830173 | R101: 0.05405529 | S101: 1017247.524 | T101: 0 | U101: 0.06275830173 | V101: 0.05405529 | W101: 1017247.524 | X101: 0.06275830173 | Y101: 0.05405529 | Z101: 1017247.524 | AA101: 1017247.524 | AB101: 1686.086026 | AC101: 0.06275830173 | AD101: 0.05405529 | AF101: 994178.3226 | AG101: 1647.848864 | AH101: 0.02320428961 | AI101: 0.02320428961 | AJ101: 0 | AL101: 776279 | AM101: 76005 | AN101: 164018
A102: 06L | B102: NHS Ipswich and East Suffolk CCG | E102: 635860.3113 | F102: 407773.1641 | G102: 1559.348107 | H102: -0.02111045121 | J102: 651205.7871 | K102: 409731.9062 | L102: 1589.346051 | M102: 0.004803509304 | N102: 672940 | O102: -0.02356471041 | P102: -0.01887439442 | Q102: 0.05911845439 | R102: 0.05405529 | S102: 673451.3902 | T102: 0 | U102: 0.05911845439 | V102: 0.05405529 | W102: 673451.3902 | X102: 0.05911845439 | Y102: 0.05405529 | Z102: 673451.3902 | AA102: 673451.3902 | AB102: 1643.639121 | AC102: 0.05911845439 | AD102: 0.05405529 | AF102: 690912.5604 | AG102: 1686.255207 | AH102: -0.02527261948 | AI102: -0.02527261948 | AJ102: 0 | AL102: 509657 | AM102: 58352 | AN102: 104931
A103: 06M | B103: NHS Great Yarmouth and Waveney CCG | E103: 423599.6013 | F103: 239834.4198 | G103: 1766.216883 | H103: -0.02292588459 | J103: 433981.3214 | K103: 240583.375 | L103: 1803.870785 | M103: 0.003122801318 | N103: 447270 | O103: -0.02392204356 | P103: -0.02087394603 | Q103: 0.05734689525 | R103: 0.05405529 | S103: 447891.7233 | T103: 0 | U103: 0.05734689525 | V103: 0.05405529 | W103: 447891.7233 | X103: 0.05734689525 | Y103: 0.05405529 | Z103: 447891.7233 | AA103: 447891.7233 | AB103: 1861.690249 | AC103: 0.05734689525 | AD103: 0.05405529 | AF103: 460369.1659 | AG103: 1913.553528 | AH103: -0.02710312407 | AI103: -0.02710312407 | AJ103: 0 | AL103: 348279 | AM103: 35752 | AN103: 63239
A104: 06N | B104: NHS Herts Valleys CCG | E104: 1032256.415 | F104: 646355.7542 | G104: 1597.040651 | H104: 0.01726415531 | J104: 1010755.856 | K104: 651355.75 | L104: 1551.772369 | M104: 0.007735671503 | N104: 1095795 | O104: 0.02127176316 | P104: 0.02917198603 | Q104: 0.06220911547 | R104: 0.05405529 | S104: 1096472.173 | T104: 0 | U104: 0.06220911547 | V104: 0.05405529 | W104: 1096472.173 | X104: 0.06220911547 | Y104: 0.05405529 | Z104: 1096472.173 | AA104: 1096472.173 | AB104: 1683.369147 | AC104: 0.06220911547 | AD104: 0.05405529 | AF104: 1072913.3 | AG104: 1647.200166 | AH104: 0.02195785386 | AI104: 0.02195785386 | AJ104: 0 | AL104: 822835 | AM104: 82171 | AN104: 190789
A105: 06P | B105: NHS Luton CCG | E105: 370927.7121 | F105: 234034.252 | G105: 1584.929168 | H105: -0.03053909837 | J105: 381953.0839 | K105: 236174.5938 | L105: 1617.248824 | M105: 0.009145421147 | N105: 394292 | O105: -0.02886577499 | P105: -0.01998434352 | Q105: 0.06369506954 | R105: 0.05405529 | S105: 394553.9786 | T105: 0 | U105: 0.06369506954 | V105: =MAX(R105,NewMinGrowthPerHead(P105,$P$2,$L$1,$U$1,$T$2,AG105,G105,T105, $P$1)) -> 0.05405529 | W105: 394553.9786 | X105: 0.06369506954 | Y105: 0.05405529 | Z105: 394553.9786 | AA105: 394553.9786 | AB105: =AA105/K105*1000 -> 1670.602973 | AC105: =AA105/E105-1 -> 0.06369506954 | AD105: =AB105/G105-1 -> 0.05405529 | AF105: 405431.2839 | AG105: =AF105/K105*1000 -> 1716.659178 | AH105: -0.02682897389 | AI105: -0.02682897389 | AJ105: =IF(AF105=N105,1,0) -> 0 | AL105: 294895 | AM105: 32055 | AN105: 67342
A106: 06Q | B106: NHS Mid Essex CCG | E106: 608213.4714 | F106: 391510.002 | G106: 1553.506854 | H106: -0.00268775795 | J106: 609108.4315 | K106: 393605.25 | L106: 1547.510943 | M106: 0.005351710139 | N106: 643966 | O106: -0.001469295227 | P106: 0.00387455167 | Q106: 0.05969628838 | R106: 0.05405529 | S106: 644521.5581 | T106: 0 | U106: 0.05969628838 | V106: 0.05405529 | W106: 644521.5581 | X106: 0.05969628838 | Y106: 0.05405529 | Z106: 644521.5581 | AA106: 644521.5581 | AB106: 1637.482117 | AC106: 0.05969628838 | AD106: 0.05405529 | AF106: 646407.5349 | AG106: 1642.273661 | AH106: -0.002917628037 | AI106: -0.002917628037 | AJ106: 0 | AL106: 487667 | AM106: 51377 | AN106: 104922
A107: 06T | B107: NHS North East Essex CCG | E107: 606052.5113 | F107: 351813.5821 | G107: 1722.652399 | H107: -0.01072502766 | J107: 614692.1945 | K107: 355431.3125 | L107: 1729.426117 | M107: 0.01028308903 | N107: 644638 | O107: -0.01405529987 | P107: -0.003916742744 | Q107: 0.06489423439 | R107: 0.05405529 | S107: 645381.8251 | T107: 0 | U107: 0.06489423439 | V107: 0.05405529 | W107: 645381.8251 | X107: 0.06489423439 | Y107: 0.05405529 | Z107: 645381.8251 | AA107: 645381.8251 | AB107: 1815.770874 | AC107: 0.06489423439 | AD107: 0.05405529 | AF107: 652156.8563 | AG107: 1834.83231 | AH107: -0.01038865288 | AI107: -0.01038865288 | AJ107: 0 | AL107: 496277 | AM107: 50856 | AN107: 97505
A108: 06V | B108: NHS North Norfolk CCG | E108: 308875.4882 | F108: 173764.1685 | G108: 1777.5557 | H108: -0.005338730394 | J108: 311391.6143 | K108: 174474.5469 | L108: 1784.739493 | M108: 0.00408817551 | N108: 326573 | O108: -0.008080262985 | P108: -0.004025121008 | Q108: 0.05836445302 | R108: 0.05405529 | S108: 326902.8371 | T108: 0 | U108: 0.05836445302 | V108: 0.05405529 | W108: 326902.8371 | X108: 0.05836445302 | Y108: 0.05405529 | Z108: 326902.8371 | AA108: 326902.8371 | AB108: 1873.641989 | AC108: 0.05836445302 | AD108: 0.05405529 | AF108: 330414.3272 | AG108: 1893.768077 | AH108: -0.0106275358 | AI108: -0.0106275358 | AJ108: 0 | AL108: 246409 | AM108: 29798 | AN108: 50366
A109: 06W | B109: NHS Norwich CCG | E109: 349397.7696 | F109: 235861.9206 | G109: 1481.365745 | H109: -0.006212576799 | J109: 351861.9554 | K109: 237093.5156 | L109: 1484.064018 | M109: 0.005221678224 | N109: 369659 | O109: -0.007003274294 | P109: -0.001818164914 | Q109: 0.05955922756 | R109: 0.05405529 | S109: 370207.6309 | T109: 0 | U109: 0.05955922756 | V109: 0.05405529 | W109: 370207.6309 | X109: 0.05955922756 | Y109: 0.05405529 | Z109: 370207.6309 | AA109: 370207.6309 | AB109: 1561.4414 | AC109: 0.05955922756 | AD109: 0.05405529 | AF109: 373393.9175 | AG109: 1574.880344 | AH109: -0.008533311615 | AI109: -0.008533311615 | AJ109: 0 | AL109: 279071 | AM109: 32720 | AN109: 57868
A110: 06Y | B110: NHS South Norfolk CCG | E110: 349384.1743 | F110: 228211.083 | G110: 1530.969354 | H110: -0.0252305737 | J110: 360985.1198 | K110: 230298.2812 | L110: 1567.467711 | M110: 0.009145910946 | N110: 371871 | O110: -0.03213690779 | P110: -0.02328491814 | Q110: 0.06369558581 | R110: 0.05405529 | S110: 371871 | T110: 0 | U110: 0.06369558581 | V110: 0.05405529 | W110: 371871 | X110: 0.06369558581 | Y110: 0.05405529 | Z110: 371871 | AA110: 371871 | AB110: 1614.736324 | AC110: 0.06436131741 | AD110: 0.05471498806 | AF110: 383056.1378 | AG110: 1663.304371 | AH110: -0.02919973524 | AI110: -0.02919973524 | AJ110: 0 | AL110: 278061 | AM110: 34407 | AN110: 59403
A111: 07G | B111: NHS Thurrock CCG | E111: 276893.6242 | F111: 176522.333 | G111: 1568.603924 | H111: 0.004326481824 | J111: 275522.4762 | K111: 178554.9375 | L111: 1543.068369 | M111: 0.01151471577 | N111: 295129 | O111: 0.004976537717 | P111: 0.01654855691 | Q111: 0.06619243707 | R111: 0.05405529 | S111: 295221.888 | T111: 0 | U111: 0.06619243707 | V111: 0.05405529 | W111: 295221.888 | X111: 0.06619243707 | Y111: 0.05405529 | Z111: 295221.888 | AA111: 295221.888 | AB111: 1653.395264 | AC111: 0.06619243707 | AD111: 0.05405529 | AF111: 292424.8755 | AG111: 1637.730547 | AH111: 0.009564892495 | AI111: 0.009564892495 | AJ111: 0 | AL111: 224492 | AM111: 22700 | AN111: 47937
A112: 07H | B112: NHS West Essex CCG | E112: 518364.7968 | F112: 313283.4155 | G112: 1654.619335 | H112: 0.007927593814 | J112: 513408.0222 | K112: 316014.2812 | L112: 1624.635508 | M112: 0.008716917613 | N112: 550714 | O112: 0.009654649666 | P112: 0.01845572606 | Q112: 0.06324340312 | R112: 0.05405529 | S112: 551147.9506 | T112: 0 | U112: 0.06324340312 | V112: 0.05405529 | W112: 551147.9506 | X112: 0.06324340312 | Y112: 0.05405529 | Z112: 551147.9506 | AA112: 551147.9506 | AB112: 1744.060263 | AC112: 0.06324340312 | AD112: 0.05405529 | AF112: 544834.1688 | AG112: 1724.080844 | AH112: 0.01158844691 | AI112: 0.01158844691 | AJ112: 0 | AL112: 415977 | AM112: 43097 | AN112: 91640
A113: 07J | B113: NHS West Norfolk CCG | E113: 312682.1727 | F113: 175842.082 | G113: 1778.198763 | H113: -0.04044582817 | J113: 326607.8404 | K113: 176762.8125 | L113: 1847.718057 | M113: 0.005236121286 | N113: 331004 | O113: -0.04263727299 | P113: -0.03762440563 | Q113: 0.05957445134 | R113: 0.05405529 | S113: 331310.0416 | T113: 0.5070042423 | U113: 0.06328012059 | V113: 0.05774165698 | W113: 332468.7383 | X113: 0.06328012059 | Y113: 0.05774165698 | Z113: 332468.7383 | AA113: 332468.7383 | AB113: 1880.874906 | AC113: 0.06328012059 | AD113: 0.05774165698 | AF113: 346464.7241 | AG113: 1960.054376 | AH113: -0.04039656786 | AI113: -0.04039656786 | AJ113: 0 | AL113: 257733 | AM113: 30028 | AN113: 43243
A114: 07K | B114: NHS West Suffolk CCG | E114: 404996.6258 | F114: 250879.6626 | G114: 1614.306324 | H114: -0.01351594489 | J114: 412167.6237 | K114: 252258.1562 | L114: 1633.911981 | M114: 0.005494640889 | N114: 428826 | O114: -0.01739825609 | P114: -0.01199921237 | Q114: 0.0598469453 | R114: 0.05405529 | S114: 429234.4367 | T114: 0 | U114: 0.0598469453 | V114: 0.05405529 | W114: 429234.4367 | X114: 0.0598469453 | Y114: 0.05405529 | Z114: 429234.4367 | AA114: 429234.4367 | AB114: 1701.56812 | AC114: 0.0598469453 | AD114: 0.05405529 | AF114: 437349.5115 | AG114: 1733.737842 | AH114: -0.0185551249 | AI114: -0.0185551249 | AJ114: 0 | AL114: 324440 | AM114: 36609 | AN114: 67777
A115: 07L | B115: NHS Barking and Dagenham CCG | E115: 381896.8743 | F115: 224031.6644 | G115: 1704.655792 | H115: 0.02590011198 | J115: 373195.3481 | K115: 227890.2969 | L115: 1637.609645 | M115: 0.01722360293 | N115: 408578 | O115: 0.02331627717 | P115: 0.0409414704 | Q115: 0.07220991978 | R115: 0.05405529 | S115: 409473.6169 | T115: 0 | U115: 0.07220991978 | V115: 0.05405529 | W115: 409473.6169 | X115: 0.07220991978 | Y115: 0.05405529 | Z115: 409473.6169 | AA115: 409473.6169 | AB115: 1796.801455 | AC115: 0.07220991978 | AD115: 0.05405529 | AF115: 396337.4635 | AG115: 1739.159012 | AH115: 0.03314386019 | AI115: 0.03314386019 | AJ115: 0 | AL115: 300860 | AM115: 33289 | AN115: 74429
A116: 07M | B116: NHS Barnet CCG | E116: 677423.3127 | F116: 423732.5726 | G116: 1598.704835 | H116: 0.01808466396 | J116: 664959.5202 | K116: 428645.75 | L116: 1551.303192 | M116: 0.01159499577 | N116: 722279 | O116: 0.01874368612 | P116: 0.03055601485 | Q116: 0.06627705663 | R116: 0.05405529 | S116: 722320.936 | T116: 0 | U116: 0.06627705663 | V116: 0.05405529 | W116: 722320.936 | X116: 0.06627705663 | Y116: 0.05405529 | Z116: 722320.936 | AA116: 722320.936 | AB116: 1685.123289 | AC116: 0.06627705663 | AD116: 0.05405529 | AF116: 706163.7664 | AG116: 1647.429763 | AH116: 0.02288020193 | AI116: 0.02288020193 | AJ116: 0 | AL116: 525288 | AM116: 54755 | AN116: 142236
A117: 07N | B117: NHS Bexley CCG | E117: 414901.6434 | F117: 241442.5046 | G117: 1718.428344 | H117: 0.009125465672 | J117: 409742.5512 | K117: 243943.6875 | L117: 1679.660398 | M117: 0.01035933116 | N117: 441719 | O117: 0.01259105801 | P117: 0.02308082411 | Q117: 0.06497459781 | R117: 0.05405529 | S117: 441859.7109 | T117: 0 | U117: 0.06497459781 | V117: 0.05405529 | W117: 441859.7109 | X117: 0.06497459781 | Y117: 0.05405529 | Z117: 441859.7109 | AA117: 441859.7109 | AB117: 1811.318487 | AC117: 0.06497459781 | AD117: 0.05405529 | AF117: 434970.8397 | AG117: 1783.078891 | AH117: 0.01583754709 | AI117: 0.01583754709 | AJ117: 0 | AL117: 327483 | AM117: 31500 | AN117: 82736
A118: 07P | B118: NHS Brent CCG | E118: 592494.7487 | F118: 381905.0813 | G118: 1551.418867 | H118: -0.04131603338 | J118: 615753.0626 | K118: 383764.3438 | L118: 1604.508268 | M118: 0.00486838888 | N118: 630310 | O118: -0.03777214503 | P118: -0.03308764564 | Q118: 0.05918684105 | R118: 0.05405529 | S118: 630310 | T118: 0.3248050458 | U118: 0.06155995683 | V118: 0.0564169085 | W118: 630310 | X118: 0.06155995683 | Y118: 0.0564169085 | Z118: 630310 | AA118: 630310 | AB118: 1642.440238 | AC118: 0.0638237747 | AD118: 0.05866975862 | AF118: 653915.5916 | AG118: 1703.950881 | AH118: -0.03609883583 | AI118: -0.03609883583 | AJ118: 0 | AL118: 452771 | AM118: 52073 | AN118: 125466
A119: 07Q | B119: NHS Bromley CCG | E119: 597628.8329 | F119: 349360.7507 | G119: 1710.635301 | H119: 0.02390571317 | J119: 581281.7217 | K119: 353043.375 | L119: 1646.488117 | M119: 0.01054103605 | N119: 636468 | O119: 0.02812252748 | P119: 0.0389600041 | Q119: 0.06516612481 | R119: 0.05405529 | S119: 636573.988 | T119: 0 | U119: 0.06516612481 | V119: 0.05405529 | W119: 636573.988 | X119: 0.06516612481 | Y119: 0.05405529 | Z119: 636573.988 | AA119: 636573.988 | AB119: 1803.104188 | AC119: 0.06516612481 | AD119: 0.05405529 | AF119: 617151.1044 | AG119: 1748.088615 | AH119: 0.03147184452 | AI119: 0.03147184452 | AJ119: 0 | AL119: 466789 | AM119: 46844 | AN119: 122835
A120: 07R | B120: NHS Camden CCG | E120: 500069.7497 | F120: 284025.7501 | G120: 1760.649341 | H120: 0.07937951074 | J120: 463628.1473 | K120: 287746.6562 | L120: 1611.237306 | M120: 0.01310059439 | N120: 529054 | O120: 0.07860092743 | P120: 0.09273124068 | Q120: 0.05549112361 | R120: 0.04184236932 | S120: 529054 | T120: 0 | U120: 0.05549112361 | V120: 0.04184236932 | W120: 529054 | X120: 0.05549112361 | Y120: 0.04184236932 | Z120: 529054 | AA120: 529054 | AB120: 1838.610418 | AC120: 0.05796041526 | AD120: 0.04427973009 | AF120: 492649.9543 | AG120: 1712.096192 | AH120: 0.07389434494 | AI120: 0.07389434494 | AJ120: 0 | AL120: 381741 | AM120: 40397 | AN120: 106916
A121: 07T | B121: NHS City and Hackney CCG | E121: 547717.7146 | F121: 319028.9971 | G121: 1716.827371 | H121: 0.0307353979 | J121: 532407.8593 | K121: 323519.0625 | L121: 1645.676935 | M121: 0.01407416064 | N121: 585186 | O121: 0.02875587765 | P121: 0.04323475313 | Q121: 0.06889023347 | R121: 0.05405529 | S121: 585450.1158 | T121: 0 | U121: 0.06889023347 | V121: 0.05405529 | W121: 585450.1158 | X121: 0.06889023347 | Y121: 0.05405529 | Z121: 585450.1158 | AA121: 585450.1158 | AB121: 1809.630973 | AC121: 0.06889023347 | AD121: 0.05405529 | AF121: 565556.3434 | AG121: 1748.139164 | AH121: 0.03517558003 | AI121: 0.03517558003 | AJ121: 0 | AL121: 419869 | AM121: 49478 | AN121: 115839
A122: 07V | B122: NHS Croydon CCG | E122: 685037.7092 | F122: 412238.4162 | G122: 1661.751264 | H122: -0.03266615869 | J122: 706909.65 | K122: 415648.125 | L122: 1700.74062 | M122: 0.008271205854 | N122: 728788 | O122: -0.03094022098 | P122: -0.02292492806 | Q122: 0.06277359828 | R122: 0.05405529 | S122: 728788 | T122: 0 | U122: 0.06277359828 | V122: 0.05405529 | W122: 728788 | X122: 0.06277359828 | Y122: 0.05405529 | Z122: 728788 | AA122: 728788 | AB122: 1753.377331 | AC122: 0.06386552183 | AD122: 0.05513825611 | AF122: 750656.8266 | AG122: 1805.991129 | AH122: -0.02913292177 | AI122: -0.02913292177 | AJ122: 0 | AL122: 530116 | AM122: 55559 | AN122: 143113
A123: 07W | B123: NHS Ealing CCG | E123: 678710.5628 | F123: 437491.4159 | G123: 1551.368868 | H123: -0.01667509003 | J123: 686159.0102 | K123: 438184.875 | L123: 1565.912128 | M123: 0.001585080557 | N123: 716387 | O123: -0.01085527886 | P123: -0.009287404796 | Q123: 0.05572605255 | R123: 0.05405529 | S123: 716532.4233 | T123: 0 | U123: 0.05572605255 | V123: 0.05405529 | W123: 716532.4233 | X123: 0.05572605255 | Y123: 0.05405529 | Z123: 716532.4233 | AA123: 716532.4233 | AB123: 1635.228563 | AC123: 0.05572605255 | AD123: 0.05405529 | AF123: 728536.2501 | AG123: 1662.622997 | AH123: -0.01647663631 | AI123: -0.01647663631 | AJ123: 0 | AL123: 522069 | AM123: 58508 | AN123: 135810
A124: 07X | B124: NHS Enfield CCG | E124: 572281.4822 | F124: 339923.5801 | G124: 1683.559234 | H124: -0.001248929869 | J124: 571828.7417 | K124: 343347.5625 | L124: 1665.451584 | M124: 0.01007280054 | N124: 609420 | O124: 0.0007917413916 | P124: 0.01087251699 | Q124: 0.0646725787 | R124: 0.05405529 | S124: 609420 | T124: 0 | U124: 0.0646725787 | V124: 0.05405529 | W124: 609420 | X124: 0.0646725787 | Y124: 0.05405529 | Z124: 609420 | AA124: 609420 | AB124: 1774.936148 | AC124: 0.06489554341 | AD124: 0.05427603123 | AF124: 607279.8681 | AG124: 1768.703012 | AH124: 0.003524127889 | AI124: 0.003524127889 | AJ124: 0 | AL124: 436688 | AM124: 46040 | AN124: 126692
A125: 07Y | B125: NHS Hounslow CCG | E125: 475609.1081 | F125: 316827.4174 | G125: 1501.161459 | H125: -0.01496731678 | J125: 480921.91 | K125: 318917.875 | L125: 1507.980417 | M125: 0.006598095574 | N125: 504433 | O125: -0.01104711979 | P125: -0.004521914169 | Q125: 0.06101004754 | R125: 0.05405529 | S125: 504626.0424 | T125: 0 | U125: 0.06101004754 | V125: 0.05405529 | W125: 504626.0424 | X125: 0.06101004754 | Y125: 0.05405529 | Z125: 504626.0424 | AA125: 504626.0424 | AB125: 1582.307177 | AC125: 0.06101004754 | AD125: 0.05405529 | AF125: 510558.1279 | AG125: 1600.907845 | AH125: -0.01161882487 | AI125: -0.01161882487 | AJ125: 0 | AL125: 370445 | AM125: 42311 | AN125: 91677
A126: 08A | B126: NHS Greenwich CCG | E126: 522538.0306 | F126: 296353.2482 | G126: 1763.226939 | H126: 0.02547319361 | J126: 509991.0256 | K126: 300540.5 | L126: 1696.912814 | M126: 0.01412925913 | N126: 558646 | O126: 0.02460240362 | P126: 0.03907927649 | Q126: 0.06894831033 | R126: 0.05405529 | S126: 558646 | T126: 0 | U126: 0.06894831033 | V126: 0.05405529 | W126: 558646 | X126: 0.06894831033 | Y126: 0.05405529 | Z126: 558646 | AA126: 558646 | AB126: 1858.804387 | AC126: 0.06910113185 | AD126: 0.05420598235 | AF126: 541741.637 | AG126: 1802.557848 | AH126: 0.03120373603 | AI126: 0.03120373603 | AJ126: 0 | AL126: 402379 | AM126: 41440 | AN126: 114827
A127: 08C | B127: NHS Hammersmith and Fulham CCG | E127: 361782.7699 | F127: 239940.2433 | G127: 1507.80363 | H127: -0.03217659279 | J127: 370166.6854 | K127: 239545.8438 | L127: 1545.28536 | M127: -0.001643740669 | N127: 381598 | O127: -0.02264902774 | P127: -0.02425553928 | Q127: 0.05232269645 | R127: 0.05405529 | S127: 381598 | T127: 0 | U127: 0.05232269645 | V127: 0.05405529 | W127: 381598 | X127: 0.05232269645 | Y127: 0.05405529 | Z127: 381598 | AA127: 381598 | AB127: 1593.00614 | AC127: 0.05477107203 | AD127: 0.0565076967 | AF127: 393016.2155 | AG127: 1640.672238 | AH127: -0.02905278466 | AI127: -0.02905278466 | AJ127: 0 | AL127: 278407 | AM127: 31077 | AN127: 72114
A128: 08D | B128: NHS Haringey CCG | E128: 516267.9933 | F128: 318493.8382 | G128: 1620.966975 | H128: -0.03078916982 | J128: 532450.0363 | K128: 321680.5625 | L128: 1655.213582 | M128: 0.01000560733 | N128: 551194 | O128: -0.03039166457 | P128: -0.0206901443 | Q128: 0.06460175334 | R128: 0.05405529 | S128: 551194 | T128: 0 | U128: 0.06460175334 | V128: 0.05405529 | W128: 551194 | X128: 0.06460175334 | Y128: 0.05405529 | Z128: 551194 | AA128: 551194 | AB128: 1713.482455 | AC128: 0.06765092375 | AD128: 0.05707425384 | AF128: 565605.0811 | AG128: 1758.281808 | AH128: -0.02547905165 | AI128: -0.02547905165 | AJ128: 0 | AL128: 387514 | AM128: 45855 | AN128: 117825
A129: 08E | B129: NHS Harrow CCG | E129: 407723.9707 | F129: 267267.6649 | G129: 1525.526744 | H129: -0.01054760567 | J129: 409938.571 | K129: 268365.625 | L129: 1527.537556 | M129: 0.004108091727 | N129: 431441 | O129: -0.005402273343 | P129: -0.001316374651 | Q129: 0.05838544582 | R129: 0.05405529 | S129: 431529.1165 | T129: 0 | U129: 0.05838544582 | V129: 0.05405529 | W129: 431529.1165 | X129: 0.05838544582 | Y129: 0.05405529 | Z129: 431529.1165 | AA129: 431529.1165 | AB129: 1607.989535 | AC129: 0.05838544582 | AD129: 0.05405529 | AF129: 435285.3594 | AG129: 1621.986271 | AH129: -0.008629380216 | AI129: -0.008629380216 | AJ129: 0 | AL129: 315736 | AM129: 33553 | AN129: 82152
A130: 08F | B130: NHS Havering CCG | E130: 484941.4007 | F130: 278062.1665 | G130: 1744.003533 | H130: -0.000867963435 | J130: 484658.7668 | K130: 281514.6562 | L130: 1721.611135 | M130: 0.01241625134 | N130: 517132 | O130: 0.0005831604527 | P130: 0.01300665245 | Q130: 0.0671427054 | R130: 0.05405529 | S130: 517501.6783 | T130: 0 | U130: 0.0671427054 | V130: 0.05405529 | W130: 517501.6783 | X130: 0.0671427054 | Y130: 0.05405529 | Z130: 517501.6783 | AA130: 517501.6783 | AB130: 1838.276149 | AC130: 0.0671427054 | AD130: 0.05405529 | AF130: 514453.3181 | AG130: 1827.447725 | AH130: 0.005925435958 | AI130: 0.005925435958 | AJ130: 0 | AL130: 391611 | AM130: 37114 | AN130: 88407
A131: 08G | B131: NHS Hillingdon CCG | E131: 491510.5013 | F131: 312904.0027 | G131: 1570.802857 | H131: -0.01699325049 | J131: 499817.0323 | K131: 316898.25 | L131: 1577.216133 | M131: 0.01276508859 | N131: 524383 | O131: -0.01661914354 | P131: -0.00406619979 | Q131: 0.06751039916 | R131: 0.05405529 | S131: 524692.5715 | T131: 0 | U131: 0.06751039916 | V131: 0.05405529 | W131: 524692.5715 | X131: 0.06751039916 | Y131: 0.05405529 | Z131: 524692.5715 | AA131: 524692.5715 | AB131: 1655.713061 | AC131: 0.06751039916 | AD131: 0.05405529 | AF131: 530546.8975 | AG131: 1674.186896 | AH131: -0.01103451191 | AI131: -0.01103451191 | AJ131: 0 | AL131: 389679 | AM131: 42730 | AN131: 91974
A132: 08H | B132: NHS Islington CCG | E132: 486708.1387 | F132: 252448.0015 | G132: 1927.954018 | H132: 0.0553446733 | J132: 460815.3964 | K132: 255947.1875 | L132: 1800.431569 | M132: 0.01386101698 | N132: 516316 | O132: 0.05618896969 | P132: 0.07082882293 | Q132: 0.06263001362 | R132: 0.04810225053 | S132: 517190.6761 | T132: 0 | U132: 0.06263001362 | V132: 0.04810225053 | W132: 517190.6761 | X132: 0.06263001362 | Y132: 0.04810225053 | Z132: 517190.6761 | AA132: 517190.6761 | AB132: 2020.692945 | AC132: 0.06263001362 | AD132: 0.04810225053 | AF132: 489595.6817 | AG132: 1912.877756 | AH132: 0.05636282233 | AI132: 0.05636282233 | AJ132: 0 | AL132: 370580 | AM132: 39900 | AN132: 105836
A133: 08J | B133: NHS Kingston CCG | E133: 310280.2538 | F133: 209554.5002 | G133: 1480.666144 | H133: 0.06729530909 | J133: 290896.3308 | K133: 212189.8125 | L133: 1370.925057 | M133: 0.01257578493 | N133: 327810 | O133: 0.06663515812 | P133: 0.08004893247 | Q133: 0.05861464061 | R133: 0.04546707157 | S133: 328467.2194 | T133: 0 | U133: 0.05861464061 | V133: 0.04546707157 | W133: 328467.2194 | X133: 0.05861464061 | Y133: 0.04546707157 | Z133: 328467.2194 | AA133: 328467.2194 | AB133: 1547.987698 | AC133: 0.05861464061 | AD133: 0.04546707157 | AF133: 308798.1781 | AG133: 1455.292195 | AH133: 0.06369545775 | AI133: 0.06369545775 | AJ133: 0 | AL133: 245866 | AM133: 27603 | AN133: 54341
A134: 08K | B134: NHS Lambeth CCG | E134: 683348.6518 | F134: 413713.3293 | G134: 1651.744344 | H134: -0.01961996187 | J134: 693503.2295 | K134: 416706.75 | L134: 1664.24765 | M134: 0.007235494827 | N134: 726574 | O134: -0.01464243752 | P134: -0.007512887972 | Q134: 0.0616819016 | R134: 0.05405529 | S134: 726574 | T134: 0 | U134: 0.0616819016 | V134: 0.05405529 | W134: 726574 | X134: 0.0616819016 | Y134: 0.05405529 | Z134: 726574 | AA134: 726574 | AB134: 1743.609865 | AC134: 0.06325518911 | AD134: 0.05561727577 | AF134: 736862.9698 | AG134: 1768.301017 | AH134: -0.01396320642 | AI134: -0.01396320642 | AJ134: 0 | AL134: 500202 | AM134: 59665 | AN134: 166707
A135: 08L | B135: NHS Lewisham CCG | E135: 585682.8142 | F135: 330341.7554 | G135: 1772.960289 | H135: 0.02359482865 | J135: 571490.5052 | K135: 334478.8438 | L135: 1708.599859 | M135: 0.01252366167 | N135: 625102 | O135: 0.02483384919 | P135: 0.03766852158 | Q135: 0.06725592183 | R135: 0.05405529 | S135: 625102 | T135: 0 | U135: 0.06725592183 | V135: 0.05405529 | W135: 625102 | X135: 0.06725592183 | Y135: 0.05405529 | Z135: 625102 | AA135: 625102 | AB135: 1868.883523 | AC135: 0.06730466537 | AD135: 0.05410343064 | AF135: 606954.5627 | AG135: 1814.627663 | AH135: 0.02989916939 | AI135: 0.02989916939 | AJ135: 0 | AL135: 451617 | AM135: 47877 | AN135: 125608
A136: 08M | B136: NHS Newham CCG | E136: 615538.4495 | F136: 400514.6649 | G136: 1536.868693 | H136: 0.007533705923 | J136: 612938.4811 | K136: 405949.8125 | L136: 1509.887336 | M136: 0.01357040837 | N136: 657645 | O136: 0.004241809673 | P136: 0.01786978113 | Q136: 0.06835925073 | R136: 0.05405529 | S136: 657645 | T136: 0 | U136: 0.06835925073 | V136: 0.05405529 | W136: 657645 | X136: 0.06835925073 | Y136: 0.05405529 | Z136: 657645 | AA136: 657645 | AB136: 1620.015528 | AC136: 0.06840604447 | AD136: 0.05410145724 | AF136: 650968.5121 | AG136: 1603.568944 | AH136: 0.01025623781 | AI136: 0.01025623781 | AJ136: 0 | AL136: 470118 | AM136: 56956 | AN136: 130571
A137: 08N | B137: NHS Redbridge CCG | E137: 487051.6046 | F137: 320670.8375 | G137: 1518.852192 | H137: -0.001683144823 | J137: 488050.5753 | K137: 324502.875 | L137: 1503.994611 | M137: 0.01195006539 | N137: 519391 | O137: -0.002046858891 | P137: 0.009878746397 | Q137: 0.06665131964 | R137: 0.05405529 | S137: 519514.2368 | T137: 0 | U137: 0.06665131964 | V137: =MAX(R137,NewMinGrowthPerHead(P137,$P$2,$L$1,$U$1,$T$2,AG137,G137,T137, $P$1)) -> 0.05405529 | W137: 519514.2368 | X137: 0.06665131964 | Y137: 0.05405529 | Z137: 519514.2368 | AA137: 519514.2368 | AB137: =AA137/K137*1000 -> 1600.954188 | AC137: =AA137/E137-1 -> 0.06665131964 | AD137: =AB137/G137-1 -> 0.05405529 | AF137: 518248.044 | AG137: =AF137/K137*1000 -> 1597.052242 | AH137: 0.002443217717 | AI137: 0.002443217717 | AJ137: =IF(AF137=N137,1,0) -> 0 | AL137: 380317 | AM137: 41056 | AN137: 98018
A138: 08P | B138: NHS Richmond CCG | E138: 315840.053 | F138: 217734.1711 | G138: =E138/F138*1000 -> 1450.576413 | H138: 0.03670859236 | J138: 304074.011 | K138: 219498.4375 | L138: =J138/K138*1000 -> 1385.312873 | M138: =K138/F138-1 -> 0.008102845539 | N138: =SUM(AL138:AN138) -> 334384 | O138: =E138/J138-1 -> 0.03869466501 | P138: =G138/L138-1 -> 0.04711104745 | Q138: =(1+M138)*(1+R138)-1 -> 0.0625961372 | R138: =MinGrowthPerHead(P138,0,1,$Q$1,$Q$2,$R$1,$R$2) -> 0.05405529 | S138: =MAX((1+IF($S$2=1,Q138,0))*$E138,$N138) -> 335610.4203 | T138: =MinMaxRamp(P138,0,1,$P$2,$T$2) -> 0 | U138: =(1+M138)*(1+V138)-1 -> 0.0625961372 | V138: 0.05405529 | W138: =MAX((1+IF($S$2=1,U138,0))*$E138,$N138) -> 335610.4203 | X138: =MAX(U138,$X$1) -> 0.0625961372 | Y138: =(1+X138)/(1+M138) - 1 -> 0.05405529 | Z138: =MAX((1+IF($Z$2=1,X138,0))*$E138,$N138) -> 335610.4203 | AA138: =Z138 -> 335610.4203 | AB138: 1528.987742 | AC138: 0.0625961372 | AD138: 0.05405529 | AF138: 322787.7762 | AG138: 1470.569813 | AH138: =AA138/AF138-1 -> 0.03972468925 | AI138: 0.03972468925 | AJ138: 0 | AL138: 251704 | AM138: 27212 | AN138: 55468
A139: 08Q | B139: NHS Southwark CCG | E139: 584579.0584 | F139: 330855.1648 | G139: 1766.873003 | H139: 0.02275711997 | J139: 570004.1988 | K139: 334416.6875 | L139: 1704.472953 | M139: 0.01076459756 | N139: 623094 | O139: 0.02556974073 | P139: 0.03660958626 | Q139: 0.06540177101 | R139: 0.05405529 | S139: 623094 | T139: 0 | U139: 0.06540177101 | V139: 0.05405529 | W139: 623094 | X139: 0.06540177101 | Y139: 0.05405529 | Z139: 623094 | AA139: 623094 | AB139: 1863.226398 | AC139: 0.065884915 | AD139: 0.05453328853 | AF139: 605499.7072 | AG139: 1810.614511 | AH139: 0.02905747524 | AI139: 0.02905747524 | AJ139: 0 | AL139: 439773 | AM139: 47696 | AN139: 135625
A140: 08R | B140: NHS Merton CCG | E140: 347088.5719 | F140: 225435.2542 | G140: 1539.637504 | H140: 0.03502822673 | J140: 333704.3694 | K140: 226818.9688 | L140: 1471.236604 | M140: 0.006137968992 | N140: 366922 | O140: 0.04010796315 | P140: 0.04649211358 | Q140: 0.06052504869 | R140: 0.05405529 | S140: 368096.1247 | T140: 0 | U140: 0.06052504869 | V140: 0.05405529 | W140: 368096.1247 | X140: 0.06052504869 | Y140: 0.05405529 | Z140: 368096.1247 | AA140: 368096.1247 | AB140: 1622.863055 | AC140: 0.06052504869 | AD140: 0.05405529 | AF140: 354397.2062 | AG140: 1562.467232 | AH140: 0.03865413795 | AI140: 0.03865413795 | AJ140: 0 | AL140: 269793 | AM140: 30843 | AN140: 66286
A141: 08T | B141: NHS Sutton CCG | E141: 332800.369 | F141: 196403.9951 | G141: 1694.468429 | H141: 0.03887938704 | J141: 319555.5383 | K141: 198247.3125 | L141: 1611.903507 | M141: 0.009385335475 | N141: 353120 | O141: 0.0414476644 | P141: 0.05122200011 | Q141: 0.06359541748 | R141: 0.05370603287 | S141: 353964.9474 | T141: 0 | U141: 0.06359541748 | V141: 0.05370603287 | W141: 353964.9474 | X141: 0.06359541748 | Y141: 0.05370603287 | Z141: 353964.9474 | AA141: 353964.9474 | AB141: 1785.471606 | AC141: 0.06359541748 | AD141: 0.05370603287 | AF141: 339224.4886 | AG141: 1711.117716 | AH141: 0.04345340422 | AI141: 0.04345340422 | AJ141: 0 | AL141: 265003 | AM141: 27753 | AN141: 60364
A142: 08V | B142: NHS Tower Hamlets CCG | E142: 528581.2466 | F142: 324833.7494 | G142: 1627.236233 | H142: 0.06219322551 | J142: 501234.8254 | K142: 331104.6875 | L142: 1513.825821 | M142: 0.01930506951 | N142: 564660 | O142: 0.05455810293 | P142: 0.07491642041 | Q142: 0.06714511672 | R142: 0.0469339834 | S142: 564660 | T142: 0 | U142: 0.06714511672 | V142: 0.0469339834 | W142: 564660 | X142: 0.06714511672 | Y142: 0.0469339834 | Z142: 564660 | AA142: 564660 | AB142: 1705.382078 | AC142: 0.06825583326 | AD142: 0.04802366358 | AF142: 532439.6064 | AG142: 1608.070276 | AH142: 0.06051464474 | AI142: 0.06051464474 | AJ142: 0 | AL142: 400656 | AM142: 49013 | AN142: 114991
A143: 08W | B143: NHS Waltham Forest CCG | E143: 499347.2793 | F143: 311576.3333 | G143: 1602.648295 | H143: -0.03209654279 | J143: 515022.8741 | K143: 314321.0938 | L143: 1638.524694 | M143: 0.008809271256 | N143: 533905 | O143: -0.03043669629 | P143: -0.02189555015 | Q143: 0.06334074897 | R143: 0.05405529 | S143: 533905 | T143: 0 | U143: 0.06334074897 | V143: 0.05405529 | W143: 533905 | X143: 0.06334074897 | Y143: 0.05405529 | Z143: 533905 | AA143: 533905 | AB143: 1698.597424 | AC143: 0.06920578558 | AD143: 0.05986911109 | AF143: 546936.5655 | AG143: 1740.056829 | AH143: -0.02382646609 | AI143: -0.02382646609 | AJ143: 0 | AL143: 378599 | AM143: 42961 | AN143: 112345
A144: 08X | B144: NHS Wandsworth CCG | E144: 592533.4911 | F144: 403858.7606 | G144: 1467.179987 | H144: 0.02437695947 | J144: 575822.5121 | K144: 406574.1875 | L144: 1416.27907 | M144: 0.006723704343 | N144: 627888 | O144: 0.02902105884 | P144: 0.0359398922 | Q144: 0.06114244613 | R144: 0.05405529 | S144: 628762.4381 | T144: 0 | U144: 0.06114244613 | V144: 0.05405529 | W144: 628762.4381 | X144: 0.06114244613 | Y144: 0.05405529 | Z144: 628762.4381 | AA144: 628762.4381 | AB144: 1546.488827 | AC144: 0.06114244613 | AD144: 0.05405529 | AF144: 611661.961 | AG144: 1504.428908 | AH144: 0.02795739842 | AI144: 0.02795739842 | AJ144: 0 | AL144: 455605 | AM144: 51937 | AN144: 120346
A145: 08Y | B145: NHS West London CCG | E145: 480778.5096 | F145: 250220.5861 | G145: 1921.418686 | H145: 0.1601842322 | J145: 411643.1178 | K145: 250446.0938 | L145: 1643.639602 | M145: 0.0009012355617 | N145: 501740 | O145: 0.1679498305 | P145: 0.1690024285 | Q145: 0.04070197452 | R145: 0.03976490141 | S145: 501740 | T145: 0 | U145: 0.04070197452 | V145: 0.03976490141 | W145: 501740 | X145: 0.04070197452 | Y145: 0.03976490141 | Z145: 501740 | AA145: 501740 | AB145: 2003.38521 | AC145: 0.04359905852 | AD145: 0.04265937681 | AF145: 437224.37 | AG145: 1745.782349 | AH145: 0.14755726 | AI145: 0.14755726 | AJ145: 0 | AL145: 374980 | AM145: 38819 | AN145: 87941
A146: 09A | B146: NHS Central London (Westminster) CCG | E146: 366455.6242 | F146: 229468.5806 | G146: 1596.975164 | H146: 0.04858780091 | J146: 348493.8152 | K146: 231308.875 | L146: 1506.616705 | M146: 0.008019810139 | N146: 386673 | O146: 0.05154125607 | P146: 0.0599744173 | Q146: 0.05963498472 | R146: 0.05120452402 | S146: 388309.1997 | T146: 0 | U146: 0.05963498472 | V146: 0.05120452402 | W146: 388309.1997 | X146: 0.05963498472 | Y146: 0.05120452402 | Z146: 388309.1997 | AA146: 388309.1997 | AB146: 1678.747518 | AC146: 0.05963498472 | AD146: 0.05120452402 | AF146: 370099.0136 | AG146: 1600.02081 | AH146: 0.04920355202 | AI146: 0.04920355202 | AJ146: 0 | AL146: 284312 | AM146: 31636 | AN146: 70725
A147: 09C | B147: NHS Ashford CCG | E147: 198938.6405 | F147: 133545.9155 | G147: 1489.664733 | H147: -0.01630037399 | J147: 203231.8676 | K147: 134913.2812 | L147: 1506.388887 | M147: 0.01023891879 | N147: 211685 | O147: -0.0211247733 | P147: -0.01110214934 | Q147: 0.06484767652 | R147: 0.05405529 | S147: 211839.3491 | T147: 0 | U147: 0.06484767652 | V147: 0.05405529 | W147: 211839.3491 | X147: 0.06484767652 | Y147: 0.05405529 | Z147: 211839.3491 | AA147: 211839.3491 | AB147: 1570.188992 | AC147: 0.06484767652 | AD147: 0.05405529 | AF147: 215747.411 | AG147: 1599.156206 | AH147: -0.01811406185 | AI147: -0.01811406185 | AJ147: 0 | AL147: 158865 | AM147: 18132 | AN147: 34688
A148: 09D | B148: NHS Brighton and Hove CCG | E148: 506394.1952 | F148: 317709.1667 | G148: 1593.892303 | H148: 0.05284229268 | J148: 480320.5407 | K148: 319712.5625 | L148: 1502.351165 | M148: 0.006305753888 | N148: 535723 | O148: 0.05428386319 | P148: 0.06093191776 | Q148: 0.05755777432 | R148: 0.05093086295 | S148: 535723 | T148: 0 | U148: 0.05755777432 | V148: 0.05093086295 | W148: 535723 | X148: 0.05755777432 | Y148: 0.05093086295 | Z148: 535723 | AA148: 535723 | AB148: 1675.639505 | AC148: 0.05791694503 | AD148: 0.05128778301 | AF148: 509886.4057 | AG148: 1594.827559 | AH148: 0.05067127498 | AI148: 0.05067127498 | AJ148: 0 | AL148: 395680 | AM148: 44221 | AN148: 95822
A149: 09E | B149: NHS Canterbury and Coastal CCG | E149: 354917.2404 | F149: 225725.2512 | G149: 1572.341767 | H149: -0.01174364922 | J149: 360148.8379 | K149: 227708.875 | L149: 1581.61968 | M149: 0.008787779695 | N149: 377225 | O149: -0.01452620961 | P149: -0.005866083049 | Q149: 0.06331809567 | R149: 0.05405529 | S149: 377389.9242 | T149: 0 | U149: 0.06331809567 | V149: 0.05405529 | W149: 377389.9242 | X149: 0.06331809567 | Y149: 0.05405529 | Z149: 377389.9242 | AA149: 377389.9242 | AB149: 1657.335157 | AC149: 0.06331809567 | AD149: 0.05405529 | AF149: 382265.5334 | AG149: 1678.746748 | AH149: -0.01275450902 | AI149: -0.01275450902 | AJ149: 0 | AL149: 285352 | AM149: 29279 | AN149: 62594
A150: 09F | B150: NHS Eastbourne, Hailsham and Seaford CCG | E150: 358229.7865 | F150: 196420.0802 | G150: 1823.794116 | H150: 0.008110632252 | J150: 356610.7245 | K150: 198129.1094 | L150: 1799.890615 | M150: 0.008700888075 | N150: 380595 | O150: 0.004540138392 | P150: 0.0132805297 | Q150: 0.0632265071 | R150: 0.05405529 | S150: 380879.4047 | T150: 0 | U150: 0.0632265071 | V150: 0.05405529 | W150: 380879.4047 | X150: 0.0632265071 | Y150: 0.05405529 | Z150: 380879.4047 | AA150: 380879.4047 | AB150: 1922.379835 | AC150: 0.0632265071 | AD150: 0.05405529 | AF150: 378426.411 | AG150: 1909.999052 | AH150: 0.006482089051 | AI150: 0.006482089051 | AJ150: 0 | AL150: 288462 | AM150: 27635 | AN150: 64498
A151: 09G | B151: NHS Coastal West Sussex CCG | E151: 917562.9771 | F151: 515159.1699 | G151: 1781.125195 | H151: -0.01527545208 | J151: 930545.2729 | K151: 519346.125 | L151: 1791.763196 | M151: 0.008127497912 | N151: 974148 | O151: -0.01395127804 | P151: -0.005937169107 | Q151: 0.06262212217 | R151: 0.05405529 | S151: 975022.718 | T151: 0 | U151: 0.06262212217 | V151: 0.05405529 | W151: 975022.718 | X151: 0.06262212217 | Y151: 0.05405529 | Z151: 975022.718 | AA151: 975022.718 | AB151: 1877.404434 | AC151: 0.06262212217 | AD151: 0.05405529 | AF151: 987331.8199 | AG151: 1901.105587 | AH151: -0.01246703656 | AI151: -0.01246703656 | AJ151: 0 | AL151: 752028 | AM151: 72134 | AN151: 149986
A152: 09H | B152: NHS Crawley CCG | E152: 221351.7269 | F152: 133480.7476 | G152: 1658.304519 | H152: 0.04967720862 | J152: 209912.732 | K152: 134315.8281 | L152: 1562.829451 | M152: 0.006256187365 | N152: 233872 | O152: 0.05449404995 | P152: 0.0610911623 | Q152: 0.05745988526 | R152: 0.05088534962 | S152: 234070.5717 | T152: 0 | U152: 0.05745988526 | V152: 0.05088534962 | W152: 234070.5717 | X152: 0.05745988526 | Y152: 0.05088534962 | Z152: 234070.5717 | AA152: 234070.5717 | AB152: 1742.687924 | AC152: 0.05745988526 | AD152: 0.05088534962 | AF152: 222815.0429 | AG152: 1658.888949 | AH152: 0.05051512057 | AI152: 0.05051512057 | AJ152: 0 | AL152: 175886 | AM152: 16702 | AN152: 41284
A153: 09J | B153: NHS Dartford, Gravesham and Swanley CCG | E153: 434951.2781 | F153: 269110.2473 | G153: 1616.25684 | H153: -0.04971162708 | J153: 457982.7345 | K153: 271700.1875 | L153: 1685.618029 | M153: 0.009624086081 | N153: 463850 | O153: -0.0502889186 | P153: -0.0411488174 | Q153: 0.06419960885 | R153: 0.05405529 | S153: 463850 | T153: 0.6485468834 | U153: 0.06896049782 | V153: 0.05877079654 | W153: 464945.7347 | X153: 0.06896049782 | Y153: 0.05877079654 | Z153: 464945.7347 | AA153: 464945.7347 | AB153: 1711.245542 | AC153: 0.06896049782 | AD153: 0.05877079654 | AF153: 486257.2727 | AG153: 1789.683243 | AH153: -0.04382770021 | AI153: -0.04382770021 | AJ153: 0 | AL153: 344670 | AM153: 35389 | AN153: 83791
A154: 09L | B154: NHS East Surrey CCG | E154: 300696.8835 | F154: 182620.4157 | G154: 1646.567731 | H154: 0.01857618217 | J154: 294544.9748 | K154: 183940.0312 | L154: 1601.309801 | M154: 0.007226002276 | N154: 319030 | O154: 0.02088614381 | P154: 0.0282630694 | Q154: 0.06167189592 | R154: 0.05405529 | S154: 319241.4304 | T154: 0 | U154: 0.06167189592 | V154: 0.05405529 | W154: 319241.4304 | X154: 0.06167189592 | Y154: 0.05405529 | Z154: 319241.4304 | AA154: 319241.4304 | AB154: 1735.573427 | AC154: 0.06167189592 | AD154: 0.05405529 | AF154: 312621.5779 | AG154: 1699.584238 | AH154: 0.02117529002 | AI154: 0.02117529002 | AJ154: 0 | AL154: 240915 | AM154: 22876 | AN154: 55239
A155: 09N | B155: NHS Guildford and Waverley CCG | E155: 332922.5512 | F155: 225634.0859 | G155: 1475.497595 | H155: 0.0180308032 | J155: 325576.3554 | K155: 226834.0312 | L155: 1435.306482 | M155: 0.005318103014 | N155: 352525 | O155: 0.02256366524 | P155: 0.02800176415 | Q155: 0.05966086461 | R155: 0.05405529 | S155: 352784.9985 | T155: 0 | U155: 0.05966086461 | V155: 0.05405529 | W155: 352784.9985 | X155: 0.05966086461 | Y155: 0.05405529 | Z155: 352784.9985 | AA155: 352784.9985 | AB155: 1555.256046 | AC155: 0.05966086461 | AD155: 0.05405529 | AF155: 345388.8421 | AG155: 1522.65002 | AH155: 0.02141399917 | AI155: 0.02141399917 | AJ155: 0 | AL155: 269607 | AM155: 28385 | AN155: 54533
A156: 09P | B156: NHS Hastings and Rother CCG | E156: 355048.3622 | F156: 188683.9995 | G156: 1881.708905 | H156: 0.01443532457 | J156: 350364.9138 | K156: 189923.25 | L156: 1844.771052 | M156: 0.00656786209 | N156: 378157 | O156: 0.0133673442 | P156: 0.02002300116 | Q156: 0.06097817978 | R156: 0.05405529 | S156: 378157 | T156: 0 | U156: 0.06097817978 | V156: 0.05405529 | W156: 378157 | X156: 0.06097817978 | Y156: 0.05405529 | Z156: 378157 | AA156: 378157 | AB156: 1991.104301 | AC156: 0.06508588766 | AD156: 0.05813619506 | AF156: 371709.4223 | AG156: 1957.155969 | AH156: 0.01734574719 | AI156: 0.01734574719 | AJ156: 0 | AL156: 294637 | AM156: 30497 | AN156: 53023
A157: 09W | B157: NHS Medway CCG | E157: 491708.3273 | F157: 299528.0034 | G157: 1641.61054 | H157: -0.006283619413 | J157: 494144.7397 | K157: 302095.9375 | L157: 1635.721234 | M157: 0.008573268785 | N157: 522316 | O157: -0.004930564168 | P157: 0.003600433566 | Q157: 0.06309198932 | R157: 0.05405529 | S157: 522731.1838 | T157: 0 | U157: 0.06309198932 | V157: 0.05405529 | W157: 522731.1838 | X157: 0.06309198932 | Y157: 0.05405529 | Z157: 522731.1838 | AA157: 522731.1838 | AB157: 1730.348273 | AC157: 0.06309198932 | AD157: 0.05405529 | AF157: 524510.6013 | AG157: 1736.238513 | AH157: -0.003392529143 | AI157: -0.003392529143 | AJ157: 0 | AL157: 394320 | AM157: 41300 | AN157: 86696
A158: 09X | B158: NHS Horsham and Mid Sussex CCG | E158: 364920.7853 | F158: 240990.5884 | G158: 1514.253265 | H158: 5.251907794e-05 | J158: 365417.2478 | K158: 242897.75 | L158: 1504.40771 | M158: 0.007913842752 | N158: 387473 | O158: -0.001358618085 | P158: 0.006544472777 | Q158: 0.06239691782 | R158: 0.05405529 | S158: 387690.7176 | T158: 0 | U158: 0.06239691782 | V158: 0.05405529 | W158: 387690.7176 | X158: 0.06239691782 | Y158: 0.05405529 | Z158: 387690.7176 | AA158: 387690.7176 | AB158: 1596.106664 | AC158: 0.06239691782 | AD158: 0.05405529 | AF158: 387809.6719 | AG158: 1596.596394 | AH158: -0.0003067337238 | AI158: -0.0003067337238 | AJ158: 0 | AL158: 288812 | AM158: 30652 | AN158: 68009
A159: 09Y | B159: NHS North West Surrey CCG | E159: 582929.2876 | F159: 372157.2458 | G159: 1566.352111 | H159: 0.0140527067 | J159: 572691.4197 | K159: 374092.875 | L159: 1530.880319 | M159: 0.005201105805 | N159: 617121 | O159: 0.01787676134 | P159: 0.02317084607 | Q159: 0.05953754309 | R159: 0.05405529 | S159: 617635.4651 | T159: 0 | U159: 0.05953754309 | V159: 0.05405529 | W159: 617635.4651 | X159: 0.05953754309 | Y159: 0.05405529 | Z159: 617635.4651 | AA159: 617635.4651 | AB159: 1651.021729 | AC159: 0.05953754309 | AD159: 0.05405529 | AF159: 607658.6656 | AG159: 1624.352417 | AH159: 0.0164184272 | AI159: 0.0164184272 | AJ159: 0 | AL159: 468036 | AM159: 47298 | AN159: 101787
A160: 10A | B160: NHS South Kent Coast CCG | E160: 375382.0181 | F160: 206477.2515 | G160: 1818.030875 | H160: 0.01183103537 | J160: 371623.3756 | K160: 207538.2344 | L160: 1790.626082 | M160: 0.005138497838 | N160: 397404 | O160: 0.0101141176 | P160: 0.01530458681 | Q160: 0.05947155083 | R160: 0.05405529 | S160: 397706.5689 | T160: 0 | U160: 0.05947155083 | V160: 0.05405529 | W160: 397706.5689 | X160: 0.05947155083 | Y160: 0.05405529 | Z160: 397706.5689 | AA160: 397706.5689 | AB160: 1916.305061 | AC160: 0.05947155083 | AD160: 0.05405529 | AF160: 394435.8684 | AG160: 1900.545553 | AH160: 0.008292097048 | AI160: 0.008292097048 | AJ160: 0 | AL160: 303625 | AM160: 29804 | AN160: 63975
A161: 10C | B161: NHS Surrey Heath CCG | E161: 157163.3765 | F161: 96804.16748 | G161: 1623.518704 | H161: 0.01256546039 | J161: 154818.1843 | K161: 97135.19531 | L161: 1593.842312 | M161: 0.003419561788 | N161: 166251 | O161: 0.01514804123 | P161: 0.01861940268 | Q161: 0.05765969719 | R161: 0.05405529 | S161: 166251 | T161: 0 | U161: 0.05765969719 | V161: 0.05405529 | W161: 166251 | X161: 0.05765969719 | Y161: 0.05405529 | Z161: 166251 | AA161: 166251 | AB161: 1711.542345 | AC161: 0.05782278079 | AD161: 0.05421781782 | AF161: 164347.6968 | AG161: 1691.947973 | AH161: 0.01158095426 | AI161: 0.01158095426 | AJ161: 0 | AL161: 125574 | AM161: 12046 | AN161: 28631
A162: 10D | B162: NHS Swale CCG | E162: 195158.3833 | F162: 113167.082 | G162: 1724.515467 | H162: -0.004889276046 | J162: 196486.9029 | K162: 114335.75 | L162: 1718.508016 | M162: 0.010326925 | N162: 207666 | O162: -0.006761364728 | P162: 0.003495736167 | Q162: 0.06494043993 | R162: 0.05405529 | S162: 207832.0546 | T162: 0 | U162: 0.06494043993 | V162: 0.05405529 | W162: 207832.0546 | X162: 0.06494043993 | Y162: 0.05405529 | Z162: 207832.0546 | AA162: 207832.0546 | AB162: 1817.734651 | AC162: 0.06494043993 | AD162: 0.05405529 | AF162: 208547.2981 | AG162: 1823.990292 | AH162: -0.003429646337 | AI162: -0.003429646337 | AJ162: 0 | AL162: 157065 | AM162: 16123 | AN162: 34478
A163: 10E | B163: NHS Thanet CCG | E163: 281948.1324 | F163: 145493.915 | G163: 1937.868895 | H163: -0.003727229959 | J163: 283750.3502 | K163: 146794.5625 | L163: 1932.97589 | M163: 0.008939531668 | N163: 299556 | O163: -0.006351420376 | P163: 0.002531332568 | Q163: 0.06347805064 | R163: 0.05405529 | S163: 299845.6502 | T163: 0 | U163: 0.06347805064 | V163: 0.05405529 | W163: 299845.6502 | X163: 0.06347805064 | Y163: 0.05405529 | Z163: 299845.6502 | AA163: 299845.6502 | AB163: 2042.62096 | AC163: 0.06347805064 | AD163: 0.05405529 | AF163: 301176.1119 | AG163: 2051.684386 | AH163: -0.00441755363 | AI163: -0.00441755363 | AJ163: 0 | AL163: 228664 | AM163: 23187 | AN163: 47705
A164: 10J | B164: NHS North Hampshire CCG | E164: 342215.6381 | F164: 226201.3323 | G164: 1512.880736 | H164: 0.00148961368 | J164: 342495.904 | K164: 227382.6875 | L164: 1506.253215 | M164: 0.005222582965 | N164: 362235 | O164: -0.0008183042614 | P164: 0.004400005042 | Q164: 0.0595601812 | R164: 0.05405529 | S164: 362598.0635 | T164: 0 | U164: 0.0595601812 | V164: 0.05405529 | W164: 362598.0635 | X164: 0.0595601812 | Y164: 0.05405529 | Z164: 362598.0635 | AA164: 362598.0635 | AB164: 1594.659943 | AC164: 0.0595601812 | AD164: 0.05405529 | AF164: 363393.3825 | AG164: 1598.157654 | AH164: -0.002188589574 | AI164: -0.002188589574 | AJ164: 0 | AL164: 275440 | AM164: 30106 | AN164: 56689
A165: 10K | B165: NHS Fareham and Gosport CCG | E165: 325137.4178 | F165: 204854.0034 | G165: 1587.16653 | H165: -0.01696721237 | J165: 330519.3539 | K165: 205878.6875 | L165: 1605.408301 | M165: 0.005002021268 | N165: 344931 | O165: -0.01628327069 | P165: -0.01136269869 | Q165: 0.05932769698 | R165: 0.05405529 | S165: 344931 | T165: 0 | U165: 0.05932769698 | V165: 0.05405529 | W165: 344931 | X165: 0.05932769698 | Y165: 0.05405529 | Z165: 344931 | AA165: 344931 | AB165: 1675.408971 | AC165: 0.06087758947 | AD165: 0.05559746848 | AF165: 350640.5834 | AG165: 1703.141727 | AH165: -0.01628329302 | AI165: -0.01628329302 | AJ165: 0 | AL165: 260032 | AM165: 27160 | AN165: 57739
A166: 10L | B166: NHS Isle of Wight CCG | E166: 264569.6527 | F166: 144499.1648 | G166: 1830.942435 | H166: 0.02054949211 | J166: 259117.1974 | K166: 145043.375 | L166: 1786.48075 | M166: 0.003766182357 | N166: 279461 | O166: 0.02104242922 | P166: 0.0248878612 | Q166: 0.05802505444 | R166: 0.05405529 | S166: 279921.3212 | T166: 0 | U166: 0.05802505444 | V166: 0.05405529 | W166: 279921.3212 | X166: 0.05802505444 | Y166: 0.05405529 | Z166: 279921.3212 | AA166: 279921.3212 | AB166: 1929.914559 | AC166: 0.05802505444 | AD166: 0.05405529 | AF166: 274797.1322 | AG166: 1894.585893 | AH166: 0.01864717043 | AI166: 0.01864717043 | AJ166: 0 | AL166: 221579 | AM166: 21016 | AN166: 36866
A167: 10Q | B167: NHS Oxfordshire CCG | E167: 1082637.013 | F167: 745291.4208 | G167: 1452.635818 | H167: -0.01068433869 | J167: 1094907.631 | K167: 747848.3125 | L167: 1464.077157 | M167: 0.003430727372 | N167: 1148069 | O167: -0.01120698919 | P167: -0.00781470994 | Q167: 0.05767146634 | R167: 0.05405529 | S167: 1148069 | T167: 0 | U167: 0.05767146634 | V167: 0.05405529 | W167: 1148069 | X167: 0.05767146634 | Y167: 0.05405529 | Z167: 1148069 | AA167: 1148069 | AB167: 1535.162921 | AC167: 0.06043760386 | AD167: 0.05681197011 | AF167: 1162526.466 | AG167: 1554.495004 | AH167: -0.01243624638 | AI167: -0.01243624638 | AJ167: 0 | AL167: 816037 | AM167: 99682 | AN167: 232350
A168: 10R | B168: NHS Portsmouth CCG | E168: 368939.8091 | F168: 230173.1748 | G168: 1602.879264 | H168: -0.0007792737526 | J168: 367605.9058 | K168: 231311.25 | L168: 1589.22623 | M168: 0.004944430185 | N168: 391285 | O168: 0.00362862301 | P168: 0.008590994669 | Q168: 0.05926699279 | R168: 0.05405529 | S168: 391285 | T168: 0 | U168: 0.05926699279 | V168: 0.05405529 | W168: 391285 | X168: 0.05926699279 | Y168: 0.05405529 | Z168: 391285 | AA168: 391285 | AB168: 1691.595199 | AC168: 0.06056595247 | AD168: 0.05534785866 | AF168: 390092.5518 | AG168: 1686.440032 | AH168: 0.003056834114 | AI168: 0.003056834114 | AJ168: 0 | AL168: 296032 | AM168: 31608 | AN168: 63645
A169: 10V | B169: NHS South Eastern Hampshire CCG | E169: 353134.7599 | F169: 215319.8374 | G169: 1640.047495 | H169: -0.009762411505 | J169: 356019.6312 | K169: 216374.5938 | L169: 1645.385556 | M169: 0.004898556308 | N169: 373735 | O169: -0.00810312405 | P169: -0.003244261352 | Q169: 0.05921863919 | R169: 0.05405529 | S169: 374046.9199 | T169: 0 | U169: 0.05921863919 | V169: =MAX(R169,NewMinGrowthPerHead(P169,$P$2,$L$1,$U$1,$T$2,AG169,G169,T169, $P$1)) -> 0.05405529 | W169: 374046.9199 | X169: 0.05921863919 | Y169: 0.05405529 | Z169: 374046.9199 | AA169: 374046.9199 | AB169: =AA169/K169*1000 -> 1728.700738 | AC169: =AA169/E169-1 -> 0.05921863919 | AD169: =AB169/G169-1 -> 0.05405529 | AF169: 377696.7139 | AG169: =AF169/K169*1000 -> 1745.56868 | AH169: -0.009663293147 | AI169: -0.009663293147 | AJ169: =IF(AF169=N169,1,0) -> 0 | AL169: 282797 | AM169: 29502 | AN169: 61436
A170: 10X | B170: NHS Southampton CCG | E170: 458690.7664 | F170: 286630.2473 | G170: 1600.287376 | H170: -0.008702385549 | J170: 462054.221 | K170: 288342.1875 | L170: 1602.45098 | M170: 0.005972643372 | N170: 486451 | O170: -0.007279350577 | P170: -0.00135018417 | Q170: 0.06035078634 | R170: 0.05405529 | S170: 486451 | T170: 0 | U170: 0.06035078634 | V170: 0.05405529 | W170: 486451 | X170: 0.06035078634 | Y170: 0.05405529 | Z170: 486451 | AA170: 486451 | AB170: 1687.061488 | AC170: 0.06052058522 | AD170: 0.05422408075 | AF170: 490401.0566 | AG170: 1700.760686 | AH170: -0.008054747392 | AI170: -0.008054747392 | AJ170: 0 | AL170: 356866 | AM170: 38095 | AN170: 91490
A171: 11A | B171: NHS West Hampshire CCG | E171: 911213.8693 | F171: 563241.3382 | G171: 1617.803608 | H171: -0.006272305078 | J171: 918632.5464 | K171: 566415.25 | L171: 1621.835829 | M171: 0.005635083203 | N171: 965371 | O171: -0.008075783072 | P171: -0.002486207578 | Q171: 0.05999497926 | R171: 0.05405529 | S171: 965882.1265 | T171: 0 | U171: 0.05999497926 | V171: 0.05405529 | W171: 965882.1265 | X171: 0.05999497926 | Y171: 0.05405529 | Z171: 965882.1265 | AA171: 965882.1265 | AB171: 1705.254451 | AC171: 0.05999497926 | AD171: 0.05405529 | AF171: 974841.1087 | AG171: 1721.071438 | AH171: -0.009190197427 | AI171: -0.009190197427 | AJ171: 0 | AL171: 719289 | AM171: 75106 | AN171: 170976
A172: 11E | B172: NHS Bath and North East Somerset CCG | E172: 308418.4191 | F172: 207664.9996 | G172: 1485.172849 | H172: -0.01001206007 | J172: 311079.9049 | K172: 209078.4688 | L172: 1487.861982 | M172: 0.006806487183 | N172: 326957 | O172: -0.008555634086 | P172: -0.001807380717 | Q172: 0.06122970382 | R172: 0.05405529 | S172: 327302.7875 | T172: 0 | U172: 0.06122970382 | V172: 0.05405529 | W172: 327302.7875 | X172: 0.06122970382 | Y172: 0.05405529 | Z172: 327302.7875 | AA172: 327302.7875 | AB172: 1565.454298 | AC172: 0.06122970382 | AD172: 0.05405529 | AF172: 330106.6203 | AG172: 1578.864731 | AH172: -0.008493718638 | AI172: -0.008493718638 | AJ172: 0 | AL172: 249453 | AM172: 27029 | AN172: 50475
A173: 11J | B173: NHS Dorset CCG | E173: 1353829.819 | F173: 801319.5815 | G173: 1689.500481 | H173: -0.00473046501 | J173: 1358454.934 | K173: 804863.5625 | L173: 1687.807719 | M173: 0.004422681086 | N173: 1431503 | O173: -0.003404687994 | P173: 0.001002935243 | Q173: 0.05871704039 | R173: 0.05405529 | S173: 1433322.699 | T173: 0 | U173: 0.05871704039 | V173: 0.05405529 | W173: 1433322.699 | X173: 0.05871704039 | Y173: 0.05405529 | Z173: 1433322.699 | AA173: 1433322.699 | AB173: 1780.82692 | AC173: 0.05871704039 | AD173: 0.05405529 | AF173: 1441067.236 | AG173: 1790.449094 | AH173: -0.005374167782 | AI173: -0.005374167782 | AJ173: 0 | AL173: 1109443 | AM173: 112198 | AN173: 209862
A174: 11M | B174: NHS Gloucestershire CCG | E174: 1001345.946 | F174: 647166.6637 | G174: 1547.276771 | H174: -0.01829291141 | J174: 1023849.575 | K174: 651781.125 | L174: 1570.848765 | M174: 0.007130251925 | N174: 1062049 | O174: -0.02197942963 | P174: -0.01500589657 | Q174: 0.06157096976 | R174: 0.05405529 | S174: 1062999.787 | T174: 0 | U174: 0.06157096976 | V174: 0.05405529 | W174: 1062999.787 | X174: 0.06157096976 | Y174: 0.05405529 | Z174: 1062999.787 | AA174: 1062999.787 | AB174: 1630.915266 | AC174: 0.06157096976 | AD174: 0.05405529 | AF174: 1086450.365 | AG174: 1666.894488 | AH174: -0.02158458306 | AI174: -0.02158458306 | AJ174: 0 | AL174: 804189 | AM174: 86566 | AN174: 171294
A175: 11N | B175: NHS Kernow CCG | E175: 994379.6804 | F175: 575386.8376 | G175: 1728.193305 | H175: -0.01187453691 | J175: 1011718.396 | K175: 579195.75 | L175: 1746.764192 | M175: 0.006619742053 | N175: 1059532 | O175: -0.01713788718 | P175: -0.01063159352 | Q175: 0.06103286413 | R175: 0.05405529 | S175: 1059532 | T175: 0 | U175: 0.06103286413 | V175: 0.05405529 | W175: 1059532 | X175: 0.06103286413 | Y175: 0.05405529 | Z175: 1059532 | AA175: 1059532 | AB175: 1829.315909 | AC175: 0.06552056615 | AD175: 0.05851347995 | AF175: 1073235.612 | AG175: 1852.975633 | AH175: -0.01276850257 | AI175: -0.01276850257 | AJ175: 0 | AL175: 815379 | AM175: 82276 | AN175: 161877
A176: 11X | B176: NHS Somerset CCG | E176: 939271.6105 | F176: 575240.8369 | G176: 1632.831938 | H176: -0.03255710319 | J176: 976106.4957 | K176: 578764.8125 | L176: 1686.533933 | M176: 0.006126087301 | N176: 995607 | O176: -0.03773654343 | P176: -0.03184163349 | Q176: 0.06051252473 | R176: 0.05405529 | S176: 996109.3071 | T176: 0.2747643971 | U176: 0.06252254224 | V176: 0.05605306895 | W176: 997997.2595 | X176: 0.06252254224 | Y176: 0.05605306895 | Z176: 997997.2595 | AA176: 997997.2595 | AB176: 1724.357179 | AC176: 0.06252254224 | AD176: 0.05605306895 | AF176: 1035574.604 | AG176: 1789.283975 | AH176: -0.03628646824 | AI176: -0.03628646824 | AJ176: 0 | AL176: 770604 | AM176: 77591 | AN176: 147412
A177: 12D | B177: NHS Swindon CCG | E177: 358975.4713 | F177: 237659.9145 | G177: 1510.45864 | H177: -0.01086405898 | J177: 363229.2778 | K177: 239149.6562 | L177: 1518.836713 | M177: 0.006268376171 | N177: 381067 | O177: -0.01171107831 | P177: -0.005516111582 | Q177: 0.06066250506 | R177: 0.05405529 | S177: 381067 | T177: 0 | U177: 0.06066250506 | V177: 0.05405529 | W177: 381067 | X177: 0.06066250506 | Y177: 0.05405529 | Z177: 381067 | AA177: 381067 | AB177: 1593.424829 | AC177: 0.06154049646 | AD177: 0.0549278121 | AF177: 385482.0083 | AG177: 1611.886107 | AH177: -0.01145321503 | AI177: -0.01145321503 | AJ177: 0 | AL177: 290423 | AM177: 30259 | AN177: 60385
A178: 12F | B178: NHS Wirral CCG | E178: 659709.305 | F178: 336408.4187 | G178: 1961.036848 | H178: 0.01028760329 | J178: 650952.9425 | K178: 336757.8125 | L178: 1933.00027 | M178: 0.001038600045 | N178: 695243 | O178: 0.01345160595 | P178: 0.01450417683 | Q178: 0.05515003187 | R178: 0.05405529 | S178: 696092.2942 | T178: 0 | U178: 0.05515003187 | V178: 0.05405529 | W178: 696092.2942 | X178: 0.05515003187 | Y178: 0.05405529 | Z178: 696092.2942 | AA178: 696092.2942 | AB178: 2067.041263 | AC178: 0.05515003187 | AD178: 0.05405529 | AF178: 690559.0737 | AG178: 2050.610403 | AH178: 0.008012667833 | AI178: 0.008012667833 | AJ178: 0 | AL178: 540853 | AM178: 50029 | AN178: 104361
A179: 13T | B179: NHS Newcastle Gateshead CCG | E179: 944716.4277 | F179: 525567.0029 | G179: 1797.518532 | H179: 0.01421592923 | J179: 930676.6215 | K179: 527745.75 | L179: 1763.494299 | M179: 0.004145517238 | N179: 999172 | O179: 0.0150855902 | P179: 0.01929364501 | Q179: 0.05842489437 | R179: 0.05405529 | S179: 999911.3852 | T179: 0 | U179: 0.05842489437 | V179: 0.05405529 | W179: 999911.3852 | X179: 0.05842489437 | Y179: 0.05405529 | Z179: 999911.3852 | AA179: 999911.3852 | AB179: 1894.683918 | AC179: 0.05842489437 | AD179: 0.05405529 | AF179: 987605.3704 | AG179: 1871.365843 | AH179: 0.01246045751 | AI179: 0.01246045751 | AJ179: 0 | AL179: 769411 | AM179: 72531 | AN179: 157230
A180: 14L | B180: NHS Manchester CCG | E180: 1143270.653 | F180: 641324.168 | G180: 1782.672024 | H180: -0.002782986109 | J180: 1147697.473 | K180: 647873.9375 | L180: 1771.482702 | M180: 0.01021288431 | N180: 1217698 | O180: -0.003857132127 | P180: 0.006316359736 | Q180: 0.06482023473 | R180: 0.05405529 | S180: 1217698 | T180: 0 | U180: 0.06482023473 | V180: 0.05405529 | W180: 1217698 | X180: 0.06482023473 | Y180: 0.05405529 | Z180: 1217698 | AA180: 1217698 | AB180: 1879.529226 | AC180: 0.06510037429 | AD180: 0.05433259745 | AF180: 1218943.753 | AG180: 1881.452058 | AH180: -0.001021993867 | AI180: -0.001021993867 | AJ180: 0 | AL180: 866092 | AM180: 96940 | AN180: 254666
A181: 14Y | B181: NHS Buckinghamshire CCG | E181: 828448.007 | F181: 559494.6709 | G181: 1480.707592 | H181: -0.007641477609 | J181: 834663.8154 | K181: 563792.625 | L181: 1480.444721 | M181: 0.007681849936 | N181: 879581 | O181: -0.007447080199 | P181: 0.0001775623838 | Q181: 0.06215238456 | R181: 0.05405529 | S181: 879938.0261 | T181: 0 | U181: 0.06215238456 | V181: 0.05405529 | W181: 879938.0261 | X181: 0.06215238456 | Y181: 0.05405529 | Z181: 879938.0261 | AA181: 879938.0261 | AB181: 1560.747671 | AC181: 0.06215238456 | AD181: 0.05405529 | AF181: 885827.5401 | AG181: 1571.193912 | AH181: -0.006648601121 | AI181: -0.006648601121 | AJ181: 0 | AL181: 647555 | AM181: 72854 | AN181: 159172
A182: 15A | B182: NHS Berkshire West CCG | E182: 761790.0192 | F182: 544245.2573 | G182: 1399.71825 | H182: 0.005585740012 | J182: 758253.0009 | K182: 547396.375 | L182: 1385.199164 | M182: 0.005789885412 | N182: 806827 | O182: 0.004664694067 | P182: 0.01048158752 | Q182: 0.06015814935 | R182: 0.05405529 | S182: 807617.897 | T182: 0 | U182: 0.06015814935 | V182: 0.05405529 | W182: 807617.897 | X182: 0.06015814935 | Y182: 0.05405529 | Z182: 807617.897 | AA182: 807617.897 | AB182: 1475.380426 | AC182: 0.06015814935 | AD182: 0.05405529 | AF182: 804629.895 | AG182: 1469.921855 | AH182: 0.00371351104 | AI182: 0.00371351104 | AJ182: 0 | AL182: 609929 | AM182: 70782 | AN182: 126116
A183: 15C | B183: NHS Bristol, North Somerset and South Gloucestershire CCG | E183: 1599233.928 | F183: 1008377.16 | G183: 1585.948186 | H183: -0.009564208986 | J183: 1616545.626 | K183: 1017741.5 | L183: 1588.365637 | M183: 0.009286545214 | N183: 1701117 | O183: -0.01070906885 | P183: -0.001521973892 | Q183: 0.06384382211 | R183: 0.05405529 | S183: 1701335.134 | T183: 0 | U183: 0.06384382211 | V183: 0.05405529 | W183: 1701335.134 | X183: 0.06384382211 | Y183: 0.05405529 | Z183: 1701335.134 | AA183: 1701335.134 | AB183: 1671.677075 | AC183: 0.06384382211 | AD183: 0.05405529 | AF183: 1716266.807 | AG183: 1686.348456 | AH183: -0.008700088558 | AI183: -0.008700088558 | AJ183: 0 | AL183: 1240270 | AM183: 131417 | AN183: 329430
A184: 15D | B184: NHS East Berkshire CCG | E184: 685520.4936 | F184: 460081.7478 | G184: 1489.997151 | H184: 0.02548518081 | J184: 667058.5556 | K184: 462630.3438 | L184: 1441.882411 | M184: 0.005539441544 | N184: 725973 | O184: 0.02767663769 | P184: 0.03336939235 | Q184: 0.05989416766 | R184: 0.05405529 | S184: 726579.173 | T184: 0 | U184: 0.05989416766 | V184: 0.05405529 | W184: 726579.173 | X184: 0.05989416766 | Y184: 0.05405529 | Z184: 726579.173 | AA184: 726579.173 | AB184: 1570.539379 | AC184: 0.05989416766 | AD184: 0.05405529 | AF184: 707973.7388 | AG184: 1530.322748 | AH184: 0.0262798366 | AI184: 0.0262798366 | AJ184: 0 | AL184: 547368 | AM184: 59916 | AN184: 118689
A185: 15E | B185: NHS Birmingham and Solihull CCG | E185: 2217977.092 | F185: 1310470.411 | G185: 1692.504519 | H185: -0.00731618707 | J185: 2237367.082 | K185: 1320167.625 | L185: 1694.759847 | M185: 0.00739979646 | N185: 2355010 | O185: -0.008666432114 | P185: -0.001330765488 | Q185: 0.0618550846 | R185: 0.05405529 | S185: 2355170.253 | T185: 0 | U185: 0.0618550846 | V185: 0.05405529 | W185: 2355170.253 | X185: 0.0618550846 | Y185: 0.05405529 | Z185: 2355170.253 | AA185: 2355170.253 | AB185: 1783.993342 | AC185: 0.0618550846 | AD185: 0.05405529 | AF185: 2375538.521 | AG185: 1799.421888 | AH185: -0.008574168533 | AI185: -0.008574168533 | AJ185: 0 | AL185: 1706681 | AM185: 187778 | AN185: 460551
A186: 15F | B186: NHS Leeds CCG | E186: 1440824.036 | F186: 879777.0082 | G186: 1637.715038 | H186: -0.0007973142168 | J186: 1439826.454 | K186: 884667.0625 | L186: 1627.534827 | M186: 0.005558288373 | N186: 1526673 | O186: 0.000692848513 | P186: 0.006254987938 | Q186: 0.05991403326 | R186: 0.05405529 | S186: 1527149.615 | T186: 0 | U186: 0.05991403326 | V186: 0.05405529 | W186: 1527149.615 | X186: 0.05991403326 | Y186: 0.05405529 | Z186: 1527149.615 | AA186: 1527149.615 | AB186: 1726.242199 | AC186: 0.05991403326 | AD186: 0.05405529 | AF186: 1528153.353 | AG186: 1727.376793 | AH186: -0.0006568308567 | AI186: -0.0006568308567 | AJ186: 0 | AL186: 1145748 | AM186: 119827 | AN186: 261098
A187: 15M | B187: NHS Derby and Derbyshire CCG | E187: 1760708.966 | F187: 1049689.499 | G187: 1677.361703 | H187: 0.02224891895 | J187: 1725285.495 | K187: 1053807.5 | L187: 1637.192272 | M187: 0.003923065569 | N187: 1860621 | O187: 0.02053194752 | P187: 0.02453556126 | Q187: 0.05819041802 | R187: 0.05405529 | S187: 1863165.357 | T187: 0 | U187: 0.05819041802 | V187: 0.05405529 | W187: 1863165.357 | X187: 0.05819041802 | Y187: 0.05405529 | Z187: 1863165.357 | AA187: 1863165.357 | AB187: 1768.031977 | AC187: 0.05819041802 | AD187: 0.05405529 | AF187: 1830271.142 | AG187: 1736.817342 | AH187: 0.01797231838 | AI187: 0.01797231838 | AJ187: 0 | AL187: 1450372 | AM187: 144572 | AN187: 265677
A188: 99A | B188: NHS Liverpool CCG | E188: 1062439.365 | F188: 532851.0004 | G188: 1993.877021 | H188: 0.01370510727 | J188: 1047421.446 | K188: 536622.875 | L188: 1951.876251 | M188: 0.007078666703 | N188: 1128066 | O188: 0.0143379913 | P188: 0.02151815186 | Q188: 0.06151659608 | R188: 0.05405529 | S188: 1128066 | T188: 0 | U188: 0.06151659608 | V188: 0.05405529 | W188: 1128066 | X188: 0.06151659608 | Y188: 0.05405529 | Z188: 1128066 | AA188: 1128066 | AB188: 2102.15787 | AC188: 0.06176976963 | AD188: 0.05430668401 | AF188: 1111819.496 | AG188: 2071.882412 | AH188: 0.01461253713 | AI188: 0.01461253713 | AJ188: 0 | AL188: 846846 | AM188: 80578 | AN188: 200642
A189: 99C | B189: NHS North Tyneside CCG | E189: 409319.1148 | F189: 219095.5853 | G189: 1868.221645 | H189: 0.02080827165 | J189: 400870.7279 | K189: 219720.4375 | L189: 1824.458082 | M189: 0.002851961494 | N189: 432220 | O189: 0.0210750907 | P189: 0.02398715754 | Q189: 0.0570614151 | R189: 0.05405529 | S189: 432675.4428 | T189: 0 | U189: 0.0570614151 | V189: 0.05405529 | W189: 432675.4428 | X189: 0.0570614151 | Y189: 0.05405529 | Z189: 432675.4428 | AA189: 432675.4428 | AB189: 1969.208908 | AC189: 0.0570614151 | AD189: 0.05405529 | AF189: 425354.5882 | AG189: 1935.889957 | AH189: 0.01721118036 | AI189: 0.01721118036 | AJ189: 0 | AL189: 338607 | AM189: 29352 | AN189: 64261
A190: 99D | B190: NHS South Lincolnshire CCG | E190: 265165.6373 | F190: 167158.003 | G190: 1586.317332 | H190: -0.02395982402 | J190: 272113.7138 | K190: 168384.8125 | L190: 1616.022905 | M190: 0.007339220901 | N190: 281135 | O190: -0.0255337242 | P190: -0.01838190094 | Q190: 0.06179123461 | R190: 0.05405529 | S190: 281550.5494 | T190: 0 | U190: 0.06179123461 | V190: 0.05405529 | W190: 281550.5494 | X190: 0.06179123461 | Y190: 0.05405529 | Z190: 281550.5494 | AA190: 281550.5494 | AB190: 1672.066175 | AC190: 0.06179123461 | AD190: 0.05405529 | AF190: 288642.9673 | AG190: 1714.18647 | AH190: -0.02457159451 | AI190: -0.02457159451 | AJ190: 0 | AL190: 218002 | AM190: 25048 | AN190: 38085
A191: 99E | B191: NHS Basildon and Brentwood CCG | E191: 458940.6502 | F191: 279038.8335 | G191: 1644.719641 | H191: 0.0005501989927 | J191: 457062.9491 | K191: 281462.125 | L191: 1623.887936 | M191: 0.008684423862 | N191: 487859 | O191: 0.004108189188 | P191: 0.01282829031 | Q191: 0.06320915291 | R191: 0.05405529 | S191: 487949.8999 | T191: 0 | U191: 0.06320915291 | V191: 0.05405529 | W191: 487949.8999 | X191: 0.06320915291 | Y191: 0.05405529 | Z191: 487949.8999 | AA191: 487949.8999 | AB191: 1733.625439 | AC191: 0.06320915291 | AD191: 0.05405529 | AF191: 485152.2544 | AG191: 1723.685751 | AH191: 0.005766531056 | AI191: 0.005766531056 | AJ191: 0 | AL191: 368996 | AM191: 36267 | AN191: 82596
A192: 99F | B192: NHS Castle Point and Rochford CCG | E192: 302616.5518 | F192: 185222.1655 | G192: 1633.803119 | H192: 0.01224767798 | J192: 298521.197 | K192: 186162.3125 | L192: 1603.553335 | M192: 0.00507578005 | N192: 320240 | O192: 0.01371880745 | P192: 0.01886422115 | Q192: 0.05940544281 | R192: 0.05405529 | S192: 320593.6221 | T192: 0 | U192: 0.05940544281 | V192: 0.05405529 | W192: 320593.6221 | X192: 0.05940544281 | Y192: 0.05405529 | Z192: 320593.6221 | AA192: 320593.6221 | AB192: 1722.118821 | AC192: 0.05940544281 | AD192: 0.05405529 | AF192: 316698.3529 | AG192: 1701.194773 | AH192: 0.01229961931 | AI192: 0.01229961931 | AJ192: 0 | AL192: 246130 | AM192: 24999 | AN192: 49111
A193: 99G | B193: NHS Southend CCG | E193: 319025.2648 | F193: 188323.4146 | G193: 1694.028677 | H193: -0.01685348795 | J193: 324125.2098 | K193: 189659.2812 | L193: 1708.986809 | M193: 0.007093470777 | N193: 338290 | O193: -0.01573449046 | P193: -0.008752631836 | Q193: 0.0615322004 | R193: 0.05405529 | S193: 338655.5914 | T193: 0 | U193: 0.0615322004 | V193: 0.05405529 | W193: 338655.5914 | X193: 0.0615322004 | Y193: 0.05405529 | Z193: 338655.5914 | AA193: 338655.5914 | AB193: 1785.599888 | AC193: 0.0615322004 | AD193: 0.05405529 | AF193: 343904.6877 | AG193: 1813.276342 | AH193: -0.01526323005 | AI193: -0.01526323005 | AJ193: 0 | AL193: 259718 | AM193: 26299 | AN193: 52273
A194: 99H | B194: NHS Surrey Downs CCG | E194: 481851.991 | F194: 307646.083 | G194: 1566.25427 | H194: -0.001572248673 | J194: 480942.657 | K194: 309493.5 | L194: 1553.966907 | M194: 0.006005007358 | N194: 510600 | O194: 0.001890732628 | P194: 0.007907093849 | Q194: 0.06038489977 | R194: 0.05405529 | S194: 510948.5752 | T194: 0 | U194: 0.06038489977 | V194: 0.05405529 | W194: 510948.5752 | X194: 0.06038489977 | Y194: 0.05405529 | Z194: 510948.5752 | AA194: 510948.5752 | AB194: 1650.918598 | AC194: 0.06038489977 | AD194: 0.05405529 | AF194: 510402.4333 | AG194: 1649.153967 | AH194: 0.001070022221 | AI194: 0.001070022221 | AJ194: 0 | AL194: 389888 | AM194: 38683 | AN194: 82029
A195: 99J | B195: NHS West Kent CCG | E195: 770044.5549 | F195: 492969.2539 | G195: 1562.053919 | H195: -0.004289925101 | J195: 772286.1347 | K195: 496486.1875 | L195: 1555.503767 | M195: 0.007134184467 | N195: 817054 | O195: -0.002902524912 | P195: 0.004210952406 | Q195: 0.06157511488 | R195: 0.05405529 | S195: 817460.1369 | T195: 0 | U195: 0.06157511488 | V195: 0.05405529 | W195: 817460.1369 | X195: 0.06157511488 | Y195: 0.05405529 | Z195: 817460.1369 | AA195: 817460.1369 | AB195: 1646.491196 | AC195: 0.06157511488 | AD195: 0.05405529 | AF195: 819879.4436 | AG195: 1651.364055 | AH195: -0.002950807942 | AI195: -0.002950807942 | AJ195: 0 | AL195: 607301 | AM195: 64123 | AN195: 145630
A196: 99K | B196: NHS High Weald Lewes Havens CCG | E196: 277947.3104 | F196: 170506.7529 | G196: 1630.12494 | H196: 0.008844714921 | J196: 276053.9311 | K196: 171932.0312 | L196: 1605.599196 | M196: 0.008359072564 | N196: 295209 | O196: 0.006858729975 | P196: 0.01527513516 | Q196: 0.06286621466 | R196: 0.05405529 | S196: 295420.8057 | T196: 0 | U196: 0.06286621466 | V196: 0.05405529 | W196: 295420.8057 | X196: 0.06286621466 | Y196: 0.05405529 | Z196: 295420.8057 | AA196: 295420.8057 | AB196: 1718.241817 | AC196: 0.06286621466 | AD196: 0.05405529 | AF196: 292948.1334 | AG196: 1703.860132 | AH196: 0.008440648825 | AI196: 0.008440648825 | AJ196: 0 | AL196: 222009 | AM196: 23246 | AN196: 49954
A197: 99M | B197: NHS North East Hampshire and Farnham CCG | E197: 351192.772 | F197: 227496.5793 | G197: 1543.727704 | H197: -0.009663382295 | J197: 353570.4596 | K197: 227991 | L197: 1550.808846 | M197: 0.002173310279 | N197: 370520 | O197: -0.006724791577 | P197: -0.004566096356 | Q197: 0.0563460792 | R197: 0.05405529 | S197: 370981.1077 | T197: 0 | U197: 0.0563460792 | V197: 0.05405529 | W197: 370981.1077 | X197: 0.0563460792 | Y197: 0.05405529 | Z197: 370981.1077 | AA197: 370981.1077 | AB197: 1627.174352 | AC197: 0.0563460792 | AD197: 0.05405529 | AF197: 375151.9446 | AG197: 1645.468218 | AH197: -0.01111772685 | AI197: -0.01111772685 | AJ197: 0 | AL197: 285982 | AM197: 30023 | AN197: 54515
A198: 99N | B198: NHS Wiltshire CCG | E198: 783457.8144 | F198: 490466.5025 | G198: 1597.372727 | H198: -0.02095084224 | J198: 803321.3718 | K198: 495483.4688 | L198: 1621.287939 | M198: 0.01022896822 | N198: 833516 | O198: -0.02472678809 | P198: -0.0147507494 | Q198: 0.06483718807 | R198: 0.05405529 | S198: 834255.0161 | T198: 0 | U198: 0.06483718807 | V198: 0.05405529 | W198: 834255.0161 | X198: 0.06483718807 | Y198: 0.05405529 | Z198: 834255.0161 | AA198: 834255.0161 | AB198: 1683.719173 | AC198: 0.06483718807 | AD198: 0.05405529 | AF198: 852306.1578 | AG198: 1720.150543 | AH198: -0.02117917552 | AI198: -0.02117917552 | AJ198: 0 | AL198: 637551 | AM198: 66317 | AN198: 129648
A199: 99P | B199: NHS Northern, Eastern and Western Devon CCG | E199: 1560366.17 | F199: 931441.8411 | G199: 1675.215887 | H199: -0.005992605718 | J199: 1572431.387 | K199: 936391.5 | L199: 1679.245686 | M199: 0.005313975233 | N199: 1655849 | O199: -0.007672968703 | P199: -0.002399767436 | Q199: 0.05965651371 | R199: 0.05405529 | S199: 1655849 | T199: 0 | U199: 0.05965651371 | V199: 0.05405529 | W199: 1655849 | X199: 0.05965651371 | Y199: 0.05405529 | Z199: 1655849 | AA199: 1655849 | AB199: 1768.329806 | AC199: 0.06119257892 | AD199: 0.05558323575 | AF199: 1668675.263 | AG199: 1782.02735 | AH199: -0.007686494376 | AI199: -0.007686494376 | AJ199: 0 | AL199: 1257424 | AM199: 125723 | AN199: 272702
A200: 99Q | B200: NHS South Devon and Torbay CCG | E200: 529965.6881 | F200: 293831.3333 | G200: 1803.639123 | H200: 0.01449116453 | J200: 523030.304 | K200: 295595.9375 | L200: 1769.409649 | M200: 0.0060055006 | N200: 562528 | O200: 0.01326000423 | P200: 0.01934513779 | Q200: 0.06038541968 | R200: 0.05405529 | S200: 562528 | T200: 0 | U200: 0.06038541968 | V200: 0.05405529 | W200: 562528 | X200: 0.06038541968 | Y200: 0.05405529 | Z200: 562528 | AA200: 562528 | AB200: 1903.030213 | AC200: 0.06144230212 | AD200: 0.05510586323 | AF200: 554962.284 | AG200: 1877.435423 | AH200: 0.0136328471 | AI200: 0.0136328471 | AJ200: 0 | AL200: 433048 | AM200: 39594 | AN200: 89886

Sheet Total 2020-21
B1: Year index | E1: 2019-20 | J1: 2020-21 | L1: 0.04671861286 | P1: -0.04485916495 | Q1: 0.05 | R1: 0.03886484 | T1: -0.04485916495 | U1: 0.03886484 | X1: 0.01942659196 | AI1: -0.04637882187
P2: -0.046175 | Q2: 0.1 | R2: 0.02549944838 | S2: 1 | T2: 0 | U2: 0.0492 | Z2: 1 | AI2: 0.1358859687
U3: 0.01033516 | AI3: 0
L4: 1823.161025 | AA4: 0.08495828509 | AI4: 26
E5: 104227035.7 | F5: 59447416.9 | G5: 1753.264333 | J5: 104163643.4 | K5: 59802739.78 | L5: 1741.787145 | M5: 0.005977095412 | AA5: 109030024.2 | AF5: 109030024.3 | AH5: -7.792191337e-10
E6: Baseline | J6: Opening Target | O6: Distance from Target | Q6: Minimum per capita growth | T6: Per capita pace of change | X6: Minimum programme | AF6: Closing target | AL6: from Minimum Allocation worksheets
A7: CCG | B7: Clinical Commissioning Group (192) | E7: Baseline £000 | F7: Estimated Population | G7: Allocation per head £ | H7: Closing DfT | J7: Opening Target £000 | K7: Estimated Population | L7: Opening Target per head £ | M7: population growth rate % | N7: Sum of minimum allocations £000 | O7: DFT (total allocation) | P7: DFT (per capita) | Q7: Apply minimum per capita growth [programme] | R7: Apply minimum per capita growth [per capita] | S7: Allocation after min per capita growth £000 | T7: First Transition position | U7: Growth on per capita parameters [programme] | V7: Growth on per capita parameters [per capita] | W7: Allocation after per capita p-o-c | X7: Apply minimum programme growth [programme] | Y7: Apply minimum programme growth [per capita] | Z7: Allocation after minimum programme growth | AA7: Allocation £000 | AB7: Minimum allocation per head £ | AC7: Growth after rounding | AD7: Per capita growth after rounding | AF7: Target allocations from the fair shares formula £000 | AG7: Target per head | AH7: DFT (total allocation) | AI7: DFT (per capita) | AJ7: Does minimum apply? | AL7: Minimum Allocation CCG | AM7: Minimum Allocation PC Med | AN7: Minimum Allocation Spec Services
A9: 00C | B9: NHS Darlington CCG | E9: 203104.4628 | F9: 108392.1875 | G9: =E9/F9*1000 -> 1873.792452 | H9: 0.007444563493 | J9: 201658.1617 | K9: 108449.6406 | L9: =J9/K9*1000 -> 1859.463624 | M9: =K9/F9-1 -> 0.0005300485794 | N9: =SUM(AL9:AN9) -> 210777 | O9: =E9/J9-1 -> 0.007172043325 | P9: =G9/L9-1 -> 0.007705893435 | Q9: =(1+M9)*(1+R9)-1 -> 0.03941548883 | R9: =MinGrowthPerHead(P9,0,1,$Q$1,$Q$2,$R$1,$R$2) -> 0.03886484 | S9: =MAX((1+IF($S$2=1,Q9,0))*$E9,$N9) -> 211109.9245 | T9: =MinMaxRamp(P9,0,1,$P$2,$T$2) -> 0 | U9: =(1+M9)*(1+V9)-1 -> 0.03941548883 | V9: =MAX(R9,NewMinGrowthPerHead(P9,$P$2,$L$1,$U$1,$T$2,AG9,G9,T9, $P$1)) -> 0.03886484 | W9: =MAX((1+IF($S$2=1,U9,0))*$E9,$N9) -> 211109.9245 | X9: =MAX(U9,$X$1) -> 0.03941548883 | Y9: =(1+X9)/(1+M9) - 1 -> 0.03886484 | Z9: =MAX((1+IF($Z$2=1,X9,0))*$E9,$N9) -> 211109.9245 | AA9: =Z9 -> 211109.9245 | AB9: =AA9/K9*1000 -> 1946.617096 | AC9: =AA9/E9-1 -> 0.03941548883 | AD9: =AB9/G9-1 -> 0.03886484 | AF9: 210987.2011 | AG9: =AF9/K9*1000 -> 1945.485479 | AH9: =AA9/AF9-1 -> 0.00058166284 | AI9: =AB9/AG9-1 -> 0.00058166284 | AJ9: =IF(AF9=N9,1,0) -> 0 | AL9: 163660 | AM9: 15918 | AN9: 31199
A10: 00D | B10: NHS Durham Dales, Easington and Sedgefield CCG | E10: 604566.3636 | F10: 293122.5 | G10: =E10/F10*1000 -> 2062.504119 | H10: 0.02478857693 | J10: 590538.1498 | K10: 294087.8125 | L10: =J10/K10*1000 -> 2008.033399 | M10: =K10/F10-1 -> 0.003293205059 | N10: =SUM(AL10:AN10) -> 628580 | O10: =E10/J10-1 -> 0.0237549663 | P10: =G10/L10-1 -> 0.02712640133 | Q10: =(1+M10)*(1+R10)-1 -> 0.04228603495 | R10: =MinGrowthPerHead(P10,0,1,$Q$1,$Q$2,$R$1,$R$2) -> 0.03886484 | S10: =MAX((1+IF($S$2=1,Q10,0))*$E10,$N10) -> 630131.078 | T10: =MinMaxRamp(P10,0,1,$P$2,$T$2) -> 0 | U10: =(1+M10)*(1+V10)-1 -> 0.04228603495 | V10: 0.03886484 | W10: =MAX((1+IF($S$2=1,U10,0))*$E10,$N10) -> 630131.078 | X10: =MAX(U10,$X$1) -> 0.04228603495 | Y10: =(1+X10)/(1+M10) - 1 -> 0.03886484 | Z10: =MAX((1+IF($Z$2=1,X10,0))*$E10,$N10) -> 630131.078 | AA10: 630131.078 | AB10: 2142.663012 | AC10: 0.04228603495 | AD10: 0.03886484 | AF10: 617649.6347 | AG10: 2100.221799 | AH10: =AA10/AF10-1 -> 0.02020796687 | AI10: 0.02020796687 | AJ10: 0 | AL10: 501058 | AM10: 48028 | AN10: 79494
A11: 00J | B11: NHS North Durham CCG | E11: 474093.2959 | F11: 260056.4375 | G11: 1823.040031 | H11: 0.02428694065 | J11: 463404.2818 | K11: 260704.7812 | L11: 1777.505881 | M11: 0.00249308864 | N11: 492854 | O11: 0.02306628247 | P11: 0.0256168774 | Q11: 0.04145482213 | R11: 0.03886484 | S11: 493746.7491 | T11: 0 | U11: 0.04145482213 | V11: 0.03886484 | W11: 493746.7491 | X11: 0.04145482213 | Y11: 0.03886484 | Z11: 493746.7491 | AA11: 493746.7491 | AB11: 1893.89219 | AC11: 0.04145482213 | AD11: 0.03886484 | AF11: 484834.611 | AG11: 1859.7074 | AH11: 0.01838181093 | AI11: 0.01838181093 | AJ11: 0 | AL11: 386223 | AM11: 37845 | AN11: 68786
A12: 00K | B12: NHS Hartlepool and Stockton-on-Tees CCG | E12: 556132.1785 | F12: 298132.2188 | G12: 1865.387716 | H12: -0.03097583197 | J12: 573183.9036 | K12: 298891.875 | L12: 1917.696503 | M12: 0.002548051509 | N12: 580150 | O12: -0.02974913454 | P12: -0.02727688536 | Q12: 0.04151192112 | R12: 0.03886484 | S12: 580150 | T12: 0.5907284323 | U12: 0.04530919121 | V12: 0.04265245904 | W12: 581330.0777 | X12: 0.04530919121 | Y12: 0.04265245904 | Z12: 581330.0777 | AA12: 581330.0777 | AB12: 1944.951089 | AC12: 0.04530919121 | AD12: 0.04265245904 | AF12: 599661.6883 | AG12: 2006.283002 | AH12: -0.03056992126 | AI12: -0.03056992126 | AJ12: 0 | AL12: 451606 | AM12: 44851 | AN12: 83693
A13: 00L | B13: NHS Northumberland CCG | E13: 629128.3388 | F13: 325474.5938 | G13: 1932.95683 | H13: -0.005595652035 | J13: 633026.6051 | K13: 325564.0625 | L13: 1944.399515 | M13: 0.0002748870472 | N13: 652711 | O13: -0.006158139702 | P13: -0.005884945447 | Q13: 0.03915041049 | R13: 0.03886484 | S13: 653758.9715 | T13: 0.1274487374 | U13: 0.03996780801 | V13: 0.0396820129 | W13: 654273.2195 | X13: 0.03996780801 | Y13: 0.0396820129 | Z13: 654273.2195 | AA13: 654273.2195 | AB13: 2009.660447 | AC13: 0.03996780801 | AD13: 0.0396820129 | AF13: 662302.894 | AG13: 2034.324332 | AH13: -0.01212387045 | AI13: -0.01212387045 | AJ13: 0 | AL13: 507925 | AM13: 48647 | AN13: 96139
A14: 00M | B14: NHS South Tees CCG | E14: 597497.9686 | F14: 297279.8125 | G14: 2009.884101 | H14: -0.02045450373 | J14: 607714.148 | K14: 297414.375 | L14: 2043.324732 | M14: 0.0004526459394 | N14: 621615 | O14: -0.01681083023 | P14: -0.01636579365 | Q14: 0.03933507795 | R14: 0.03886484 | S14: 621615 | T14: 0.3544297488 | U14: 0.04160863115 | V14: 0.04113736455 | W14: 622359.0412 | X14: 0.04160863115 | Y14: 0.04113736455 | Z14: 622359.0412 | AA14: 622359.0412 | AB14: 2092.565436 | AC14: 0.04160863115 | AD14: 0.04113736455 | AF14: 636115.7271 | AG14: 2138.819709 | AH14: -0.02162607421 | AI14: -0.02162607421 | AJ14: 0 | AL14: 468033 | AM14: 48650 | AN14: 104932
A15: 00N | B15: NHS South Tyneside CCG | E15: 333005.6231 | F15: 157356.1406 | G15: 2116.254388 | H15: 0.02188294958 | J15: 325158.4215 | K15: 157527.4219 | L15: 2064.138533 | M15: 0.001088494223 | N15: 345716 | O15: 0.02413347197 | P15: 0.02524823534 | Q15: 0.03999563838 | R15: 0.03886484 | S15: 346324.3956 | T15: 0 | U15: 0.03999563838 | V15: 0.03886484 | W15: 346324.3956 | X15: 0.03999563838 | Y15: 0.03886484 | Z15: 346324.3956 | AA15: 346324.3956 | AB15: 2198.502277 | AC15: 0.03999563838 | AD15: 0.03886484 | AF15: 340202.939 | AG15: 2159.642651 | AH15: 0.0179935443 | AI15: 0.0179935443 | AJ15: 0 | AL15: 272638 | AM15: 23999 | AN15: 49079
A16: 00P | B16: NHS Sunderland CCG | E16: 593095.2711 | F16: 284309.3125 | G16: 2086.091609 | H16: 0.04843055699 | J16: 564350.1837 | K16: 284521.125 | L16: 1983.5089 | M16: 0.0007450072533 | N16: 613180 | O16: 0.05093484195 | P16: 0.05171779603 | Q16: 0.03917927941 | R16: 0.03840565967 | S16: 616332.3164 | T16: 0 | U16: 0.03917927941 | V16: 0.03840565967 | W16: 616332.3164 | X16: 0.03917927941 | Y16: 0.03840565967 | Z16: 616332.3164 | AA16: 616332.3164 | AB16: 2166.209333 | AC16: 0.03917927941 | AD16: 0.03840565967 | AF16: 590412.6317 | AG16: 2075.11 | AH16: 0.0439009657 | AI16: 0.0439009657 | AJ16: 0 | AL16: 483508 | AM16: 44827 | AN16: 84845
A17: 00Q | B17: NHS Blackburn with Darwen CCG | E17: 318642.4594 | F17: 175157.5156 | G17: 1819.176632 | H17: -0.04579747688 | J17: 332443.5047 | K17: 175171.625 | L17: 1897.815955 | M17: 8.055249556e-05 | N17: 332383 | O17: -0.04151395689 | P17: -0.04143674844 | Q17: 0.03894852316 | R17: 0.03886484 | S17: 332383 | T17: 0.8973849149 | U17: 0.04470281869 | V17: 0.04461867205 | W17: 332886.6755 | X17: 0.04470281869 | Y17: 0.04461867205 | Z17: 332886.6755 | AA17: 332886.6755 | AB17: 1900.345878 | AC17: 0.04470281869 | AD17: 0.04461867205 | AF17: 347999.9203 | AG17: 1986.622664 | AH17: -0.04342887425 | AI17: -0.04342887425 | AJ17: 0 | AL17: 251431 | AM17: 26378 | AN17: 54574
A18: 00R | B18: NHS Blackpool CCG | E18: 391049.1183 | F18: 173096.5469 | G18: 2259.13876 | H18: -0.04685974813 | J18: 407070.1757 | K18: 172778.25 | L18: 2356.026732 | M18: -0.00183884012 | N18: 407948 | O18: -0.03935699139 | P18: -0.0411234603 | Q18: 0.03695453365 | R18: 0.03886484 | S18: 407948 | T18: 0.8906001147 | U18: 0.04265436269 | V18: 0.04457516942 | W18: 407948 | X18: 0.04265436269 | Y18: 0.04457516942 | Z18: 407948 | AA18: 407948 | AB18: 2361.107373 | AC18: 0.04321421768 | AD18: 0.04513605579 | AF18: 426048.7285 | AG18: 2465.870146 | AH18: -0.04248511328 | AI18: -0.04248511328 | AJ18: 0 | AL18: 307689 | AM18: 31207 | AN18: 69052
A19: 00T | B19: NHS Bolton CCG | E19: 576283.8615 | F19: 310601.6875 | G19: 1855.379042 | H19: -0.003984315576 | J19: 577372.4508 | K19: 311766.75 | L19: 1851.937228 | M19: 0.003750985738 | N19: 600732 | O19: -0.001885419534 | P19: 0.001858494022 | Q19: 0.0427616072 | R19: 0.03886484 | S19: 600926.6856 | T19: 0 | U19: 0.0427616072 | V19: 0.03886484 | W19: 600926.6856 | X19: 0.0427616072 | Y19: 0.03886484 | Z19: 600926.6856 | AA19: 600926.6856 | AB19: 1927.488052 | AC19: 0.0427616072 | AD19: 0.03886484 | AF19: 604295.3936 | AG19: 1938.293271 | AH19: -0.005574604813 | AI19: -0.005574604813 | AJ19: 0 | AL19: 451416 | AM19: 45202 | AN19: 104114
A20: 00V | B20: NHS Bury CCG | E20: 372254.3912 | F20: 204868.2812 | G20: 1817.042584 | H20: -0.006895492907 | J20: 374049.5089 | K20: 205557.6562 | L20: 1819.681717 | M20: 0.003364966972 | N20: 388913 | O20: -0.004799144667 | P20: -0.001450326659 | Q20: 0.04236058587 | R20: 0.03886484 | S20: 388913 | T20: 0.03140934832 | U20: 0.04256265329 | V20: 0.03906622974 | W20: 388913 | X20: 0.04256265329 | Y20: 0.03906622974 | Z20: 388913 | AA20: 388913 | AB20: 1891.989854 | AC20: 0.0447506039 | AD20: 0.04124684266 | AF20: 391510.0401 | AG20: 1904.623974 | AH20: -0.006633393483 | AI20: -0.006633393483 | AJ20: 0 | AL20: 288175 | AM20: 29087 | AN20: 71651
A21: 00X | B21: NHS Chorley and South Ribble CCG | E21: 332781.174 | F21: 184909.5625 | G21: 1799.696941 | H21: 0.007232462833 | J21: 331585.7912 | K21: 186178.5312 | L21: 1781.009813 | M21: 0.006862645354 | N21: 347688 | O21: 0.003605048276 | P21: 0.0104924338 | Q21: 0.04599420097 | R21: 0.03886484 | S21: 348087.1782 | T21: 0 | U21: 0.04599420097 | V21: 0.03886484 | W21: 348087.1782 | X21: 0.04599420097 | Y21: 0.03886484 | Z21: 348087.1782 | AA21: 348087.1782 | AB21: 1869.641875 | AC21: 0.04599420097 | AD21: 0.03886484 | AF21: 347038.1527 | AG21: 1864.007361 | AH21: 0.003022795755 | AI21: 0.003022795755 | AJ21: 0 | AL21: 266473 | AM21: 24742 | AN21: 56473
A22: 00Y | B22: NHS Oldham CCG | E22: 480426.3876 | F22: 256758.2344 | G22: 1871.123583 | H22: 0.02330122493 | J22: 469012.0379 | K22: 258134.7344 | L22: 1816.927269 | M22: 0.005361074411 | N22: 501115 | O22: 0.0243370079 | P22: 0.02982855482 | Q22: 0.04443427171 | R22: 0.03886484 | S22: 501773.7842 | T22: 0 | U22: 0.04443427171 | V22: 0.03886484 | W22: 501773.7842 | X22: 0.04443427171 | Y22: 0.03886484 | Z22: 501773.7842 | AA22: 501773.7842 | AB22: 1943.844502 | AC22: 0.04443427171 | AD22: 0.03886484 | AF22: 490838.0568 | AG22: 1901.480086 | AH22: 0.02227970558 | AI22: 0.02227970558 | AJ22: 0 | AL22: 374961 | AM22: 41035 | AN22: 85119
A23: 01A | B23: NHS East Lancashire CCG | E23: 746345.4735 | F23: 382499.5625 | G23: 1951.232228 | H23: 0.007870468185 | J23: 738333.1741 | K23: 382833.375 | L23: 1928.601899 | M23: 0.0008727134165 | N23: 775158 | O23: 0.0108518752 | P23: 0.0117340592 | Q23: 0.03977147128 | R23: 0.03886484 | S23: 776028.7311 | T23: 0 | U23: 0.03977147128 | V23: 0.03886484 | W23: 776028.7311 | X23: 0.03977147128 | Y23: 0.03886484 | Z23: 776028.7311 | AA23: 776028.7311 | AB23: 2027.066556 | AC23: 0.03977147128 | AD23: 0.03886484 | AF23: 772747.7396 | AG23: 2018.49627 | AH23: 0.00424587651 | AI23: 0.00424587651 | AJ23: 0 | AL23: 599282 | AM23: 56042 | AN23: 119834
A24: 01C | B24: NHS Eastern Cheshire CCG | E24: 358833.1542 | F24: 209256.7656 | G24: 1714.798339 | H24: 0.008034648072 | J24: 356282.378 | K24: 209983.75 | L24: 1696.714046 | M24: 0.003474126023 | N24: 373763 | O24: 0.007159422938 | P24: 0.0106584217 | Q24: 0.04247398738 | R24: 0.03886484 | S24: 374074.2291 | T24: 0 | U24: 0.04247398738 | V24: 0.03886484 | W24: 374074.2291 | X24: 0.04247398738 | Y24: 0.03886484 | Z24: 374074.2291 | AA24: 374074.2291 | AB24: 1781.443703 | AC24: 0.04247398738 | AD24: 0.03886484 | AF24: 372851.2159 | AG24: 1775.61938 | AH24: 0.003280164086 | AI24: 0.003280164086 | AJ24: 0 | AL24: 280297 | AM24: 29258 | AN24: 64208
A25: 01D | B25: NHS Heywood, Middleton and Rochdale CCG | E25: 457530.8131 | F25: 234477.7031 | G25: 1951.27642 | H25: -0.01008296542 | J25: 461496.793 | K25: 235364.3906 | L25: 1960.775765 | M25: 0.003781542928 | N25: 478076 | O25: -0.008593732435 | P25: -0.004844687075 | Q25: 0.04279335199 | R25: 0.03886484 | S25: 478076 | T25: 0.1049201316 | U25: 0.04346862042 | V25: 0.0395375645 | W25: 478076 | X25: 0.04346862042 | Y25: 0.0395375645 | Z25: 478076 | AA25: 478076 | AB25: 2031.216357 | AC25: 0.04490448805 | AD25: 0.04096802279 | AF25: 483088.8831 | AG25: 2052.514749 | AH25: -0.0103767303 | AI25: -0.0103767303 | AJ25: 0 | AL25: 355559 | AM25: 34293 | AN25: 88224
A26: 01E | B26: NHS Greater Preston CCG | E26: 372440.4073 | F26: 209249.0156 | G26: 1779.890845 | H26: -0.008206014888 | J26: 373908.5602 | K26: 209231.7188 | L26: 1787.054862 | M26: -8.266167919e-05 | N26: 386998 | O26: -0.003926502366 | P26: -0.004008839474 | Q26: 0.03877896569 | R26: 0.03886484 | S26: 386998 | T26: 0.08681839684 | U26: 0.03933557988 | V26: 0.03942150021 | W26: 387090.5667 | X26: 0.03933557988 | Y26: 0.03942150021 | Z26: 387090.5667 | AA26: 387090.5667 | AB26: 1850.056813 | AC26: 0.03933557988 | AD26: 0.03942150021 | AF26: 391413.1551 | AG26: 1870.716149 | AH26: -0.01104354389 | AI26: -0.01104354389 | AJ26: 0 | AL26: 288898 | AM26: 29235 | AN26: 68865
A27: 01F | B27: NHS Halton CCG | E27: 271890.2099 | F27: 131605.6875 | G27: 2065.945744 | H27: 0.03150207689 | J27: 263058.145 | K27: 131833.6406 | L27: 1995.379508 | M27: 0.001732091746 | N27: 282516 | O27: 0.03357457299 | P27: 0.03536481898 | Q27: 0.04066424921 | R27: 0.03886484 | S27: 282946.4212 | T27: 0 | U27: 0.04066424921 | V27: 0.03886484 | W27: 282946.4212 | X27: 0.04066424921 | Y27: 0.03886484 | Z27: 282946.4212 | AA27: 282946.4212 | AB27: 2146.238394 | AC27: 0.04066424921 | AD27: 0.03886484 | AF27: 275220.7364 | AG27: 2087.636624 | AH27: 0.0280708672 | AI27: 0.0280708672 | AJ27: 0 | AL27: 219879 | AM27: 20073 | AN27: 42564
A28: 01G | B28: NHS Salford CCG | E28: 555982.6245 | F28: 275610.5 | G28: 2017.276644 | H28: 0.02033078456 | J28: 544909.1471 | K28: 278114.5 | L28: 1959.297869 | M28: 0.009085285212 | N28: 582339 | O28: 0.02032169489 | P28: 0.02959160849 | Q28: 0.04830322337 | R28: 0.03886484 | S28: 582838.3774 | T28: 0 | U28: 0.04830322337 | V28: 0.03886484 | W28: 582838.3774 | X28: 0.04830322337 | Y28: 0.03886484 | Z28: 582838.3774 | AA28: 582838.3774 | AB28: 2095.677778 | AC28: 0.04830322337 | AD28: 0.03886484 | AF28: 570418.175 | AG28: 2051.019185 | AH28: 0.02177385459 | AI28: 0.02177385459 | AJ28: 0 | AL28: 436863 | AM28: 43481 | AN28: 101995
A29: 01H | B29: NHS Cumbria CCG | E29: 622008.5543 | F29: 323764.0625 | G29: 1921.178495 | H29: 0.006859598008 | J29: 616688.2576 | K29: 323354.9062 | L29: 1907.156025 | M29: -0.001263748196 | N29: 644403 | O29: 0.008627206071 | P29: 0.007352555259 | Q29: 0.03755197643 | R29: 0.03886484 | S29: 645366.2048 | T29: 0 | U29: 0.03755197643 | V29: 0.03886484 | W29: 645366.2048 | X29: 0.03755197643 | Y29: 0.03886484 | Z29: 645366.2048 | AA29: 645366.2048 | AB29: 1995.84479 | AC29: 0.03755197643 | AD29: 0.03886484 | AF29: 645202.7655 | AG29: 1995.339341 | AH29: 0.0002533146421 | AI29: 0.0002533146421 | AJ29: 0 | AL29: 496036 | AM29: 50935 | AN29: 97432
A30: 01J | B30: NHS Knowsley CCG | E30: 377749.4954 | F30: 165618.9688 | G30: 2280.834727 | H30: 0.05277760336 | J30: 357631.6853 | K30: 166135.6719 | L30: 2152.648382 | M30: 0.00311983059 | N30: 392463 | O30: 0.05625287387 | P30: 0.0595482039 | Q30: 0.03954564985 | R30: 0.03631253031 | S30: 392687.8446 | T30: 0 | U30: 0.03954564985 | V30: 0.03631253031 | W30: 392687.8446 | X30: 0.03954564985 | Y30: 0.03631253031 | Z30: 392687.8446 | AA30: 392687.8446 | AB30: 2363.657607 | AC30: 0.03954564985 | AD30: 0.03631253031 | AF30: 374263.3773 | AG30: 2252.757479 | AH30: 0.04922861386 | AI30: 0.04922861386 | AJ30: 0 | AL30: 298762 | AM30: 33171 | AN30: 60530
A31: 01K | B31: NHS Morecambe Bay CCG | E31: 655548.6214 | F31: 346843 | G31: 1890.04426 | H31: -0.01140410922 | J31: 661274.1573 | K31: 347573.9375 | L31: 1902.542412 | M31: 0.00210740162 | N31: 681501 | O31: -0.008658339109 | P31: -0.006569184087 | Q31: 0.04105414545 | R31: 0.03886484 | S31: 682461.6099 | T31: 0.1422671161 | U31: 0.04196825282 | V31: 0.03977702504 | W31: 683060.8517 | X31: 0.04196825282 | Y31: 0.03977702504 | Z31: 683060.8517 | AA31: 683060.8517 | AB31: 1965.224598 | AC31: 0.04196825282 | AD31: 0.03977702504 | AF31: 691811.0404 | AG31: 1990.399641 | AH31: -0.01264823504 | AI31: -0.01264823504 | AJ31: 0 | AL31: 531864 | AM31: 49844 | AN31: 99793
A32: 01R | B32: NHS South Cheshire CCG | E32: 318921.5276 | F32: 186311.0625 | G32: 1711.769142 | H32: -0.02172980452 | J32: 325620.4484 | K32: 186706.9688 | L32: 1744.018718 | M32: 0.002124974463 | N32: 333345 | O32: -0.02057278881 | P32: -0.018491531 | Q32: 0.04107240126 | R32: 0.03886484 | S32: 333345 | T32: 0.4004662913 | U32: 0.04364555815 | V32: 0.0414325406 | W32: 333345 | X32: 0.04364555815 | Y32: 0.0414325406 | Z32: 333345 | AA32: 333345 | AB32: 1785.391313 | AC32: 0.04522577218 | AD32: 0.04300940384 | AF32: 340654.1754 | AG32: 1824.539157 | AH32: -0.0214562917 | AI32: -0.0214562917 | AJ32: 0 | AL32: 253418 | AM32: 26065 | AN32: 53862
A33: 01T | B33: NHS South Sefton CCG | E33: 334775.1058 | F33: 155182.25 | G33: 2157.302821 | H33: 0.03466309396 | J33: 322151.2231 | K33: 155277.4375 | L33: 2074.681475 | M33: 0.0006133916733 | N33: 347693 | O33: 0.03918620126 | P33: 0.03982362942 | Q33: 0.03950207104 | R33: 0.03886484 | S33: 347999.4158 | T33: 0 | U33: 0.03950207104 | V33: 0.03886484 | W33: 347999.4158 | X33: 0.03950207104 | Y33: 0.03886484 | Z33: 347999.4158 | AA33: 347999.4158 | AB33: 2241.14605 | AC33: 0.03950207104 | AD33: 0.03886484 | AF33: 337216.8646 | AG33: 2171.705497 | AH33: 0.03197512439 | AI33: 0.03197512439 | AJ33: 0 | AL33: 264532 | AM33: 23933 | AN33: 59228
A34: 01V | B34: NHS Southport and Formby CCG | E34: 250211.8203 | F34: 125268.4766 | G34: 1997.404512 | H34: 0.005769820164 | J34: 248191.9221 | K34: 125542.4844 | L34: 1976.955636 | M34: 0.002187364451 | N34: 260173 | O34: 0.008138452809 | P34: 0.01034361902 | Q34: 0.04113721602 | R34: 0.03886484 | S34: 260504.838 | T34: 0 | U34: 0.04113721602 | V34: 0.03886484 | W34: 260504.838 | X34: 0.04113721602 | Y34: 0.03886484 | Z34: 260504.838 | AA34: 260504.838 | AB34: 2075.033319 | AC34: 0.04113721602 | AD34: 0.03886484 | AF34: 259729.4368 | AG34: 2068.856914 | AH34: 0.002985419324 | AI34: 0.002985419324 | AJ34: 0 | AL34: 200198 | AM34: 18384 | AN34: 41591
A35: 01W | B35: NHS Stockport CCG | E35: 574909.6568 | F35: 313465.75 | G35: 1834.042975 | H35: -0.0004109700711 | J35: 574038.26 | K35: 314968.75 | L35: 1822.524489 | M35: 0.004794782205 | N35: 600909 | O35: 0.00151801174 | P35: 0.006320072481 | Q35: 0.04384597065 | R35: 0.03886484 | S35: 600909 | T35: 0 | U35: 0.04384597065 | V35: 0.03886484 | W35: 600909 | X35: 0.04384597065 | Y35: 0.03886484 | Z35: 600909 | AA35: 600909 | AB35: 1907.836889 | AC35: 0.04522335442 | AD35: 0.04023565103 | AF35: 600628.8827 | AG35: 1906.947539 | AH35: 0.0004663733131 | AI35: 0.0004663733131 | AJ35: 0 | AL35: 453296 | AM35: 43364 | AN35: 104249
A36: 01X | B36: NHS St Helens CCG | E36: 406555.2907 | F36: 198154.4375 | G36: 2051.709242 | H36: 0.01127312045 | J36: 401168.3114 | K36: 198715.8594 | L36: 2018.803696 | M36: 0.002833254113 | N36: 422876 | O36: 0.01342822725 | P36: 0.01629952694 | Q36: 0.04180820808 | R36: 0.03886484 | S36: 423552.6389 | T36: 0 | U36: 0.04180820808 | V36: 0.03886484 | W36: 423552.6389 | X36: 0.04180820808 | Y36: 0.03886484 | Z36: 423552.6389 | AA36: 423552.6389 | AB36: 2131.448593 | AC36: 0.04180820808 | AD36: 0.03886484 | AF36: 419655.5888 | AG36: 2111.837425 | AH36: 0.009286305564 | AI36: 0.009286305564 | AJ36: 0 | AL36: 329096 | AM36: 31377 | AN36: 62403
A37: 01Y | B37: NHS Tameside and Glossop CCG | E37: 488093.5563 | F37: 248556.2812 | G37: 1963.714431 | H37: 0.009971801098 | J37: 482083.3343 | K37: 249223.8125 | L37: 1934.338976 | M37: 0.002685634202 | N37: 507953 | O37: 0.01246718487 | P37: 0.01518630137 | Q37: 0.04165485095 | R37: 0.03886484 | S37: 508425.0206 | T37: 0 | U37: 0.04165485095 | V37: 0.03886484 | W37: 508425.0206 | X37: 0.04165485095 | Y37: 0.03886484 | Z37: 508425.0206 | AA37: 508425.0206 | AB37: 2040.033878 | AC37: 0.04165485095 | AD37: 0.03886484 | AF37: 504446.5651 | AG37: 2024.070493 | AH37: 0.007886772889 | AI37: 0.007886772889 | AJ37: 0 | AL37: 387153 | AM37: 36803 | AN37: 83997
A38: 02A | B38: NHS Trafford CCG | E38: 437675.6641 | F38: 243556.875 | G38: 1797.016258 | H38: 0.05107016962 | J38: 416218.7261 | K38: 245133.5625 | L38: 1697.926313 | M38: 0.006473590614 | N38: 457343 | O38: 0.05155207273 | P38: 0.05835939036 | Q38: 0.04334102973 | R38: 0.03663030948 | S38: 457343 | T38: 0 | U38: 0.04334102973 | V38: 0.03663030948 | W38: 457343 | X38: 0.04334102973 | Y38: 0.03663030948 | Z38: 457343 | AA38: 457343 | AB38: 1865.689036 | AC38: 0.04493586807 | AD38: 0.0382148899 | AF38: 435648.208 | AG38: 1777.187112 | AH38: 0.04979887812 | AI38: 0.04979887812 | AJ38: 0 | AL38: 338682 | AM38: 33932 | AN38: 84729
A39: 02D | B39: NHS Vale Royal CCG | E39: 180420.7719 | F39: 107292.4375 | G39: 1681.579579 | H39: -0.02610061826 | J39: 184806.2999 | K39: 107566.4219 | L39: 1718.066816 | M39: 0.00255362243 | N39: 188364 | O39: -0.02373040336 | P39: -0.02123737942 | Q39: 0.04151770856 | R39: 0.03886484 | S39: 188364 | T39: 0.4599324184 | U39: 0.0444742233 | V39: 0.04181382415 | W39: 188444.8456 | X39: 0.0444742233 | Y39: 0.04181382415 | Z39: 188444.8456 | AA39: 188444.8456 | AB39: 1751.892852 | AC39: 0.0444742233 | AD39: 0.04181382415 | AF39: 193284.0559 | AG39: 1796.880965 | AH39: -0.02503677967 | AI39: -0.02503677967 | AJ39: 0 | AL39: 147206 | AM39: 14537 | AN39: 26621
A40: 02E | B40: NHS Warrington CCG | E40: 387400.9334 | F40: 219281.6562 | G40: 1766.681901 | H40: -0.005264519341 | J40: 389852.6233 | K40: 220369.6406 | L40: 1769.084989 | M40: 0.004961584081 | N40: 404579 | O40: -0.006288760796 | P40: -0.00135837893 | Q40: 0.04401925525 | R40: 0.03886484 | S40: 404579 | T40: 0.0294180602 | U40: 0.04420881316 | V40: 0.03905346204 | W40: 404579 | X40: 0.04420881316 | Y40: 0.03905346204 | Z40: 404579 | AA40: 404579 | AB40: 1835.910785 | AC40: 0.04434183075 | AD40: 0.03918582292 | AF40: 407857.8419 | AG40: 1850.789613 | AH40: -0.00803917823 | AI40: -0.00803917823 | AJ40: 0 | AL40: 310523 | AM40: 30043 | AN40: 64013
A41: 02F | B41: NHS West Cheshire CCG | E41: 476793.1506 | F41: 264776.8438 | G41: 1800.735834 | H41: 0.01310591836 | J41: 470634.08 | K41: 265597.6875 | L41: 1771.981091 | M41: 0.003100134205 | N41: 496221 | O41: 0.01308675004 | P41: 0.01622745492 | Q41: 0.04208546042 | R41: 0.03886484 | S41: 496859.2098 | T41: 0 | U41: 0.04208546042 | V41: =MAX(R41,NewMinGrowthPerHead(P41,$P$2,$L$1,$U$1,$T$2,AG41,G41,T41, $P$1)) -> 0.03886484 | W41: 496859.2098 | X41: 0.04208546042 | Y41: 0.03886484 | Z41: 496859.2098 | AA41: =Z41 -> 496859.2098 | AB41: =AA41/K41*1000 -> 1870.721144 | AC41: =AA41/E41-1 -> 0.04208546042 | AD41: =AB41/G41-1 -> 0.03886484 | AF41: 492429.7243 | AG41: =AF41/K41*1000 -> 1854.043719 | AH41: 0.008995162773 | AI41: 0.008995162773 | AJ41: =IF(AF41=N41,1,0) -> 0 | AL41: 378408 | AM41: 38934 | AN41: 78879
A42: 02G | B42: NHS West Lancashire CCG | E42: 212329.4667 | F42: 113720.625 | G42: 1867.114841 | H42: -0.005100239111 | J42: 213107.0616 | K42: 113877.375 | L42: 1871.373147 | M42: 0.001378377933 | N42: 220982 | O42: -0.003648846178 | P42: -0.002275497735 | Q42: 0.04029678837 | R42: 0.03886484 | S42: 220982 | T42: 0.04927986431 | U42: 0.0406131954 | V42: 0.03918081151 | W42: 220982 | X42: 0.0406131954 | Y42: 0.03918081151 | Z42: 220982 | AA42: 220982 | AB42: 1940.525939 | AC42: 0.04075050649 | AD42: 0.03931793359 | AF42: 223074.6515 | AG42: 1958.902297 | AH42: -0.009380947143 | AI42: -0.009380947143 | AJ42: 0 | AL42: 165950 | AM42: 15506 | AN42: 39526
A43: 02H | B43: NHS Wigan Borough CCG | E43: 640886.91 | F43: 328789.4375 | G43: 1949.232052 | H43: 0.002771665326 | J43: 638903.2912 | K43: 329583.8125 | L43: 1938.515385 | M43: 0.002416059975 | N43: 667025 | O43: 0.003104724549 | P43: 0.005528285724 | Q43: 0.04137479976 | R43: 0.03886484 | S43: 667403.4775 | T43: 0 | U43: 0.04137479976 | V43: 0.03886484 | W43: 667403.4775 | X43: 0.04137479976 | Y43: 0.03886484 | Z43: 667403.4775 | AA43: 667403.4775 | AB43: 2024.988644 | AC43: 0.04137479976 | AD43: 0.03886484 | AF43: 668506.9773 | AG43: 2028.336805 | AH43: -0.001650692924 | AI43: -0.001650692924 | AJ43: 0 | AL43: 508190 | AM43: 50966 | AN43: 107869
A44: 02M | B44: NHS Fylde & Wyre CCG | E44: 353390.1381 | F44: 178249.3125 | G44: 1982.561016 | H44: 0.01423047731 | J44: 348604.7684 | K44: 178955.0312 | L44: 1948.002054 | M44: 0.003959166743 | N44: 367705 | O44: 0.01372720662 | P44: 0.01774072166 | Q44: 0.04297787912 | R44: 0.03886484 | S44: 368578.0967 | T44: 0 | U44: 0.04297787912 | V44: 0.03886484 | W44: 368578.0967 | X44: 0.04297787912 | Y44: 0.03886484 | Z44: 368578.0967 | AA44: 368578.0967 | AB44: 2059.612933 | AC44: 0.04297787912 | AD44: 0.03886484 | AF44: 364689.2447 | AG44: 2037.882043 | AH44: 0.01066346785 | AI44: 0.01066346785 | AJ44: 0 | AL44: 287323 | AM44: 28626 | AN44: 51756
A45: 02N | B45: NHS Airedale, Wharfedale and Craven CCG | E45: 283243.5165 | F45: 159702.5 | G45: 1773.56971 | H45: -0.003553622019 | J45: 283833.4629 | K45: 160223.2188 | L45: 1771.48771 | M45: 0.003260554782 | N45: 294676 | O45: -0.002078494869 | P45: 0.001175282866 | Q45: 0.04225211572 | R45: 0.03886484 | S45: 295211.1544 | T45: 0 | U45: 0.04225211572 | V45: 0.03886484 | W45: 295211.1544 | X45: 0.04225211572 | Y45: 0.03886484 | Z45: 295211.1544 | AA45: 295211.1544 | AB45: 1842.499213 | AC45: 0.04225211572 | AD45: 0.03886484 | AF45: 296888.3127 | AG45: 1852.966848 | AH45: -0.005649121922 | AI45: -0.005649121922 | AJ45: 0 | AL45: 229948 | AM45: 23713 | AN45: 41015
A46: 02P | B46: NHS Barnsley CCG | E46: 512708.8647 | F46: 262230.9375 | G46: 1955.180688 | H46: 0.02631294139 | J46: 500481.2888 | K46: 264060.1562 | L46: 1895.330579 | M46: 0.006975602373 | N46: 535533 | O46: 0.02443163455 | P46: 0.03157766229 | Q46: 0.04611154804 | R46: 0.03886484 | S46: 536350.6642 | T46: 0 | U46: 0.04611154804 | V46: 0.03886484 | W46: 536350.6642 | X46: 0.04611154804 | Y46: 0.03886484 | Z46: 536350.6642 | AA46: 536350.6642 | AB46: 2031.168472 | AC46: 0.04611154804 | AD46: 0.03886484 | AF46: 523738.5673 | AG46: 1983.406262 | AH46: 0.02408090152 | AI46: 0.02408090152 | AJ46: 0 | AL46: 415367 | AM46: 39699 | AN46: 80467
A47: 02Q | B47: NHS Bassetlaw CCG | E47: 216266.8015 | F47: 117732.3672 | G47: 1836.935812 | H47: -0.006466377137 | J47: 217969.1457 | K47: 118099.2578 | L47: 1845.643653 | M47: 0.00311631061 | N47: 224924 | O47: -0.007810023446 | P47: -0.004718051295 | Q47: 0.04210226552 | R47: 0.03886484 | S47: 225372.1238 | T47: 0.1021776133 | U47: 0.04275944722 | V47: 0.03951998008 | W47: 225514.2504 | X47: 0.04275944722 | Y47: 0.03951998008 | Z47: 225514.2504 | AA47: 225514.2504 | AB47: 1909.531479 | AC47: 0.04275944722 | AD47: 0.03951998008 | AF47: 228050.6534 | AG47: 1931.008353 | AH47: -0.01112210344 | AI47: -0.01112210344 | AJ47: 0 | AL47: 174616 | AM47: 18179 | AN47: 32129
A48: 02R | B48: NHS Bradford Districts CCG | E48: 592849.1679 | F48: 334130.3125 | G48: 1774.305251 | H48: -0.002796452333 | J48: 592763.2922 | K48: 334984.2188 | L48: 1769.526022 | M48: 0.00255560845 | N48: 615785 | O48: 0.0001448734686 | P48: 0.002700852158 | Q48: 0.04151977176 | R48: 0.03886484 | S48: 617464.13 | T48: 0 | U48: 0.04151977176 | V48: 0.03886484 | W48: 617464.13 | X48: 0.04151977176 | Y48: 0.03886484 | Z48: 617464.13 | AA48: 617464.13 | AB48: 1843.26334 | AC48: 0.04151977176 | AD48: 0.03886484 | AF48: 620056.284 | AG48: 1851.001478 | AH48: -0.004180514067 | AI48: -0.004180514067 | AJ48: 0 | AL48: 480990 | AM48: 53156 | AN48: 81639
A49: 02T | B49: NHS Calderdale CCG | E49: 390450.6288 | F49: 221396.0625 | G49: 1763.58434 | H49: 0.0188622507 | J49: 382723.369 | K49: 222195.1562 | L49: 1722.464951 | M49: 0.003609340387 | N49: 406500 | O49: 0.02019019584 | P49: 0.02387240951 | Q49: 0.04261445682 | R49: 0.03886484 | S49: 407089.4702 | T49: 0 | U49: 0.04261445682 | V49: 0.03886484 | W49: 407089.4702 | X49: 0.04261445682 | Y49: 0.03886484 | Z49: 407089.4702 | AA49: 407089.4702 | AB49: 1832.125763 | AC49: 0.04261445682 | AD49: 0.03886484 | AF49: 400546.5776 | AG49: 1802.67916 | AH49: 0.0163349108 | AI49: 0.0163349108 | AJ49: 0 | AL49: 311964 | AM49: 32398 | AN49: 62138
A50: 02W | B50: NHS Bradford City CCG | E50: 225077.8537 | F50: 140352.5781 | G50: 1603.660273 | H50: -0.04990099089 | J50: 235480.9148 | K50: 140252.5469 | L50: 1678.977816 | M50: -0.0007127140188 | N50: 234473 | O50: -0.04417793717 | P50: -0.04485916495 | Q50: 0.03812442646 | R50: 0.03886484 | S50: 234473 | T50: 0.9715033017 | U50: 0.04434904955 | V50: 0.04509390263 | W50: 235059.8426 | X50: 0.04434904955 | Y50: 0.04509390263 | Z50: 235059.8426 | AA50: 235059.8426 | AB50: 1675.975573 | AC50: 0.04434904955 | AD50: 0.04509390263 | AF50: 246491.8439 | AG50: 1757.485689 | AH50: -0.04637882187 | AI50: -0.04637882187 | AJ50: 0 | AL50: 175716 | AM50: 21896 | AN50: 36861
A51: 02X | B51: NHS Doncaster CCG | E51: 608577.2916 | F51: 321430.5625 | G51: 1893.339846 | H51: 0.008348729558 | J51: 602839.3301 | K51: 322119.4688 | L51: 1871.477475 | M51: 0.002143250613 | N51: 632558 | O51: 0.009518226916 | P51: 0.01168187747 | Q51: 0.0410913877 | R51: 0.03886484 | S51: 633584.577 | T51: 0 | U51: 0.0410913877 | V51: 0.03886484 | W51: 633584.577 | X51: 0.0410913877 | Y51: 0.03886484 | Z51: 633584.577 | AA51: 633584.577 | AB51: 1966.924196 | AC51: 0.0410913877 | AD51: 0.03886484 | AF51: 630831.2193 | AG51: 1958.376567 | AH51: 0.004364650373 | AI51: 0.004364650373 | AJ51: 0 | AL51: 492183 | AM51: 47572 | AN51: 92803
A52: 02Y | B52: NHS East Riding of Yorkshire CCG | E52: 541427.2465 | F52: 304863.6562 | G52: 1775.965207 | H52: -0.02553976535 | J52: 556204.5203 | K52: 305466.3438 | L52: 1820.837325 | M52: 0.001976908325 | N52: 564936 | O52: -0.02656805777 | P52: -0.02464367206 | Q52: 0.04091858055 | R52: 0.03886484 | S52: 564936 | T52: 0.5337016148 | U52: 0.04434732128 | V52: 0.04228681579 | W52: 565438.0946 | X52: 0.04434732128 | Y52: 0.04228681579 | Z52: 565438.0946 | AA52: 565438.0946 | AB52: 1851.065121 | AC52: 0.04434732128 | AD52: 0.04228681579 | AF52: 582045.6928 | AG52: 1905.433134 | AH52: -0.02853315203 | AI52: -0.02853315203 | AJ52: 0 | AL52: 428858 | AM52: 46112 | AN52: 89966
A53: 03A | B53: NHS Greater Huddersfield CCG | E53: 407002.9995 | F53: 249965.9375 | G53: 1628.233845 | H53: 0.009525653751 | J53: 402655.0484 | K53: 251006.7812 | L53: 1604.160041 | M53: 0.004163942337 | N53: 423675 | O53: 0.01079820337 | P53: 0.0150071088 | Q53: 0.04319061329 | R53: 0.03886484 | S53: 424581.7087 | T53: 0 | U53: 0.04319061329 | V53: 0.03886484 | W53: 424581.7087 | X53: 0.04319061329 | Y53: 0.03886484 | Z53: 424581.7087 | AA53: 424581.7087 | AB53: 1691.514893 | AC53: 0.04319061329 | AD53: 0.03886484 | AF53: 421198.569 | AG53: 1678.036613 | AH53: 0.008032172864 | AI53: 0.008032172864 | AJ53: 0 | AL53: 331513 | AM53: 36096 | AN53: 56066
A54: 03D | B54: NHS Hambleton, Richmondshire and Whitby CCG | E54: 263358.8873 | F54: 144023.375 | G54: 1828.584334 | H54: 0.03817409571 | J54: 253799.653 | K54: 144107.0938 | L54: 1761.187784 | M54: 0.0005812858503 | N54: 273452 | O54: 0.03766448899 | P54: 0.03826766868 | Q54: 0.03946871743 | R54: 0.03886484 | S54: 273753.3248 | T54: 0 | U54: 0.03946871743 | V54: 0.03886484 | W54: 273753.3248 | X54: 0.03946871743 | Y54: 0.03886484 | Z54: 273753.3248 | AA54: 273753.3248 | AB54: 1899.651972 | AC54: 0.03946871743 | AD54: 0.03886484 | AF54: 265602.7837 | AG54: 1843.093055 | AH54: 0.03068695663 | AI54: 0.03068695663 | AJ54: 0 | AL54: 204615 | AM54: 23601 | AN54: 45236
A55: 03E | B55: NHS Harrogate and Rural District CCG | E55: 270000.73 | F55: 163245.0625 | G55: 1653.959549 | H55: 0.01564291208 | J55: 266066.8099 | K55: 163361.4375 | L55: 1628.700224 | M55: 0.0007128852672 | N55: 280281 | O55: 0.01478545962 | P55: 0.01550888523 | Q55: 0.03960543144 | R55: 0.03886484 | S55: 280694.2254 | T55: 0 | U55: 0.03960543144 | V55: 0.03886484 | W55: 280694.2254 | X55: 0.03960543144 | Y55: 0.03886484 | Z55: 280694.2254 | AA55: 280694.2254 | AB55: 1718.240422 | AC55: 0.03960543144 | AD55: 0.03886484 | AF55: 278399.5068 | AG55: 1704.193542 | AH55: 0.008242538212 | AI55: 0.008242538212 | AJ55: 0 | AL55: 214366 | AM55: 23369 | AN55: 42546
A56: 03F | B56: NHS Hull CCG | E56: 566097.741 | F56: 299668.0312 | G56: 1889.082858 | H56: -0.01281497994 | J56: 571294.3355 | K56: 300221.8125 | L56: 1902.90749 | M56: 0.001847982408 | N56: 588951 | O56: -0.009096177245 | P56: -0.007265004413 | Q56: 0.04078464395 | R56: 0.03886484 | S56: 589185.8358 | T56: 0.1573363165 | U56: 0.04179531359 | V56: 0.03987364539 | W56: 589757.9736 | X56: 0.04179531359 | Y56: 0.03987364539 | Z56: 589757.9736 | AA56: 589757.9736 | AB56: 1964.407478 | AC56: 0.04179531359 | AD56: 0.03987364539 | AF56: 598131.8285 | AG56: 1992.299705 | AH56: -0.01400001554 | AI56: -0.01400001554 | AJ56: 0 | AL56: 437132 | AM56: 49044 | AN56: 102775
A57: 03H | B57: NHS North East Lincolnshire CCG | E57: 319833.5695 | F57: 169562.0781 | G57: 1886.232895 | H57: 0.001820362716 | J57: 318303.6273 | K57: 169500.1562 | L57: 1877.895775 | M57: -0.0003651870494 | N57: 331428 | O57: 0.004806549819 | P57: 0.00443960748 | Q57: 0.03848546001 | R57: 0.03886484 | S57: 332142.5115 | T57: 0 | U57: 0.03848546001 | V57: 0.03886484 | W57: 332142.5115 | X57: 0.03848546001 | Y57: 0.03886484 | Z57: 332142.5115 | AA57: 332142.5115 | AB57: 1959.541035 | AC57: 0.03848546001 | AD57: 0.03886484 | AF57: 333140.5051 | AG57: 1965.428897 | AH57: -0.002995713523 | AI57: -0.002995713523 | AJ57: 0 | AL57: 249667 | AM57: 30332 | AN57: 51429
A58: 03J | B58: NHS North Kirklees CCG | E58: 335260.494 | F58: 194611.9688 | G58: 1722.712617 | H58: 0.01443443016 | J58: 330410.6765 | K58: 195498.4375 | L58: 1690.093695 | M58: 0.004555057717 | N58: 349285 | O58: 0.01467815 | P58: 0.01930006754 | Q58: 0.04359692931 | R58: 0.03886484 | S58: 349876.8221 | T58: 0 | U58: 0.04359692931 | V58: 0.03886484 | W58: 349876.8221 | X58: 0.04359692931 | Y58: 0.03886484 | Z58: 349876.8221 | AA58: 349876.8221 | AB58: 1789.665567 | AC58: 0.04359692931 | AD58: 0.03886484 | AF58: 345709.632 | AG58: 1768.349847 | AH58: 0.01205401777 | AI58: 0.01205401777 | AJ58: 0 | AL58: 271165 | AM58: 27873 | AN58: 50247
A59: 03K | B59: NHS North Lincolnshire CCG | E59: 313980.3231 | F59: 177652.9844 | G59: 1767.379953 | H59: -0.02334613155 | J59: 321799.3422 | K59: 178117.2188 | L59: 1806.671721 | M59: 0.002613152696 | N59: 326776 | O59: -0.02429780935 | P59: -0.02174815054 | Q59: 0.04157955246 | R59: 0.03886484 | S59: 327035.4844 | T59: 0.4709940562 | U59: 0.04460735285 | V59: 0.04188474891 | W59: 327986.1542 | X59: 0.04460735285 | Y59: 0.04188474891 | Z59: 327986.1542 | AA59: 327986.1542 | AB59: 1841.406218 | AC59: 0.04460735285 | AD59: 0.04188474891 | AF59: 336771.8042 | AG59: 1890.73132 | AH59: -0.02608784327 | AI59: -0.02608784327 | AJ59: 0 | AL59: 251519 | AM59: 26865 | AN59: 48392
A60: 03L | B60: NHS Rotherham CCG | E60: 496130.9434 | F60: 263993.0938 | G60: 1879.33304 | H60: 0.01600863073 | J60: 488149.442 | K60: 264819.25 | L60: 1843.330657 | M60: 0.003129461602 | N60: 516232 | O60: 0.01635052855 | P60: 0.0195311585 | Q60: 0.04211592763 | R60: 0.03886484 | S60: 517025.9583 | T60: 0 | U60: 0.04211592763 | V60: 0.03886484 | W60: 517025.9583 | X60: 0.04211592763 | Y60: 0.03886484 | Z60: 517025.9583 | AA60: 517025.9583 | AB60: 1952.373018 | AC60: 0.04211592763 | AD60: 0.03886484 | AF60: 510874.3043 | AG60: 1929.143385 | AH60: 0.01204142384 | AI60: 0.01204142384 | AJ60: 0 | AL60: 397235 | AM60: 40706 | AN60: 78291
A61: 03M | B61: NHS Scarborough and Ryedale CCG | E61: 222570.5165 | F61: 120626.7188 | G61: 1845.117888 | H61: -0.0142827907 | J61: 225090.4859 | K61: 120801.6562 | L61: 1863.30629 | M61: 0.001450238403 | N61: 231672 | O61: -0.01119536142 | P61: -0.009761358955 | Q61: 0.04037144169 | R61: 0.03886484 | S61: 231672 | T61: 0.2113992194 | U61: 0.04172885208 | V61: 0.04022028467 | W61: 231858.1287 | X61: 0.04172885208 | Y61: 0.04022028467 | Z61: 231858.1287 | AA61: 231858.1287 | AB61: 1919.329055 | AC61: 0.04172885208 | AD61: 0.04022028467 | AF61: 235446.3961 | AG61: 1949.032847 | AH61: -0.015240273 | AI61: -0.015240273 | AJ61: 0 | AL61: 178876 | AM61: 18960 | AN61: 33836
A62: 03N | B62: NHS Sheffield CCG | E62: 1101822.92 | F62: 604647.125 | G62: 1822.257768 | H62: 0.04616201983 | J62: 1052722.26 | K62: 607792.6875 | L62: 1732.041668 | M62: 0.005202311183 | N62: 1149387 | O62: 0.04664160884 | P62: 0.05208656418 | Q62: 0.04370868161 | R62: 0.03830708505 | S62: 1149982.148 | T62: 0 | U62: 0.04370868161 | V62: 0.03830708505 | W62: 1149982.148 | X62: 0.04370868161 | Y62: 0.03830708505 | Z62: 1149982.148 | AA62: 1149982.148 | AB62: 1892.063151 | AC62: 0.04370868161 | AD62: 0.03830708505 | AF62: 1102556.692 | AG62: 1814.034151 | AH62: 0.04301407481 | AI62: 0.04301407481 | AJ62: 0 | AL62: 836078 | AM62: 85754 | AN62: 227555
A63: 03Q | B63: NHS Vale of York CCG | E63: 567005.8532 | F63: 358916.4375 | G63: 1579.771206 | H63: 0.01143828855 | J63: 560612.5766 | K63: 360500 | L63: 1555.0973 | M63: 0.004412064577 | N63: 590857 | O63: 0.01140409059 | P63: 0.01586647076 | Q63: 0.04344837876 | R63: 0.03886484 | S63: 591641.3383 | T63: 0 | U63: 0.04344837876 | V63: 0.03886484 | W63: 591641.3383 | X63: 0.04344837876 | Y63: 0.03886484 | Z63: 591641.3383 | AA63: 591641.3383 | AB63: 1641.168761 | AC63: 0.04344837876 | AD63: 0.03886484 | AF63: 586641.525 | AG63: 1627.299653 | AH63: 0.00852277429 | AI63: 0.00852277429 | AJ63: 0 | AL63: 451013 | AM63: 49058 | AN63: 90786
A64: 03R | B64: NHS Wakefield CCG | E64: 698229.2801 | F64: 375745.5312 | G64: 1858.25039 | H64: 0.004909029701 | J64: 694796.6639 | K64: 377694.125 | L64: 1839.574984 | M64: 0.005185939919 | N64: 727367 | O64: 0.004940461531 | P64: 0.01015202239 | Q64: 0.04425233064 | R64: 0.03886484 | S64: 729127.553 | T64: 0 | U64: 0.04425233064 | V64: 0.03886484 | W64: 729127.553 | X64: 0.04425233064 | Y64: 0.03886484 | Z64: 729127.553 | AA64: 729127.553 | AB64: 1930.470994 | AC64: 0.04425233064 | AD64: 0.03886484 | AF64: 726858.6881 | AG64: 1924.463845 | AH64: 0.003121466383 | AI64: 0.003121466383 | AJ64: 0 | AL64: 561222 | AM64: 61695 | AN64: 104450
A65: 03T | B65: NHS Lincolnshire East CCG | E65: 474184.1198 | F65: 251486.8125 | G65: 1885.522804 | H65: -0.03808691059 | J65: 493411.9455 | K65: 252526.2969 | L65: 1953.903224 | M65: 0.004133355402 | N65: 495761 | O65: -0.03896911263 | P65: -0.03499683042 | Q65: 0.0431588376 | R65: 0.03886484 | S65: 495761 | T65: 0.7579172804 | U65: 0.0480385207 | V65: 0.04372443667 | W65: 496963.2235 | X65: 0.0480385207 | Y65: 0.04372443667 | Z65: 496963.2235 | AA65: 496963.2235 | AB65: 1967.966226 | AC65: 0.0480385207 | AD65: 0.04372443667 | AF65: 516170.7919 | AG65: 2044.027883 | AH65: -0.03721165312 | AI65: -0.03721165312 | AJ65: 0 | AL65: 385451 | AM65: 41994 | AN65: 68316
A66: 03V | B66: NHS Corby CCG | E66: 136167.28 | F66: 79913.375 | G66: 1703.936043 | H66: -0.007214291287 | J66: 138320.5829 | K66: 81145.17188 | L66: 1704.606445 | M66: 0.01541415157 | N66: 143390 | O66: -0.0155674805 | P66: -0.0003932884305 | Q66: 0.05487806011 | R66: 0.03886484 | S66: 143639.8761 | T66: 0.008517345543 | U66: 0.05493351322 | V66: 0.03891945132 | W66: 143647.427 | X66: 0.05493351322 | Y66: 0.03891945132 | Z66: 143647.427 | AA66: 143647.427 | AB66: 1770.252299 | AC66: 0.05493351322 | AD66: 0.03891945132 | AF66: 144691.7402 | AG66: 1783.121988 | AH66: -0.007217503543 | AI66: -0.007217503543 | AJ66: 0 | AL66: 111563 | AM66: 11940 | AN66: 19887
A67: 03W | B67: NHS East Leicestershire and Rutland CCG | E67: 526604.3518 | F67: 333199 | G67: 1580.449977 | H67: -0.01403873987 | J67: 535306.1915 | K67: 335015.1875 | L67: 1597.85649 | M67: 0.005450759156 | N67: 550626 | O67: -0.01625581729 | P67: -0.01089366468 | Q67: 0.04452744204 | R67: 0.03886484 | S67: 550626 | T67: 0.2359212708 | U67: 0.04604836187 | V67: 0.0403775146 | W67: 550853.6196 | X67: 0.04604836187 | Y67: 0.0403775146 | Z67: 550853.6196 | AA67: 550853.6196 | AB67: 1644.264619 | AC67: 0.04604836187 | AD67: 0.0403775146 | AF67: 560306.3493 | AG67: 1672.480443 | AH67: -0.01687064542 | AI67: -0.01687064542 | AJ67: 0 | AL67: 410578 | AM67: 46480 | AN67: 93568
A68: 04C | B68: NHS Leicester City CCG | E68: 643025.6462 | F68: 409607.5625 | G68: 1569.857847 | H68: -0.02026247567 | J68: 656482.6801 | K68: 412727.875 | L68: 1590.594481 | M68: 0.007617809791 | N68: 672701 | O68: -0.02049868849 | P68: -0.01303703381 | Q68: 0.04677871475 | R68: 0.03886484 | S68: 673105.5595 | T68: 0.2823396601 | U68: 0.04860280423 | V68: 0.04067513897 | W68: 674278.4958 | X68: 0.04860280423 | Y68: 0.04067513897 | Z68: 674278.4958 | AA68: 674278.4958 | AB68: 1633.712033 | AC68: 0.04860280423 | AD68: 0.04067513897 | AF68: 687426.0998 | AG68: 1665.567415 | AH68: -0.01912584358 | AI68: -0.01912584358 | AJ68: 0 | AL68: 494780 | AM68: 58582 | AN68: 119339
A69: 04D | B69: NHS Lincolnshire West CCG | E69: 402011.5935 | F69: 238697.6562 | G69: 1684.187435 | H69: -0.02009488458 | J69: 410973.6733 | K69: 239817.1719 | L69: 1713.695771 | M69: 0.004690098942 | N69: 420103 | O69: -0.02180694387 | P69: -0.01721912165 | Q69: 0.04373721889 | R69: 0.03886484 | S69: 420103 | T69: 0.372910052 | U69: 0.04613944912 | V69: 0.04125585613 | W69: 420560.1869 | X69: 0.04613944912 | Y69: 0.04125585613 | Z69: 420560.1869 | AA69: 420560.1869 | AB69: 1753.67003 | AC69: 0.04613944912 | AD69: 0.04125585613 | AF69: 430256.9753 | AG69: 1794.104117 | AH69: -0.02253720202 | AI69: -0.02253720202 | AJ69: 0 | AL69: 312029 | AM69: 34410 | AN69: 73664
A70: 04E | B70: NHS Mansfield and Ashfield CCG | E70: 364483.3375 | F70: 195172.625 | G70: 1867.492111 | H70: -0.01119977179 | J70: 369181.2838 | K70: 196347.5 | L70: 1880.244382 | M70: 0.006019671048 | N70: 380457 | O70: -0.01272531025 | P70: -0.006782241384 | Q70: 0.0451184646 | R70: 0.03886484 | S70: 380928.266 | T70: 0.1468812428 | U70: 0.04606590353 | V70: 0.03980660979 | W70: 381273.5917 | X70: 0.04606590353 | Y70: 0.03980660979 | Z70: 381273.5917 | AA70: 381273.5917 | AB70: 1941.830641 | AC70: 0.04606590353 | AD70: 0.03980660979 | AF70: 386306.1565 | AG70: 1967.461549 | AH70: -0.01302739982 | AI70: -0.01302739982 | AJ70: 0 | AL70: 293428 | AM70: 29511 | AN70: 57518
A71: 04F | B71: NHS Milton Keynes CCG | E71: 450606.4372 | F71: 297252.1875 | G71: 1515.906211 | H71: -0.03425365818 | J71: 468391.192 | K71: 300121.75 | L71: 1560.670601 | M71: 0.009653629546 | N71: 474494 | O71: -0.03796987441 | P71: -0.02868279196 | Q71: 0.04889365631 | R71: 0.03886484 | S71: 474494 | T71: 0.6211757869 | U71: 0.05291494587 | V71: 0.04284768069 | W71: 474494 | X71: 0.05291494587 | Y71: 0.04284768069 | Z71: 474494 | AA71: 474494 | AB71: 1581.005042 | AC71: 0.05301203176 | AD71: 0.04294383831 | AF71: 490282.7855 | AG71: 1633.612977 | AH71: -0.03220342629 | AI71: -0.03220342629 | AJ71: 0 | AL71: 354302 | AM71: 38151 | AN71: 82041
A72: 04G | B72: NHS Nene CCG | E72: 1124292.742 | F72: 691032.875 | G72: 1626.97432 | H72: -0.01488777232 | J72: 1144835.023 | K72: 695931.1875 | L72: 1645.040549 | M72: 0.007088392864 | N72: 1176678 | O72: -0.01794344192 | P72: -0.01098223922 | Q72: 0.04622872212 | R72: 0.03886484 | S72: 1176678 | T72: 0.2378395067 | U72: 0.04776450564 | V72: 0.0403898139 | W72: 1177994.029 | X72: 0.04776450564 | Y72: 0.0403898139 | Z72: 1177994.029 | AA72: 1177994.029 | AB72: 1692.68751 | AC72: 0.04776450564 | AD72: 0.0403898139 | AF72: 1198329.715 | AG72: 1721.908339 | AH72: -0.01697002586 | AI72: -0.01697002586 | AJ72: 0 | AL72: 881935 | AM72: 95371 | AN72: 199372
A73: 04H | B73: NHS Newark & Sherwood CCG | E73: 236285.8015 | F73: 136000.9688 | G73: 1737.383224 | H73: -0.009027475904 | J73: 239123.3086 | K73: 136950.875 | L73: 1746.051703 | M73: 0.006984555027 | N73: 246914 | O73: -0.01186629219 | P73: -0.00496461793 | Q73: 0.04612084864 | R73: 0.03886484 | S73: 247183.5032 | T73: 0.107517443 | U73: 0.04681504152 | V73: =MAX(R73,NewMinGrowthPerHead(P73,$P$2,$L$1,$U$1,$T$2,AG73,G73,T73, $P$1)) -> 0.03955421788 | W73: 247347.5311 | X73: 0.04681504152 | Y73: 0.03955421788 | Z73: 247347.5311 | AA73: =Z73 -> 247347.5311 | AB73: =AA73/K73*1000 -> 1806.104058 | AC73: =AA73/E73-1 -> 0.04681504152 | AD73: =AB73/G73-1 -> 0.03955421788 | AF73: 250143.3287 | AG73: =AF73/K73*1000 -> 1826.51866 | AH73: -0.01117678227 | AI73: -0.01117678227 | AJ73: =IF(AF73=N73,1,0) -> 0 | AL73: 191865 | AM73: 19896 | AN73: 35153
A74: 04K | B74: NHS Nottingham City CCG | E74: 648419.8974 | F74: 381504.375 | G74: =E74/F74*1000 -> 1699.63948 | H74: -0.02720847296 | J74: 665453.1983 | K74: 383184.875 | L74: =J74/K74*1000 -> 1736.637435 | M74: =K74/F74-1 -> 0.004404929826 | N74: =SUM(AL74:AN74) -> 679665 | O74: =E74/J74-1 -> -0.02559654231 | P74: =G74/L74-1 -> -0.02130436345 | Q74: =(1+M74)*(1+R74)-1 -> 0.04344096672 | R74: =MinGrowthPerHead(P74,0,1,$Q$1,$Q$2,$R$1,$R$2) -> 0.03886484 | S74: =MAX((1+IF($S$2=1,Q74,0))*$E74,$N74) -> 679665 | T74: =MinMaxRamp(P74,0,1,$P$2,$T$2) -> 0.4613830742 | U74: =(1+M74)*(1+V74)-1 -> 0.04641228319 | V74: 0.04182312543 | W74: =MAX((1+IF($S$2=1,U74,0))*$E74,$N74) -> 679665 | X74: =MAX(U74,$X$1) -> 0.04641228319 | Y74: =(1+X74)/(1+M74) - 1 -> 0.04182312543 | Z74: =MAX((1+IF($Z$2=1,X74,0))*$E74,$N74) -> 679665 | AA74: 679665 | AB74: 1773.726064 | AC74: 0.04818652658 | AD74: 0.04358958768 | AF74: 697021.6468 | AG74: 1819.021815 | AH74: =AA74/AF74-1 -> -0.02490115898 | AI74: -0.02490115898 | AJ74: 0 | AL74: 484908 | AM74: 54732 | AN74: 140025
A75: 04L | B75: NHS Nottingham North and East CCG | E75: 266220.0527 | F75: 153479.5469 | G75: 1734.563713 | H75: -0.0124927004 | J75: 269975.9253 | K75: 154496.7812 | L75: 1747.453398 | M75: 0.006627817163 | N75: 279175 | O75: -0.01391187967 | P75: -0.0073762679 | Q75: 0.04575024622 | R75: 0.03886484 | S75: 279175 | T75: 0.1597459209 | U75: 0.04678129003 | V75: 0.03988909524 | W75: 279175 | X75: 0.04678129003 | Y75: 0.03988909524 | Z75: 279175 | AA75: 279175 | AB75: 1806.995575 | AC75: 0.04866255245 | AD75: 0.04175797109 | AF75: 282542.6157 | AG75: 1828.792894 | AH75: -0.01191896564 | AI75: -0.01191896564 | AJ75: 0 | AL75: 208664 | AM75: 21609 | AN75: 48902
A76: 04M | B76: NHS Nottingham West CCG | E76: 168312.7871 | F76: 94623.32812 | G76: 1778.766299 | H76: 0.02284878429 | J76: 164684.0833 | K76: 95121.66406 | L76: 1731.299436 | M76: 0.005266523038 | N76: 175580 | O76: 0.02203433245 | P76: 0.0274168998 | Q76: 0.04433604561 | R76: 0.03886484 | S76: 175775.1106 | T76: 0 | U76: 0.04433604561 | V76: 0.03886484 | W76: 175775.1106 | X76: 0.04433604561 | Y76: 0.03886484 | Z76: 175775.1106 | AA76: 175775.1106 | AB76: 1847.897766 | AC76: 0.04433604561 | AD76: 0.03886484 | AF76: 172389.5779 | AG76: 1812.306162 | AH76: 0.01963884779 | AI76: 0.01963884779 | AJ76: 0 | AL76: 131229 | AM76: 13870 | AN76: 30481
A77: 04N | B77: NHS Rushcliffe CCG | E77: 206559.2847 | F77: 128001.9531 | G77: 1613.719789 | H77: 0.02474715825 | J77: 202381.6362 | K77: 128916.7656 | L77: 1569.862812 | M77: 0.007146863604 | N77: 215933 | O77: 0.02064242905 | P77: 0.02793682128 | Q77: 0.04628946531 | R77: 0.03886484 | S77: 216120.8036 | T77: 0 | U77: 0.04628946531 | V77: 0.03886484 | W77: 216120.8036 | X77: 0.04628946531 | Y77: 0.03886484 | Z77: 216120.8036 | AA77: 216120.8036 | AB77: 1676.43675 | AC77: 0.04628946531 | AD77: 0.03886484 | AF77: 211845.1388 | AG77: 1643.270662 | AH77: 0.02018297339 | AI77: 0.02018297339 | AJ77: 0 | AL77: 160606 | AM77: 17685 | AN77: 37642
A78: 04Q | B78: NHS South West Lincolnshire CCG | E78: 225669.0479 | F78: 134597.2812 | G78: 1676.624118 | H78: -0.01035231804 | J78: 229206.0252 | K78: 135580.4688 | L78: 1690.55342 | M78: 0.007304660918 | N78: 235859 | O78: -0.01543143233 | P78: -0.008239492796 | Q78: 0.0464533954 | R78: 0.03886484 | S78: 236152.1414 | T78: 0.1784405587 | U78: 0.0476058739 | V78: 0.04000896109 | W78: 236412.2202 | X78: 0.0476058739 | Y78: 0.04000896109 | Z78: 236412.2202 | AA78: 236412.2202 | AB78: 1743.704107 | AC78: 0.0476058739 | AD78: 0.04000896109 | AF78: 239830.1995 | AG78: 1768.914075 | AH78: -0.01425166364 | AI78: -0.01425166364 | AJ78: 0 | AL78: 179189 | AM78: 21190 | AN78: 35480
A79: 04V | B79: NHS West Leicestershire CCG | E79: 607442.8734 | F79: 396364.25 | G79: 1532.536987 | H79: -0.02374596698 | J79: 624451.3553 | K79: 399689.625 | L79: 1562.340667 | M79: 0.00838969458 | N79: 637281 | O79: -0.02723748096 | P79: -0.01907630053 | Q79: 0.04758059872 | R79: 0.03886484 | S79: 637281 | T79: 0.4131304933 | U79: 0.05025172282 | V79: 0.04151374064 | W79: 637967.9243 | X79: 0.05025172282 | Y79: 0.04151374064 | Z79: 637967.9243 | AA79: 637967.9243 | AB79: 1596.15833 | AC79: 0.05025172282 | AD79: 0.04151374064 | AF79: 653606.9981 | AG79: 1635.286375 | AH79: -0.02392733521 | AI79: -0.02392733521 | AJ79: 0 | AL79: 478290 | AM79: 52453 | AN79: 106538
A80: 04Y | B80: NHS Cannock Chase CCG | E80: 236977.2745 | F80: 133391.125 | G80: 1776.559531 | H80: -0.01103478332 | J80: 239408.4396 | K80: 133519.9062 | L80: 1793.054282 | M80: 0.0009654409167 | N80: 246868 | O80: -0.01015488469 | P80: -0.009199247718 | Q80: 0.03986780262 | R80: 0.03886484 | S80: 246868 | T80: 0.1992257221 | U80: 0.04114642679 | V80: 0.04014223092 | W80: 246868 | X80: 0.04114642679 | Y80: 0.04014223092 | Z80: 246868 | AA80: 246868 | AB80: 1848.922808 | AC80: 0.04173702095 | AD80: 0.04073225544 | AF80: 250506.3858 | AG80: 1876.172571 | AH80: -0.01452412379 | AI80: -0.01452412379 | AJ80: 0 | AL80: 187380 | AM80: 19504 | AN80: 39984
A81: 05A | B81: NHS Coventry and Rugby CCG | E81: 871421.7233 | F81: 521674.4062 | G81: 1670.432195 | H81: -0.006090706236 | J81: 879102.4846 | K81: 528344.125 | L81: 1663.882388 | M81: 0.01278521367 | N81: 916864 | O81: -0.008737048869 | P81: 0.003936459765 | Q81: 0.05214694895 | R81: 0.03886484 | S81: 916864 | T81: 0 | U81: 0.05214694895 | V81: 0.03886484 | W81: 916864 | X81: 0.05214694895 | Y81: 0.03886484 | Z81: 916864 | AA81: 916864 | AB81: 1735.353828 | AC81: 0.05214728474 | AD81: 0.03886517155 | AF81: 920281.9623 | AG81: 1741.823026 | AH81: -0.003714038151 | AI81: -0.003714038151 | AJ81: 0 | AL81: 672767 | AM81: 76763 | AN81: 167334
A82: 05C | B82: NHS Dudley CCG | E82: 580533.5491 | F82: 320331.8125 | G82: 1812.288154 | H82: -0.01649883397 | J82: 588530.1992 | K82: 321186.375 | L82: 1832.363528 | M82: 0.002667741594 | N82: 604483 | O82: -0.01358749335 | P82: -0.01095599968 | Q82: 0.04163626294 | R82: 0.03886484 | S82: 604704.7966 | T82: 0.2372712436 | U82: 0.04316165179 | V82: 0.04038617033 | W82: 605590.336 | X82: 0.04316165179 | Y82: 0.04038617033 | Z82: 605590.336 | AA82: 605590.336 | AB82: 1885.479532 | AC82: 0.04316165179 | AD82: 0.04038617033 | AF82: 615802.6814 | AG82: 1917.275231 | AH82: -0.01658379509 | AI82: -0.01658379509 | AJ82: 0 | AL82: 466601 | AM82: 45884 | AN82: 91998
A83: 05D | B83: NHS East Staffordshire CCG | E83: 225094.5755 | F83: 142623.875 | G83: 1578.239096 | H83: -0.04464173677 | J83: 236013.9614 | K83: 143146.2188 | L83: 1648.761409 | M83: 0.003662386469 | N83: 235816 | O83: -0.04626584732 | P83: -0.04277290427 | Q83: 0.04266956453 | R83: 0.03886484 | S83: 235816 | T83: 0.926321695 | U83: 0.04863068503 | V83: 0.04480420823 | W83: 236041.0789 | X83: 0.04863068503 | Y83: 0.04480420823 | Z83: 236041.0789 | AA83: 236041.0789 | AB83: 1648.950849 | AC83: 0.04863068503 | AD83: 0.04480420823 | AF83: 246909.5249 | AG83: 1724.876333 | AH83: -0.04401792915 | AI83: -0.04401792915 | AJ83: 0 | AL83: 181125 | AM83: 20514 | AN83: 34177
A84: 05F | B84: NHS Herefordshire CCG | E84: 331119.2112 | F84: 188340.4375 | G84: 1758.088786 | H84: 0.002585772333 | J84: 330279.6825 | K84: 189233.0781 | L84: 1745.35914 | M84: 0.004739505954 | N84: 345105 | O84: 0.002541872084 | P84: 0.007293425257 | Q84: 0.0437885461 | R84: 0.03886484 | S84: 345618.44 | T84: 0 | U84: 0.0437885461 | V84: 0.03886484 | W84: 345618.44 | X84: 0.0437885461 | Y84: 0.03886484 | Z84: 345618.44 | AA84: 345618.44 | AB84: 1826.416626 | AC84: 0.0437885461 | AD84: 0.03886484 | AF84: 345579.8657 | AG84: 1826.21278 | AH84: 0.000111621933 | AI84: 0.000111621933 | AJ84: 0 | AL84: 262439 | AM84: 30526 | AN84: 52140
A85: 05G | B85: NHS North Staffordshire CCG | E85: 409889.472 | F85: 218799.0938 | G85: 1873.360008 | H85: 0.03204325412 | J85: 396862.8249 | K85: 219545.2812 | L85: 1807.658186 | M85: 0.003410377471 | N85: 427031 | O85: 0.03282405464 | P85: 0.03634637453 | Q85: 0.04240776125 | R85: 0.03886484 | S85: 427271.9668 | T85: 0 | U85: 0.04240776125 | V85: 0.03886484 | W85: 427271.9668 | X85: 0.04240776125 | Y85: 0.03886484 | Z85: 427271.9668 | AA85: 427271.9668 | AB85: 1946.167845 | AC85: 0.04240776125 | AD85: 0.03886484 | AF85: 415507.2418 | AG85: 1892.581063 | AH85: 0.02831412744 | AI85: 0.02831412744 | AJ85: 0 | AL85: 315868 | AM85: 31759 | AN85: 79404
A86: 05H | B86: NHS Warwickshire North CCG | E86: 335731.6124 | F86: 192349.4375 | G86: 1745.425496 | H86: -0.01661157639 | J86: 341282.4067 | K86: 193056.6562 | L86: 1767.783683 | M86: 0.003676739372 | N86: 350518 | O86: -0.01626451934 | P86: -0.01264758037 | Q86: 0.04268447526 | R86: 0.03886484 | S86: 350518 | T86: 0.2739053681 | U86: 0.04444715259 | V86: 0.04062106017 | W86: 350653.9266 | X86: 0.04444715259 | Y86: 0.04062106017 | Z86: 350653.9266 | AA86: 350653.9266 | AB86: 1816.326531 | AC86: 0.04444715259 | AD86: 0.04062106017 | AF86: 357236.2262 | AG86: 1850.421701 | AH86: -0.0184256217 | AI86: -0.0184256217 | AJ86: 0 | AL86: 261772 | AM86: 28169 | AN86: 60577
A87: 05J | B87: NHS Redditch and Bromsgrove CCG | E87: 292796.5924 | F87: 178487.7656 | G87: 1640.429479 | H87: -0.02680295421 | J87: 301138.3015 | K87: 179143.1562 | L87: 1680.992497 | M87: 0.003671907835 | N87: 306762 | O87: -0.02770059181 | P87: -0.02413039799 | Q87: 0.04267945595 | R87: 0.03886484 | S87: 306762 | T87: 0.5225857714 | U87: 0.0460424629 | V87: 0.04221554348 | W87: 306762 | X87: 0.0460424629 | Y87: 0.04221554348 | Z87: 306762 | AA87: 306762 | AB87: 1712.384701 | AC87: 0.04769661942 | AD87: 0.04386364831 | AF87: 315177.3705 | AG87: 1759.360375 | AH87: -0.0267004274 | AI87: -0.0267004274 | AJ87: 0 | AL87: 227935 | AM87: 25346 | AN87: 53481
A88: 05L | B88: NHS Sandwell and West Birmingham CCG | E88: 995586.1984 | F88: 575628.9375 | G88: 1729.562455 | H88: -0.04044226133 | J88: 1038069.718 | K88: 579789.375 | L88: 1790.425563 | M88: 0.007227637857 | N88: 1047475 | O88: -0.04092549744 | P88: -0.03399365426 | Q88: 0.04637337885 | R88: 0.03886484 | S88: 1047475 | T88: 0.7361917544 | U88: 0.05112779288 | V88: 0.04358513743 | W88: 1047475 | X88: 0.05112779288 | Y88: 0.04358513743 | Z88: 1047475 | AA88: 1047475 | AB88: 1806.647457 | AC88: 0.0521188438 | AD88: 0.0445690768 | AF88: 1086752.557 | AG88: 1874.391985 | AH88: -0.03614213476 | AI88: -0.03614213476 | AJ88: 0 | AL88: 771275 | AM88: 87922 | AN88: 188278
A89: 05N | B89: NHS Shropshire CCG | E89: 542375.7465 | F89: 311223.875 | G89: 1742.718956 | H89: -0.0247447252 | J89: 558179.9483 | K89: 312527.375 | L89: 1786.019379 | M89: 0.004188303356 | N89: 567576 | O89: -0.02831381141 | P89: -0.02424409488 | Q89: 0.0432159211 | R89: 0.03886484 | S89: 567576 | T89: 0.5250480755 | U89: 0.04659651221 | V89: 0.04223133123 | W89: 567648.5646 | X89: 0.04659651221 | Y89: 0.04223133123 | Z89: 567648.5646 | AA89: 567648.5646 | AB89: 1816.316297 | AC89: 0.04659651221 | AD89: 0.04223133123 | AF89: 583976.2781 | AG89: 1868.560404 | AH89: -0.02795954915 | AI89: -0.02795954915 | AJ89: 0 | AL89: 433379 | AM89: 47668 | AN89: 86529
A90: 05Q | B90: NHS South East Staffordshire and Seisdon Peninsula CCG | E90: 362073.3917 | F90: 218123.3281 | G90: 1659.948043 | H90: -0.03407148126 | J90: 375466.5924 | K90: 218447.4062 | L90: 1718.796294 | M90: 0.001485756374 | N90: 380121 | O90: -0.03567081839 | P90: -0.03423806016 | Q90: 0.04040834006 | R90: 0.03886484 | S90: 380121 | T90: 0.7414847897 | U90: 0.04516963889 | V90: 0.0436190752 | W90: 380121 | X90: 0.04516963889 | Y90: 0.0436190752 | Z90: 380121 | AA90: 380121 | AB90: 1740.10306 | AC90: 0.04984516588 | AD90: 0.0482876658 | AF90: 392856.7461 | AG90: 1798.40426 | AH90: -0.03241829551 | AI90: -0.03241829551 | AJ90: 0 | AL90: 288315 | AM90: 30136 | AN90: 61670
A91: 05R | B91: NHS South Warwickshire CCG | E91: 472755.8299 | F91: 288329.125 | G91: 1639.639526 | H91: -0.007407791646 | J91: 476614.6509 | K91: 289400.875 | L91: 1646.901209 | M91: 0.003717106276 | N91: 493989 | O91: -0.00809631199 | P91: -0.004409300566 | Q91: 0.04272641102 | R91: 0.03886484 | S91: 493989 | T91: 0.09549107885 | U91: 0.04334095439 | V91: 0.03947710751 | W91: 493989 | X91: 0.04334095439 | Y91: 0.03947710751 | Z91: 493989 | AA91: 493989 | AB91: 1706.936788 | AC91: 0.04491360805 | AD91: 0.0410439371 | AF91: 498738.75 | AG91: 1723.349143 | AH91: -0.009523523041 | AI91: -0.009523523041 | AJ91: 0 | AL91: 368068 | AM91: 41154 | AN91: 84767
A92: 05T | B92: NHS South Worcestershire CCG | E92: 517797.0274 | F92: 313593.1875 | G92: 1651.17435 | H92: -0.03402740894 | J92: 537712.3945 | K92: 315466.2812 | L92: 1704.500374 | M92: 0.005973005233 | N92: 544468 | O92: -0.03703721039 | P92: -0.03128542861 | Q92: 0.04506998513 | R92: 0.03886484 | S92: 544468 | T92: 0.6775404138 | U92: 0.04944017139 | V92: 0.04320907811 | W92: 544468 | X92: 0.04944017139 | Y92: 0.04320907811 | Z92: 544468 | AA92: 544468 | AB92: 1725.915042 | AC92: 0.05150854714 | AD92: 0.04526517279 | AF92: 562736.4128 | AG92: 1783.824282 | AH92: -0.0324635342 | AI92: -0.0324635342 | AJ92: 0 | AL92: 403117 | AM92: 50757 | AN92: 90594
A93: 05V | B93: NHS Stafford and Surrounds CCG | E93: 255691.8331 | F93: 149500.5 | G93: 1710.307545 | H93: -0.01408640463 | J93: 259427.7398 | K93: 150004.2344 | L93: 1729.469444 | M93: 0.003369449433 | N93: 267789 | O93: -0.01440056732 | P93: -0.01107963987 | Q93: 0.04236524255 | R93: 0.03886484 | S93: 267789 | T93: 0.2399488872 | U93: 0.04390892522 | V93: 0.04040333878 | W93: 267789 | X93: 0.04390892522 | Y93: 0.04040333878 | Z93: 267789 | AA93: 267789 | AB93: 1785.209605 | AC93: 0.04731151059 | AD93: 0.04379449781 | AF93: 271560.2971 | AG93: 1810.350876 | AH93: -0.01388751283 | AI93: -0.01388751283 | AJ93: 0 | AL93: 195108 | AM93: 22229 | AN93: 50452
A94: 05W | B94: NHS Stoke on Trent CCG | E94: 562494.8468 | F94: 292240 | G94: 1924.770212 | H94: -0.002502078152 | J94: 562607.6684 | K94: 293148.125 | L94: 1919.19245 | M94: 0.003107463044 | N94: 585862 | O94: -0.0002005332521 | P94: 0.002906306642 | Q94: 0.0420930741 | R94: 0.03886484 | S94: 586171.9841 | T94: 0 | U94: 0.0420930741 | V94: 0.03886484 | W94: 586171.9841 | X94: 0.0420930741 | Y94: 0.03886484 | Z94: 586171.9841 | AA94: 586171.9841 | AB94: 1999.576099 | AC94: 0.0420930741 | AD94: 0.03886484 | AF94: 589035.0482 | AG94: 2009.342711 | AH94: -0.004860600512 | AI94: -0.004860600512 | AJ94: 0 | AL94: 434339 | AM94: 43590 | AN94: 107933
A95: 05X | B95: NHS Telford and Wrekin CCG | E95: 307321.8933 | F95: 187726.6094 | G95: 1637.07156 | H95: -0.03448028432 | J95: 319576.0247 | K95: 188812.2188 | L95: 1692.560083 | M95: 0.005782927517 | N95: 323036 | O95: -0.03834496463 | P95: -0.03278378327 | Q95: 0.04487252007 | R95: 0.03886484 | S95: 323036 | T95: 0.7099898921 | U95: 0.04945114261 | V95: 0.04341713693 | W95: 323036 | X95: 0.04945114261 | Y95: 0.04341713693 | Z95: 323036 | AA95: 323036 | AB95: 1710.885038 | AC95: 0.05113240228 | AD95: 0.04508872991 | AF95: 334464.1348 | AG95: 1771.411495 | AH95: -0.03416849101 | AI95: -0.03416849101 | AJ95: 0 | AL95: 240743 | AM95: 26017 | AN95: 56276
A96: 05Y | B96: NHS Walsall CCG | E96: 533729.3284 | F96: 287643.6875 | G96: 1855.52248 | H96: 0.01151868733 | J96: 526978.6256 | K96: 289358.9375 | L96: 1821.193533 | M96: 0.005963106699 | N96: 556968 | O96: 0.0128102022 | P96: 0.01884969751 | Q96: 0.04505970189 | R96: 0.03886484 | S96: 557779.0128 | T96: 0 | U96: 0.04505970189 | V96: 0.03886484 | W96: 557779.0128 | X96: 0.04505970189 | Y96: 0.03886484 | Z96: 557779.0128 | AA96: 557779.0128 | AB96: 1927.637064 | AC96: 0.04505970189 | AD96: 0.03886484 | AF96: 551460.7552 | AG96: 1905.801701 | AH96: 0.01145731139 | AI96: 0.01145731139 | AJ96: 0 | AL96: 427577 | AM96: 44373 | AN96: 85018
A97: 06A | B97: NHS Wolverhampton CCG | E97: 515233.2882 | F97: 282238.0625 | G97: 1825.5273 | H97: -0.03187103423 | J97: 530997.8134 | K97: 283758.125 | L97: 1871.304349 | M97: 0.005385745943 | N97: 541120 | O97: -0.02968849348 | P97: -0.02446264222 | Q97: 0.0444599021 | R97: 0.03886484 | S97: 541120 | T97: 0.5297810985 | U97: 0.04787503492 | V97: 0.04226167832 | W97: 541120 | X97: 0.04787503492 | Y97: 0.04226167832 | Z97: 541120 | AA97: 541120 | AB97: 1906.976232 | AC97: 0.05024270046 | AD97: 0.04461666052 | AF97: 555824.3156 | AG97: 1958.796125 | AH97: -0.02645497004 | AI97: -0.02645497004 | AJ97: 0 | AL97: 400035 | AM97: 41204 | AN97: 99881
A98: 06D | B98: NHS Wyre Forest CCG | E98: 202319.6357 | F98: 116725.7969 | G98: 1733.289822 | H98: -0.04356690593 | J98: 211732.0617 | K98: 117143.3125 | L98: 1807.461794 | M98: 0.003576892479 | N98: 212227 | O98: -0.04445442035 | P98: -0.04103653655 | Q98: 0.04258074783 | R98: 0.03886484 | S98: 212227 | T98: 0.8887176297 | U98: 0.04829938924 | V98: 0.04456309935 | W98: 212227 | X98: 0.04829938924 | Y98: 0.04456309935 | Z98: 212227 | AA98: 212227 | AB98: 1811.68686 | AC98: 0.04896887192 | AD98: 0.04523019589 | AF98: 221526.0344 | AG98: 1891.068552 | AH98: -0.04197716267 | AI98: -0.04197716267 | AJ98: 0 | AL98: 162191 | AM98: 18495 | AN98: 31541
A99: 06F | B99: NHS Bedfordshire CCG | E99: 798925.0229 | F99: 486320.9688 | G99: 1642.793699 | H99: -0.0001658458901 | J99: 801821.379 | K99: 492199.875 | L99: 1629.056446 | M99: 0.01208853129 | N99: 839097 | O99: -0.003612221004 | P99: 0.008432643844 | Q99: 0.05142319013 | R99: 0.03886484 | S99: 840008.2963 | T99: 0 | U99: 0.05142319013 | V99: 0.03886484 | W99: 840008.2963 | X99: 0.05142319013 | Y99: 0.03886484 | Z99: 840008.2963 | AA99: 840008.2963 | AB99: 1706.640613 | AC99: 0.05142319013 | AD99: 0.03886484 | AF99: 839144.6952 | AG99: 1704.886039 | AH99: 0.001029144385 | AI99: 0.001029144385 | AJ99: 0 | AL99: 632402 | AM99: 67700 | AN99: 138995
A100: 06H | B100: NHS Cambridgeshire and Peterborough CCG | E100: 1476406.526 | F100: 973472.4375 | G100: 1516.639269 | H100: -0.02818035799 | J100: 1520401.916 | K100: 978624.0625 | L100: 1553.611825 | M100: 0.005292009102 | N100: 1547711 | O100: -0.02893668417 | P100: -0.02379780827 | Q100: 0.04436252219 | R100: 0.03886484 | S100: 1547711 | T100: 0.5153829619 | U100: 0.04768453042 | V100: 0.04216936067 | W100: 1547711 | X100: 0.04768453042 | Y100: 0.04216936067 | Z100: 1547711 | AA100: 1547711 | AB100: 1581.517417 | AC100: 0.04829596243 | AD100: 0.04277757401 | AF100: 1591406.628 | AG100: 1626.167482 | AH100: -0.02745723614 | AI100: -0.02745723614 | AJ100: 0 | AL100: 1142415 | AM100: 138368 | AN100: 266928
A101: 06K | B101: NHS East and North Hertfordshire CCG | E101: 1017609.679 | F101: 603318.875 | G101: 1686.686296 | H101: 0.02320476803 | J101: 992274.2755 | K101: 608245.0625 | L101: 1631.372512 | M101: 0.008165147328 | N101: 1064585 | O101: 0.02553266168 | P101: 0.03390628695 | Q101: 0.04734732447 | R101: 0.03886484 | S101: 1065790.774 | T101: 0 | U101: 0.04734732447 | V101: 0.03886484 | W101: 1065790.774 | X101: 0.04734732447 | Y101: 0.03886484 | Z101: 1065790.774 | AA101: 1065790.774 | AB101: 1752.239089 | AC101: 0.04734732447 | AD101: 0.03886484 | AF101: 1038475.607 | AG101: 1707.330927 | AH101: 0.02630313869 | AI101: 0.02630313869 | AJ101: 0 | AL101: 808820 | AM101: 80248 | AN101: 175517
A102: 06L | B102: NHS Ipswich and East Suffolk CCG | E102: 673717.141 | F102: 409731.9062 | G102: 1644.287718 | H102: -0.02527318417 | J102: 692621.494 | K102: 411776.5312 | L102: 1682.032465 | M102: 0.004990153241 | N102: 705594 | O102: -0.02729391616 | P102: -0.02243996374 | Q102: 0.04404893475 | R102: 0.03886484 | S102: 705594 | T102: 0.4859764751 | U102: 0.04718045677 | V102: 0.04198081284 | W102: 705594 | X102: 0.04718045677 | Y102: 0.04198081284 | Z102: 705594 | AA102: 705594 | AB102: 1713.536218 | AC102: 0.04731489972 | AD102: 0.04211458823 | AF102: 724695.1569 | AG102: 1759.92341 | AH102: -0.02635750598 | AI102: -0.02635750598 | AJ102: 0 | AL102: 532900 | AM102: 60760 | AN102: 111934
A103: 06M | B103: NHS Great Yarmouth and Waveney CCG | E103: 448125.7264 | F103: 240583.375 | G103: 1862.662898 | H103: -0.02710252306 | J103: 460958.5408 | K103: 241371.125 | L103: 1909.750144 | M103: 0.003274332651 | N103: 467716 | O103: -0.02783941119 | P103: -0.02465623403 | Q103: 0.04226642907 | R103: 0.03886484 | S103: 467716 | T103: 0.5339736661 | U103: 0.04570135959 | V103: 0.04228856013 | W103: 468605.6814 | X103: 0.04570135959 | Y103: 0.04228856013 | Z103: 468605.6814 | AA103: 468605.6814 | AB103: 1941.43223 | AC103: 0.04570135959 | AD103: 0.04228856013 | AF103: 482238.3238 | AG103: 1997.912235 | AH103: -0.02826951266 | AI103: -0.02826951266 | AJ103: 0 | AL103: 363048 | AM103: 37324 | AN103: 67344
A104: 06N | B104: NHS Herts Valleys CCG | E104: 1096809.794 | F104: 651355.75 | G104: 1683.887483 | H104: 0.02195769243 | J104: 1068402.702 | K104: 656279.25 | L104: 1627.969652 | M104: 0.007558849369 | N104: 1147152 | O104: 0.02658837563 | P104: 0.03434820252 | Q104: 0.04671746284 | R104: 0.03886484 | S104: 1148049.965 | T104: 0 | U104: 0.04671746284 | V104: 0.03886484 | W104: 1148049.965 | X104: 0.04671746284 | Y104: 0.03886484 | Z104: 1148049.965 | AA104: 1148049.965 | AB104: 1749.331501 | AC104: 0.04671746284 | AD104: 0.03886484 | AF104: 1118533.604 | AG104: 1704.356193 | AH104: 0.02638844361 | AI104: 0.02638844361 | AJ104: 0 | AL104: 857404 | AM104: 85706 | AN104: 204042
A105: 06P | B105: NHS Luton CCG | E105: 394710.955 | F105: 236174.5938 | G105: 1671.267636 | H105: -0.026828921 | J105: 404877.8399 | K105: 238103.2969 | L105: 1700.429373 | M105: 0.008166429311 | N105: 413952 | O105: -0.02511099386 | P105: -0.0171496317 | Q105: 0.04734865628 | R105: 0.03886484 | S105: 413952 | T105: 0.3714051262 | U105: 0.04974947043 | V105: =MAX(R105,NewMinGrowthPerHead(P105,$P$2,$L$1,$U$1,$T$2,AG105,G105,T105, $P$1)) -> 0.04124620688 | W105: 414347.6159 | X105: 0.04974947043 | Y105: 0.04124620688 | Z105: 414347.6159 | AA105: =Z105 -> 414347.6159 | AB105: =AA105/K105*1000 -> 1740.201087 | AC105: =AA105/E105-1 -> 0.04974947043 | AD105: =AB105/G105-1 -> 0.04124620688 | AF105: 423853.2541 | AG105: =AF105/K105*1000 -> 1780.123416 | AH105: -0.02242671983 | AI105: -0.02242671983 | AJ105: =IF(AF105=N105,1,0) -> 0 | AL105: 308434 | AM105: 33455 | AN105: 72063
A106: 06Q | B106: NHS Mid Essex CCG | E106: 644802.4953 | F106: 393605.25 | G106: 1638.195871 | H106: -0.002918491491 | J106: 645388.6797 | K106: 395722.8125 | L106: 1630.91098 | M106: 0.005379914267 | N106: 673010 | O106: -0.0009082657383 | P106: 0.004466762137 | Q106: 0.04445384377 | R106: 0.03886484 | S106: 673466.4447 | T106: 0 | U106: 0.04445384377 | V106: 0.03886484 | W106: 673466.4447 | X106: 0.04445384377 | Y106: 0.03886484 | Z106: 673466.4447 | AA106: 673466.4447 | AB106: 1701.864091 | AC106: 0.04445384377 | AD106: 0.03886484 | AF106: 675468.142 | AG106: 1706.922423 | AH106: -0.002963422211 | AI106: -0.002963422211 | AJ106: 0 | AL106: 507283 | AM106: 53759 | AN106: 111968
A107: 06T | B107: NHS North East Essex CCG | E107: 645647.141 | F107: 355431.3125 | G107: 1816.517336 | H107: -0.01038991802 | J107: 654297.5673 | K107: 359002.8125 | L107: 1822.54162 | M107: 0.01004835498 | N107: 676714 | O107: -0.01322093602 | P107: -0.003305429695 | Q107: 0.04930372269 | R107: 0.03886484 | S107: 677479.9486 | T107: 0.07158483367 | U107: 0.04976732074 | V107: 0.039323826 | W107: 677779.2694 | X107: 0.04976732074 | Y107: 0.039323826 | Z107: 677779.2694 | AA107: 677779.2694 | AB107: 1887.949748 | AC107: 0.04976732074 | AD107: 0.039323826 | AF107: 684600.1758 | AG107: 1906.949339 | AH107: -0.009963343102 | AI107: -0.009963343102 | AJ107: 0 | AL107: 518908 | AM107: 53270 | AN107: 104536
A108: 06V | B108: NHS North Norfolk CCG | E108: 327042.8946 | F108: 174474.5469 | G108: 1874.444728 | H108: -0.01062704277 | J108: 331254.9744 | K108: 175179.875 | L108: 1890.94195 | M108: 0.00404258465 | N108: 341261 | O108: -0.01271552142 | P108: -0.008724340337 | Q108: 0.04306453906 | R108: 0.03886484 | S108: 341261 | T108: 0.1889407761 | U108: 0.04428088257 | V108: 0.04007628614 | W108: 341524.6427 | X108: 0.04428088257 | Y108: 0.04007628614 | Z108: 341524.6427 | AA108: 341524.6427 | AB108: 1949.565512 | AC108: 0.04428088257 | AD108: 0.04007628614 | AF108: 346628.3016 | AG108: 1978.699331 | AH108: -0.01472372242 | AI108: -0.01472372242 | AJ108: 0 | AL108: 256636 | AM108: 30948 | AN108: 53677
A109: 06W | B109: NHS Norwich CCG | E109: 370390.5455 | F109: 237093.5156 | G109: 1562.212887 | H109: -0.008532323089 | J109: 373715.5756 | K109: 238141.7188 | L109: 1569.299061 | M109: 0.004421053533 | N109: 386182 | O109: -0.008897221326 | P109: -0.004515502885 | Q109: 0.04345771707 | R109: 0.03886484 | S109: 386486.873 | T109: 0.09779107493 | U109: 0.04408750371 | V109: 0.03949185458 | W109: 386720.14 | X109: 0.04408750371 | Y109: 0.03949185458 | Z109: 386720.14 | AA109: 386720.14 | AB109: 1623.907571 | AC109: 0.04408750371 | AD109: 0.03949185458 | AF109: 391115.9691 | AG109: 1642.36645 | AH109: -0.01123919622 | AI109: -0.01123919622 | AJ109: 0 | AL109: 290636 | AM109: 33851 | AN109: 61695
A110: 06Y | B110: NHS South Norfolk CCG | E110: 372048.4274 | F110: 230298.2812 | G110: 1615.506748 | H110: -0.02919973524 | J110: 385643.8023 | K110: 232384.4688 | L110: 1659.507644 | M110: 0.009058632521 | N110: 391535 | O110: -0.03525371047 | P110: -0.02651442836 | Q110: 0.04827553482 | R110: 0.03886484 | S110: 391535 | T110: 0.5742160987 | U110: 0.05199063204 | V110: 0.04254658563 | W110: 391535 | X110: 0.05199063204 | Y110: 0.04254658563 | Z110: 391535 | AA110: 391535 | AB110: 1684.858726 | AC110: 0.05237644138 | AD110: 0.04292893145 | AF110: 403556.8325 | AG110: 1736.591239 | AH110: -0.02978968897 | AI110: -0.02978968897 | AJ110: 0 | AL110: 291998 | AM110: 35913 | AN110: 63624
A111: 07G | B111: NHS Thurrock CCG | E111: 295322.6559 | F111: 178554.9375 | G111: 1653.959616 | H111: 0.009565275352 | J111: 292272.3351 | K111: 180604.5625 | L111: 1618.299843 | M111: 0.01147896008 | N111: 310154 | O111: 0.01043657024 | P111: 0.02203533129 | Q111: 0.05078992803 | R111: 0.03886484 | S111: 310322.0723 | T111: 0 | U111: 0.05078992803 | V111: 0.03886484 | W111: 310322.0723 | X111: 0.05078992803 | Y111: 0.03886484 | Z111: 310322.0723 | AA111: 310322.0723 | AB111: 1718.240492 | AC111: 0.05078992803 | AD111: 0.03886484 | AF111: 305929.974 | AG111: 1693.921625 | AH111: 0.01435654785 | AI111: 0.01435654785 | AJ111: 0 | AL111: 234667 | AM111: 24021 | AN111: 51466
A112: 07H | B112: NHS West Essex CCG | E112: 551362.9601 | F112: 316014.2812 | G112: 1744.740642 | H112: 0.01158853757 | J112: 543948.6377 | K112: 318751.0938 | L112: 1706.499674 | M112: 0.008660407654 | N112: 577247 | O112: 0.01363055594 | P112: 0.02240900977 | Q112: 0.04786183301 | R112: 0.03886484 | S112: 577752.202 | T112: 0 | U112: 0.04786183301 | V112: 0.03886484 | W112: 577752.202 | X112: 0.04786183301 | Y112: 0.03886484 | Z112: 577752.202 | AA112: 577752.202 | AB112: 1812.549708 | AC112: 0.04786183301 | AD112: 0.03886484 | AF112: 569290.5898 | AG112: 1786.003565 | AH112: 0.01486343241 | AI112: 0.01486343241 | AJ112: 0 | AL112: 433650 | AM112: 45484 | AN112: 98113
A113: 07J | B113: NHS West Norfolk CCG | E113: 332632.7791 | F113: 176762.8125 | G113: 1881.802933 | H113: -0.04039581262 | J113: 347281.3529 | K113: 177701.8125 | L113: 1954.292689 | M113: 0.005312203323 | N113: 348062 | O113: -0.04218070939 | P113: -0.03709257858 | Q113: 0.04438350126 | R113: 0.03886484 | S113: 348062 | T113: 0.8033043546 | U113: 0.0495614708 | V113: 0.04401544847 | W113: 349118.5489 | X113: 0.0495614708 | Y113: 0.04401544847 | Z113: 349118.5489 | AA113: 349118.5489 | AB113: 1964.631334 | AC113: 0.0495614708 | AD113: 0.04401544847 | AF113: 363299.203 | AG113: 2044.431612 | AH113: -0.03903298993 | AI113: -0.03903298993 | AJ113: 0 | AL113: 270692 | AM113: 31226 | AN113: 46144
A114: 07K | B114: NHS West Suffolk CCG | E114: 429399.4851 | F114: 252258.1562 | G114: 1702.222404 | H114: -0.01855612346 | J114: 438921.5062 | K114: 253729.0469 | L114: 1729.882769 | M114: 0.005830894219 | N114: 449483 | O114: -0.02169413185 | P114: -0.01598973382 | Q114: 0.04492235099 | R114: 0.03886484 | S114: 449483 | T114: 0.3462855186 | U114: 0.04715560292 | V114: 0.04108514556 | W114: 449648.0767 | X114: 0.04715560292 | Y114: 0.04108514556 | Z114: 449648.0767 | AA114: 449648.0767 | AB114: 1772.158459 | AC114: 0.04715560292 | AD114: 0.04108514556 | AF114: 459309.0722 | AG114: 1810.234492 | AH114: -0.02103375713 | AI114: -0.02103375713 | AJ114: 0 | AL114: 339033 | AM114: 38089 | AN114: 72361
A115: 07L | B115: NHS Barking and Dagenham CCG | E115: 409821.7147 | F115: 227890.2969 | G115: 1798.328934 | H115: 0.03314482671 | J115: 397500.3127 | K115: 231530.3125 | L115: 1716.839184 | M115: 0.01597266612 | N115: 431045 | O115: 0.03099721348 | P115: 0.04746498775 | Q115: 0.05545828124 | R115: 0.03886484 | S115: 432549.7227 | T115: 0 | U115: 0.05545828124 | V115: 0.03886484 | W115: 432549.7227 | X115: 0.05545828124 | Y115: 0.03886484 | Z115: 432549.7227 | AA115: 432549.7227 | AB115: 1868.220701 | AC115: 0.05545828124 | AD115: 0.03886484 | AF115: 416354.4566 | AG115: 1798.271907 | AH115: 0.03889778485 | AI115: 0.03889778485 | AJ115: 0 | AL115: 315869 | AM115: 34912 | AN115: 80264
A116: 07M | B116: NHS Barnet CCG | E116: 722852.2909 | F116: 428645.75 | G116: 1686.362902 | H116: 0.02288029257 | J116: 705773.7409 | K116: 433326.5312 | L116: 1628.734199 | M116: 0.01091992922 | N116: 759190 | O116: 0.02419833578 | P116: 0.03538250912 | Q116: 0.05020917052 | R116: 0.03886484 | S116: 759190 | T116: 0 | U116: 0.05020917052 | V116: 0.03886484 | W116: 759190 | X116: 0.05020917052 | Y116: 0.03886484 | Z116: 759190 | AA116: 759190 | AB116: 1752.004424 | AC116: 0.05026989553 | AD116: 0.03892490906 | AF116: 739220.2111 | AG116: 1705.919573 | AH116: 0.02701466849 | AI116: 0.02701466849 | AJ116: 0 | AL116: 549103 | AM116: 57463 | AN116: 152624
A117: 07N | B117: NHS Bexley CCG | E117: 442217.5133 | F117: 243943.6875 | G117: 1812.785229 | H117: 0.01583591283 | J117: 433509.5771 | K117: 246476.6406 | L117: 1758.826216 | M117: 0.01038335179 | N117: 463975 | O117: 0.02008706765 | P117: 0.03067899054 | Q117: 0.0496517391 | R117: 0.03886484 | S117: 464174.3819 | T117: 0 | U117: 0.0496517391 | V117: 0.03886484 | W117: 464174.3819 | X117: 0.0496517391 | Y117: 0.03886484 | Z117: 464174.3819 | AA117: 464174.3819 | AB117: 1883.238837 | AC117: 0.0496517391 | AD117: 0.03886484 | AF117: 453893.0457 | AG117: 1841.525609 | AH117: 0.02265145137 | AI117: 0.02265145137 | AJ117: 0 | AL117: 342310 | AM117: 32934 | AN117: 88731
A118: 07P | B118: NHS Brent CCG | E118: 630808.8951 | F118: 383764.3438 | G118: 1643.740241 | H118: -0.03609883583 | J118: 651563.7789 | K118: 385367 | L118: 1690.761739 | M118: 0.004176146836 | N118: 661355 | O118: -0.03185395585 | P118: -0.02781083581 | Q118: 0.04320329211 | R118: 0.03886484 | S118: 661355 | T118: 0.6022920587 | U118: 0.04708118183 | V118: 0.04272660243 | W118: 661355 | X118: 0.04708118183 | Y118: 0.04272660243 | Z118: 661355 | AA118: 661355 | AB118: 1716.169262 | AC118: 0.04842370672 | AD118: 0.04406354405 | AF118: 682453.5832 | AG118: 1770.918587 | AH118: -0.03091577767 | AI118: -0.03091577767 | AJ118: 0 | AL118: 473535 | AM118: 54089 | AN118: 133731
A119: 07Q | B119: NHS Bromley CCG | E119: 637029.7007 | F119: 353043.375 | G119: 1804.395 | H119: 0.03147186388 | J119: 614761.6683 | K119: 356784.1875 | L119: 1723.0631 | M119: 0.01059590057 | N119: 668621 | O119: 0.03622221999 | P119: 0.04720192761 | Q119: 0.04987254856 | R119: 0.03886484 | S119: 668799.9954 | T119: 0 | U119: 0.04987254856 | V119: 0.03886484 | W119: 668799.9954 | X119: 0.04987254856 | Y119: 0.03886484 | Z119: 668799.9954 | AA119: 668799.9954 | AB119: 1874.522523 | AC119: 0.04987254856 | AD119: 0.03886484 | AF119: 643752.0748 | AG119: 1804.317841 | AH119: 0.03890926575 | AI119: 0.03890926575 | AJ119: 0 | AL119: 487878 | AM119: 48979 | AN119: 131764
A120: 07R | B120: NHS Camden CCG | E120: 529492.4229 | F120: 287746.6562 | G120: 1840.13406 | H120: 0.07389434494 | J120: 492334.6776 | K120: 290829.9062 | L120: 1692.861246 | M120: 0.01071515492 | N120: 551396 | O120: 0.07547253338 | P120: 0.08699638819 | Q120: 0.04000104666 | R120: 0.02897541567 | S120: 551396 | T120: 0 | U120: 0.04000104666 | V120: 0.02897541567 | W120: 551396 | X120: 0.04000104666 | Y120: 0.02897541567 | Z120: 551396 | AA120: 551396 | AB120: 1895.93982 | AC120: 0.04136712087 | AD120: 0.03032700737 | AF120: 515981.7775 | AG120: 1774.170285 | AH120: 0.06863463792 | AI120: 0.06863463792 | AJ120: 0 | AL120: 394402 | AM120: 42293 | AN120: 114701
A121: 07T | B121: NHS City and Hackney CCG | E121: 585910.0201 | F121: 323519.0625 | G121: 1811.052541 | H121: 0.03517537524 | J121: 566785.6604 | K121: 327826.5 | L121: 1728.919597 | M121: 0.01331432363 | N121: 615979 | O121: 0.03374178467 | P121: 0.04750535734 | Q121: 0.05269662269 | R121: 0.03886484 | S121: 616785.4994 | T121: 0 | U121: 0.05269662269 | V121: 0.03886484 | W121: 616785.4994 | X121: 0.05269662269 | Y121: 0.03886484 | Z121: 616785.4994 | AA121: 616785.4994 | AB121: 1881.438808 | AC121: 0.05269662269 | AD121: 0.03886484 | AF121: 593801.4187 | AG121: 1811.328305 | AH121: 0.03870667857 | AI121: 0.03870667857 | AJ121: 0 | AL121: 439589 | AM121: 51797 | AN121: 124593
A122: 07V | B122: NHS Croydon CCG | E122: 729397.0407 | F122: 415648.125 | G122: 1754.842611 | H122: -0.02913292177 | J122: 749443.6289 | K122: 418991.6875 | L122: 1788.683765 | M122: 0.008044214081 | N122: 766474 | O122: -0.0267486271 | P122: -0.01891958471 | Q122: 0.04722169117 | R122: 0.03886484 | S122: 766474 | T122: 0.4097365394 | U122: 0.04986996381 | V122: 0.04149197936 | W122: 766474 | X122: 0.04986996381 | Y122: 0.04149197936 | Z122: 766474 | AA122: 766474 | AB122: 1829.329848 | AC122: 0.05083234123 | AD122: 0.04244667699 | AF122: 784919.2902 | AG122: 1873.352894 | AH122: -0.02349960105 | AI122: -0.02349960105 | AJ122: 0 | AL122: 555297 | AM122: 58049 | AN122: 153128
A123: 07W | B123: NHS Ealing CCG | E123: 717033.0548 | F123: 438184.875 | G123: 1636.371075 | H123: -0.01647721731 | J123: 724204.9186 | K123: 438781.7188 | L123: 1650.490181 | M123: 0.001362082044 | N123: 747340 | O123: -0.009903086282 | P123: -0.008554493054 | Q123: 0.04027985914 | R123: 0.03886484 | S123: 747340 | T123: 0.1852624376 | U123: 0.04146933856 | V123: 0.04005270146 | W123: 747340 | X123: 0.04146933856 | Y123: 0.04005270146 | Z123: 747340 | AA123: 747340 | AB123: 1703.2159 | AC123: 0.04226715213 | AD123: 0.04084942982 | AF123: 758383.0767 | AG123: 1728.383486 | AH123: -0.01456134376 | AI123: -0.01456134376 | AJ123: 0 | AL123: 542386 | AM123: 60603 | AN123: 144351
A124: 07X | B124: NHS Enfield CCG | E124: 609916.7354 | F124: 343347.5625 | G124: 1776.38289 | H124: 0.003524127889 | J124: 605948.0163 | K124: 346657 | L124: 1747.975712 | M124: 0.00963873888 | N124: 639820 | O124: 0.006549603184 | P124: 0.01625147198 | Q124: 0.04887818692 | R124: 0.03886484 | S124: 639820 | T124: 0 | U124: 0.04887818692 | V124: 0.03886484 | W124: 639820 | X124: 0.04887818692 | Y124: 0.03886484 | Z124: 639820 | AA124: 639820 | AB124: 1845.686082 | AC124: 0.04902843768 | AD124: 0.03901365635 | AF124: 634698.0917 | AG124: 1830.910934 | AH124: 0.008069834131 | AI124: 0.008069834131 | AJ124: 0 | AL124: 455965 | AM124: 48083 | AN124: 135772
A125: 07Y | B125: NHS Hounslow CCG | E125: 505036.3466 | F125: 318917.875 | G125: 1583.593728 | H125: -0.01161890791 | J125: 508617.2956 | K125: 320845.8125 | L125: 1585.239002 | M125: 0.006045247542 | N125: 527950 | O125: -0.007040556824 | P125: -0.001037871191 | Q125: 0.04514503512 | R125: 0.03886484 | S125: 527950 | T125: 0.02247690722 | U125: 0.04529002326 | V125: 0.03900895692 | W125: 527950 | X125: 0.04529002326 | Y125: 0.03900895692 | Z125: 527950 | AA125: 527950 | AB125: 1645.494438 | AC125: 0.04537030564 | AD125: 0.03908875689 | AF125: 532537.0246 | AG125: 1659.791102 | AH125: -0.008613531816 | AI125: -0.008613531816 | AJ125: 0 | AL125: 386021 | AM125: 44031 | AN125: 97898
A126: 08A | B126: NHS Greenwich CCG | E126: 559058.5063 | F126: 300540.5 | G126: 1860.176936 | H126: 0.03120373603 | J126: 542389.834 | K126: 304522.375 | L126: 1781.116524 | M126: 0.0132490463 | N126: 588526 | O126: 0.03073190408 | P126: 0.0443881188 | Q126: 0.05262880837 | R126: 0.03886484 | S126: 588526 | T126: 0 | U126: 0.05262880837 | V126: 0.03886484 | W126: 588526 | X126: 0.05262880837 | Y126: 0.03886484 | Z126: 588526 | AA126: 588526 | AB126: 1932.619894 | AC126: 0.05270914109 | AD126: 0.03894412231 | AF126: 568274.4022 | AG126: 1866.11707 | AH126: 0.03563700511 | AI126: 0.03563700511 | AJ126: 0 | AL126: 421596 | AM126: 43433 | AN126: 123497
A127: 08C | B127: NHS Hammersmith and Fulham CCG | E127: 381891.7218 | F127: 239545.8438 | G127: 1594.232301 | H127: -0.02905278466 | J127: 389253.2523 | K127: 239128.8906 | L127: 1627.796839 | M127: -0.001740598453 | N127: 397524 | O127: -0.01891193075 | P127: -0.02061961112 | Q127: 0.03705659347 | R127: 0.03886484 | S127: 397524 | T127: 0.4465535706 | U127: 0.03991481174 | V127: 0.04172804196 | W127: 397524 | X127: 0.03991481174 | Y127: 0.04172804196 | Z127: 397524 | AA127: 397524 | AB127: 1662.383826 | AC127: 0.04093379703 | AD127: 0.04274880399 | AF127: 407603.7377 | AG127: 1704.535728 | AH127: -0.02472925739 | AI127: -0.02472925739 | AJ127: 0 | AL127: 288714 | AM127: 32398 | AN127: 76412
A128: 08D | B128: NHS Haringey CCG | E128: 551617.3049 | F128: 321680.5625 | G128: 1714.798372 | H128: -0.02547905165 | J128: 565202.3066 | K128: 324594.0625 | L128: 1741.25892 | M128: 0.00905712169 | N128: 580733 | O128: -0.02403564447 | P128: -0.01519621654 | Q128: 0.04827396528 | R128: 0.03886484 | S128: 580733 | T128: 0.3291005206 | U128: 0.05040319606 | V128: 0.04097495918 | W128: 580733 | X128: 0.05040319606 | Y128: 0.04097495918 | Z128: 580733 | AA128: 580733 | AB128: 1789.105431 | AC128: 0.05278241787 | AD128: 0.04333282551 | AF128: 592166.0059 | AG128: 1824.327905 | AH128: -0.01930709602 | AI128: -0.01930709602 | AJ128: 0 | AL128: 406674 | AM128: 47862 | AN128: 126197
A129: 08E | B129: NHS Harrow CCG | E129: 431839.9995 | F129: 268365.625 | G129: 1609.147966 | H129: -0.008629647954 | J129: 433139.5471 | K129: 269424.5 | L129: 1607.647215 | M129: 0.003945643187 | N129: 450279 | O129: -0.003000297563 | P129: 0.0009335075204 | Q129: 0.04296382998 | R129: 0.03886484 | S129: 450393.4998 | T129: 0 | U129: 0.04296382998 | V129: 0.03886484 | W129: 450393.4998 | X129: 0.04296382998 | Y129: 0.03886484 | Z129: 450393.4998 | AA129: 450393.4998 | AB129: 1671.687244 | AC129: 0.04296382998 | AD129: 0.03886484 | AF129: 453614.0959 | AG129: 1683.640856 | AH129: -0.007099858796 | AI129: -0.007099858796 | AJ129: 0 | AL129: 327891 | AM129: 34844 | AN129: 87544
A130: 08F | B130: NHS Havering CCG | E130: 517898.3883 | F130: 281514.6562 | G130: 1839.685348 | H130: 0.005924117546 | J130: 513730.1757 | K130: 284984.5 | L130: 1802.660059 | M130: 0.01232562381 | N130: 544182 | O130: 0.008113622332 | P130: 0.0205392516 | Q130: 0.05166949721 | R130: 0.03886484 | S130: 544657.9376 | T130: 0 | U130: 0.05166949721 | V130: 0.03886484 | W130: 544657.9376 | X130: 0.05166949721 | Y130: 0.03886484 | Z130: 544657.9376 | AA130: 544657.9376 | AB130: 1911.184424 | AC130: 0.05166949721 | AD130: 0.03886484 | AF130: 537833.5304 | AG130: 1887.237834 | AH130: 0.01268869798 | AI130: 0.01268869798 | AJ130: 0 | AL130: 410255 | AM130: 38931 | AN130: 94996
A131: 08G | B131: NHS Hillingdon CCG | E131: 525228.6103 | F131: 316898.25 | G131: 1657.404578 | H131: -0.01103370421 | J131: 530266.5513 | K131: 320584.9375 | L131: 1654.059468 | M131: 0.01163366317 | N131: 551819 | O131: -0.009500770833 | P131: 0.00202236357 | Q131: 0.05095064363 | R131: 0.03886484 | S131: 551989.346 | T131: 0 | U131: 0.05095064363 | V131: 0.03886484 | W131: 551989.346 | X131: 0.05095064363 | Y131: 0.03886484 | Z131: 551989.346 | AA131: 551989.346 | AB131: 1721.819342 | AC131: 0.05095064363 | AD131: 0.03886484 | AF131: 555131.5036 | AG131: 1731.620668 | AH131: -0.005660203944 | AI131: -0.005660203944 | AJ131: 0 | AL131: 408346 | AM131: 44712 | AN131: 98761
A132: 08H | B132: NHS Islington CCG | E132: 517581.9091 | F132: 255947.1875 | G132: 2022.221514 | H132: 0.05636348396 | J132: 488768.4562 | K132: 259082.2812 | L132: 1886.537566 | M132: 0.01224898691 | N132: 540713 | O132: 0.05895113019 | P132: 0.07192220873 | Q132: 0.04565812494 | R132: 0.0330048619 | S132: 541213.7286 | T132: 0 | U132: 0.04565812494 | V132: 0.0330048619 | W132: 541213.7286 | X132: 0.04565812494 | Y132: 0.0330048619 | Z132: 541213.7286 | AA132: 541213.7286 | AB132: 2088.964656 | AC132: 0.04565812494 | AD132: 0.0330048619 | AF132: 512185.2209 | AG132: 1976.921071 | AH132: 0.05667580102 | AI132: 0.05667580102 | AJ132: 0 | AL132: 385128 | AM132: 41870 | AN132: 113715
A133: 08J | B133: NHS Kingston CCG | E133: 328704.5691 | F133: 212189.8125 | G133: 1549.106271 | H133: 0.06369474729 | J133: 308660.1144 | K133: 214617.5625 | L133: 1438.186655 | M133: 0.01144140697 | N133: 342403 | O133: 0.06494021651 | P133: 0.07712463093 | Q133: 0.04341733176 | R133: 0.0316142137 | S133: 342976.0444 | T133: 0 | U133: 0.04341733176 | V133: 0.0316142137 | W133: 342976.0444 | X133: 0.04341733176 | Y133: 0.0316142137 | Z133: 342976.0444 | AA133: 342976.0444 | AB133: 1598.080047 | AC133: 0.04341733176 | AD133: 0.0316142137 | AF133: 323142.2005 | AG133: 1505.665225 | AH133: 0.06137806786 | AI133: 0.06137806786 | AJ133: 0 | AL133: 255284 | AM133: 28779 | AN133: 58340
A134: 08K | B134: NHS Lambeth CCG | E134: 727109.6103 | F134: 416706.75 | G134: 1744.895206 | H134: -0.01396320642 | J134: 733198.7744 | K134: 419431.375 | L134: 1748.078036 | M134: 0.006538470999 | N134: 762993 | O134: -0.008304929457 | P134: -0.001820759998 | Q134: 0.04565742763 | R134: 0.03886484 | S134: 762993 | T134: 0.03943172708 | U134: 0.04591190818 | V134: 0.03911766744 | W134: 762993 | X134: 0.04591190818 | Y134: 0.03911766744 | Z134: 762993 | AA134: 762993 | AB134: 1819.112841 | AC134: 0.04935072952 | AD134: 0.04253415021 | AF134: 768381.5553 | AG134: 1831.960128 | AH134: -0.007012863948 | AI134: -0.007012863948 | AJ134: 0 | AL134: 522765 | AM134: 62121 | AN134: 178107
A135: 08L | B135: NHS Lewisham CCG | E135: 625544.7424 | F135: 334478.8438 | G135: 1870.207202 | H135: 0.02989916939 | J135: 606111.1138 | K135: 338397.0625 | L135: 1791.12404 | M135: 0.01171439935 | N135: 657439 | O135: 0.03206281507 | P135: 0.04415281104 | Q135: 0.05103451761 | R135: 0.03886484 | S135: 657469.1165 | T135: 0 | U135: 0.05103451761 | V135: 0.03886484 | W135: 657469.1165 | X135: 0.05103451761 | Y135: 0.03886484 | Z135: 657469.1165 | AA135: 657469.1165 | AB135: 1942.892505 | AC135: 0.05103451761 | AD135: 0.03886484 | AF135: 634900.0495 | AG135: 1876.198466 | AH135: 0.03554743319 | AI135: 0.03554743319 | AJ135: 0 | AL135: 472448 | AM135: 50104 | AN135: 134887
A136: 08M | B136: NHS Newham CCG | E136: 658154.6937 | F136: 405949.8125 | G136: 1621.271087 | H136: 0.01025623781 | J136: 652560.7177 | K136: 410601.9375 | L136: 1589.278223 | M136: 0.01145985256 | N136: 691502 | O136: 0.008572345495 | P136: 0.02013043588 | Q136: 0.0507700779 | R136: 0.03886484 | S136: 691569.2587 | T136: 0 | U136: 0.0507700779 | V136: 0.03886484 | W136: 691569.2587 | X136: 0.0507700779 | Y136: 0.03886484 | Z136: 691569.2587 | AA136: 691569.2587 | AB136: 1684.281528 | AC136: 0.0507700779 | AD136: 0.03886484 | AF136: 683514.7303 | AG136: 1664.665136 | AH136: 0.01178398668 | AI136: 0.01178398668 | AJ136: 0 | AL136: 491730 | AM136: 59590 | AN136: 140182
A137: 08N | B137: NHS Redbridge CCG | E137: 519924.3466 | F137: 324502.875 | G137: 1602.217998 | H137: 0.002442760787 | J137: 518445.2453 | K137: 328112.0938 | L137: 1580.085755 | M137: 0.0111223013 | N137: 545933 | O137: 0.002852955719 | P137: 0.01400698846 | Q137: 0.05041940777 | R137: 0.03886484 | S137: 546138.6242 | T137: 0 | U137: 0.05041940777 | V137: =MAX(R137,NewMinGrowthPerHead(P137,$P$2,$L$1,$U$1,$T$2,AG137,G137,T137, $P$1)) -> 0.03886484 | W137: 546138.6242 | X137: 0.05041940777 | Y137: 0.03886484 | Z137: 546138.6242 | AA137: =Z137 -> 546138.6242 | AB137: =AA137/K137*1000 -> 1664.487944 | AC137: =AA137/E137-1 -> 0.05041940777 | AD137: =AB137/G137-1 -> 0.03886484 | AF137: 542962.5137 | AG137: =AF137/K137*1000 -> 1654.807988 | AH137: 0.005849594424 | AI137: 0.005849594424 | AJ137: =IF(AF137=N137,1,0) -> 0 | AL137: 397725 | AM137: 43010 | AN137: 105198
A138: 08P | B138: NHS Richmond CCG | E138: 335858.3677 | F138: 219498.4375 | G138: =E138/F138*1000 -> 1530.117351 | H138: 0.03972338729 | J138: 322049.1376 | K138: 221206 | L138: =J138/K138*1000 -> 1455.878853 | M138: =K138/F138-1 -> 0.007779383395 | N138: =SUM(AL138:AN138) -> 350052 | O138: =E138/J138-1 -> 0.04287926423 | P138: =G138/L138-1 -> 0.05099222186 | Q138: =(1+M138)*(1+R138)-1 -> 0.0466792759 | R138: =MinGrowthPerHead(P138,0,1,$Q$1,$Q$2,$R$1,$R$2) -> 0.03859961133 | S138: =MAX((1+IF($S$2=1,Q138,0))*$E138,$N138) -> 351535.9931 | T138: =MinMaxRamp(P138,0,1,$P$2,$T$2) -> 0 | U138: =(1+M138)*(1+V138)-1 -> 0.0466792759 | V138: 0.03859961133 | W138: =MAX((1+IF($S$2=1,U138,0))*$E138,$N138) -> 351535.9931 | X138: =MAX(U138,$X$1) -> 0.0466792759 | Y138: =(1+X138)/(1+M138) - 1 -> 0.03859961133 | Z138: =MAX((1+IF($Z$2=1,X138,0))*$E138,$N138) -> 351535.9931 | AA138: 351535.9931 | AB138: 1589.179286 | AC138: 0.0466792759 | AD138: 0.03859961133 | AF138: 337161.3541 | AG138: 1524.196243 | AH138: =AA138/AF138-1 -> 0.04263430203 | AI138: 0.04263430203 | AJ138: 0 | AL138: 262222 | AM138: 28496 | AN138: 59334
A139: 08Q | B139: NHS Southwark CCG | E139: 623623.1311 | F139: 334416.6875 | G139: 1864.808649 | H139: 0.02905747524 | J139: 603929.3812 | K139: 337654.8125 | L139: 1788.599951 | M139: 0.009682904954 | N139: 654418 | O139: 0.03260935893 | P139: 0.04260801721 | Q139: 0.04892406951 | R139: 0.03886484 | S139: 654418 | T139: 0 | U139: 0.04892406951 | V139: 0.03886484 | W139: 654418 | X139: 0.04892406951 | Y139: 0.03886484 | Z139: 654418 | AA139: 654418 | AB139: 1938.12727 | AC139: 0.04938057511 | AD139: 0.03931696769 | AF139: 632749.3665 | AG139: 1873.953349 | AH139: 0.03424520769 | AI139: 0.03424520769 | AJ139: 0 | AL139: 459236 | AM139: 49830 | AN139: 145352
A140: 08R | B140: NHS Merton CCG | E140: 368381.0829 | F140: 226818.9688 | G140: 1624.11938 | H140: 0.0386537862 | J140: 352883.9529 | K140: 228194.5625 | L140: 1546.41701 | M140: 0.006064720943 | N140: 383391 | O140: 0.04391565506 | P140: 0.0502467122 | Q140: 0.04509891729 | R140: 0.0387988919 | S140: 384994.6709 | T140: 0 | U140: 0.04509891729 | V140: 0.0387988919 | W140: 384994.6709 | X140: 0.04509891729 | Y140: 0.0387988919 | Z140: 384994.6709 | AA140: 384994.6709 | AB140: 1687.133412 | AC140: 0.04509891729 | AD140: 0.0387988919 | AF140: 369628.6999 | AG140: 1619.796264 | AH140: 0.04157136884 | AI140: 0.04157136884 | AJ140: 0 | AL140: 280662 | AM140: 31944 | AN140: 70785
A141: 08T | B141: NHS Sutton CCG | E141: 354250.0829 | F141: 198247.3125 | G141: 1786.909888 | H141: 0.04345355922 | J141: 338589.0834 | K141: 200119.25 | L141: 1691.9366 | M141: 0.009442435695 | N141: 370048 | O141: 0.04625370487 | P141: 0.0561328882 | Q141: 0.04701940576 | R141: 0.03722547095 | S141: 370906.7113 | T141: 0 | U141: 0.04701940576 | V141: 0.03722547095 | W141: 370906.7113 | X141: 0.04701940576 | Y141: 0.03722547095 | Z141: 370906.7113 | AA141: 370906.7113 | AB141: 1853.42845 | AC141: 0.04701940576 | AD141: 0.03722547095 | AF141: 354496.8322 | AG141: 1771.427947 | AH141: 0.04629062251 | AI141: 0.04629062251 | AJ141: 0 | AL141: 276550 | AM141: 28820 | AN141: 64678
A142: 08V | B142: NHS Tower Hamlets CCG | E142: 565083.3049 | F142: 331104.6875 | G142: 1706.66054 | H142: 0.06051464474 | J142: 535752.0649 | K142: 336755.5625 | L142: 1590.922689 | M142: 0.0170667321 | N142: 594447 | O142: 0.05474778716 | P142: 0.07274888508 | Q142: 0.05041013073 | R142: 0.03278388484 | S142: 594447 | T142: 0 | U142: 0.05041013073 | V142: 0.03278388484 | W142: 594447 | X142: 0.05041013073 | Y142: 0.03278388484 | Z142: 594447 | AA142: 594447 | AB142: 1765.218058 | AC142: 0.05196348014 | AD142: 0.03431116852 | AF142: 561253.9188 | AG142: 1666.650774 | AH142: 0.05914093449 | AI142: 0.05914093449 | AJ142: 0 | AL142: 418744 | AM142: 51564 | AN142: 124139
A143: 08W | B143: NHS Waltham Forest CCG | E143: 534302.3883 | F143: 314321.0938 | G143: 1699.861698 | H143: -0.02382646609 | J143: 545641.5161 | K143: 316882.375 | L143: 1721.905537 | M143: 0.008148613952 | N143: 562558 | O143: -0.02078127752 | P143: -0.01280200218 | Q143: 0.04733014853 | R143: 0.03886484 | S143: 562558 | T143: 0.277249641 | U143: 0.04912229692 | V143: 0.0406425029 | W143: 562558 | X143: 0.04912229692 | Y143: 0.0406425029 | Z143: 562558 | AA143: 562558 | AB143: 1775.289648 | AC143: 0.05288318439 | AD143: 0.04437299206 | AF143: 571511.3748 | AG143: 1803.544217 | AH143: -0.01566613577 | AI143: -0.01566613577 | AJ143: 0 | AL143: 397538 | AM143: 44801 | AN143: 120219
A144: 08X | B144: NHS Wandsworth CCG | E144: 629168.0272 | F144: 406574.1875 | G144: 1547.486403 | H144: 0.02795668214 | J144: 608867.5357 | K144: 408998 | L144: 1488.680961 | M144: 0.005961550375 | N144: 655999 | O144: 0.0333413925 | P144: 0.03950170927 | Q144: 0.04505808508 | R144: 0.03886484 | S144: 657517.1337 | T144: 0 | U144: 0.04505808508 | V144: 0.03886484 | W144: 657517.1337 | X144: 0.04505808508 | Y144: 0.03886484 | Z144: 657517.1337 | AA144: 657517.1337 | AB144: 1607.629215 | AC144: 0.04505808508 | AD144: 0.03886484 | AF144: 637884.2579 | AG144: 1559.626839 | AH144: 0.03077811618 | AI144: 0.03077811618 | AJ144: 0 | AL144: 473356 | AM144: 54141 | AN144: 128502
A145: 08Y | B145: NHS West London CCG | E145: 502109.3119 | F145: 250446.0938 | G145: 2004.859826 | H145: 0.14755726 | J145: 434225.4405 | K145: 250522.5625 | L145: 1733.278776 | M145: 0.0003053301765 | N145: 516697 | O145: 0.1563332433 | P145: 0.1566863068 | Q145: 0.02581256431 | R145: 0.02549944838 | S145: 516697 | T145: 0 | U145: 0.02581256431 | V145: 0.02549944838 | W145: 516697 | X145: 0.02581256431 | Y145: 0.02549944838 | Z145: 516697 | AA145: 516697 | AB145: 2062.476908 | AC145: 0.02905281324 | AD145: 0.02873870827 | AF145: 454884.5696 | AG145: 1815.742922 | AH145: 0.1358859687 | AI145: 0.1358859687 | AJ145: 0 | AL145: 383364 | AM145: 39960 | AN145: 93373
A146: 09A | B146: NHS Central London (Westminster) CCG | E146: 388775.4993 | F146: 231308.875 | G146: 1680.763435 | H146: 0.04920301243 | J146: 369032.6931 | K146: 232909.4062 | L146: 1584.447357 | M146: 0.00691945456 | N146: 404148 | O146: 0.05349879983 | P146: 0.0607884369 | Q146: 0.04314942982 | R146: 0.03598100632 | S146: 405550.9404 | T146: 0 | U146: 0.04314942982 | V146: 0.03598100632 | W146: 405550.9404 | X146: 0.04314942982 | Y146: 0.03598100632 | Z146: 405550.9404 | AA146: 405550.9404 | AB146: 1741.238995 | AC146: 0.04314942982 | AD146: 0.03598100632 | AF146: 386511.9478 | AG146: 1659.494797 | AH146: 0.04925848412 | AI146: 0.04925848412 | AJ146: 0 | AL146: 293956 | AM146: 34602 | AN146: 75590
A147: 09C | B147: NHS Ashford CCG | E147: 211980.0132 | F147: 134913.2812 | G147: 1571.231618 | H147: -0.01811567995 | J147: 216780.6696 | K147: 136241.8438 | L147: 1591.146036 | M147: 0.009847529374 | N147: 222270 | O147: -0.02214522339 | P147: -0.01251576976 | Q147: 0.04909509203 | R147: 0.03886484 | S147: 222387.1915 | T147: 0.2710507798 | U147: 0.0508501234 | V147: 0.04060275718 | W147: 222759.2231 | X147: 0.0508501234 | Y147: 0.04060275718 | Z147: 222759.2231 | AA147: 222759.2231 | AB147: 1635.027954 | AC147: 0.0508501234 | AD147: 0.04060275718 | AF147: 226951.6931 | AG147: 1665.800219 | AH147: -0.01847296236 | AI147: -0.01847296236 | AJ147: 0 | AL147: 166015 | AM147: 19073 | AN147: 37182
A148: 09D | B148: NHS Brighton and Hove CCG | E148: 536113.3045 | F148: 319712.5625 | G148: 1676.860303 | H148: 0.05067127498 | J148: 509134.7722 | K148: 321566 | L148: 1583.297899 | M148: 0.005797199477 | N148: 558946 | O148: 0.05298897995 | P148: 0.05909336711 | Q148: 0.04244252704 | R148: 0.03643411175 | S148: 558946 | T148: 0 | U148: 0.04244252704 | V148: 0.03643411175 | W148: 558946 | X148: 0.04244252704 | Y148: 0.03643411175 | Z148: 558946 | AA148: 558946 | AB148: 1738.199934 | AC148: 0.04258930966 | AD148: 0.03658004834 | AF148: 533024.6374 | AG148: 1657.59016 | AH148: 0.04863070249 | AI148: 0.04863070249 | AJ148: 0 | AL148: 410640 | AM148: 46007 | AN148: 102299
A149: 09E | B149: NHS Canterbury and Coastal CCG | E149: 377649.3636 | F149: 227708.875 | G149: 1658.474504 | H149: -0.01275431076 | J149: 383205.3651 | K149: 229538.9375 | L149: 1669.456909 | M149: 0.008036851879 | N149: 395308 | O149: -0.01449875706 | P149: -0.006578429548 | Q149: 0.04721404284 | R149: 0.03886484 | S149: 395479.7168 | T149: 0.1424673427 | U149: 0.0481348531 | V149: 0.03977830885 | W149: 395827.4603 | X149: 0.0481348531 | Y149: 0.03977830885 | Z149: 395827.4603 | AA149: 395827.4603 | AB149: 1724.445815 | AC149: 0.0481348531 | AD149: 0.03977830885 | AF149: 401135.7859 | AG149: 1747.571851 | AH149: -0.01323323886 | AI149: -0.01323323886 | AJ149: 0 | AL149: 297563 | AM149: 30771 | AN149: 66974
A150: 09F | B150: NHS Eastbourne, Hailsham and Seaford CCG | E150: 381196.2798 | F150: 198129.1094 | G150: 1923.979172 | H150: 0.006481019669 | J150: 379622.2929 | K150: 199789.375 | L150: 1900.11252 | M150: 0.008379715783 | N150: 398971 | O150: 0.00414619197 | P150: 0.01256065166 | Q150: 0.0475702321 | R150: 0.03886484 | S150: 399329.8753 | T150: 0 | U150: 0.0475702321 | V150: 0.03886484 | W150: 399329.8753 | X150: 0.0475702321 | Y150: 0.03886484 | Z150: 399329.8753 | AA150: 399329.8753 | AB150: 1998.754314 | AC150: 0.0475702321 | AD150: 0.03886484 | AF150: 397307.7579 | AG150: 1988.633069 | AH150: 0.005089549043 | AI150: 0.005089549043 | AJ150: 0 | AL150: 300809 | AM150: 29127 | AN150: 69035
A151: 09G | B151: NHS Coastal West Sussex CCG | E151: 975702.8852 | F151: 519346.125 | G151: 1878.714095 | H151: -0.0124667509 | J151: 986018.8815 | K151: 523524.9688 | L151: 1883.422836 | M151: 0.008046355886 | N151: 1020925 | O151: -0.01046227056 | P151: -0.002500097829 | Q151: 0.04722391622 | R151: 0.03886484 | S151: 1021779.397 | T151: 0.0541439703 | U151: 0.04757386866 | V151: 0.03921199907 | W151: 1022120.846 | X151: 0.04757386866 | Y151: 0.03921199907 | Z151: 1022120.846 | AA151: 1022120.846 | AB151: 1952.38223 | AC151: 0.04757386866 | AD151: 0.03921199907 | AF151: 1031799.786 | AG151: 1970.870249 | AH151: -0.009380637401 | AI151: -0.009380637401 | AJ151: 0 | AL151: 784633 | AM151: 75810 | AN151: 160482
A152: 09H | B152: NHS Crawley CCG | E152: 234232.158 | F152: 134315.8281 | G152: 1743.890956 | H152: 0.05051704288 | J152: 221816.071 | K152: 135115.5156 | L152: 1641.677271 | M152: 0.005953784533 | N152: 243866 | O152: 0.0559746952 | P152: 0.06226174101 | Q152: 0.04175284353 | R152: 0.03558718059 | S152: 244012.0166 | T152: 0 | U152: 0.04175284353 | V152: 0.03558718059 | W152: 244012.0166 | X152: 0.04175284353 | Y152: 0.03558718059 | Z152: 244012.0166 | AA152: 244012.0166 | AB152: 1805.951119 | AC152: 0.04175284353 | AD152: 0.03558718059 | AF152: 232219.6307 | AG152: 1718.674792 | AH152: 0.05078117596 | AI152: 0.05078117596 | AJ152: 0 | AL152: 182199 | AM152: 17586 | AN152: 44081
A153: 09J | B153: NHS Dartford, Gravesham and Swanley CCG | E153: 465245.6531 | F153: 271700.1875 | G153: 1712.3494 | H153: -0.04382715465 | J153: 486545.723 | K153: 274235.25 | L153: 1774.191038 | M153: 0.009330367135 | N153: 489721 | O153: -0.04377814636 | P153: -0.03485624541 | Q153: 0.04855783036 | R153: 0.03886484 | S153: 489721 | T153: 0.7548726672 | U153: 0.05344306532 | V153: 0.04370491528 | W153: 490109.8069 | X153: 0.05344306532 | Y153: 0.04370491528 | Z153: 490109.8069 | AA153: 490109.8069 | AB153: 1787.187486 | AC153: 0.05344306532 | AD153: 0.04370491528 | AF153: 509491.9624 | AG153: 1857.864598 | AH153: -0.03804212211 | AI153: -0.03804212211 | AJ153: 0 | AL153: 362689 | AM153: 37263 | AN153: 89769
A154: 09L | B154: NHS East Surrey CCG | E154: 319437.4113 | F154: 183940.0312 | G154: 1736.638888 | H154: 0.02117391315 | J154: 311828.7304 | K154: 185280.125 | L154: 1683.012306 | M154: 0.007285492673 | N154: 334073 | O154: 0.02440019181 | P154: 0.0318634519 | Q154: 0.04643348218 | R154: 0.03886484 | S154: 334270.0026 | T154: 0 | U154: 0.04643348218 | V154: 0.03886484 | W154: 334270.0026 | X154: 0.04643348218 | Y154: 0.03886484 | Z154: 334270.0026 | AA154: 334270.0026 | AB154: 1804.13308 | AC154: 0.04643348218 | AD154: 0.03886484 | AF154: 326421.1067 | AG154: 1761.77076 | AH154: 0.02404530759 | AI154: 0.02404530759 | AJ154: 0 | AL154: 250883 | AM154: 24130 | AN154: 59060
A155: 09N | B155: NHS Guildford and Waverley CCG | E155: 352994.0017 | F155: 226834.0312 | G155: 1556.177439 | H155: 0.0214140035 | J155: 343716.8213 | K155: 227948 | L155: 1507.873819 | M155: 0.004910941907 | N155: 368200 | O155: 0.02699076656 | P155: 0.03203425856 | Q155: 0.04396664488 | R155: 0.03886484 | S155: 368513.9637 | T155: 0 | U155: 0.04396664488 | V155: 0.03886484 | W155: 368513.9637 | X155: 0.04396664488 | Y155: 0.03886484 | Z155: 368513.9637 | AA155: 368513.9637 | AB155: 1616.658026 | AC155: 0.04396664488 | AD155: 0.03886484 | AF155: 359591.4854 | AG155: 1577.515422 | AH155: 0.02481281863 | AI155: 0.02481281863 | AJ155: 0 | AL155: 280089 | AM155: 29943 | AN155: 58168
A156: 09P | B156: NHS Hastings and Rother CCG | E156: 378431.4722 | F156: 189923.25 | G156: 1992.549475 | H156: 0.01734574719 | J156: 372247.1043 | K156: 191177.5625 | L156: 1947.127578 | M156: 0.006604312532 | N156: 395356 | O156: 0.01661360918 | P156: 0.02332764317 | Q156: 0.04572582808 | R156: 0.03886484 | S156: 395735.5646 | T156: 0 | U156: 0.04572582808 | V156: 0.03886484 | W156: 395735.5646 | X156: 0.04572582808 | Y156: 0.03886484 | Z156: 395735.5646 | AA156: 395735.5646 | AB156: 2069.989592 | AC156: 0.04572582808 | AD156: 0.03886484 | AF156: 389461.3638 | AG156: 2037.170883 | AH156: 0.01610994413 | AI156: 0.01610994413 | AJ156: 0 | AL156: 306656 | AM156: 32047 | AN156: 56653
A157: 09W | B157: NHS Medway CCG | E157: 523065.9064 | F157: 302095.9375 | G157: 1731.456274 | H157: -0.003392879639 | J157: 523598.9505 | K157: 304682.5625 | L157: 1718.506455 | M157: 0.008562263437 | N157: 547499 | O157: -0.001018038896 | P157: 0.007535507823 | Q157: 0.04775987444 | R157: 0.03886484 | S157: 548047.4684 | T157: 0 | U157: 0.04775987444 | V157: 0.03886484 | W157: 548047.4684 | X157: 0.04775987444 | Y157: 0.03886484 | Z157: 548047.4684 | AA157: 548047.4684 | AB157: 1798.749045 | AC157: 0.04775987444 | AD157: 0.03886484 | AF157: 548130.0611 | AG157: 1799.020123 | AH157: -0.0001506808324 | AI157: -0.0001506808324 | AJ157: 0 | AL157: 411547 | AM157: 43141 | AN157: 92811
A158: 09X | B158: NHS Horsham and Mid Sussex CCG | E158: 387930.2189 | F158: 242897.75 | G158: 1597.092681 | H158: -0.0003060054108 | J158: 388422.0464 | K158: 244893.8438 | L158: 1586.083343 | M158: 0.008217835488 | N158: 406325 | O158: -0.00126621939 | P158: 0.006941210516 | Q158: 0.04740206035 | R158: 0.03886484 | S158: 406325 | T158: 0 | U158: 0.04740206035 | V158: 0.03886484 | W158: 406325 | X158: 0.04740206035 | Y158: 0.03886484 | Z158: 406325 | AA158: 406325 | AB158: 1659.188299 | AC158: 0.04741775773 | AD158: 0.03888040943 | AF158: 406549.1974 | AG158: 1660.103787 | AH158: -0.0005514644334 | AI158: -0.0005514644334 | AJ158: 0 | AL158: 301577 | AM158: 31967 | AN158: 72781
A159: 09Y | B159: NHS North West Surrey CCG | E159: 618030.3407 | F159: 374092.875 | G159: 1652.077283 | H159: 0.01641766173 | J159: 605507.4295 | K159: 375978.375 | L159: 1610.484724 | M159: 0.005040192225 | N159: 644683 | O159: 0.02068168038 | P159: 0.02582611225 | Q159: 0.04410091849 | R159: 0.03886484 | S159: 645286.0463 | T159: 0 | U159: 0.04410091849 | V159: 0.03886484 | W159: 645286.0463 | X159: 0.04410091849 | Y159: 0.03886484 | Z159: 645286.0463 | AA159: 645286.0463 | AB159: 1716.285003 | AC159: 0.04410091849 | AD159: 0.03886484 | AF159: 633625.9488 | AG159: 1685.272321 | AH159: 0.01840217811 | AI159: 0.01840217811 | AJ159: 0 | AL159: 486328 | AM159: 49769 | AN159: 108586
A160: 10A | B160: NHS South Kent Coast CCG | E160: 398006.6531 | F160: 207538.2344 | G160: 1917.750984 | H160: 0.008293190089 | J160: 395055.7655 | K160: 208628.875 | L160: 1893.58144 | M160: 0.005255131076 | N160: 415329 | O160: 0.007469546867 | P160: 0.01276393139 | Q160: 0.0443242109 | R160: 0.03886484 | S160: 415647.9839 | T160: 0 | U160: 0.0443242109 | V160: 0.03886484 | W160: 415647.9839 | X160: 0.0443242109 | Y160: 0.03886484 | Z160: 415647.9839 | AA160: 415647.9839 | AB160: 1992.284069 | AC160: 0.0443242109 | AD160: 0.03886484 | AF160: 413534.5716 | AG160: 1982.15406 | AH160: 0.005110606115 | AI160: 0.005110606115 | AJ160: 0 | AL160: 315604 | AM160: 31462 | AN160: 68263
A161: 10C | B161: NHS Surrey Heath CCG | E161: 166346.6875 | F161: 97135.19531 | G161: 1712.527442 | H161: 0.01158095426 | J161: 163917.0536 | K161: 97507.04688 | L161: 1681.079049 | M161: 0.003828185667 | N161: 173451 | O161: 0.01482233757 | P161: 0.0187072659 | Q161: 0.04284180749 | R161: 0.03886484 | S161: 173473.2803 | T161: 0 | U161: 0.04284180749 | V161: 0.03886484 | W161: 173473.2803 | X161: 0.04284180749 | Y161: 0.03886484 | Z161: 173473.2803 | AA161: 173473.2803 | AB161: 1779.084547 | AC161: 0.04284180749 | AD161: 0.03886484 | AF161: 171616.2245 | AG161: 1760.039197 | AH161: 0.01082098064 | AI161: 0.01082098064 | AJ161: 0 | AL161: 130314 | AM161: 12631 | AN161: 30506
A162: 10D | B162: NHS Swale CCG | E162: 207983.0856 | F162: 114335.75 | G162: 1819.055594 | H162: -0.00342990811 | J162: 208991.7305 | K162: 115515.5312 | L162: 1809.208929 | M162: 0.01031856834 | N162: 218077 | O162: -0.004826243241 | P162: 0.005442525178 | Q162: 0.04958443785 | R162: 0.03886484 | S162: 218295.81 | T162: 0 | U162: 0.04958443785 | V162: 0.03886484 | W162: 218295.81 | X162: 0.04958443785 | Y162: 0.03886484 | Z162: 218295.81 | AA162: 218295.81 | AB162: 1889.752898 | AC162: 0.04958443785 | AD162: 0.03886484 | AF162: 218767.8489 | AG162: 1893.839266 | AH162: -0.002157716166 | AI162: -0.002157716166 | AJ162: 0 | AL162: 164238 | AM162: 16865 | AN162: 36974
A163: 10E | B163: NHS Thanet CCG | E163: 300072.6284 | F163: 146794.5625 | G163: 2044.16719 | H163: -0.004416392277 | J163: 302082.5158 | K163: 148125.1719 | L163: 2039.373268 | M163: 0.009064432308 | N163: 314186 | O163: -0.006653438307 | P163: 0.00235068436 | Q163: 0.04828156002 | R163: 0.03886484 | S163: 314560.603 | T163: 0 | U163: 0.04828156002 | V163: 0.03886484 | W163: 314560.603 | X163: 0.04828156002 | Y163: 0.03886484 | Z163: 314560.603 | AA163: 314560.603 | AB163: 2123.613421 | AC163: 0.04828156002 | AD163: 0.03886484 | AF163: 316224.2395 | AG163: 2134.844709 | AH163: -0.005260939124 | AI163: -0.005260939124 | AJ163: 0 | AL163: 238861 | AM163: 24230 | AN163: 51095
A164: 10J | B164: NHS North Hampshire CCG | E164: 362769.3299 | F164: 227382.6875 | G164: 1595.413151 | H164: -0.002188764443 | J164: 363960.2465 | K164: 228530.7031 | L164: 1592.60984 | M164: 0.005048826002 | N164: 378461 | O164: -0.003272106499 | P164: 0.001760199206 | Q164: 0.04410988782 | R164: 0.03886484 | S164: 378771.0443 | T164: 0 | U164: 0.04410988782 | V164: 0.03886484 | W164: 378771.0443 | X164: 0.04410988782 | Y164: 0.03886484 | Z164: 378771.0443 | AA164: 378771.0443 | AB164: 1657.418627 | AC164: 0.04410988782 | AD164: 0.03886484 | AF164: 380838.8089 | AG164: 1666.46671 | AH164: -0.005429500788 | AI164: -0.005429500788 | AJ164: 0 | AL164: 286686 | AM164: 31299 | AN164: 60476
A165: 10K | B165: NHS Fareham and Gosport CCG | E165: 345124.1355 | F165: 205878.6875 | G165: 1676.347074 | H165: -0.01628329302 | J165: 350342.345 | K165: 206927.4688 | L165: 1693.068335 | M165: 0.005094171052 | N165: 361713 | O165: -0.01489460139 | P165: -0.009876305981 | Q165: 0.04415699519 | R165: 0.03886484 | S165: 361713 | T165: 0.2138885973 | U165: 0.04553538738 | V165: 0.04023624601 | W165: 361713 | X165: 0.04553538738 | Y165: 0.04023624601 | Z165: 361713 | AA165: 361713 | AB165: 1748.01829 | AC165: 0.0480663704 | AD165: 0.04275440111 | AF165: 366549.8959 | AG165: 1771.393127 | AH165: -0.01319573663 | AI165: -0.01319573663 | AJ165: 0 | AL165: 271869 | AM165: 28245 | AN165: 61599
A166: 10L | B166: NHS Isle of Wight CCG | E166: 280136.267 | F166: 145043.375 | G166: 1931.396501 | H166: 0.01864600168 | J166: 274692.4423 | K166: 145597.1562 | L166: 1886.660766 | M166: 0.003818038914 | N166: 291569 | O166: 0.01981789005 | P166: 0.02371159444 | Q166: 0.04283126639 | R166: 0.03886484 | S166: 292134.858 | T166: 0 | U166: 0.04283126639 | V166: 0.03886484 | W166: 292134.858 | X166: 0.04283126639 | Y166: 0.03886484 | Z166: 292134.858 | AA166: 292134.858 | AB166: 2006.459917 | AC166: 0.04283126639 | AD166: 0.03886484 | AF166: 287294.1879 | AG166: 1973.212907 | AH166: 0.01684917518 | AI166: 0.01684917518 | AJ166: 0 | AL166: 230005 | AM166: 22283 | AN166: 39281
A167: 10Q | B167: NHS Oxfordshire CCG | E167: 1148670.212 | F167: 747848.3125 | G167: 1535.966844 | H167: -0.01243624638 | J167: 1163550.881 | K167: 750273.75 | L167: 1550.83512 | M167: 0.003243221198 | N167: 1203330 | O167: -0.01278901428 | P167: -0.009587270681 | Q167: 0.04223410847 | R167: 0.03886484 | S167: 1203330 | T167: 0.2076290348 | U167: 0.04356969717 | V167: 0.04019611109 | W167: 1203330 | X167: 0.04356969717 | Y167: 0.04019611109 | Z167: 1203330 | AA167: 1203330 | AB167: 1603.854593 | AC167: 0.04758527504 | AD167: 0.04419870765 | AF167: 1218396.257 | AG167: 1623.935606 | AH167: -0.01236564605 | AI167: -0.01236564605 | AJ167: 0 | AL167: 852459 | AM167: 103445 | AN167: 247426
A168: 10R | B168: NHS Portsmouth CCG | E168: 391493.7109 | F168: 231311.25 | G168: 1692.497494 | H168: 0.003056834114 | J168: 388462.7196 | K168: 232324.75 | L168: 1672.06774 | M168: 0.004381542186 | N168: 408343 | O168: 0.007802528157 | P168: 0.01221825745 | Q168: 0.04341667012 | R168: 0.03886484 | S168: 408491.0642 | T168: 0 | U168: 0.04341667012 | V168: 0.03886484 | W168: 408491.0642 | X168: 0.04341667012 | Y168: 0.03886484 | Z168: 408491.0642 | AA168: 408491.0642 | AB168: 1758.276138 | AC168: 0.04341667012 | AD168: 0.03886484 | AF168: 406538.1138 | AG168: 1749.870015 | AH168: 0.00480385575 | AI168: 0.00480385575 | AJ168: 0 | AL168: 307357 | AM168: 33135 | AN168: 67851
A169: 10V | B169: NHS South Eastern Hampshire CCG | E169: 374246.3656 | F169: 216374.5938 | G169: 1729.622499 | H169: -0.009663080949 | J169: 377176.1375 | K169: 217457.1406 | L169: 1734.484949 | M169: 0.005003114535 | N169: 391504 | O169: -0.007767649142 | P169: -0.002803397045 | Q169: 0.04406239978 | R169: 0.03886484 | S169: 391504 | T169: 0.06071244277 | U169: 0.04445362202 | V169: =MAX(R169,NewMinGrowthPerHead(P169,$P$2,$L$1,$U$1,$T$2,AG169,G169,T169, $P$1)) -> 0.03925411465 | W169: 391504 | X169: 0.04445362202 | Y169: 0.03925411465 | Z169: 391504 | AA169: =Z169 -> 391504 | AB169: =AA169/K169*1000 -> 1800.373163 | AC169: =AA169/E169-1 -> 0.04611303124 | AD169: =AB169/G169-1 -> 0.04090526299 | AF169: 394626.3412 | AG169: =AF169/K169*1000 -> 1814.731584 | AH169: -0.007912146039 | AI169: -0.007912146039 | AJ169: =IF(AF169=N169,1,0) -> 0 | AL169: 295259 | AM169: 30708 | AN169: 65537
A170: 10X | B170: NHS Southampton CCG | E170: 486693.9769 | F170: 288342.1875 | G170: 1687.904157 | H170: -0.008054747392 | J170: 489906.017 | K170: 289813.3125 | L170: 1690.4193 | M170: 0.005102010957 | N170: 509958 | O170: -0.006556441387 | P170: -0.001487881466 | Q170: 0.0441651398 | R170: 0.03886484 | S170: 509958 | T170: 0.03222266305 | U170: 0.04437279843 | V170: 0.03907144453 | W170: 509958 | X170: 0.04437279843 | Y170: 0.03907144453 | Z170: 509958 | AA170: 509958 | AB170: 1759.60861 | AC170: 0.04780010483 | AD170: 0.04248135354 | AF170: 512802.8868 | AG170: 1769.424884 | AH170: -0.005547719873 | AI170: -0.005547719873 | AJ170: 0 | AL170: 372450 | AM170: 39901 | AN170: 97607
A171: 11A | B171: NHS West Hampshire CCG | E171: 966392.8745 | F171: 566415.25 | G171: 1706.156172 | H171: -0.009190327148 | J171: 976857.5222 | K171: 569597.25 | L171: 1714.996907 | M171: 0.005617786597 | N171: 1012356 | O171: -0.01071256302 | P171: -0.005154957317 | Q171: 0.04470096097 | R171: 0.03886484 | S171: 1012356 | T171: 0.1116395737 | U171: 0.04542079029 | V171: 0.03958064806 | W171: 1012356 | X171: 0.04542079029 | Y171: 0.03958064806 | Z171: 1012356 | AA171: 1012356 | AB171: 1777.318974 | AC171: 0.0475615319 | AD171: 0.04170943062 | AF171: 1022360.187 | AG171: 1794.882589 | AH171: -0.009785383502 | AI171: -0.009785383502 | AJ171: 0 | AL171: 751657 | AM171: 78198 | AN171: 182501
A172: 11E | B172: NHS Bath and North East Somerset CCG | E172: 327571.0551 | F172: 209078.4688 | G172: 1566.737393 | H172: -0.008496104253 | J172: 329471.1271 | K172: 210293.5781 | L172: 1566.719869 | M172: 0.005811738446 | N172: 341904 | O172: -0.005767036525 | P172: 1.11854131e-05 | Q172: 0.04490245073 | R172: 0.03886484 | S172: 342279.7982 | T172: 0 | U172: 0.04490245073 | V172: 0.03886484 | W172: 342279.7982 | X172: 0.04490245073 | Y172: 0.03886484 | Z172: 342279.7982 | AA172: 342279.7982 | AB172: 1627.628391 | AC172: 0.04490245073 | AD172: 0.03886484 | AF172: 344799.428 | AG172: 1639.609878 | AH172: -0.007307523069 | AI172: -0.007307523069 | AJ172: 0 | AL172: 259785 | AM172: 28231 | AN172: 53888
A173: 11J | B173: NHS Dorset CCG | E173: 1434345.464 | F173: 804863.5625 | G173: 1782.097651 | H173: -0.005374652691 | J173: 1439634.603 | K173: 808390.5625 | L173: 1780.865178 | M173: 0.004382109173 | N173: 1494477 | O173: -0.00367394535 | P173: 0.000692064193 | Q173: 0.04341725914 | R173: 0.03886484 | S173: 1496620.813 | T173: 0 | U173: 0.04341725914 | V173: 0.03886484 | W173: 1496620.813 | X173: 0.04341725914 | Y173: 0.03886484 | Z173: 1496620.813 | AA173: 1496620.813 | AB173: 1851.358592 | AC173: 0.04341725914 | AD173: 0.03886484 | AF173: 1506129.679 | AG173: 1863.121304 | AH173: -0.006313444343 | AI173: -0.006313444343 | AJ173: 0 | AL173: 1153852 | AM173: 116892 | AN173: 223733
A174: 11M | B174: NHS Gloucestershire CCG | E174: 1063968.071 | F174: 651781.125 | G174: 1632.400863 | H174: -0.02158438665 | J174: 1090412.328 | K174: 656479.25 | L174: 1661.000448 | M174: 0.007208132945 | N174: 1115456 | O174: -0.02425161293 | P174: -0.01721828883 | Q174: 0.04635311588 | R174: 0.03886484 | S174: 1115456 | T174: 0.3728920159 | U174: 0.0487612503 | V174: 0.04125574049 | W174: 1115848.484 | X174: 0.0487612503 | Y174: 0.04125574049 | Z174: 1115848.484 | AA174: 1115848.484 | AB174: 1699.746769 | AC174: 0.0487612503 | AD174: 0.04125574049 | AF174: 1141119.691 | AG174: 1738.241828 | AH174: -0.02214597421 | AI174: -0.02214597421 | AJ174: 0 | AL174: 841573 | AM174: 90754 | AN174: 183129
A175: 11N | B175: NHS Kernow CCG | E175: 1060542.275 | F175: 579195.75 | G175: 1831.060182 | H175: -0.01276850257 | J175: 1079086.843 | K175: 583022.5625 | L175: 1850.849199 | M175: 0.006607114261 | N175: 1110870 | O175: -0.01718542609 | P175: -0.01069185791 | Q175: 0.0457287387 | R175: 0.03886484 | S175: 1110870 | T175: 0.2315507939 | U175: 0.04722320004 | V175: 0.04034949208 | W175: 1110870 | X175: 0.04722320004 | Y175: 0.04034949208 | Z175: 1110870 | AA175: 1110870 | AB175: 1905.363654 | AC175: 0.04745470849 | AD175: 0.04057948096 | AF175: 1128890.904 | AG175: 1936.273099 | AH175: -0.01596337072 | AI175: -0.01596337072 | AJ175: 0 | AL175: 851441 | AM175: 86471 | AN175: 172958
A176: 11X | B176: NHS Somerset CCG | E176: 998863.1968 | F176: 578764.8125 | G176: 1725.853361 | H176: -0.03628575316 | J176: 1041214.099 | K176: 582469.875 | L176: 1787.584464 | M176: 0.006401672009 | N176: 1047923 | O176: -0.04067453788 | P176: -0.03453325093 | Q176: 0.04551531197 | R176: 0.03886484 | S176: 1047923 | T176: 0.7478776595 | U176: 0.05034123428 | V176: 0.04366006485 | W176: 1049147.203 | X176: 0.05034123428 | Y176: 0.04366006485 | Z176: 1049147.203 | AA176: 1049147.203 | AB176: 1801.20423 | AC176: 0.05034123428 | AD176: 0.04366006485 | AF176: 1089414.201 | AG176: 1870.335699 | AH176: -0.03696206444 | AI176: -0.03696206444 | AJ176: 0 | AL176: 808776 | AM176: 81676 | AN176: 157471
A177: 12D | B177: NHS Swindon CCG | E177: 381357.1574 | F177: 239149.6562 | G177: 1594.638117 | H177: -0.01145321503 | J177: 385849.8789 | K177: 240568.4688 | L177: 1603.908779 | M177: 0.005932739031 | N177: 398348 | O177: -0.01164370321 | P177: -0.00578004323 | Q177: 0.04502815398 | R177: 0.03886484 | S177: 398528.9663 | T177: 0.1251768972 | U177: 0.045835522 | V177: 0.03966744636 | W177: 398836.8618 | X177: 0.045835522 | Y177: 0.03966744636 | Z177: 398836.8618 | AA177: 398836.8618 | AB177: 1657.893339 | AC177: 0.045835522 | AD177: 0.03966744636 | AF177: 403845.0535 | AG177: 1678.711494 | AH177: -0.01240127031 | AI177: -0.01240127031 | AJ177: 0 | AL177: 302088 | AM177: 31785 | AN177: 64475
A178: 12F | B178: NHS Wirral CCG | E178: 696479.26 | F178: 336757.8125 | G178: 2068.190356 | H178: 0.008012241773 | J178: 688792.5646 | K178: 337197.9688 | L178: 2042.694881 | M178: 0.001307040947 | N178: 723446 | O178: 0.01115966659 | P178: 0.01248129368 | Q178: 0.04022267888 | R178: 0.03886484 | S178: 724493.5216 | T178: 0 | U178: 0.04022267888 | V178: 0.03886484 | W178: 724493.5216 | X178: 0.04022267888 | Y178: 0.03886484 | Z178: 724493.5216 | AA178: 724493.5216 | AB178: 2148.570243 | AC178: 0.04022267888 | AD178: 0.03886484 | AF178: 720659.7359 | AG178: 2137.200703 | AH178: 0.005319827829 | AI178: 0.005319827829 | AJ178: 0 | AL178: 560636 | AM178: 51892 | AN178: 110918
A179: 13T | B179: NHS Newcastle Gateshead CCG | E179: 1000440.869 | F179: 527745.75 | G179: 1895.687212 | H179: 0.01246006751 | J179: 986718.2613 | K179: 529457.6875 | L179: 1863.639502 | M179: 0.003243867904 | N179: 1041784 | O179: 0.01390732152 | P179: 0.01719630294 | Q179: 0.04223478031 | R179: 0.03886484 | S179: 1042694.27 | T179: 0 | U179: 0.04223478031 | V179: 0.03886484 | W179: 1042694.27 | X179: 0.04223478031 | Y179: 0.03886484 | Z179: 1042694.27 | AA179: 1042694.27 | AB179: 1969.362792 | AC179: 0.04223478031 | AD179: 0.03886484 | AF179: 1032673.832 | AG179: 1950.43694 | AH179: 0.00970339084 | AI179: 0.00970339084 | AJ179: 0 | AL179: 797929 | AM179: 76423 | AN179: 167432
A180: 14L | B180: NHS Manchester CCG | E180: 1218348.8 | F180: 647873.9375 | G180: 1880.533742 | H180: -0.001021993867 | J180: 1220489.362 | K180: 653890.9375 | L180: 1866.502947 | M180: 0.009287300587 | N180: 1278951 | O180: -0.001753855492 | P180: 0.007517156511 | Q180: 0.04851309004 | R180: 0.03886484 | S180: 1278951 | T180: 0 | U180: 0.04851309004 | V180: 0.03886484 | W180: 1278951 | X180: 0.04851309004 | Y180: 0.03886484 | Z180: 1278951 | AA180: 1278951 | AB180: 1955.908741 | AC180: 0.04974125625 | AD180: 0.04008170482 | AF180: 1278447.958 | AG180: 1955.139434 | AH180: 0.0003934788637 | AI180: 0.0003934788637 | AJ180: 0 | AL180: 904555 | AM180: 101572 | AN180: 272824
A181: 14Y | B181: NHS Buckinghamshire CCG | E181: 880420.8387 | F181: 563792.625 | G181: 1561.604036 | H181: -0.006648630604 | J181: 885826.114 | K181: 568164.25 | L181: 1559.102168 | M181: 0.00775395918 | N181: 923612 | O181: -0.006101959808 | P181: 0.001604685024 | Q181: 0.04692015556 | R181: 0.03886484 | S181: 923612 | T181: 0 | U181: 0.04692015556 | V181: 0.03886484 | W181: 923612 | X181: 0.04692015556 | Y181: 0.03886484 | Z181: 923612 | AA181: 923612 | AB181: 1625.607384 | AC181: 0.04905740462 | AD181: 0.04098564443 | AF181: 927159.3618 | AG181: 1631.850934 | AH181: -0.003826054064 | AI181: -0.003826054064 | AJ181: 0 | AL181: 677273 | AM181: 76077 | AN181: 170262
A182: 15A | B182: NHS Berkshire West CCG | E182: 808044.7671 | F182: 547396.375 | G182: 1476.160245 | H182: 0.00371363911 | J182: 805205.31 | K182: 550345.9375 | L182: 1463.089405 | M182: 0.005388348617 | N182: 843040 | O182: 0.003526376492 | P182: 0.008933726454 | Q182: 0.04446260592 | R182: 0.03886484 | S182: 843972.5431 | T182: 0 | U182: 0.04446260592 | V182: 0.03886484 | W182: 843972.5431 | X182: 0.04446260592 | Y182: 0.03886484 | Z182: 843972.5431 | AA182: 843972.5431 | AB182: 1533.530977 | AC182: 0.04446260592 | AD182: 0.03886484 | AF182: 842627.6471 | AG182: 1531.087248 | AH182: 0.001596073994 | AI182: 0.001596073994 | AJ182: 0 | AL182: 633895 | AM182: 74559 | AN182: 134586
A183: 15C | B183: NHS Bristol, North Somerset and South Gloucestershire CCG | E183: 1702611.693 | F183: 1017741.5 | G183: 1672.931381 | H183: -0.008700166708 | J183: 1718483.809 | K183: 1026830 | L183: 1673.581614 | M183: 0.008930067213 | N183: 1787926 | O183: -0.009236116259 | P183: -0.0003885281855 | Q183: 0.04814197285 | R183: 0.03886484 | S183: 1787926 | T183: 0.008414254153 | U183: 0.04819640495 | V183: 0.03891879032 | W183: 1787926 | X183: 0.04819640495 | Y183: 0.03891879032 | Z183: 1787926 | AA183: 1787926 | AB183: 1741.209353 | AC183: 0.05010790634 | AD183: 0.04081337296 | AF183: 1799411.563 | AG183: 1752.39481 | AH183: -0.006382954719 | AI183: -0.006382954719 | AJ183: 0 | AL183: 1297225 | AM183: 137908 | AN183: 352793
A184: 15D | B184: NHS East Berkshire CCG | E184: 726962.286 | F184: 462630.3438 | G184: 1571.367498 | H184: 0.0262795923 | J184: 706630.1142 | K184: 465062.5 | L184: 1519.43043 | M184: 0.0052572346 | N184: 758378 | O184: 0.02877342949 | P184: 0.03418193276 | Q184: 0.04432639618 | R184: 0.03886484 | S184: 759185.9043 | T184: 0 | U184: 0.04432639618 | V184: 0.03886484 | W184: 759185.9043 | X184: 0.04432639618 | Y184: 0.03886484 | Z184: 759185.9043 | AA184: 759185.9043 | AB184: 1632.438445 | AC184: 0.04432639618 | AD184: 0.03886484 | AF184: 739635.3729 | AG184: 1590.399942 | AH184: 0.02643266144 | AI184: 0.02643266144 | AJ184: 0 | AL184: 569368 | AM184: 62366 | AN184: 126644
A185: 15E | B185: NHS Birmingham and Solihull CCG | E185: 2356598.534 | F185: 1320167.625 | G185: 1785.075236 | H185: -0.008573854077 | J185: 2379323.888 | K185: 1329445 | L185: 1789.712164 | M185: 0.007027421991 | N185: 2470612 | O185: -0.009551181352 | P185: -0.002590879542 | Q185: 0.04616538162 | R185: 0.03886484 | S185: 2470612 | T185: 0.05611000633 | U185: 0.0465276747 | V185: 0.03922460485 | W185: 2470612 | X185: 0.0465276747 | Y185: 0.03922460485 | Z185: 2470612 | AA185: 2470612 | AB185: 1858.378496 | AC185: 0.04838052142 | AD185: 0.04106452171 | AF185: 2491544.368 | AG185: 1874.123689 | AH185: -0.008401362758 | AI185: -0.008401362758 | AJ185: 0 | AL185: 1782709 | AM185: 195619 | AN185: 492284
A186: 15F | B186: NHS Leeds CCG | E186: 1527709.111 | F186: 884667.0625 | G186: 1726.874635 | H186: -0.0006565790468 | J186: 1525861.193 | K186: 888936.5 | L186: 1716.501902 | M186: 0.004826038722 | N186: 1594256 | O186: 0.001211065422 | P186: 0.006042948793 | Q186: 0.04387844195 | R186: 0.03886484 | S186: 1594742.606 | T186: 0 | U186: 0.04387844195 | V186: 0.03886484 | W186: 1594742.606 | X186: 0.04387844195 | Y186: 0.03886484 | Z186: 1594742.606 | AA186: 1594742.606 | AB186: 1793.989342 | AC186: 0.04387844195 | AD186: 0.03886484 | AF186: 1597158.299 | AG186: 1796.70685 | AH186: -0.001512494134 | AI186: -0.001512494134 | AJ186: 0 | AL186: 1190296 | AM186: 125482 | AN186: 278478
A187: 15M | B187: NHS Derby and Derbyshire CCG | E187: 1864268.156 | F187: 1053807.5 | G187: 1769.078467 | H187: 0.01797266957 | J187: 1833062.374 | K187: 1058006.75 | L187: 1732.562078 | M187: 0.00398483594 | N187: 1941253 | O187: 0.01702385199 | P187: 0.02107652519 | Q187: 0.04300454595 | R187: 0.03886484 | S187: 1944440.162 | T187: 0 | U187: 0.04300454595 | V187: 0.03886484 | W187: 1944440.162 | X187: 0.04300454595 | Y187: 0.03886484 | Z187: 1944440.162 | AA187: 1944440.162 | AB187: 1837.833418 | AC187: 0.04300454595 | AD187: 0.03886484 | AF187: 1917794.971 | AG187: 1812.649089 | AH187: 0.01389365965 | AI187: 0.01389365965 | AJ187: 0 | AL187: 1507743 | AM187: 150385 | AN187: 283125
A188: 99A | B188: NHS Liverpool CCG | E188: 1128699.005 | F188: 536622.875 | G188: 2103.337479 | H188: 0.01461253713 | J188: 1111037.511 | K188: 540072.5 | L188: 2057.200674 | M188: 0.006428397224 | N188: 1180029 | O188: 0.01589639728 | P188: 0.02242698286 | Q188: 0.04554307585 | R188: 0.03886484 | S188: 1180103.429 | T188: 0 | U188: 0.04554307585 | V188: 0.03886484 | W188: 1180103.429 | X188: 0.04554307585 | Y188: 0.03886484 | Z188: 1180103.429 | AA188: 1180103.429 | AB188: 2185.083353 | AC188: 0.04554307585 | AD188: 0.03886484 | AF188: 1163150.424 | AG188: 2153.693113 | AH188: 0.01457507584 | AI188: 0.01457507584 | AJ188: 0 | AL188: 881074 | AM188: 84616 | AN188: 214339
A189: 99C | B189: NHS North Tyneside CCG | E189: 432880.1107 | F189: 219720.4375 | G189: 1970.140401 | H189: 0.01721013942 | J189: 425357.7675 | K189: 220334 | L189: 1930.513527 | M189: 0.002792468953 | N189: 450414 | O189: 0.01768474404 | P189: 0.02052659709 | Q189: 0.04176583781 | R189: 0.03886484 | S189: 450959.7112 | T189: 0 | U189: 0.04176583781 | V189: 0.03886484 | W189: 450959.7112 | X189: 0.04176583781 | Y189: 0.03886484 | Z189: 450959.7112 | AA189: 450959.7112 | AB189: 2046.709592 | AC189: 0.04176583781 | AD189: 0.03886484 | AF189: 445140.3682 | AG189: 2020.29813 | AH189: 0.01307305167 | AI189: 0.01307305167 | AJ189: 0 | AL189: 350970 | AM189: 31044 | AN189: 68400
A190: 99D | B190: NHS South Lincolnshire CCG | E190: 281702.8063 | F190: 168384.8125 | G190: 1672.970395 | H190: -0.02457349784 | J190: 289148.4473 | K190: 169595.8125 | L190: 1704.926808 | M190: 0.007191860014 | N190: 294776 | O190: -0.02575023683 | P190: -0.01874356891 | Q190: 0.0463362105 | R190: 0.03886484 | S190: 294776 | T190: 0.405924611 | U190: 0.04895762687 | V190: 0.04146753813 | W190: 295494.3072 | X190: 0.04895762687 | Y190: 0.04146753813 | Z190: 295494.3072 | AA190: 295494.3072 | AB190: 1742.344359 | AC190: 0.04895762687 | AD190: 0.04146753813 | AF190: 302464.8457 | AG190: 1783.445247 | AH190: -0.02304578071 | AI190: -0.02304578071 | AJ190: 0 | AL190: 227920 | AM190: 26140 | AN190: 40716
A191: 99E | B191: NHS Basildon and Brentwood CCG | E191: 488130.8394 | F191: 281462.125 | G191: 1734.268294 | H191: 0.005766737376 | J191: 483517.931 | K191: 283903.5 | L191: 1703.106622 | M191: 0.008673902395 | N191: 511322 | O191: 0.009540304844 | P191: 0.01829695891 | Q191: 0.04787585222 | R191: 0.03886484 | S191: 511500.5194 | T191: 0 | U191: 0.04787585222 | V191: 0.03886484 | W191: 511500.5194 | X191: 0.04787585222 | Y191: 0.03886484 | Z191: 511500.5194 | AA191: 511500.5194 | AB191: 1801.670354 | AC191: 0.04787585222 | AD191: 0.03886484 | AF191: 506178.9523 | AG191: 1782.926073 | AH191: 0.01051321273 | AI191: 0.01051321273 | AJ191: 0 | AL191: 384668 | AM191: 38223 | AN191: 88431
A192: 99F | B192: NHS Castle Point and Rochford CCG | E192: 320710.7162 | F192: 186162.3125 | G192: 1722.74781 | H192: 0.0122976551 | J192: 315947.0848 | K192: 187122.9688 | L192: 1688.446303 | M192: 0.00516031541 | N192: 334443 | O192: 0.01507730765 | P192: 0.02031542672 | Q192: 0.04422571024 | R192: 0.03886484 | S192: 334894.3754 | T192: 0 | U192: 0.04422571024 | V192: 0.03886484 | W192: 334894.3754 | X192: 0.04422571024 | Y192: 0.03886484 | Z192: 334894.3754 | AA192: 334894.3754 | AB192: 1789.702128 | AC192: 0.04422571024 | AD192: 0.03886484 | AF192: 330566.6557 | AG192: 1766.574451 | AH192: 0.01309182176 | AI192: 0.01309182176 | AJ192: 0 | AL192: 256020 | AM192: 26026 | AN192: 52397
A193: 99G | B193: NHS Southend CCG | E193: 338814.661 | F193: 189659.2812 | G193: 1786.438601 | H193: -0.01526204179 | J193: 343653.7575 | K193: 191002.9062 | L193: 1799.206956 | M193: 0.0070844147 | N193: 354284 | O193: -0.01408131398 | P193: -0.007096657147 | Q193: 0.04622458934 | R193: 0.03886484 | S193: 354476.2296 | T193: 0.1536904634 | U193: 0.04721699953 | V193: 0.03985026899 | W193: 354812.4727 | X193: 0.04721699953 | Y193: 0.03985026899 | Z193: 354812.4727 | AA193: 354812.4727 | AB193: 1857.628659 | AC193: 0.04721699953 | AD193: 0.03985026899 | AF193: 359603.0788 | AG193: 1882.709985 | AH193: -0.01332192742 | AI193: -0.01332192742 | AJ193: 0 | AL193: 270917 | AM193: 27489 | AN193: 55878
A194: 99H | B194: NHS Surrey Downs CCG | E194: 511248.6531 | F194: 309493.5 | G194: 1651.888176 | H194: 0.001070854506 | J194: 508698.5179 | K194: 311412.7812 | L194: 1633.518431 | M194: 0.006201362064 | N194: 534017 | O194: 0.005013058018 | P194: 0.01124550787 | Q194: 0.04530721701 | R194: 0.03886484 | S194: 534411.9068 | T194: 0 | U194: 0.04530721701 | V194: 0.03886484 | W194: 534411.9068 | X194: 0.04530721701 | Y194: 0.03886484 | Z194: 534411.9068 | AA194: 534411.9068 | AB194: 1716.088545 | AC194: 0.04530721701 | AD194: 0.03886484 | AF194: 532427.9069 | AG194: 1709.71758 | AH194: 0.003726325909 | AI194: 0.003726325909 | AJ194: 0 | AL194: 405563 | AM194: 40845 | AN194: 87609
A195: 99J | B195: NHS West Kent CCG | E195: 817958.5825 | F195: 496486.1875 | G195: 1647.495143 | H195: -0.002950974883 | J195: 818408.1717 | K195: 500118.6875 | L195: 1636.427896 | M195: 0.007316417035 | N195: 855550 | O195: -0.0005493459527 | P195: 0.006763051838 | Q195: 0.04646560841 | R195: 0.03886484 | S195: 855965.5257 | T195: 0 | U195: 0.04646560841 | V195: 0.03886484 | W195: 855965.5257 | X195: 0.04646560841 | Y195: 0.03886484 | Z195: 855965.5257 | AA195: 855965.5257 | AB195: 1711.524778 | AC195: 0.04646560841 | AD195: 0.03886484 | AF195: 856896.0122 | AG195: 1713.38531 | AH195: -0.001085880307 | AI195: -0.001085880307 | AJ195: 0 | AL195: 632451 | AM195: 67390 | AN195: 155709
A196: 99K | B196: NHS High Weald Lewes Havens CCG | E196: 295602.3027 | F196: 171932.0312 | G196: 1719.297449 | H196: 0.008441312038 | J196: 293519.9559 | K196: 173388.3438 | L196: 1692.847106 | M196: 0.008470280316 | N196: 309409 | O196: 0.007094395914 | P196: 0.01562476775 | Q196: 0.04766431641 | R196: 0.03886484 | S196: 309691.9844 | T196: 0 | U196: 0.04766431641 | V196: 0.03886484 | W196: 309691.9844 | X196: 0.04766431641 | Y196: 0.03886484 | Z196: 309691.9844 | AA196: 309691.9844 | AB196: 1786.117669 | AC196: 0.04766431641 | AD196: 0.03886484 | AF196: 307190.7659 | AG196: 1771.692141 | AH196: 0.008142232057 | AI196: 0.008142232057 | AJ196: 0 | AL196: 231589 | AM196: 24348 | AN196: 53472
A197: 99M | B197: NHS North East Hampshire and Farnham CCG | E197: 371169.857 | F197: 227991 | G197: 1628.002233 | H197: -0.01111801403 | J197: 373984.8502 | K197: 228523.125 | L197: 1636.529564 | M197: 0.002333973709 | N197: 385910 | O197: -0.007527024578 | P197: -0.005210618746 | Q197: 0.04128952322 | R197: 0.03886484 | S197: 386495.2834 | T197: 0.1128450189 | U197: 0.04201474905 | V197: 0.03958837711 | W197: 386764.4654 | X197: 0.04201474905 | Y197: 0.03958837711 | Z197: 386764.4654 | AA197: 386764.4654 | AB197: 1692.452199 | AC197: 0.04201474905 | AD197: 0.03958837711 | AF197: 391347.0557 | AG197: 1712.505269 | AH197: -0.01170978619 | AI197: -0.01170978619 | AJ197: 0 | AL197: 296782 | AM197: 31128 | AN197: 58000
A198: 99N | B198: NHS Wiltshire CCG | E198: 834975.118 | F198: 495483.4688 | G198: 1685.172505 | H198: -0.02117919441 | J198: 856450.2011 | K198: 501744.0312 | L198: 1706.946466 | M198: 0.01263526009 | N198: 879452 | O198: -0.02507452623 | P198: -0.0127560893 | Q198: 0.05199116746 | R198: 0.03886484 | S198: 879452 | T198: 0.2762553177 | U198: 0.05378483566 | V198: 0.04063612752 | W198: 879884.1175 | X198: 0.05378483566 | Y198: 0.04063612752 | Z198: 879884.1175 | AA198: 879884.1175 | AB198: 1753.651389 | AC198: 0.05378483566 | AD198: 0.04063612752 | AF198: 896135.0287 | AG198: 1786.040237 | AH198: -0.01813444478 | AI198: -0.01813444478 | AJ198: 0 | AL198: 670124 | AM198: 69975 | AN198: 139353
A199: 99P | B199: NHS Northern, Eastern and Western Devon CCG | E199: 1657210.102 | F199: 936391.5 | G199: 1769.783368 | H199: -0.007686494376 | J199: 1671574.094 | K199: 941125.25 | L199: 1776.144136 | M199: 0.005055310733 | N199: 1729980 | O199: -0.008593092968 | P199: -0.00358122299 | Q199: 0.04411662458 | R199: 0.03886484 | S199: 1730320.618 | T199: 0.07755761755 | U199: 0.04461642065 | V199: 0.03936212216 | W199: 1731148.885 | X199: 0.04461642065 | Y199: 0.03936212216 | Z199: 1731148.885 | AA199: 1731148.885 | AB199: 1839.445797 | AC199: 0.04461642065 | AD199: 0.03936212216 | AF199: 1749456.129 | AG199: 1858.898302 | AH199: -0.01046453453 | AI199: -0.01046453453 | AJ199: 0 | AL199: 1307139 | AM199: 131920 | AN199: 290921
A200: 99Q | B200: NHS South Devon and Torbay CCG | E200: 563002.8031 | F200: 295595.9375 | G200: 1904.636471 | H200: 0.0136328471 | J200: 555934.4028 | K200: 297486.0625 | L200: 1868.774618 | M200: 0.006394286119 | N200: 588316 | O200: 0.0127144503 | P200: 0.01919003625 | Q200: 0.04550763903 | R200: 0.03886484 | S200: 588623.7314 | T200: 0 | U200: 0.04550763903 | V200: 0.03886484 | W200: 588623.7314 | X200: 0.04550763903 | Y200: 0.03886484 | Z200: 588623.7314 | AA200: 588623.7314 | AB200: 1978.659862 | AC200: 0.04550763903 | AD200: 0.03886484 | AF200: 581762.6037 | AG200: 1955.596167 | AH200: 0.01179368996 | AI200: 0.01179368996 | AJ200: 0 | AL200: 450693 | AM200: 41604 | AN200: 96019

Sheet Total 2021-22
B1: Year index | E1: 2020-21 | J1: 2021-22 | L1: 0.04613794172 | P1: -0.04281763864 | Q1: 0.05 | R1: 0.03908157 | T1: -0.04281763864 | U1: 0.03908157 | X1: 0.01925030241 | AI1: -0.04245
P2: -0.04245 | Q2: 0.1 | R2: 0.02531245479 | S2: 1 | T2: 0 | U2: 0.0467 | Z2: 1 | AI2: 0.1240792093
U3: 0.00761843 | AI3: 0
L4: 1896.657121 | AA4: -0.3456614763 | AI4: 24 | AL4: from Minimum Allocation worksheets
E5: 109030022 | F5: 59802739.78 | G5: 1823.160986 | J5: 109030024.3 | K5: 60137620.02 | L5: 1813.008634 | M5: 0.005599747363 | AA5: 114060445.6 | AF5: 114060445.2 | AH5: 3.030511397e-09
E6: Baseline | J6: Opening Target | O6: Distance from Target | Q6: Minimum per capita growth | T6: Per capita pace of change | X6: Minimum programme | AF6: Closing target
A7: CCG | B7: Clinical Commissioning Group (192) | E7: Baseline £000 | F7: Estimated Population | G7: Allocation per head £ | H7: Closing DfT | J7: Opening Target £000 | K7: Estimated Population | L7: Opening Target per head £ | M7: population growth rate % | N7: Sum of minimum allocations £000 | O7: DFT (total allocation) | P7: DFT (per capita) | Q7: Apply minimum per capita growth [programme] | R7: Apply minimum per capita growth [per capita] | S7: Allocation after min per capita growth £000 | T7: First Transition position | U7: Growth on per capita parameters [programme] | V7: Growth on per capita parameters [per capita] | W7: Allocation after per capita p-o-c | X7: Apply minimum programme growth [programme] | Y7: Apply minimum programme growth [per capita] | Z7: Allocation after minimum programme growth | AA7: Allocation £000 | AB7: Minimum allocation per head £ | AC7: Growth after rounding | AD7: Per capita growth after rounding | AF7: Target allocations from the fair shares formula £000 | AG7: Target per head | AH7: DFT (total allocation) | AI7: DFT (per capita) | AJ7: Does minimum apply? | AL7: Minimum Allocation CCG | AM7: Minimum Allocation PC Med | AN7: Minimum Allocation Spec Services
A9: 00C | B9: NHS Darlington CCG | E9: 211110 | F9: 108449.6406 | G9: =E9/F9*1000 -> 1946.617792 | H9: 0.0005820207136 | J9: 211222.3378 | K9: 108477.0781 | L9: =J9/K9*1000 -> 1947.161018 | M9: =K9/F9-1 -> 0.0002529976111 | N9: =SUM(AL9:AN9) -> 219103 | O9: =E9/J9-1 -> -0.0005318463623 | P9: =G9/L9-1 -> -0.0002789833071 | Q9: =(1+M9)*(1+R9)-1 -> 0.03934445515 | R9: =MinGrowthPerHead(P9,0,1,$Q$1,$Q$2,$R$1,$R$2) -> 0.03908157 | S9: =MAX((1+IF($S$2=1,Q9,0))*$E9,$N9) -> 219416.0079 | T9: =MinMaxRamp(P9,0,1,$P$2,$T$2) -> 0.006572044925 | U9: =(1+M9)*(1+V9)-1 -> 0.03939084168 | V9: =MAX(R9,NewMinGrowthPerHead(P9,$P$2,$L$1,$U$1,$T$2,AG9,G9,T9, $P$1)) -> 0.03912794479 | W9: =MAX((1+IF($S$2=1,U9,0))*$E9,$N9) -> 219425.8006 | X9: =MAX(U9,$X$1) -> 0.03939084168 | Y9: =(1+X9)/(1+M9) - 1 -> 0.03912794479 | Z9: =MAX((1+IF($Z$2=1,X9,0))*$E9,$N9) -> 219425.8006 | AA9: =Z9 -> 219425.8006 | AB9: =AA9/K9*1000 -> 2022.784946 | AC9: =AA9/E9-1 -> 0.03939084168 | AD9: =AB9/G9-1 -> 0.03912794479 | AF9: 220842.2552 | AG9: =AF9/K9*1000 -> 2035.842586 | AH9: =AA9/AF9-1 -> -0.006413875135 | AI9: =AB9/AG9-1 -> -0.006413875135 | AJ9: =IF(AF9=N9,1,0) -> 0 | AL9: 169254 | AM9: 16662 | AN9: 33187
A10: 00D | B10: NHS Durham Dales, Easington and Sedgefield CCG | E10: 630131 | F10: 294087.8125 | G10: =E10/F10*1000 -> 2142.662746 | H10: 0.02020784058 | J10: 618812.4588 | K10: 295084.125 | L10: =J10/K10*1000 -> 2097.071331 | M10: =K10/F10-1 -> 0.003387806151 | N10: =SUM(AL10:AN10) -> 655468 | O10: =E10/J10-1 -> 0.01829074547 | P10: =G10/L10-1 -> 0.02174051712 | Q10: =(1+M10)*(1+R10)-1 -> 0.04260177693 | R10: =MinGrowthPerHead(P10,0,1,$Q$1,$Q$2,$R$1,$R$2) -> 0.03908157 | S10: =MAX((1+IF($S$2=1,Q10,0))*$E10,$N10) -> 656975.7003 | T10: =MinMaxRamp(P10,0,1,$P$2,$T$2) -> 0 | U10: =(1+M10)*(1+V10)-1 -> 0.04260177693 | V10: 0.03908157 | W10: =MAX((1+IF($S$2=1,U10,0))*$E10,$N10) -> 656975.7003 | X10: =MAX(U10,$X$1) -> 0.04260177693 | Y10: =(1+X10)/(1+M10) - 1 -> 0.03908157 | Z10: =MAX((1+IF($Z$2=1,X10,0))*$E10,$N10) -> 656975.7003 | AA10: 656975.7003 | AB10: 2226.40137 | AC10: 0.04260177693 | AD10: 0.03908157 | AF10: 646731.6337 | AG10: 2191.685621 | AH10: =AA10/AF10-1 -> 0.0158397487 | AI10: 0.0158397487 | AJ10: 0 | AL10: 520313 | AM10: 50330 | AN10: 84825
A11: 00J | B11: NHS North Durham CCG | E11: 493747 | F11: 260704.7812 | G11: 1893.893152 | H11: 0.0183823284 | J11: 485318.0322 | K11: 261174 | L11: 1858.217251 | M11: 0.001799808764 | N11: 513111 | O11: 0.01736792619 | P11: 0.0191989939 | Q11: 0.04095171812 | R11: 0.03908157 | S11: 513966.788 | T11: 0 | U11: 0.04095171812 | V11: 0.03908157 | W11: 513966.788 | X11: 0.04095171812 | Y11: 0.03908157 | Z11: 513966.788 | AA11: 513966.788 | AB11: 1967.90947 | AC11: 0.04095171812 | AD11: 0.03908157 | AF11: 507415.8774 | AG11: 1942.826918 | AH11: 0.01291033809 | AI11: 0.01291033809 | AJ11: 0 | AL11: 400140 | AM11: 39688 | AN11: 73283
A12: 00K | B12: NHS Hartlepool and Stockton-on-Tees CCG | E12: 581330 | F12: 298891.875 | G12: 1944.950829 | H12: -0.03057005086 | J12: 599325.9957 | K12: 299587.75 | L12: 2000.502343 | M12: 0.00232818306 | N12: 606371 | O12: -0.0300270568 | P12: -0.02776878223 | Q12: 0.04150074211 | R12: 0.03908157 | S12: 606371 | T12: 0.6541527026 | U12: 0.0461274335 | V12: 0.04369751463 | W12: 608145.2609 | X12: 0.0461274335 | Y12: 0.04369751463 | Z12: 608145.2609 | AA12: 608145.2609 | AB12: 2029.940346 | AC12: 0.0461274335 | AD12: 0.04369751463 | AF12: 626591.4728 | AG12: 2091.512329 | AH12: -0.0294389769 | AI12: -0.0294389769 | AJ12: 0 | AL12: 469966 | AM12: 47194 | AN12: 89211
A13: 00L | B13: NHS Northumberland CCG | E13: 654273 | F13: 325564.0625 | G13: 2009.659773 | H13: -0.01212420187 | J13: 662940.1708 | K13: 325652.125 | L13: 2035.731137 | M13: 0.0002704920787 | N13: 679630 | O13: -0.0130738356 | P13: -0.01280687989 | Q13: 0.03936263333 | R13: 0.03908157 | S13: 680026.9082 | T13: 0.3016932835 | U13: 0.04149206913 | V13: 0.04121042995 | W13: 681420.1405 | X13: 0.04149206913 | Y13: 0.04121042995 | Z13: 681420.1405 | AA13: 681420.1405 | AB13: 2092.478716 | AC13: 0.04149206913 | AD13: 0.04121042995 | AF13: 693114.3832 | AG13: 2128.388946 | AH13: -0.01687202424 | AI13: -0.01687202424 | AJ13: 0 | AL13: 526532 | AM13: 50830 | AN13: 102268
A14: 00M | B14: NHS South Tees CCG | E14: 622359 | F14: 297414.375 | G14: 2092.565297 | H14: -0.02162613894 | J14: 634454.4655 | K14: 297457.0312 | L14: 2132.928117 | M14: 0.0001434236324 | N14: 647663 | O14: -0.01906435546 | P14: -0.01892366611 | Q14: 0.03923059885 | R14: 0.03908157 | S14: 647663 | T14: 0.4457871875 | U14: 0.04237669011 | V14: 0.0422272101 | W14: 648732.5145 | X14: 0.04237669011 | Y14: 0.0422272101 | Z14: 648732.5145 | AA14: 648732.5145 | AB14: 2180.928492 | AC14: 0.04237669011 | AD14: 0.0422272101 | AF14: 663725.1478 | AG14: 2231.331177 | AH14: -0.02258861719 | AI14: -0.02258861719 | AJ14: 0 | AL14: 485157 | AM14: 50899 | AN14: 111607
A15: 00N | B15: NHS South Tyneside CCG | E15: 346324 | F15: 157527.4219 | G15: 2198.499765 | H15: 0.01799238142 | J15: 339733.4852 | K15: 157706.6562 | L15: 2154.211453 | M15: 0.001137797933 | N15: 359662 | O15: 0.01939907347 | P15: 0.02055894363 | Q15: 0.04026383486 | R15: 0.03908157 | S15: 360268.3323 | T15: 0 | U15: 0.04026383486 | V15: 0.03908157 | W15: 360268.3323 | X15: 0.04026383486 | Y15: 0.03908157 | Z15: 360268.3323 | AA15: 360268.3323 | AB15: 2284.420588 | AC15: 0.04026383486 | AD15: 0.03908157 | AF15: 355195.9489 | AG15: 2252.25718 | AH15: 0.01428052174 | AI15: 0.01428052174 | AJ15: 0 | AL15: 282259 | AM15: 25150 | AN15: 52253
A16: 00P | B16: NHS Sunderland CCG | E16: 616332 | F16: 284521.125 | G16: 2166.208221 | H16: 0.04390042978 | J16: 589591.7792 | K16: 284736.6562 | L16: 2070.656399 | M16: 0.0007575228377 | N16: 638008 | O16: 0.04535378847 | P16: 0.04614566784 | Q16: 0.03986869802 | R16: 0.03908157 | S16: 640904.3544 | T16: 0 | U16: 0.03986869802 | V16: 0.03908157 | W16: 640904.3544 | X16: 0.03986869802 | Y16: 0.03908157 | Z16: 640904.3544 | AA16: 640904.3544 | AB16: 2250.867039 | AC16: 0.03986869802 | AD16: 0.03908157 | AF16: 616385.2852 | AG16: 2164.755649 | AH16: 0.03977880355 | AI16: 0.03977880355 | AJ16: 0 | AL16: 500563 | AM16: 47147 | AN16: 90298
A17: 00Q | B17: NHS Blackburn with Darwen CCG | E17: 332887 | F17: 175171.625 | G17: 1900.34773 | H17: -0.04342794181 | J17: 346660.0227 | K17: 175123.5469 | L17: 1979.516912 | M17: -0.0002744629731 | N17: 346982 | O17: -0.0397306345 | P17: -0.03999419288 | Q17: 0.03879638058 | R17: 0.03908157 | S17: 346982 | T17: 0.9421482423 | U17: 0.04544270412 | V17: 0.04572971821 | W17: 348014.2854 | X17: 0.04544270412 | Y17: 0.04572971821 | Z17: 348014.2854 | AA17: 348014.2854 | AB17: 1987.250097 | AC17: 0.04544270412 | AD17: 0.04572971821 | AF17: 362670.2293 | AG17: 2070.939264 | AH17: -0.04041121289 | AI17: -0.04041121289 | AJ17: 0 | AL17: 261413 | AM17: 27547 | AN17: 58022
A18: 00R | B18: NHS Blackpool CCG | E18: 407948 | F18: 172778.25 | G18: 2361.107373 | H18: -0.04248511328 | J18: 423411.9628 | K18: 172451.375 | L18: 2455.2542 | M18: -0.001891875858 | N18: 425291 | O18: -0.03652226234 | P18: -0.03834504261 | Q18: 0.03711575666 | R18: 0.03908157 | S18: 425291 | T18: 0.9032990015 | U18: 0.04347771135 | V18: 0.04545558353 | W18: 425684.6454 | X18: 0.04347771135 | Y18: 0.04545558353 | Z18: 425684.6454 | AA18: 425684.6454 | AB18: 2468.432887 | AC18: 0.04347771135 | AD18: 0.04545558353 | AF18: 442892.6902 | AG18: 2568.217796 | AH18: -0.03885375656 | AI18: -0.03885375656 | AJ18: 0 | AL18: 319199 | AM18: 32796 | AN18: 73296
A19: 00T | B19: NHS Bolton CCG | E19: 600927 | F19: 311766.75 | G19: 1927.48906 | H19: -0.005574084597 | J19: 603317.8669 | K19: 312848.8125 | L19: 1928.464622 | M19: 0.003470743753 | N19: 626762 | O19: -0.003962864334 | P19: -0.0005058746675 | Q19: 0.04268795587 | R19: 0.03908157 | S19: 626762 | T19: 0.0119169533 | U19: 0.04277233818 | V19: 0.03916566045 | W19: 626762 | X19: 0.04277233818 | Y19: 0.03916566045 | Z19: 626762 | AA19: 626762 | AB19: 2003.402202 | AC19: 0.04299191083 | AD19: 0.03938447366 | AF19: 631068.3667 | AG19: 2017.167212 | AH19: -0.006823930607 | AI19: -0.006823930607 | AJ19: 0 | AL19: 468196 | AM19: 47461 | AN19: 111105
A20: 00V | B20: NHS Bury CCG | E20: 388913 | F20: 205557.6562 | G20: 1891.989854 | H20: -0.006633393483 | J20: 390929.4704 | K20: 206201.6875 | L20: 1895.859705 | M20: 0.003133092981 | N20: 406365 | O20: -0.005158143654 | P20: -0.002041211617 | Q20: 0.04233710917 | R20: 0.03908157 | S20: 406365 | T20: 0.04808507931 | U20: 0.04267747845 | V20: 0.03942087619 | W20: 406365 | X20: 0.04267747845 | Y20: 0.03942087619 | Z20: 406365 | AA20: 406365 | AB20: 1970.716171 | AC20: 0.04487378925 | AD20: 0.04161032725 | AF20: 408927.3523 | AG20: 1983.142608 | AH20: -0.006266032948 | AI20: -0.006266032948 | AJ20: 0 | AL20: 299449 | AM20: 30479 | AN20: 76437
A21: 00X | B21: NHS Chorley and South Ribble CCG | E21: 348088 | F21: 186178.5312 | G21: 1869.646289 | H21: 0.003025163827 | J21: 348469.6477 | K21: 187455.0625 | L21: 1858.950316 | M21: 0.006856490066 | N21: 363796 | O21: -0.001095210737 | P21: 0.005753770027 | Q21: 0.04620602246 | R21: 0.03908157 | S21: 364171.7619 | T21: 0 | U21: 0.04620602246 | V21: 0.03908157 | W21: 364171.7619 | X21: 0.04620602246 | Y21: 0.03908157 | Z21: 364171.7619 | AA21: 364171.7619 | AB21: 1942.715001 | AC21: 0.04620602246 | AD21: 0.03908157 | AF21: 364468.3883 | AG21: 1944.297387 | AH21: -0.0008138602378 | AI21: -0.0008138602378 | AJ21: 0 | AL21: 276972 | AM21: 26356 | AN21: 60468
A22: 00Y | B22: NHS Oldham CCG | E22: 501774 | F22: 258134.7344 | G22: 1943.845338 | H22: 0.02228014524 | J22: 490468.9277 | K22: 259393.0625 | L22: 1890.832866 | M22: 0.004874695101 | N22: 523435 | O22: 0.02304951778 | P22: 0.02803657225 | Q22: 0.04414677584 | R22: 0.03908157 | S22: 523925.7043 | T22: 0 | U22: 0.04414677584 | V22: 0.03908157 | W22: 523925.7043 | X22: 0.04414677584 | Y22: 0.03908157 | Z22: 523925.7043 | AA22: 523925.7043 | AB22: 2019.813866 | AC22: 0.04414677584 | AD22: 0.03908157 | AF22: 512991.8612 | AG22: 1977.662225 | AH22: 0.0213138724 | AI22: 0.0213138724 | AJ22: 0 | AL22: 389465 | AM22: 43008 | AN22: 90962
A23: 01A | B23: NHS East Lancashire CCG | E23: 776029 | F23: 382833.375 | G23: 2027.067259 | H23: 0.004246224482 | J23: 771488.7574 | K23: 383179.6562 | L23: 2013.386527 | M23: 0.0009045221044 | N23: 806140 | O23: 0.005885040495 | P23: 0.006794885749 | Q23: 0.04002144225 | R23: 0.03908157 | S23: 807086.7998 | T23: 0 | U23: 0.04002144225 | V23: 0.03908157 | W23: 807086.7998 | X23: 0.04002144225 | Y23: 0.03908157 | Z23: 807086.7998 | AA23: 807086.7998 | AB23: 2106.28823 | AC23: 0.04002144225 | AD23: 0.03908157 | AF23: 806945.4355 | AG23: 2105.919305 | AH23: 0.0001751845041 | AI23: 0.0001751845041 | AJ23: 0 | AL23: 619018 | AM23: 59568 | AN23: 127554
A24: 01C | B24: NHS Eastern Cheshire CCG | E24: 374074 | F24: 209983.75 | G24: 1781.442612 | H24: 0.003279549707 | J24: 373325.7614 | K24: 210671.9062 | L24: 1772.071882 | M24: 0.003277188116 | N24: 390064 | O24: 0.002004251249 | P24: 0.005288007673 | Q24: 0.04248683577 | R24: 0.03908157 | S24: 390064 | T24: 0 | U24: 0.04248683577 | V24: 0.03908157 | W24: 390064 | X24: 0.04248683577 | Y24: 0.03908157 | Z24: 390064 | AA24: 390064 | AB24: 1851.52357 | AC24: 0.04274555302 | AD24: 0.03933944215 | AF24: 390448.2709 | AG24: 1853.347595 | AH24: -0.0009841787219 | AI24: -0.0009841787219 | AJ24: 0 | AL24: 290895 | AM24: 30663 | AN24: 68506
A25: 01D | B25: NHS Heywood, Middleton and Rochdale CCG | E25: 478076 | F25: 235364.3906 | G25: 2031.216357 | H25: -0.0103767303 | J25: 482572.5637 | K25: 236209.7969 | L25: 2042.982849 | M25: 0.003591903804 | N25: 499669 | O25: -0.009317901685 | P25: -0.005759466888 | Q25: 0.04281385104 | R25: 0.03908157 | S25: 499669 | T25: 0.1356764873 | U25: 0.0437746736 | V25: 0.04003895373 | W25: 499669 | X25: 0.0437746736 | Y25: 0.04003895373 | Z25: 499669 | AA25: 499669 | AB25: 2115.361033 | AC25: 0.04516645889 | AD25: 0.04142575775 | AF25: 504845.2198 | AG25: 2137.274688 | AH25: -0.01025308276 | AI25: -0.01025308276 | AJ25: 0 | AL25: 369351 | AM25: 36158 | AN25: 94160
A26: 01E | B26: NHS Greater Preston CCG | E26: 387091 | F26: 209231.7188 | G26: 1850.058884 | H26: -0.01104243696 | J26: 389985.0515 | K26: 209111.4844 | L26: 1864.96238 | M26: -0.0005746469786 | N26: 402428 | O26: -0.007420929408 | P26: -0.007991311972 | Q26: 0.03848446492 | R26: 0.03908157 | S26: 402428 | T26: 0.1882523433 | U26: 0.03981208008 | V26: 0.04040994851 | W26: 402501.8979 | X26: 0.03981208008 | Y26: 0.04040994851 | Z26: 402501.8979 | AA26: 402501.8979 | AB26: 1924.819668 | AC26: 0.03981208008 | AD26: 0.04040994851 | AF26: 408019.1415 | AG26: 1951.203889 | AH26: -0.01352202161 | AI26: -0.01352202161 | AJ26: 0 | AL26: 298488 | AM26: 30746 | AN26: 73194
A27: 01F | B27: NHS Halton CCG | E27: 282946 | F27: 131833.6406 | G27: 2146.2352 | H27: 0.02806933686 | J27: 275088.1673 | K27: 132053.2031 | L27: 2083.161641 | M27: 0.001665451238 | N27: 294082 | O27: 0.02856477894 | P27: 0.03027780342 | Q27: 0.04081210969 | R27: 0.03908157 | S27: 294493.6232 | T27: 0 | U27: 0.04081210969 | V27: 0.03908157 | W27: 294493.6232 | X27: 0.04081210969 | Y27: 0.03908157 | Z27: 294493.6232 | AA27: 294493.6232 | AB27: 2230.113441 | AC27: 0.04081210969 | AD27: 0.03908157 | AF27: 287606.1745 | AG27: 2177.956821 | AH27: 0.02394749952 | AI27: 0.02394749952 | AJ27: 0 | AL27: 227640 | AM27: 21102 | AN27: 45340
A28: 01G | B28: NHS Salford CCG | E28: 582838 | F28: 278114.5 | G28: 2095.676421 | H28: 0.02177319291 | J28: 570857.8447 | K28: 280451.75 | L28: 2035.493965 | M28: 0.008403912777 | N28: 610333 | O28: 0.02098623218 | P28: 0.02956651142 | Q28: 0.04781392088 | R28: 0.03908157 | S28: 610705.77 | T28: 0 | U28: 0.04781392088 | V28: 0.03908157 | W28: 610705.77 | X28: 0.04781392088 | Y28: 0.03908157 | Z28: 610705.77 | AA28: 610705.77 | AB28: 2177.578746 | AC28: 0.04781392088 | AD28: 0.03908157 | AF28: 597239.1943 | AG28: 2129.561304 | AH28: 0.02254804413 | AI28: 0.02254804413 | AJ28: 0 | AL28: 455024 | AM28: 45930 | AN28: 109379
A29: 01H | B29: NHS Cumbria CCG | E29: 645366 | F29: 323354.9062 | G29: 1995.844156 | H29: 0.0002529971467 | J29: 644812.5244 | K29: 322940.9375 | L29: 1996.688711 | M29: -0.001280230304 | N29: 668872 | O29: 0.0008583512643 | P29: -0.0004229779272 | Q29: 0.03775130629 | R29: 0.03908157 | S29: 669729.4095 | T29: 0.00996414434 | U29: 0.03782152698 | V29: 0.03915188071 | W29: 669774.7276 | X29: 0.03782152698 | Y29: 0.03915188071 | Z29: 669774.7276 | AA29: 669774.7276 | AB29: 2073.985208 | AC29: 0.03782152698 | AD29: 0.03915188071 | AF29: 674188.2486 | AG29: 2087.651859 | AH29: -0.006546422422 | AI29: -0.006546422422 | AJ29: 0 | AL29: 512194 | AM29: 53195 | AN29: 103483
A30: 01J | B30: NHS Knowsley CCG | E30: 392687 | F30: 166135.6719 | G30: 2363.652523 | H30: 0.0492263571 | J30: 373371.1421 | K30: 166636.7812 | L30: 2240.628626 | M30: 0.003016265979 | N30: 408422 | O30: 0.05173366572 | P30: 0.05490597419 | Q30: 0.04086062288 | R30: 0.03773055152 | S30: 408732.4354 | T30: 0 | U30: 0.04086062288 | V30: 0.03773055152 | W30: 408732.4354 | X30: 0.04086062288 | Y30: 0.03773055152 | Z30: 408732.4354 | AA30: 408732.4354 | AB30: 2452.834436 | AC30: 0.04086062288 | AD30: 0.03773055152 | AF30: 390475.8388 | AG30: 2343.275212 | AH30: 0.04675474068 | AI30: 0.04675474068 | AJ30: 0 | AL30: 309383 | AM30: 34474 | AN30: 64565
A31: 01K | B31: NHS Morecambe Bay CCG | E31: 683061 | F31: 347573.9375 | G31: 1965.225025 | H31: -0.01264802069 | J31: 690495.9943 | K31: 348167.625 | L31: 1983.228608 | M31: 0.001708089808 | N31: 710303 | O31: -0.01076761402 | P31: -0.009077916264 | Q31: 0.04085641464 | R31: 0.03908157 | S31: 710968.4234 | T31: 0.2138496175 | U31: 0.04236799454 | V31: 0.04059057239 | W31: 712000.9247 | X31: 0.04236799454 | Y31: 0.04059057239 | Z31: 712000.9247 | AA31: 712000.9247 | AB31: 2044.994634 | AC31: 0.04236799454 | AD31: 0.04059057239 | AF31: 721873.7317 | AG31: 2073.35111 | AH31: -0.0136766397 | AI31: -0.0136766397 | AJ31: 0 | AL31: 551580 | AM31: 52416 | AN31: 106307
